Workbook

Sheet DISCLAIMER
F1: Forest Age Class Change Simulator:
B2: The FACCS tool was initially developed to project forest harvest residue availability over time; specifically focusing on carbon stock changes associated with the removal of tree tops and branches for energy production (Domke et al. 2008, Domke 2010, Domke et al. 2012). It was designed using a spreadsheet platform familiar to a wide range of potential users and applications. The platform also allowed for a broad range of estimates, e.g., biomass supply and carbon emissions and sequestration. In the process of developing these estimates the model also considered merchantable timber volumes and corresponding biomass. The general form of FACCS is based on the literature of forest projection models (see Alig et al. 1984; Cubbage et al. 1993). It was designed to cycle forest area through a matrix comprised of annual age classes and a project planning horizon/ simulation period. In its simplest form, the model functions by implementing changes in forest type acreage resulting from harvest or mortality for annual age classes over the simulation period. The model has since undergone several refinements. It was recognized early in development that using one year rather than multiple-year age classes in the change matrix improves the detail of output and simplifies the age class change matrix and associated estimated area represented by a particular forest type and age class. The current version cycles through the matrix one year (cell) at a time. The change algorithm has also been refined so that harvests can only occur in cells which have forest land area, thus eliminating spurious results (e.g., negative area estimates). Additionally, a graphic user interface was incorporated to allow the user to select various forest management scenarios compiled using the area change matrix generator. This feature incorporates thinning as an option, and can retains a user-defined percentage of the total forest area in age classes above the rotation age. This and other management criteria can be modified interactively by the user, and through changes to various spreadsheet-based inputs to the tool. The FACCS tool was developed so that basic forest inventory descriptions, harvesting plans and utilization levels could be combined to estimate long-term harvest implications for both roundwood and residual biomass.

Sheet AREA
A2: Table 1. Forest Type Area: This table shows area of each forest type and 5-year age class within the study area. Forest type area information is summarized from the raw inventory data. Certain species and forest types may be combined for efficiency if necessary and appropriate. These data are used in the Change Matrices as the starting point for propagating the progression of area through age-classes over time.
A3: Hectares | B3: 5 | C3: 10 | D3: 15 | E3: 20 | F3: 25 | G3: 30 | H3: 35 | I3: 40 | J3: 45 | K3: 50 | L3: 55 | M3: 60 | N3: 65 | O3: 70 | P3: 75 | Q3: 80 | R3: 85 | S3: 90 | T3: 95 | U3: 100 | V3: 105 | W3: Total
A4: 100 | B4: =B17*0.4047 -> 6937.3674 | C4: =C17*0.4047 -> 9304.053 | D4: 15287.1378 | E4: 14947.5945 | F4: 21034.6872 | G4: 29110.4757 | H4: 22837.221 | I4: 25534.1418 | J4: 26998.7511 | K4: 19268.5764 | L4: 20242.2846 | M4: 8577.2118 | N4: 10754.9025 | O4: 14595.5055 | P4: 12038.6109 | Q4: 9447.7215 | R4: 11079.4719 | S4: 11106.9915 | T4: 3094.7409 | U4: 1709.0481 | V4: 22319.6097 | W4: =SUM(B4:V4) -> 316226.1048
A5: 120 | B5: 27462.5373 | C5: =C18*0.4047 -> 20804.4129 | D5: 23552.3259 | E5: 23959.4541 | F5: 38087.9358 | G5: 33078.9639 | H5: 34920.3489 | I5: 44476.1253 | J5: 54920.2182 | K5: 86867.2362 | L5: 86871.2832 | M5: 81246.7626 | N5: 85250.8644 | O5: 97622.1387 | P5: 81019.7259 | Q5: 78690.2727 | R5: 80799.5691 | S5: 60906.1359 | T5: 50589.1188 | U5: 43205.772 | V5: 260288.0661 | W5: 1394619.268
A6: 500 | B6: 21024.165 | C6: 16853.7315 | D6: 14663.0904 | E6: 10283.0223 | F6: 7093.5816 | G6: 14557.4637 | H6: 4087.47 | I6: 14710.0356 | J6: 14302.5027 | K6: 21672.8991 | L6: 37737.8703 | M6: 36809.0838 | N6: 52759.5249 | O6: 38589.3591 | P6: 45355.5384 | Q6: 29317.2774 | R6: 29270.7369 | S6: 21348.3297 | T6: 15304.1352 | U6: 6785.2002 | V6: 20913.2772 | W6: 473438.295
A7: 700 | B7: 6179.3643 | C7: 8465.1099 | D7: 9717.6564 | E7: 8849.5749 | F7: 6038.124 | G7: 8380.1229 | H7: 12461.9271 | I7: 7151.4537 | J7: 12306.1176 | K7: 17138.6403 | L7: 18886.1349 | M7: 30184.9542 | N7: 33414.0555 | O7: 38420.1945 | P7: 44400.8511 | Q7: 22765.1844 | R7: 31362.6312 | S7: 28050.5664 | T7: 13176.2226 | U7: 15277.0203 | V7: 54926.6934 | W7: 427552.5996
A8: 800 | B8: 28305.5274 | C8: 19945.2348 | D8: 19752.1929 | E8: 5550.4605 | F8: 14283.8865 | G8: 10930.5423 | H8: 11560.6602 | I8: 3234.3624 | J8: 13645.6746 | K8: 15023.6781 | L8: 21538.134 | M8: 24605.3553 | N8: 21744.531 | O8: 42640.8108 | P8: 41174.178 | Q8: 36337.2036 | R8: 32502.6711 | S8: 22911.6858 | T8: 27634.9395 | U8: 6221.8578 | V8: 18494.3853 | W8: 438037.9719
A9: 900 | B9: 146634.1416 | C9: 164615.3673 | D9: 200492.427 | E9: 159667.1004 | F9: 147678.6723 | G9: 134871.5361 | H9: 119591.6829 | I9: 114800.8443 | J9: 117737.3475 | K9: 122272.4157 | L9: 139495.6383 | M9: 114609.0165 | N9: 144889.0752 | O9: 119130.3249 | P9: 101337.2847 | Q9: 84388.4487 | R9: 42194.8314 | S9: 21801.189 | T9: 13085.9745 | U9: 11711.2086 | V9: 20159.7258 | W9: 2241164.253
B12: =1/0.4047 -> 2.470966148 | C12: =B12*522.23 -> 1290.412651
A15: Input acres from FIA data here.
A16: Acres | B16: 5 | C16: 10 | D16: 15 | E16: 20 | F16: 25 | G16: 30 | H16: 35 | I16: 40 | J16: 45 | K16: 50 | L16: 55 | M16: 60 | N16: 65 | O16: 70 | P16: 75 | Q16: 80 | R16: 85 | S16: 90 | T16: 95 | U16: 100 | V16: 105 | W16: Total
A17: 100 | B17: =C36 -> 17142 | C17: =D36 -> 22990 | D17: 37774 | E17: 36935 | F17: 51976 | G17: 71931 | H17: 56430 | I17: 63094 | J17: 66713 | K17: 47612 | L17: 50018 | M17: 21194 | N17: 26575 | O17: 36065 | P17: 29747 | Q17: 23345 | R17: 27377 | S17: 27445 | T17: 7647 | U17: 4223 | V17: 55151 | W17: =SUM(B17:V17) -> 781384
A18: 120 | B18: =C37+C38+C39 -> 67859 | C18: =D37+D38+D39 -> 51407 | D18: 58197 | E18: 59203 | F18: 94114 | G18: 81737 | H18: 86287 | I18: 109899 | J18: 135706 | K18: 214646 | L18: 214656 | M18: 200758 | N18: 210652 | O18: 241221 | P18: 200197 | Q18: 194441 | R18: 199653 | S18: 150497 | T18: 125004 | U18: 106760 | V18: 643163 | W18: 3446057
A19: 500 | B19: =C40+C41 -> 51950 | C19: =D40+D41 -> 41645 | D19: 36232 | E19: 25409 | F19: 17528 | G19: 35971 | H19: 10100 | I19: 36348 | J19: 35341 | K19: 53553 | L19: 93249 | M19: 90954 | N19: 130367 | O19: 95353 | P19: 112072 | Q19: 72442 | R19: 72327 | S19: 52751 | T19: 37816 | U19: 16766 | V19: 51676 | W19: 1169850
A20: 700 | B20: =C42 -> 15269 | C20: =D42 -> 20917 | D20: 24012 | E20: 21867 | F20: 14920 | G20: 20707 | H20: 30793 | I20: 17671 | J20: 30408 | K20: 42349 | L20: 46667 | M20: 74586 | N20: 82565 | O20: 94935 | P20: 109713 | Q20: 56252 | R20: 77496 | S20: 69312 | T20: 32558 | U20: 37749 | V20: 135722 | W20: 1056468
A21: 800 | B21: =C43+C45 -> 69942 | C21: =D43+D45 -> 49284 | D21: 48807 | E21: 13715 | F21: 35295 | G21: 27009 | H21: 28566 | I21: 7992 | J21: 33718 | K21: 37123 | L21: 53220 | M21: 60799 | N21: 53730 | O21: 105364 | P21: 101740 | Q21: 89788 | R21: 80313 | S21: 56614 | T21: 68285 | U21: 15374 | V21: 45699 | W21: 1082377
A22: 900 | B22: =C44 -> 362328 | C22: =D44 -> 406759 | D22: 495410 | E22: 394532 | F22: 364909 | G22: 333263 | H22: 295507 | I22: 283669 | J22: 290925 | K22: 302131 | L22: 344689 | M22: 283195 | N22: 358016 | O22: 294367 | P22: 250401 | Q22: 208521 | R22: 104262 | S22: 53870 | T22: 32335 | U22: 28938 | V22: 49814 | W22: 5537841
A24: Estimate type Area of timberland, in acres
A25: Statecd/EVALID(s):
A26: RSCD=23 EVALID=271101 MINNESOTA 2007;2008;2009;2010;2011
A27: Page variable=None
A28: Row variable=Forest type group
A29: Column variable=Stand age 5 yr classes
A30: and (cond.owncd=11 or cond.owncd=13 or cond.owncd=25 or cond.owncd=31 or cond.owncd=32 or cond.owncd=46) and plot.ecosubcd in (' 212Kb', ' 212La', ' 212Lb', ' 212Lc', ' 212Ld', ' 212Le', ' 212Ma', ' 212Mb', ' 212Na', ' 212Nb', ' 212Nc', ' 212Nd', ' 212Ya')
A32: Estimate:
B33: Stand age 5 yr classes
A34: Forest type group | B34: Total | C34: 0-5 years | D34: 6-10 years | E34: 11-15 years | F34: 16-20 years | G34: 21-25 years | H34: 26-30 years | I34: 31-35 years | J34: 36-40 years | K34: 41-45 years | L34: 46-50 years | M34: 51-55 years | N34: 56-60 years | O34: 61-65 years | P34: 66-70 years | Q34: 71-75 years | R34: 76-80 years | S34: 81-85 years | T34: 86-90 years | U34: 91-95 years | V34: 96-100 years | W34: 100+ years | X34: Proportion of Combined Types | Y34: Combined Type Code
A35: Total | B35: 13224314 | C35: 734836 | D35: 593001 | E35: 700431 | F35: 551661 | G35: 578742 | H35: 570618 | I35: 507682 | J35: 518673 | K35: 592811 | L35: 697412 | M35: 802499 | N35: 731486 | O35: 861904 | P35: 867304 | Q35: 803871 | R35: 644788 | S35: 561427 | T35: 410489 | U35: 303645 | V35: 209809 | W35: 981225
A36: White / red / jack pine group | B36: 781382 | C36: 17142 | D36: 22990 | E36: 37774 | F36: 36935 | G36: 51976 | H36: 71931 | I36: 56430 | J36: 63094 | K36: 66713 | L36: 47612 | M36: 50018 | N36: 21194 | O36: 26575 | P36: 36065 | Q36: 29747 | R36: 23345 | S36: 27377 | T36: 27445 | U36: 7647 | V36: 4223 | W36: 55151
A37: Spruce / fir group | B37: 3435767 | C37: 67859 | D37: 51407 | E37: 55263 | F37: 59203 | G37: 94114 | H37: 79154 | I37: 86287 | J37: 109899 | K37: 134378 | L37: 214646 | M37: 214656 | N37: 200758 | O37: 210652 | P37: 237777 | Q37: 200197 | R37: 194441 | S37: 199653 | T37: 150497 | U37: 125004 | V37: 106760 | W37: 643163 | X37: =B37/($B$37+$B$38+$B$39) -> 0.9970142679 | Y37: 120
A38: Other eastern softwoods group | B38: 3444 | C38: 0 | D38: 0 | E38: 0 | F38: 0 | G38: 0 | H38: 0 | I38: 0 | J38: 0 | K38: 0 | L38: 0 | M38: 0 | N38: 0 | O38: 0 | P38: 3444 | Q38: 0 | R38: 0 | S38: 0 | T38: 0 | U38: 0 | V38: 0 | W38: 0 | X38: =B38/($B$37+$B$38+$B$39) -> 0.0009994033759 | Y38: 120
A39: Exotic softwoods group | B39: 6845 | C39: 0 | D39: 0 | E39: 2934 | F39: 0 | G39: 0 | H39: 2583 | I39: 0 | J39: 0 | K39: 1328 | L39: 0 | M39: 0 | N39: 0 | O39: 0 | P39: 0 | Q39: 0 | R39: 0 | S39: 0 | T39: 0 | U39: 0 | V39: 0 | W39: 0 | X39: =B39/($B$37+$B$38+$B$39) -> 0.001986328719 | Y39: 120
A40: Oak / pine group | B40: 220143 | C40: 7022 | D40: 17130 | E40: 14913 | F40: 4358 | G40: 6801 | H40: 7471 | I40: 2903 | J40: 17589 | K40: 2143 | L40: 726 | M40: 13862 | N40: 24439 | O40: 19825 | P40: 14222 | Q40: 21425 | R40: 6204 | S40: 7317 | T40: 4616 | U40: 2923 | V40: 3100 | W40: 21154 | X40: =B40/(B40+B41) -> 0.1881808577 | Y40: 500
A41: Oak / hickory group | B41: 949705 | C41: 44928 | D41: 24515 | E41: 21319 | F41: 21051 | G41: 10727 | H41: 28500 | I41: 7197 | J41: 18759 | K41: 33198 | L41: 52827 | M41: 79387 | N41: 66515 | O41: 110542 | P41: 81131 | Q41: 90647 | R41: 66238 | S41: 65010 | T41: 48135 | U41: 34893 | V41: 13666 | W41: 30522 | X41: =B41/(B40+B41) -> 0.8118191423 | Y41: 500
A42: Elm / ash / cottonwood group | B42: 1056467 | C42: 15269 | D42: 20917 | E42: 24012 | F42: 21867 | G42: 14920 | H42: 20707 | I42: 30793 | J42: 17671 | K42: 30408 | L42: 42349 | M42: 46667 | N42: 74586 | O42: 82565 | P42: 94935 | Q42: 109713 | R42: 56252 | S42: 77496 | T42: 69312 | U42: 32558 | V42: 37749 | W42: 135722
A43: Maple / beech / birch group | B43: 898244 | C43: 30429 | D43: 23707 | E43: 34834 | F43: 11075 | G43: 20727 | H43: 20905 | I43: 20002 | J43: 5773 | K43: 21789 | L43: 27387 | M43: 50245 | N43: 55412 | O43: 52995 | P43: 97112 | Q43: 99100 | R43: 88214 | S43: 74533 | T43: 56614 | U43: 59041 | V43: 8713 | W43: 39637 | X43: =B43/(B43+B45) -> 0.8298847346 | Y43: 800
A44: Aspen / birch group | B44: 5537840 | C44: 362328 | D44: 406759 | E44: 495410 | F44: 394532 | G44: 364909 | H44: 333263 | I44: 295507 | J44: 283669 | K44: 290925 | L44: 302131 | M44: 344689 | N44: 283195 | O44: 358016 | P44: 294367 | Q44: 250401 | R44: 208521 | S44: 104262 | T44: 53870 | U44: 32335 | V44: 28938 | W44: 49814
A45: Other hardwoods group | B45: 184128 | C45: 39513 | D45: 25577 | E45: 13973 | F45: 2640 | G45: 14568 | H45: 6104 | I45: 8564 | J45: 2219 | K45: 11929 | L45: 9736 | M45: 2975 | N45: 5387 | O45: 735 | P45: 8252 | Q45: 2640 | R45: 1574 | S45: 5780 | T45: 0 | U45: 9244 | V45: 6661 | W45: 6062 | X45: =B45/(B43+B45) -> 0.1701152654 | Y45: 800
A46: Nonstocked | B46: 150347 | C46: 150347 | D46: 0 | E46: 0 | F46: 0 | G46: 0 | H46: 0 | I46: 0 | J46: 0 | K46: 0 | L46: 0 | M46: 0 | N46: 0 | O46: 0 | P46: 0 | Q46: 0 | R46: 0 | S46: 0 | T46: 0 | U46: 0 | V46: 0 | W46: 0

Sheet FType_Spp_Comp
A1: Estimate type Gross volume of live trees (at least 5 inches d.b.h./d.r.c.), in cubic feet, on forest land
A2: Statecd/EVALID(s):
A3: RSCD=23 EVALID=271001 MINNESOTA 2006;2007;2008;2009;2010
A4: Page variable=None
A5: Row variable=Species
A6: Column variable=Forest type group abbr
A7: and plot.ecosubcd in (' 212Kb', ' 212La', ' 212Lb', ' 212Lc', ' 212Ld', ' 212Le', ' 212Ma', ' 212Mb', ' 212Na', ' 212Nb', ' 212Nc', ' 212Nd', ' 212Ya')
A9: Estimate:
B10: Forest type group abbr
A11: Species | B11: Total | C11: WRJP | D11: SpFir | E11: OthESw | F11: ExSw | G11: OkP | H11: OkH | I11: OkP/OkH | J11: EAC | K11: MapBB | L11: MapBB/OtHw | M11: AsBir | N11: OtHw | O11: ExHd | P11: Nons | R11: Species | S11: Total | T11: WRJP | U11: SpFir | V11: OthESw | W11: ExSw | X11: OkP | Y11: OkH | Z11: OkP/OkH | AA11: EAC | AB11: MapBB | AC11: MapBB/OtHw | AD11: AsBir | AE11: OtHw | AF11: ExHd | AG11: Nons
A12: Total | B12: 15702246268 | C12: 1758642506 | D12: 3054233301 | E12: 3897660 | F12: 8529073 | G12: 431704201 | H12: 1608731926 | I12: =G12+H12 -> 2040436127 | J12: 1291414491 | K12: 1550959099 | L12: =K12+N12 -> 1606284064 | M12: 5930455936 | N12: 55324965 | O12: 264800 | P12: 8088310 | R12: Total | S12: =B12/$B$12 -> 1 | T12: 0.111999422 | U12: 0.1945093236 | V12: 0.0002482230844 | W12: 0.0005431753428 | X12: 0.0274931493 | Y12: 0.1024523433 | Z12: 0.1299454926 | AA12: 0.08224393306 | AB12: 0.09877307186 | AC12: 0.1022964509 | AD12: 0.3776820103 | AE12: 0.003523379016 | AF12: 1.686382926e-05 | AG12: 0.0005151052825
A13: balsam fir | B13: 702917100 | C13: 38559753 | D13: 167665171 | G13: 3746592 | H13: 11621445 | I13: =G13+H13 -> 15368037 | J13: 49683922 | K13: 41161184 | L13: =K13+N13 -> 49528915 | M13: 381642271 | N13: 8367731 | P13: 469031 | R13: balsam fir | S13: =B13/$B$12 -> 0.04476538503 | T13: =C13/C$12 -> 0.02192586206 | U13: 0.05489599336 | V13: 0 | W13: 0 | X13: 0.008678609083 | Y13: 0.007223978596 | Z13: =I13/$I$12 -> 0.007531741277 | AA13: =J13/J$12 -> 0.03847248296 | AB13: =K13/K$12 -> 0.02653918084 | AC13: =L13/$L$12 -> 0.03083446827 | AD13: =M13/M$12 -> 0.06435293932 | AE13: =N13/N$12 -> 0.151246928 | AF13: =O13/O$12 -> 0 | AG13: =P13/P$12 -> 0.05798875167
A14: eastern redcedar | B14: 4182225 | E14: 3652386 | H14: 529838 | I14: 529838 | L14: 0 | R14: eastern redcedar | S14: 0.0002663456507 | T14: =C14/C$12 -> 0 | U14: =D14/D$12 -> 0 | V14: =E14/E$12 -> 0.9370714737 | W14: =F14/F$12 -> 0 | X14: =G14/G$12 -> 0 | Y14: =H14/H$12 -> 0.0003293513303 | Z14: =I14/$I$12 -> 0.0002596689958 | AA14: =J14/J$12 -> 0 | AB14: =K14/K$12 -> 0 | AC14: =L14/$L$12 -> 0 | AD14: =M14/M$12 -> 0 | AE14: =N14/N$12 -> 0 | AF14: =O14/O$12 -> 0 | AG14: =P14/P$12 -> 0
A15: tamarack (native) | B15: 709068425 | C15: 2719785 | D15: 637356623 | H15: 4136005 | I15: 4136005 | J15: 19942216 | K15: 371760 | L15: 4274045 | M15: 37719372 | N15: 3902285 | P15: 2920379 | R15: tamarack (native) | S15: 0.04515713312 | T15: 0.001546525227 | U15: 0.2086797439 | V15: 0 | W15: 0 | X15: 0 | Y15: 0.002570972163 | Z15: 0.002027020079 | AA15: 0.01544214978 | AB15: 0.0002396968432 | AC15: 0.002660827618 | AD15: 0.006360281976 | AE15: 0.07053389008 | AF15: 0 | AG15: 0.3610617051
A16: white spruce | B16: 369866809 | C16: 25753907 | D16: 137673298 | G16: 5117930 | H16: 4296647 | I16: 9414577 | J16: 18122626 | K16: 15165703 | L16: 17368552 | M16: 161443170 | N16: 2202849 | P16: 90680 | R16: white spruce | S16: 0.02355502536 | T16: 0.01464419682 | U16: 0.0450762219 | V16: 0 | W16: 0 | X16: 0.01185517766 | Y16: 0.002670828452 | Z16: 0.004614002308 | AA16: 0.01403315986 | AB16: 0.009778273979 | AC16: 0.01081287699 | AD16: 0.02722272482 | AE16: 0.03981654575 | AF16: 0 | AG16: 0.0112112419
A17: black spruce | B17: 938019764 | C17: 45736922 | D17: 752499712 | G17: 7920226 | H17: 156488 | I17: 8076714 | J17: 12652695 | K17: 2610155 | L17: 8184365 | M17: 109278199 | N17: 5574210 | P17: 1591157 | R17: black spruce | S17: 0.05973793481 | T17: 0.02600694675 | U17: 0.2463792506 | V17: 0 | W17: 0 | X17: 0.01834641864 | Y17: 9.727413093e-05 | Z17: 0.003958327288 | AA17: 0.009797547641 | AB17: 0.001682929615 | AC17: 0.005095216459 | AD17: 0.01842661006 | AE17: 0.1007539725 | AF17: 0 | AG17: 0.1967230484
A18: jack pine | B18: 450865950 | C18: 322163077 | D18: 24318558 | G18: 43962035 | H18: 4380933 | I18: 48342968 | J18: 2631562 | K18: 2675108 | L18: 4889681 | M18: 47967192 | N18: 2214573 | P18: 552911 | R18: jack pine | S18: 0.02871346827 | T18: 0.1831884968 | U18: 0.007962246365 | V18: 0 | W18: 0 | X18: 0.1018336975 | Y18: 0.002723221271 | Z18: 0.02369246817 | AA18: 0.002037736155 | AB18: 0.001724808863 | AC18: 0.003044094821 | AD18: 0.008088280651 | AE18: 0.04002845732 | AF18: 0 | AG18: 0.06835927406
A19: red pine | B19: 1052136082 | C19: 862578907 | D19: 20192104 | G19: 94921162 | H19: 7890022 | I19: 102811184 | J19: 594149 | K19: 4112322 | L19: 6273073 | M19: 59177780 | N19: 2160751 | P19: 508885 | R19: red pine | S19: 0.06700545031 | T19: 0.4904799606 | U19: 0.006611185856 | V19: 0 | W19: 0 | X19: 0.2198754651 | Y19: 0.004904497681 | Z19: 0.05038686712 | AA19: 0.0004600761445 | AB19: 0.002651470308 | AC19: 0.003905332276 | AD19: 0.009978622325 | AE19: 0.03905562344 | AF19: 0 | AG19: 0.06291610979
A20: eastern white pine | B20: 530976715 | C20: 282385316 | D20: 52813079 | F20: 1375782 | G20: 82068198 | H20: 8869270 | I20: 90937468 | J20: 400511 | K20: 27746359 | L20: 31024327 | M20: 72012218 | N20: 3277968 | P20: 28013 | R20: eastern white pine | S20: 0.03381533482 | T20: 0.1605700505 | U20: 0.0172917632 | V20: 0 | W20: 0.1613049859 | X20: 0.1901028478 | Y20: 0.005513205685 | Z20: 0.04456766218 | AA20: 0.0003101335805 | AB20: 0.01788980703 | AC20: 0.01931434651 | AD20: 0.01214277937 | AE20: 0.05924934611 | AF20: 0 | AG20: 0.003463393465
A21: Scotch pine | B21: 9113012 | C21: 867586 | D21: 596988 | F21: 6674267 | I21: 0 | L21: 0 | M21: 974171 | R21: Scotch pine | S21: 0.000580363589 | T21: 0.0004933270958 | U21: 0.0001954624749 | V21: 0 | W21: 0.782531349 | X21: 0 | Y21: 0 | Z21: 0 | AA21: 0 | AB21: 0 | AC21: 0 | AD21: 0.000164265785 | AE21: 0 | AF21: 0 | AG21: 0
A22: northern white-cedar | B22: 1230634633 | C22: 2273990 | D22: 977295126 | G22: 134553 | H22: 1077383 | I22: 1211936 | J22: 95742836 | K22: 28155599 | L22: 32119364 | M22: 121466941 | N22: 3963765 | P22: 524440 | R22: northern white-cedar | S22: 0.07837315834 | T22: 0.001293037097 | U22: 0.3199805089 | V22: 0 | W22: 0 | X22: 0.0003116786904 | Y22: 0.0006697094666 | Z22: 0.0005939592933 | AA22: 0.0741379601 | AB22: 0.01815366957 | AC22: 0.01999606715 | AD22: 0.02048188913 | AE22: 0.07164514248 | AF22: 0 | AG22: 0.06483925567
A23: boxelder | B23: 23182624 | C23: 80508 | G23: 261455 | H23: 2459584 | I23: 2721039 | J23: 14101424 | K23: 1781801 | L23: 1781801 | M23: 4497851 | R23: boxelder | S23: 0.001476389021 | T23: 4.577849092e-05 | U23: 0 | V23: 0 | W23: 0 | X23: 0.0006056345975 | Y23: 0.00152889612 | Z23: 0.001333557549 | AA23: 0.0109193633 | AB23: 0.001148838162 | AC23: 0.001109268927 | AD23: 0.0007584325807 | AE23: 0 | AF23: 0 | AG23: 0
A24: red maple | B24: 648528076 | C24: 13710930 | D24: 15202974 | G24: 15599915 | H24: 124929416 | I24: 140529331 | J24: 33869478 | K24: 186429346 | L24: 188597062 | M24: 256618300 | N24: 2167716 | R24: red maple | S24: 0.04130161156 | T24: 0.00779631446 | U24: 0.004977672791 | V24: 0 | W24: 0 | X24: 0.03613565716 | Y24: 0.0776570751 | Z24: 0.06887220293 | AA24: 0.02622665166 | AB24: 0.1202026192 | AC24: 0.1174120233 | AD24: 0.04327125988 | AE24: 0.03918151598 | AF24: 0 | AG24: 0
A25: silver maple | B25: 49893756 | H25: 2306501 | I25: 2306501 | J25: 47587255 | L25: 0 | R25: silver maple | S25: 0.003177491624 | T25: 0 | U25: 0 | V25: 0 | W25: 0 | X25: 0 | Y25: 0.001433738563 | Z25: 0.00113039608 | AA25: 0.03684893993 | AB25: 0 | AC25: 0 | AD25: 0 | AE25: 0 | AF25: 0 | AG25: 0
A26: sugar maple | B26: 567265736 | C26: 320818 | D26: 2661603 | G26: 7694576 | H26: 26526619 | I26: 34221195 | J26: 6171288 | K26: 454138311 | L26: 455378000 | M26: 68512832 | N26: 1239689 | R26: sugar maple | S26: 0.03612640678 | T26: 0.0001824236585 | U26: 0.0008714471809 | V26: 0 | W26: 0 | X26: 0.01782372278 | Y26: 0.01648914811 | Z26: 0.01677151004 | AA26: 0.004778704315 | AB26: 0.2928112748 | AC26: 0.283497801 | AD26: 0.01155270906 | AE26: 0.02240740686 | AF26: 0 | AG26: 0
A27: mountain maple | B27: 285777 | D27: 38045 | I27: 0 | L27: 0 | M27: 247732 | R27: mountain maple | S27: 1.819975277e-05 | T27: 0 | U27: 1.24564813e-05 | V27: 0 | W27: 0 | X27: 0 | Y27: 0 | Z27: 0 | AA27: 0 | AB27: 0 | AC27: 0 | AD27: 4.17728422e-05 | AE27: 0 | AF27: 0 | AG27: 0
A28: serviceberry spp. | B28: 27837 | I28: 0 | L28: 0 | M28: 27837 | R28: serviceberry spp. | S28: 1.772803682e-06 | T28: 0 | U28: 0 | V28: 0 | W28: 0 | X28: 0 | Y28: 0 | Z28: 0 | AA28: 0 | AB28: 0 | AC28: 0 | AD28: 4.693905545e-06 | AE28: 0 | AF28: 0 | AG28: 0
A29: yellow birch | B29: 68288520 | C29: 83215 | D29: 7454414 | G29: 44933 | H29: 239000 | I29: 283933 | J29: 8494247 | K29: 40037868 | L29: 40037868 | M29: 11894158 | P29: 40684 | R29: yellow birch | S29: 0.004348965036 | T29: 4.731774634e-05 | U29: 0.002440682576 | V29: 0 | W29: 0 | X29: 0.0001040828417 | Y29: 0.0001485642177 | Z29: 0.0001391530939 | AA29: 0.006577475365 | AB29: 0.025814909 | AC29: 0.02492577054 | AD29: 0.002005605999 | AE29: 0 | AF29: 0 | AG29: 0.00502997536
A30: paper birch | B30: 1225465068 | C30: 49675172 | D30: 103507282 | G30: 36678320 | H30: 65641547 | I30: 102319867 | J30: 36067220 | K30: 97845150 | L30: 104999687 | M30: 828774467 | N30: 7154537 | P30: 121371 | R30: paper birch | S30: 0.07804393378 | T30: 0.02824631603 | U30: 0.03388977586 | V30: 0 | W30: 0 | X30: 0.08496169348 | Y30: 0.04080328484 | Z30: 0.05014607693 | AA30: 0.02792846158 | AB30: 0.06308686674 | AC30: 0.06536806867 | AD30: 0.1397488618 | AE30: 0.1293184189 | AF30: 0 | AG30: 0.01500573049
A31: American hornbeam, musclewood | B31: 155796 | I31: 0 | K31: 122500 | L31: 122500 | M31: 33297 | R31: American hornbeam, musclewood | S31: 9.921892533e-06 | T31: 0 | U31: 0 | V31: 0 | W31: 0 | X31: 0 | Y31: 0 | Z31: 0 | AA31: 0 | AB31: 7.898338523e-05 | AC31: 7.626297412e-05 | AD31: 5.614576747e-06 | AE31: 0 | AF31: 0 | AG31: 0
A32: bitternut hickory | B32: 2285037 | H32: 2041160 | I32: 2041160 | J32: 172278 | K32: 46775 | L32: 46775 | M32: 24825 | R32: bitternut hickory | S32: 0.0001455229374 | T32: 0 | U32: 0 | V32: 0 | W32: 0 | X32: 0 | Y32: 0.00126880058 | Z32: 0.001000354764 | AA32: 0.0001334025607 | AB32: 3.015875791e-05 | AC32: 2.912000502e-05 | AD32: 4.186018793e-06 | AE32: 0 | AF32: 0 | AG32: 0
A33: hackberry | B33: 293910 | I33: 0 | J33: 126470 | K33: 167440 | L33: 167440 | R33: hackberry | S33: 1.871770414e-05 | T33: 0 | U33: 0 | V33: 0 | W33: 0 | X33: 0 | Y33: 0 | Z33: 0 | AA33: 9.793137748e-05 | AB33: 0.0001079590043 | AC33: 0.0001042405909 | AD33: 0 | AE33: 0 | AF33: 0 | AG33: 0
A34: hawthorn spp. | B34: 44727 | I34: 0 | L34: 0 | M34: 44727 | R34: hawthorn spp. | S34: 2.848445964e-06 | T34: 0 | U34: 0 | V34: 0 | W34: 0 | X34: 0 | Y34: 0 | Z34: 0 | AA34: 0 | AB34: 0 | AC34: 0 | AD34: 7.541915914e-06 | AE34: 0 | AF34: 0 | AG34: 0
A35: white ash | B35: 925179 | H35: 925179 | I35: 925179 | L35: 0 | R35: white ash | S35: 5.892016876e-05 | T35: 0 | U35: 0 | V35: 0 | W35: 0 | X35: 0 | Y35: 0.0005750983026 | Z35: 0.0004534221815 | AA35: 0 | AB35: 0 | AC35: 0 | AD35: 0 | AE35: 0 | AF35: 0 | AG35: 0
A36: black ash | B36: 996977054 | C36: 916991 | D36: 35510906 | G36: 1869944 | H36: 52420755 | I36: 54290699 | J36: 692486493 | K36: 56247400 | L36: 57428429 | M36: 155475339 | N36: 1181029 | P36: 868197 | R36: black ash | S36: 0.06349263901 | T36: 0.0005214197865 | U36: 0.0116267824 | V36: 0 | W36: 0 | X36: 0.004331539966 | Y36: 0.03258513998 | Z36: 0.02660739941 | AA36: 0.5362232636 | AB36: 0.03626620459 | AC36: 0.03575234934 | AD36: 0.0262164226 | AE36: 0.02134712602 | AF36: 0 | AG36: 0.1073397286
A37: green ash | B37: 202791105 | C37: 404677 | D37: 2441952 | G37: 364734 | H37: 75009699 | I37: 75374433 | J37: 82603540 | K37: 10687415 | L37: 10687415 | M37: 31279089 | R37: green ash | S37: 0.01291478312 | T37: 0.0002301075964 | U37: 0.0007995302779 | V37: 0 | W37: 0 | X37: 0.0008448701661 | Y37: 0.04662659937 | Z37: 0.03694035408 | AA37: 0.06396361554 | AB37: 0.00689084258 | AC37: 0.006653502478 | AD37: 0.005274314376 | AE37: 0 | AF37: 0 | AG37: 0
A38: butternut | B38: 7992196 | H38: 2593173 | I38: 2593173 | J38: 76308 | K38: 4946451 | L38: 4946451 | M38: 376265 | R38: butternut | S38: 0.0005089842475 | T38: 0 | U38: 0 | V38: 0 | W38: 0 | X38: 0 | Y38: 0.001611936059 | Z38: 0.001270891534 | AA38: 5.908869734e-05 | AB38: 0.003189285264 | AC38: 0.003079437262 | AD38: 6.344621797e-05 | AE38: 0 | AF38: 0 | AG38: 0
A39: apple spp. | B39: 413436 | F39: 126410 | H39: 174465 | I39: 174465 | L39: 0 | M39: 112561 | R39: apple spp. | S39: 2.632973607e-05 | T39: 0 | U39: 0 | V39: 0 | W39: 0.01482107141 | X39: 0 | Y39: 0.0001084487708 | Z39: 8.550377916e-05 | AA39: 0 | AB39: 0 | AC39: 0 | AD39: 1.898015957e-05 | AE39: 0 | AF39: 0 | AG39: 0
A40: eastern hophornbeam | B40: 15585731 | D40: 335823 | G40: 526582 | H40: 3726140 | I40: 4252722 | J40: 272342 | K40: 4325853 | L40: 7440987 | M40: 3283855 | N40: 3115134 | R40: eastern hophornbeam | S40: 0.000992579707 | T40: 0 | U40: 0.00010995329 | V40: 0 | W40: 0 | X40: 0.001219775019 | Y40: 0.002316196962 | Z40: 0.002084222066 | AA40: 0.0002108865913 | AB40: 0.002789147053 | AC40: 0.004632422849 | AD40: 0.0005537272404 | AE40: 0.05630611786 | AF40: 0 | AG40: 0
A41: cottonwood and poplar spp. | B41: 1198929 | I41: 0 | L41: 1198929 | N41: 1198929 | R41: cottonwood and poplar spp. | S41: 7.635398016e-05 | T41: 0 | U41: 0 | V41: 0 | W41: 0 | X41: 0 | Y41: 0 | Z41: 0 | AA41: 0 | AB41: 0 | AC41: 0.0007463991126 | AD41: 0 | AE41: 0.02167066893 | AF41: 0 | AG41: 0
A42: balsam poplar | B42: 330115093 | C42: 901726 | D42: 14638940 | G42: 1367476 | H42: 11926510 | I42: 13293986 | J42: 26991820 | K42: 3905115 | L42: 4559181 | M42: 269618293 | N42: 654066 | P42: 111148 | R42: balsam poplar | S42: 0.02102343113 | T42: 0.0005127397961 | U42: 0.004792999931 | V42: 0 | W42: 0 | X42: 0.003167622638 | Y42: 0.00741360932 | Z42: 0.00651526692 | AA42: 0.02090097346 | AB42: 0.00251787104 | AC42: 0.002838340429 | AD42: 0.04546333299 | AE42: 0.01182225782 | AF42: 0 | AG42: 0.01374180762
A43: eastern cottonwood | B43: 6080580 | H43: 2824669 | I43: 2824669 | J43: 3255912 | L43: 0 | R43: eastern cottonwood | S43: 0.0003872426847 | T43: 0 | U43: 0 | V43: 0 | W43: 0 | X43: 0 | Y43: 0.001755835733 | Z43: 0.001384345711 | AA43: 0.002521198285 | AB43: 0 | AC43: 0 | AD43: 0 | AE43: 0 | AF43: 0 | AG43: 0
A44: bigtooth aspen | B44: 317411812 | C44: 10263239 | D44: 2627146 | G44: 17108891 | H44: 34948582 | I44: 52057473 | J44: 4002537 | K44: 20946251 | L44: 21688992 | M44: 226772427 | N44: 742741 | R44: bigtooth aspen | S44: 0.0202144207 | T44: 0.005835887035 | U44: 0.0008601654625 | V44: 0 | W44: 0 | X44: 0.03963105052 | Y44: 0.02172430436 | Z44: 0.02551291477 | AA44: 0.003099343416 | AB44: 0.01350535357 | AC44: 0.01350258805 | AD44: 0.03823861596 | AE44: 0.01342506046 | AF44: 0 | AG44: 0
A45: quaking aspen | B45: 3344245011 | C45: 87336441 | D45: 92796378 | F45: 352613 | G45: 78639528 | H45: 163502286 | I45: 242141814 | J45: 51282925 | K45: 102041492 | L45: 104188526 | M45: 2765935698 | N45: 2147034 | P45: 210616 | R45: quaking aspen | S45: 0.2129787646 | T45: 0.04966128176 | U45: 0.03038287153 | V45: 0 | W45: 0.04134247649 | X45: 0.1821606735 | Y45: 0.1016342645 | Z45: 0.1186715971 | AA45: 0.0397106625 | AB45: 0.06579250998 | AC45: 0.06486307642 | AD45: 0.4663951183 | AE45: 0.03880768836 | AF45: 0 | AG45: 0.02603955585
A46: Lombardy poplar | B46: 264800 | I46: 0 | L46: 0 | O46: 264800 | R46: Lombardy poplar | S46: 1.686382926e-05 | T46: 0 | U46: 0 | V46: 0 | W46: 0 | X46: 0 | Y46: 0 | Z46: 0 | AA46: 0 | AB46: 0 | AC46: 0 | AD46: 0 | AE46: 0 | AF46: 1 | AG46: 0
A47: pin cherry | B47: 1059251 | C47: 189432 | D47: 58892 | H47: 454658 | I47: 454658 | K47: 63099 | L47: 107488 | M47: 248781 | N47: 44389 | R47: pin cherry | S47: 6.745856497e-05 | T47: 0.0001077148991 | U47: 1.928208954e-05 | V47: 0 | W47: 0 | X47: 0 | Y47: 0.0002826188706 | Z47: 0.0002228239316 | AA47: 0 | AB47: 4.068385816e-05 | AC47: 6.69171801e-05 | AD47: 4.194972574e-05 | AE47: 0.000802332184 | AF47: 0 | AG47: 0
A48: black cherry | B48: 7136216 | C48: 620231 | G48: 167347 | H48: 3153252 | I48: 3320599 | J48: 86091 | L48: 151739 | M48: 2957556 | N48: 151739 | R48: black cherry | S48: 0.0004544710278 | T48: 0.0003526759975 | U48: 0 | V48: 0 | W48: 0 | X48: 0.0003876427415 | Y48: 0.001960085424 | Z48: 0.00162739669 | AA48: 6.666411179e-05 | AB48: 0 | AC48: 9.446585657e-05 | AD48: 0.0004987063443 | AE48: 0.002742685874 | AF48: 0 | AG48: 0
A49: chokecherry | B49: 379624 | H49: 30689 | I49: 30689 | K49: 77184 | L49: 77184 | M49: 271750 | R49: chokecherry | S49: 2.417641359e-05 | T49: 0 | U49: 0 | V49: 0 | W49: 0 | X49: 0 | Y49: 1.90765158e-05 | Z49: 1.5040412e-05 | AA49: 0 | AB49: 4.976533556e-05 | AC49: 4.805127669e-05 | AD49: 4.582278377e-05 | AE49: 0 | AF49: 0 | AG49: 0
A50: white oak | B50: 14885947 | H50: 12671581 | I50: 12671581 | K50: 893979 | L50: 893979 | M50: 1320387 | R50: white oak | S50: 0.0009480138539 | T50: 0 | U50: 0 | V50: 0 | W50: 0 | X50: 0 | Y50: 0.00787675112 | Z50: 0.006210231642 | AA50: 0 | AB50: 0.0005764039816 | AC50: 0.0005565509987 | AD50: 0.0002226451076 | AE50: 0 | AF50: 0 | AG50: 0
A51: northern pin oak | B51: 34779172 | C51: 487528 | G51: 2358425 | H51: 26539948 | I51: 28898373 | L51: 0 | M51: 5393271 | R51: northern pin oak | S51: 0.002214916987 | T51: 0.0002772183649 | U51: 0 | V51: 0 | W51: 0 | X51: 0.005463057794 | Y51: 0.01649743352 | Z51: 0.01416284128 | AA51: 0 | AB51: 0 | AC51: 0 | AD51: 0.0009094192855 | AE51: 0 | AF51: 0 | AG51: 0
A52: bur oak | B52: 498651373 | C52: 3534089 | D52: 2459817 | E52: 245273 | G52: 5600957 | H52: 330389396 | I52: 335990353 | J52: 29123815 | K52: 18688273 | L52: 19458295 | M52: 107839731 | N52: 770022 | R52: bur oak | S52: 0.03175669038 | T52: 0.00200955509 | U52: 0.0008053795364 | V52: 0.06292826978 | W52: 0 | X52: 0.01297406184 | Y52: 0.2053725612 | Z52: 0.1646659499 | AA52: 0.02255187254 | AB52: 0.01204949441 | AC52: 0.01211385672 | AD52: 0.018184054 | AE52: 0.01391816515 | AF52: 0 | AG52: 0
A53: northern red oak | B53: 628084519 | C53: 6256365 | D53: 292728 | G53: 18393375 | H53: 397351355 | I53: 415744730 | J53: 1933627 | K53: 111979256 | L53: 114260484 | M53: 89596585 | N53: 2281228 | R53: northern red oak | S53: 0.03999966045 | T53: 0.00355749675 | U53: 9.584336596e-05 | V53: 0 | W53: 0 | X53: 0.04260643042 | Y53: 0.2469966242 | Z53: 0.2037528764 | AA53: 0.001497293869 | AB53: 0.07220000584 | AC53: 0.07113342314 | AD53: 0.01510787467 | AE53: 0.04123324796 | AF53: 0 | AG53: 0
A54: willow spp. | B54: 3641889 | C54: 34602 | D54: 245771 | I54: 0 | J54: 263609 | L54: 0 | M54: 3097906 | R54: willow spp. | S54: 0.0002319342684 | T54: 1.967540298e-05 | U54: 8.046896742e-05 | V54: 0 | W54: 0 | X54: 0 | Y54: 0 | Z54: 0 | AA54: 0.0002041242388 | AB54: 0 | AC54: 0 | AD54: 0.0005223723156 | AE54: 0 | AF54: 0 | AG54: 0
A55: peachleaf willow | B55: 1138575 | D55: 56667 | H55: 57262 | I55: 57262 | J55: 409253 | L55: 30107 | M55: 585286 | N55: 30107 | R55: peachleaf willow | S55: 7.251032627e-05 | T55: 0 | U55: 1.855359248e-05 | V55: 0 | W55: 0 | X55: 0 | Y55: 3.559449469e-05 | Z55: 2.806360819e-05 | AA55: 0.0003169029021 | AB55: 0 | AC55: 1.87432601e-05 | AD55: 9.86915688e-05 | AE55: 0.0005441847094 | AF55: 0 | AG55: 0
A56: black willow | B56: 2438414 | D56: 25810 | I56: 0 | J56: 2195005 | L56: 0 | M56: 217598 | R56: black willow | S56: 0.0001552907755 | T56: 0 | U56: 8.450565971e-06 | V56: 0 | W56: 0 | X56: 0 | Y56: 0 | Z56: 0 | AA56: 0.001699690545 | AB56: 0 | AC56: 0 | AD56: 3.669161399e-05 | AE56: 0 | AF56: 0 | AG56: 0
A57: Bebb willow | B57: 149226 | D57: 34418 | I57: 0 | J57: 114808 | L57: 0 | R57: Bebb willow | S57: 9.50348106e-06 | T57: 0 | U57: 1.126894923e-05 | V57: 0 | W57: 0 | X57: 0 | Y57: 0 | Z57: 0 | AA57: 8.890096929e-05 | AB57: 0 | AC57: 0 | AD57: 0 | AE57: 0 | AF57: 0 | AG57: 0
A58: American mountain-ash | B58: 874889 | C58: 41711 | D58: 88113 | I58: 0 | J58: 103303 | L58: 0 | M58: 641762 | R58: American mountain-ash | S58: 5.571744227e-05 | T58: 2.371772538e-05 | U58: 2.884946607e-05 | V58: 0 | W58: 0 | X58: 0 | Y58: 0 | Z58: 0 | AA58: 7.999213322e-05 | AB58: 0 | AC58: 0 | AD58: 0.000108214614 | AE58: 0 | AF58: 0 | AG58: 0
A59: American basswood | B59: 626999330 | C59: 113872 | D59: 1331078 | G59: 6597236 | H59: 204346904 | I59: 210944140 | J59: 30814045 | K59: 306783830 | L59: 307353460 | M59: 76442736 | N59: 569630 | R59: American basswood | S59: 0.03993055002 | T59: 6.474994185e-05 | U59: 0.0004358141205 | V59: 0 | W59: 0 | X59: 0.01528184341 | Y59: 0.1270235896 | Z59: 0.1033818884 | AA59: 0.02386069323 | AB59: 0.1978026566 | AC59: 0.1913443997 | AD59: 0.01288985819 | AE59: 0.0102960752 | AF59: 0 | AG59: 0
A60: American elm | B60: 73002631 | C60: 631715 | D60: 2013886 | G60: 559811 | H60: 18088446 | I60: 18648257 | J60: 18986565 | K60: 5959399 | L60: 6172242 | M60: 26499168 | N60: 212843 | P60: 50797 | R60: American elm | S60: 0.004649183929 | T60: 0.0003592060341 | U60: 0.0006593753003 | V60: 0 | W60: 0 | X60: 0.001296746705 | Y60: 0.0112439156 | Z60: 0.00913934857 | AA60: 0.01470214647 | AB60: 0.003842395975 | AC60: 0.003842559444 | AD60: 0.004468318842 | AE60: 0.003847142063 | AF60: 0 | AG60: 0.006280298357
A61: Siberian elm | B61: 52318 | H61: 52318 | I61: 52318 | L61: 0 | R61: Siberian elm | S61: 3.331879981e-06 | T61: 0 | U61: 0 | V61: 0 | W61: 0 | X61: 0 | Y61: 3.252126669e-05 | Z61: 2.564059679e-05 | AA61: 0 | AB61: 0 | AC61: 0 | AD61: 0 | AE61: 0 | AF61: 0 | AG61: 0
A62: slippery elm | B62: 1195546 | H62: 238302 | I62: 238302 | J62: 52318 | K62: 846721 | L62: 846721 | M62: 58206 | R62: slippery elm | S62: 7.613853328e-05 | T62: 0 | U62: 0 | V62: 0 | W62: 0 | X62: 0 | Y62: 0.0001481303355 | Z62: 0.0001167897377 | AA62: 4.051216737e-05 | AB62: 0.0005459338035 | AC62: 0.0005271302997 | AD62: 9.814759713e-06 | AE62: 0 | AF62: 0 | AG62: 0
A63: rock elm | B63: 278846 | H63: 204498 | I63: 204498 | L63: 0 | M63: 74347 | R63: rock elm | S63: 1.775835095e-05 | T63: 0 | U63: 0 | V63: 0 | W63: 0 | X63: 0 | Y63: 0.0001271175121 | Z63: 0.0001002226913 | AA63: 0 | AB63: 0 | AC63: 0 | AD63: 1.253647288e-05 | AE63: 0 | AF63: 0 | AG63: 0
R64: Percent of Type in Primary Species | T64: =SUM(T18:T20) -> 0.8342385078 | U64: =U13+U15+U16+U17+U22 -> 0.8750117187 | X64: =SUM(X18:X20)+SUM(X51:X53) -> 0.5728555604 | Y64: =SUM(Y50:Y53)+Y32 -> 0.4780121707 | Z64: =SUM(Z50:Z53)+SUM(Z18:Z20)+Z32 -> 0.5084392514 | AA64: =AA36+AA37+AA43+AA60+AA62 -> 0.617450736 | AB64: =AB23+AB24+AB26+AB27+AB59 -> 0.6119653888 | AC64: =AC24+AC26+AC29+AC30+AC31+AC38+AC40+AC59 -> 0.6903361864 | AD64: =AD45+AD44+AD42+AD30+AD29 -> 0.6918515351
Q65: 100 | R65: W-R-J Pine Component | S65: =SUM(S18:S20) -> 0.1295342534 | T65: =SUM(T18:T20) -> 0.8342385078 | U65: =SUM(U18:U20) -> 0.03186519542 | V65: =SUM(V18:V20) -> 0 | W65: =SUM(W18:W21) -> 0.9438363349 | X65: =SUM(X18:X20) -> 0.5118120104 | Y65: 0.01314092464 | Z65: 0 | AA65: 0.00280794588 | AB65: 0.02226608621 | AC65: 0.0262637736 | AD65: 0.03020968235 | AE65: =SUM(AE18:AE20) -> 0.1383334269 | AF65: 0 | AG65: 0.1347387773
Q66: 120 | R66: Spruce-Fir Component | S66: =S13+S15+S16+S17+S22 -> 0.2515886367 | T66: =T13+T15+T16+T17+T22 -> 0.06541656795 | U66: =U13+U15+U16+U17+U22 -> 0.8750117187 | V66: =V13+V14+V15+V16+V17+V22 -> 0.9370714737 | W66: =W13+W15+W16+W17+W22 -> 0 | X66: 0.03919188407 | Y66: 0.01323276281 | Z66: =SUM(Z13:Z17) -> 0.01839075995 | AA66: 0.1518833003 | AB66: 0.05639375085 | AC66: 0.06939945648 | AD66: 0.1368444453 | AE66: =AE13+AE15+AE16+AE17+AE22 -> 0.4339964788 | AF66: 0 | AG66: 0.6918240028
Q67: 500 | R67: Oak-Hickory/Oak-Pine Component | S67: =S32+S50+S51+S52+S53 -> 0.07506480461 | T67: 0.005844270206 | U67: 0.0009012229024 | V67: 0.06292826978 | W67: =W32+W50+W51+W52+W53+W39 -> 0.01482107141 | X67: 0.06104355005 | Y67: 0.4780121707 | Z67: =SUM(Z50:Z53)+Z32+SUM(Z18:Z20) -> 0.5084392514 | AA67: 0.02418256897 | AB67: 0.08485606299 | AC67: 0.08383295086 | AD67: 0.03442817908 | AE67: =AE32+AE50+AE51+AE52+AE53 -> 0.05515141311 | AF67: 0 | AG67: 0
Q68: 700 | R68: Lowland Hardwood Component | S68: =S25+S35+S36+S37+S43+S54+S55+S56+S57+S60+S61+S62+S63 -> 0.08524672815 | T68: 0.00113040882 | U68: 0.01320443006 | V68: 0 | W68: 0 | X68: 0.006473156836 | Y68: 0.09456369115 | Z68: =Z41+Z43+Z56+Z60+Z61+Z62+Z63+Z25+Z36+Z37 -> 0.07544449687 | AA68: 0.6566092946 | AB68: 0.04754537695 | AC68: 0.04679428482 | AD68: 0.03663916254 | AE68: =AE25+AE35+AE36+AE37+AE43+AE54+AE55+AE56+AE57+AE60+AE61+AE62+AE63+AE41 -> 0.04740912172 | AF68: 0 | AG68: 0.1136200269
Q69: 800 | R69: Northern Hardwood Component | S69: =S23+S24+S26+S27+S59 -> 0.1188531571 | T69: 0.008089266552 | U69: 0.006297390574 | V69: 0 | W69: 0 | X69: 0.06984685794 | Y69: 0.222698709 | Z69: =Z24+SUM(Z26:Z28)+Z59+Z40+Z38+Z34+Z23 -> 0.1937142725 | AA69: 0.0657854125 | AB69: =AB24+SUM(AB26:AB28)+AB59+AB40+AB38+AB34+AB23 -> 0.6179438211 | AC69: =AC24+SUM(AC26:AC28)+AC59+AC40+AC38+AC34+AC23 -> 0.6010753531 | AD69: 0.06851403254 | AE69: =AE24+SUM(AE26:AE28)+AE59+AE40+AE38+AE34+AE23 -> 0.1281911159 | AF69: 0 | AG69: 0
Q70: 900 | R70: Aspen-Birch Component | S70: =S29+S30+S42+S44+S45 -> 0.3366095152 | T70: 0.08430354236 | U70: 0.07236649536 | V70: 0 | W70: 0.04134247649 | X70: 0.310025123 | Y70: 0.1717240272 | Z70: =SUM(Z29:Z30)+SUM(Z44:Z45)+Z42 -> 0.2009850088 | AA70: 0.09821691632 | AB70: =AB29+AB30+AB42+AB44+AB45 -> 0.1707175103 | AC70: =AC29+AC30+AC42+AC44+AC45 -> 0.1714978441 | AD70: 0.6918515351 | AE70: =AE29+AE30+AE42+AE44+AE45 -> 0.1933734255 | AF70: 0 | AG70: 0.05981706933
R71: Sum | S71: =SUM(S65:S70) -> 0.9968970952 | T71: =SUM(T65:T70) -> 0.9990225637 | U71: 0.999646453 | V71: 0.9999997434 | W71: 0.9999998828 | X71: 0.9983925822 | Y71: 0.9933722854 | Z71: 0.9969737896 | AA71: 0.9994854386 | AB71: 0.9997226084 | AC71: 0.998863663 | AD71: 0.9984870369 | AE71: 0.9964549819 | AF71: 0 | AG71: 0.9999998764
S72: Total | T72: WRJP | U72: SpFir | V72: OthESw | W72: ExSw | X72: OkP | Y72: OkH | Z72: OkP/OkH | AA72: EAC | AB72: MapBB | AC72: MapBB/OtHw | AD72: AsBir | AE72: OtHw | AF72: ExHd | AG72: Nons

Sheet FIA_Removals
A1: Estimate type 042 Average annual removals of live trees (at least 5 inches d.b.h./d.r.c.), in cubic feet, on timberland
A2: Statecd/EVALID: 23 271103 Minnesota 2007.2008.2009.2010.2011.
A3: Page variable=None
A4: Row variable=Forest type group
A5: Column variable=Stand-age
A6: and plot.ecosubcd in (' 212Kb', ' 212La', ' 212Lb', ' 212Lc', ' 212Ld', ' 212Le', ' 212Ma', ' 212Mb', ' 212Na', ' 212Nb', ' 212Nc', ' 212Nd', ' 212Ya') and (cond.owncd=11 or cond.owncd=13 or cond.owncd=25 or cond.owncd=31 or cond.owncd=32 or cond.owncd=46) | P6: 16594201
A7: 2013-07-29T11:45:04
A9: Estimate:
B10: Stand-age
A11: Forest type group | B11: Total | C11: 0 to 5 years | D11: 6 to 10 years | E11: 11 to 15 years | F11: 16 to 20 years | G11: 21 to 25 years | H11: 26 to 30 years | I11: 31 to 35 years | J11: 36 to 40 years | K11: 41 to 45 years | L11: 46 to 50 years | M11: 51 to 55 years | N11: 56 to 60 years | O11: 61 to 65 years | P11: 66 to 70 years | Q11: 71 to 75 years | R11: 76 to 80 years | S11: 81 to 85 years | T11: 86 to 90 years | U11: 91 to 95 years | V11: 96 to 100 years | W11: 101 to 105 years | X11: 106 to 110 years | Y11: 111 to 115 years | Z11: 116 to 120 years | AA11: 121+ years | AB11: Not collected
A12: Total | B12: 234148156 | C12: 146348295 | D12: 1928349 | E12: 1965980 | F12: 485776 | G12: 2891857 | H12: 1600899 | I12: 3163380 | J12: 5465313 | K12: 6633272 | L12: 5074077 | M12: 4481971 | N12: 10486192 | O12: 4972790 | P12: 5116038 | Q12: 6398692 | R12: 9770745 | S12: 4454671 | T12: 3581693 | U12: 3754981 | V12: 262860 | W12: 562970 | X12: 1210985 | Y12: 769495 | Z12: 1560285 | AA12: 1206591 | AB12: 0
A13: White / red / jack pine group | B13: 19904282 | C13: 1539441 | D13: 0 | E13: 67512 | F13: 9759 | G13: 162795 | H13: 655777 | I13: 1417236 | J13: 2562247 | K13: 1732516 | L13: 1048543 | M13: 1755740 | N13: 83786 | O13: 533581 | P13: 572025 | Q13: 1211405 | R13: 4011210 | S13: 873795 | T13: 1644106 | U13: 0 | V13: 0 | W13: 22809 | X13: 0 | Y13: 0 | Z13: 0 | AA13: 0 | AB13: 0
A14: Spruce / fir group | B14: 16529723 | C14: 10003346 | D14: 80338 | E14: 957906 | F14: 19116 | G14: 100559 | H14: 0 | I14: 0 | J14: 163072 | K14: 367956 | L14: 1549865 | M14: 401502 | N14: 25292 | O14: 544280 | P14: 0 | Q14: 94047 | R14: 719792 | S14: 10186 | T14: 0 | U14: 196410 | V14: 13372 | W14: 540161 | X14: 629919 | Y14: 0 | Z14: 0 | AA14: 112605 | AB14: 0
A15: Other eastern softwoods group | B15: 23029 | C15: 0 | D15: 0 | E15: 0 | F15: 0 | G15: 0 | H15: 0 | I15: 0 | J15: 0 | K15: 0 | L15: 0 | M15: 0 | N15: 0 | O15: 0 | P15: 23029 | Q15: 0 | R15: 0 | S15: 0 | T15: 0 | U15: 0 | V15: 0 | W15: 0 | X15: 0 | Y15: 0 | Z15: 0 | AA15: 0 | AB15: 0
A16: Exotic softwoods group | B16: 0 | C16: 0 | D16: 0 | E16: 0 | F16: 0 | G16: 0 | H16: 0 | I16: 0 | J16: 0 | K16: 0 | L16: 0 | M16: 0 | N16: 0 | O16: 0 | P16: 0 | Q16: 0 | R16: 0 | S16: 0 | T16: 0 | U16: 0 | V16: 0 | W16: 0 | X16: 0 | Y16: 0 | Z16: 0 | AA16: 0 | AB16: 0
A17: Oak / pine group | B17: 1312421 | C17: 16786 | D17: 0 | E17: 0 | F17: 0 | G17: 0 | H17: 0 | I17: 0 | J17: 270601 | K17: 0 | L17: 0 | M17: 0 | N17: 329209 | O17: 657170 | P17: 0 | Q17: 38655 | R17: 0 | S17: 0 | T17: 0 | U17: 0 | V17: 0 | W17: 0 | X17: 0 | Y17: 0 | Z17: 0 | AA17: 0 | AB17: 0
A18: Oak / hickory group | B18: 17019477 | C18: 7121377 | D18: 0 | E18: 0 | F18: 0 | G18: 0 | H18: 0 | I18: 0 | J18: 0 | K18: 0 | L18: 1053060 | M18: 1088631 | N18: 4183123 | O18: 712237 | P18: 1015090 | Q18: 22116 | R18: 196972 | S18: 1326685 | T18: 231361 | U18: 0 | V18: 56736 | W18: 0 | X18: 0 | Y18: 12088 | Z18: 0 | AA18: 0 | AB18: 0
A19: Elm / ash / cottonwood group | B19: 8742887 | C19: 3119362 | D19: 179985 | E19: 11187 | F19: 0 | G19: 386932 | H19: 0 | I19: 18633 | J19: 193805 | K19: 111955 | L19: 55406 | M19: 0 | N19: 235143 | O19: 0 | P19: 1423148 | Q19: 584455 | R19: 151032 | S19: 471244 | T19: 955165 | U19: 0 | V19: 0 | W19: 0 | X19: 0 | Y19: 19457 | Z19: 0 | AA19: 825977 | AB19: 0
A20: Maple / beech / birch group | B20: 31102511 | C20: 11068724 | D20: 63152 | E20: 364037 | F20: 0 | G20: 0 | H20: 15107 | I20: 596731 | J20: 728048 | K20: 812662 | L20: 437241 | M20: 1069300 | N20: 3238307 | O20: 27544 | P20: 1101732 | Q20: 3672958 | R20: 3174326 | S20: 1706892 | T20: 549148 | U20: 1895536 | V20: 0 | W20: 0 | X20: 581066 | Y20: 0 | Z20: 0 | AA20: 0 | AB20: 0
A21: Aspen / birch group | B21: 122453974 | C21: 101053443 | D21: 1604874 | E21: 565339 | F21: 456901 | G21: 972704 | H21: 930015 | I21: 1130780 | J21: 1547540 | K21: 3608184 | L21: 929962 | M21: 166798 | N21: 1664787 | O21: 2394424 | P21: 981014 | Q21: 775056 | R21: 1517412 | S21: 65868 | T21: 201913 | U21: 58667 | V21: 0 | W21: 0 | X21: 0 | Y21: 0 | Z21: 1560285 | AA21: 268010 | AB21: 0
A22: Other hardwoods group | B22: 13561583 | C22: 8927546 | D22: 0 | E22: 0 | F22: 0 | G22: 1268867 | H22: 0 | I22: 0 | J22: 0 | K22: 0 | L22: 0 | M22: 0 | N22: 726545 | O22: 103555 | P22: 0 | Q22: 0 | R22: 0 | S22: 0 | T22: 0 | U22: 1604368 | V22: 192752 | W22: 0 | X22: 0 | Y22: 737949 | Z22: 0 | AA22: 0 | AB22: 0
A23: Nonstocked | B23: 3498270 | C23: 3498270 | D23: 0 | E23: 0 | F23: 0 | G23: 0 | H23: 0 | I23: 0 | J23: 0 | K23: 0 | L23: 0 | M23: 0 | N23: 0 | O23: 0 | P23: 0 | Q23: 0 | R23: 0 | S23: 0 | T23: 0 | U23: 0 | V23: 0 | W23: 0 | X23: 0 | Y23: 0 | Z23: 0 | AA23: 0
A25: Estimate type 042 Average annual removals of live trees (at least 5 inches d.b.h./d.r.c.), in cubic feet, on timberland
A26: Statecd/EVALID: 23 270602 Minnesota 2004.2005.2006.
A27: Page variable=None
A28: Row variable=Forest type group
A29: Column variable=Stand-age
A30: and plot.ecosubcd in (' 212Kb', ' 212La', ' 212Lb', ' 212Lc', ' 212Ld', ' 212Le', ' 212Ma', ' 212Mb', ' 212Na', ' 212Nb', ' 212Nc', ' 212Nd', ' 212Ya') and (cond.owncd=11 or cond.owncd=13 or cond.owncd=25 or cond.owncd=31 or cond.owncd=32 or cond.owncd=46)
A31: 2013-07-29T11:53:10
A33: Estimate:
B34: Stand-age
A35: Forest type group | B35: Total | C35: 0 to 5 years | D35: 6 to 10 years | E35: 11 to 15 years | F35: 16 to 20 years | G35: 21 to 25 years | H35: 26 to 30 years | I35: 31 to 35 years | J35: 36 to 40 years | K35: 41 to 45 years | L35: 46 to 50 years | M35: 51 to 55 years | N35: 56 to 60 years | O35: 61 to 65 years | P35: 66 to 70 years | Q35: 71 to 75 years | R35: 76 to 80 years | S35: 81 to 85 years | T35: 86 to 90 years | U35: 91 to 95 years | V35: 96 to 100 years | W35: 101 to 105 years | X35: 106 to 110 years | Y35: 111 to 115 years | Z35: 116 to 120 years | AA35: 121+ years | AB35: Not collected
A36: Total | B36: 262052922 | C36: 159188466 | D36: 7642409 | E36: 2093784 | F36: 1343563 | G36: 1808074 | H36: 2329995 | I36: 4690160 | J36: 3957535 | K36: 11511153 | L36: 6162667 | M36: 7598891 | N36: 5121329 | O36: 3661227 | P36: 12127625 | Q36: 11146850 | R36: 5584665 | S36: 2480695 | T36: 173732 | U36: 524300 | V36: 2277135 | W36: 1492976 | X36: 1050628 | Y36: 0 | Z36: 1126611 | AA36: 6958454 | AB36: 0
A37: White / red / jack pine group | B37: 13151721 | C37: 1265742 | D37: 129657 | E37: 0 | F37: 0 | G37: 376065 | H37: 387200 | I37: 1443404 | J37: 1647628 | K37: 4940072 | L37: 903341 | M37: 0 | N37: 0 | O37: 49757 | P37: 369370 | Q37: 781925 | R37: 641549 | S37: 216011 | T37: 0 | U37: 0 | V37: 0 | W37: 0 | X37: 0 | Y37: 0 | Z37: 0 | AA37: 0 | AB37: 0
A38: Spruce / fir group | B38: 9618510 | C38: 0 | D38: 66063 | E38: 1925900 | F38: 376939 | G38: 0 | H38: 0 | I38: 658789 | J38: 592318 | K38: 0 | L38: 1036289 | M38: 767612 | N38: 1500796 | O38: 89213 | P38: 629084 | Q38: 0 | R38: 0 | S38: 0 | T38: 0 | U38: 37408 | V38: 0 | W38: 0 | X38: 521932 | Y38: 0 | Z38: 1126611 | AA38: 289557 | AB38: 0
A39: Exotic softwoods group | B39: 0 | C39: 0 | D39: 0 | E39: 0 | F39: 0 | G39: 0 | H39: 0 | I39: 0 | J39: 0 | K39: 0 | L39: 0 | M39: 0 | N39: 0 | O39: 0 | P39: 0 | Q39: 0 | R39: 0 | S39: 0 | T39: 0 | U39: 0 | V39: 0 | W39: 0 | X39: 0 | Y39: 0 | Z39: 0 | AA39: 0 | AB39: 0
A40: Oak / pine group | B40: 4930401 | C40: 15276 | D40: 0 | E40: 0 | F40: 0 | G40: 134224 | H40: 0 | I40: 731581 | J40: 0 | K40: 0 | L40: 90572 | M40: 0 | N40: 0 | O40: 0 | P40: 3901423 | Q40: 0 | R40: 0 | S40: 57325 | T40: 0 | U40: 0 | V40: 0 | W40: 0 | X40: 0 | Y40: 0 | Z40: 0 | AA40: 0 | AB40: 0
A41: Oak / hickory group | B41: 20321092 | C41: 9877627 | D41: 235410 | E41: 0 | F41: 0 | G41: 935207 | H41: 539427 | I41: 166257 | J41: 331277 | K41: 0 | L41: 559628 | M41: 3136439 | N41: 754260 | O41: 238755 | P41: 954588 | Q41: 149167 | R41: 1664460 | S41: 0 | T41: 16390 | U41: 486893 | V41: 275308 | W41: 0 | X41: 0 | Y41: 0 | Z41: 0 | AA41: 0 | AB41: 0
A42: Elm / ash / cottonwood group | B42: 20135583 | C42: 5623745 | D42: 1765746 | E42: 0 | F42: 0 | G42: 68048 | H42: 0 | I42: 0 | J42: 0 | K42: 91660 | L42: 0 | M42: 818940 | N42: 1379947 | O42: 784590 | P42: 632612 | Q42: 1938885 | R42: 34721 | S42: 1493374 | T42: 0 | U42: 0 | V42: 608423 | W42: 1492976 | X42: 485249 | Y42: 0 | Z42: 0 | AA42: 2916669 | AB42: 0
A43: Maple / beech / birch group | B43: 33194255 | C43: 12373037 | D43: 0 | E43: 0 | F43: 0 | G43: 0 | H43: 0 | I43: 666532 | J43: 0 | K43: 5350719 | L43: 809520 | M43: 647542 | N43: 0 | O43: 0 | P43: 874032 | Q43: 5402152 | R43: 1349671 | S43: 427655 | T43: 104316 | U43: 0 | V43: 1393404 | W43: 0 | X43: 43447 | Y43: 0 | Z43: 0 | AA43: 3752227 | AB43: 0
A44: Aspen / birch group | B44: 126242021 | C44: 96161415 | D44: 5445533 | E44: 167883 | F44: 966624 | G44: 294531 | H44: 1403368 | I44: 1023598 | J44: 1386313 | K44: 1128701 | L44: 2763317 | M44: 2228359 | N44: 1486326 | O44: 1911196 | P44: 4766515 | Q44: 2874722 | R44: 1894265 | S44: 286330 | T44: 53026 | U44: 0 | V44: 0 | W44: 0 | X44: 0 | Y44: 0 | Z44: 0 | AA44: 0 | AB44: 0
A45: Other hardwoods group | B45: 8514913 | C45: 7927196 | D45: 0 | E45: 0 | F45: 0 | G45: 0 | H45: 0 | I45: 0 | J45: 0 | K45: 0 | L45: 0 | M45: 0 | N45: 0 | O45: 587717 | P45: 0 | Q45: 0 | R45: 0 | S45: 0 | T45: 0 | U45: 0 | V45: 0 | W45: 0 | X45: 0 | Y45: 0 | Z45: 0 | AA45: 0 | AB45: 0
A46: Nonstocked | B46: 25944427 | C46: 25944427 | D46: 0 | E46: 0 | F46: 0 | G46: 0 | H46: 0 | I46: 0 | J46: 0 | K46: 0 | L46: 0 | M46: 0 | N46: 0 | O46: 0 | P46: 0 | Q46: 0 | R46: 0 | S46: 0 | T46: 0 | U46: 0 | V46: 0 | W46: 0 | X46: 0 | Y46: 0 | Z46: 0 | AA46: 0
A48: Estimate type 042 Average annual removals of live trees (at least 5 inches d.b.h./d.r.c.), in cubic feet, on timberland
A49: Statecd/EVALID: 23 270302 Minnesota 1999.2000.2001.2002.2003.
A50: Page variable=None
A51: Row variable=Forest type group
A52: Column variable=Stand-age
A53: and plot.ecosubcd in (' 212Kb', ' 212La', ' 212Lb', ' 212Lc', ' 212Ld', ' 212Le', ' 212Ma', ' 212Mb', ' 212Na', ' 212Nb', ' 212Nc', ' 212Nd', ' 212Ya') and (cond.owncd=11 or cond.owncd=13 or cond.owncd=25 or cond.owncd=31 or cond.owncd=32 or cond.owncd=46)
A54: 2013-07-29T11:55:37
A56: Estimate:
B57: Stand-age
A58: Forest type group | B58: Total | C58: 0 to 5 years | D58: 6 to 10 years | E58: 11 to 15 years | F58: 16 to 20 years | G58: 21 to 25 years | H58: 26 to 30 years | I58: 31 to 35 years | J58: 36 to 40 years | K58: 41 to 45 years | L58: 46 to 50 years | M58: 51 to 55 years | N58: 56 to 60 years | O58: 61 to 65 years | P58: 66 to 70 years | Q58: 71 to 75 years | R58: 76 to 80 years | S58: 81 to 85 years | T58: 86 to 90 years | U58: 91 to 95 years | V58: 96 to 100 years | W58: 101 to 105 years | X58: 106 to 110 years | Y58: 111 to 115 years | Z58: 116 to 120 years | AA58: 121+ years | AB58: Not collected
A59: Total | B59: 213435217 | C59: 79453493 | D59: 44150196 | E59: 13220767 | F59: 1305309 | G59: 925812 | H59: 1137539 | I59: 4141195 | J59: 2849590 | K59: 3619792 | L59: 6497553 | M59: 4654245 | N59: 11829898 | O59: 5635680 | P59: 11329378 | Q59: 6241995 | R59: 7548986 | S59: 1064065 | T59: 1828151 | U59: 468695 | V59: 3206978 | W59: 64833 | X59: 95355 | Y59: 197750 | Z59: 588531 | AA59: 1379433 | AB59: 0
A60: White / red / jack pine group | B60: 12110950 | C60: 2772871 | D60: 2008347 | E60: 101607 | F60: 0 | G60: 0 | H60: 0 | I60: 650025 | J60: 663913 | K60: 900369 | L60: 946241 | M60: 791942 | N60: 924706 | O60: 336000 | P60: 86882 | Q60: 1323691 | R60: 370837 | S60: 0 | T60: 0 | U60: 0 | V60: 0 | W60: 64833 | X60: 0 | Y60: 168686 | Z60: 0 | AA60: 0 | AB60: 0
A61: Spruce / fir group | B61: 14346855 | C61: 3732027 | D61: 4618318 | E61: 94956 | F61: 20333 | G61: 42449 | H61: 0 | I61: 242591 | J61: 298969 | K61: 887702 | L61: 963540 | M61: 464600 | N61: 529209 | O61: 236160 | P61: 679797 | Q61: 0 | R61: 448423 | S61: 0 | T61: 680656 | U61: 0 | V61: 222378 | W61: 0 | X61: 95355 | Y61: 0 | Z61: 0 | AA61: 89392 | AB61: 0
A62: Oak / pine group | B62: 3459486 | C62: 0 | D62: 0 | E62: 0 | F62: 266423 | G62: 0 | H62: 0 | I62: 0 | J62: 148553 | K62: 0 | L62: 782654 | M62: 0 | N62: 0 | O62: 1477860 | P62: 0 | Q62: 386333 | R62: 0 | S62: 397664 | T62: 0 | U62: 0 | V62: 0 | W62: 0 | X62: 0 | Y62: 0 | Z62: 0 | AA62: 0 | AB62: 0
A63: Oak / hickory group | B63: 25063281 | C63: 3798816 | D63: 1816476 | E63: 0 | F63: 0 | G63: 0 | H63: 644534 | I63: 264231 | J63: 167897 | K63: 0 | L63: 2059422 | M63: 2089603 | N63: 2709931 | O63: 1070441 | P63: 1980538 | Q63: 2396479 | R63: 5099630 | S63: 0 | T63: 0 | U63: 0 | V63: 0 | W63: 0 | X63: 0 | Y63: 0 | Z63: 0 | AA63: 965285 | AB63: 0
A64: Elm / ash / cottonwood group | B64: 11828883 | C64: 1124273 | D64: 476552 | E64: 113193 | F64: 0 | G64: 0 | H64: 0 | I64: 0 | J64: 0 | K64: 0 | L64: 161659 | M64: 0 | N64: 4546983 | O64: 680499 | P64: 1719287 | Q64: 676366 | R64: 425780 | S64: 40620 | T64: 1147495 | U64: 73095 | V64: 497890 | W64: 0 | X64: 0 | Y64: 29064 | Z64: 0 | AA64: 116126 | AB64: 0
A65: Maple / beech / birch group | B65: 11292643 | C65: 5484888 | D65: 515765 | E65: 164877 | F65: 0 | G65: 0 | H65: 0 | I65: 0 | J65: 235361 | K65: 0 | L65: 141171 | M65: 127606 | N65: 234023 | O65: 0 | P65: 2354074 | Q65: 747695 | R65: 822468 | S65: 143575 | T65: 0 | U65: 321140 | V65: 0 | W65: 0 | X65: 0 | Y65: 0 | Z65: 0 | AA65: 0 | AB65: 0
A66: Aspen / birch group | B66: 129218415 | C66: 56425914 | D66: 34714739 | E66: 12746134 | F66: 1018553 | G66: 883363 | H66: 493005 | I66: 2984347 | J66: 1334897 | K66: 1831720 | L66: 1442867 | M66: 1180494 | N66: 2885046 | O66: 1834720 | P66: 4508801 | Q66: 711432 | R66: 381848 | S66: 482206 | T66: 0 | U66: 74459 | V66: 2486710 | W66: 0 | X66: 0 | Y66: 0 | Z66: 588531 | AA66: 208630 | AB66: 0
A67: Other hardwoods group | B67: 3000574 | C67: 3000574 | D67: 0 | E67: 0 | F67: 0 | G67: 0 | H67: 0 | I67: 0 | J67: 0 | K67: 0 | L67: 0 | M67: 0 | N67: 0 | O67: 0 | P67: 0 | Q67: 0 | R67: 0 | S67: 0 | T67: 0 | U67: 0 | V67: 0 | W67: 0 | X67: 0 | Y67: 0 | Z67: 0 | AA67: 0 | AB67: 0
A68: Nonstocked | B68: 3114130 | C68: 3114130 | D68: 0 | E68: 0 | F68: 0 | G68: 0 | H68: 0 | I68: 0 | J68: 0 | K68: 0 | L68: 0 | M68: 0 | N68: 0 | O68: 0 | P68: 0 | Q68: 0 | R68: 0 | S68: 0 | T68: 0 | U68: 0 | V68: 0 | W68: 0 | X68: 0 | Y68: 0 | Z68: 0 | AA68: 0 | AB68: 0
A73: Estimate type 042 Average annual removals of live trees (at least 5 inches d.b.h./d.r.c.), in cubic feet, on timberland
A74: Statecd/EVALID: 23 270302 Minnesota 1999-2011
A75: Page variable=None
A76: Row variable=Forest type group
A77: Column variable=Stand-age
A78: and plot.ecosubcd in (' 212Kb', ' 212La', ' 212Lb', ' 212Lc', ' 212Ld', ' 212Le', ' 212Ma', ' 212Mb', ' 212Na', ' 212Nb', ' 212Nc', ' 212Nd', ' 212Ya') and (cond.owncd=11 or cond.owncd=13 or cond.owncd=25 or cond.owncd=31 or cond.owncd=32 or cond.owncd=46)
A79: 2013-06-19T12:25:22
A81: Estimate: Combined Average Removals 1999-2011 | C81: Note: The forest type "Other" and "Nonstocked" and the Age-class "Not-Collected" are not considered in this estimate of removals distribution.
B82: Stand-age
A83: Forest type group | B83: Total | C83: 0 to 5 years | D83: 6 to 10 years | E83: 11 to 15 years | F83: 16 to 20 years | G83: 21 to 25 years | H83: 26 to 30 years | I83: 31 to 35 years | J83: 36 to 40 years | K83: 41 to 45 years | L83: 46 to 50 years | M83: 51 to 55 years | N83: 56 to 60 years | O83: 61 to 65 years | P83: 66 to 70 years | Q83: 71 to 75 years | R83: 76 to 80 years | S83: 81 to 85 years | T83: 86 to 90 years | U83: 91 to 95 years | V83: 96 to 100 years | W83: 101 to 105 years | X83: 106 to 110 years | Y83: 111 to 115 years | Z83: 116 to 120 years | AA83: 121+ years | AB83: Not collected
A84: Total | B84: =SUM(C84:AA84) -> 225693159.3 | C84: =SUM(C85:C90) -> 117477808.7 | D84: =SUM(D85:D90) -> 17906985 | E84: 5760177 | F84: 1044882.667 | G84: 1875248 | H84: 1689477.667 | I84: 3998245 | J84: 4090813 | K84: 7254738.667 | L84: 5911432.667 | M84: 5578369.333 | N84: 9145806.333 | O84: 4756566.333 | P84: 9524347 | Q84: 7929179.667 | R84: 7634798.667 | S84: 2666476.667 | T84: 1861192 | U84: 1582658.667 | V84: 1915657.667 | W84: 706926.3333 | X84: 785656 | Y84: 322414.6667 | Z84: 1091809 | AA84: 3181492.667 | AB84: =(AB12+AB36+AB59)/3 -> 0
A85: White / red / jack pine group | B85: =(B13+B37+B60)/3 -> 15055651 | C85: =(C13+C37+C60)/3 -> 1859351.333 | D85: 712668 | E85: 56373 | F85: 3253 | G85: 179620 | H85: 347659 | I85: 1170221.667 | J85: 1624596 | K85: 2524319 | L85: 966041.6667 | M85: 849227.3333 | N85: 336164 | O85: 306446 | P85: 342759 | Q85: 1105673.667 | R85: 1674532 | S85: 363268.6667 | T85: 548035.3333 | U85: 0 | V85: 0 | W85: 29214 | X85: 0 | Y85: 56228.66667 | Z85: 0 | AA85: =(AA13+AA37+AA60)/3 -> 0 | AB85: =(AB13+AB37+AB60)/3 -> 0
A86: Spruce / fir group | B86: =(B14+B15+B38+B61)/3 -> 13506039 | C86: =(C14+C15+C38+C61)/3 -> 4578457.667 | D86: 1588239.667 | E86: 992920.6667 | F86: 138796 | G86: 47669.33333 | H86: 0 | I86: 300460 | J86: 351453 | K86: 418552.6667 | L86: 1183231.333 | M86: 544571.3333 | N86: 685099 | O86: 289884.3333 | P86: 443970 | Q86: 31349 | R86: 389405 | S86: 3395.333333 | T86: 226885.3333 | U86: 77939.33333 | V86: 78583.33333 | W86: 180053.6667 | X86: 415735.3333 | Y86: 0 | Z86: 375537 | AA86: =(AA14+AA15+AA38+AA61)/3 -> 163851.3333 | AB86: =(AB14+AB38+AB61)/3 -> 0
A87: Oak / hickory group | B87: =(B17+B18+B40+B41+B63+B62)/3 -> 24035386 | C87: =(C17+C18+C40+C41+C63+C62)/3 -> 6943294 | D87: 683962 | E87: 0 | F87: 88807.66667 | G87: 356477 | H87: 394653.6667 | I87: 387356.3333 | J87: 306109.3333 | K87: 0 | L87: 1515112 | M87: 2104891 | N87: 2658841 | O87: 1385487.667 | P87: 2617213 | Q87: 997583.3333 | R87: 2320354 | S87: 593891.3333 | T87: 82583.66667 | U87: 162297.6667 | V87: 110681.3333 | W87: 0 | X87: 0 | Y87: 4029.333333 | Z87: 0 | AA87: =(AA17+AA18+AA40+AA41+AA63+AA62)/3 -> 321761.6667 | AB87: =(AB16+AB15+AB40+AB39+AB63+AB62)/3 -> 0
A88: Elm / ash / cottonwood group | B88: =(B19+B42+B64)/3 -> 13569117.67 | C88: =(C19+C42+C64)/3 -> 3289126.667 | D88: 807427.6667 | E88: 41460 | F88: 0 | G88: 151660 | H88: 0 | I88: 6211 | J88: 64601.66667 | K88: 67871.66667 | L88: 72355 | M88: 272980 | N88: 2054024.333 | O88: 488363 | P88: 1258349 | Q88: 1066568.667 | R88: 203844.3333 | S88: 668412.6667 | T88: 700886.6667 | U88: 24365 | V88: 368771 | W88: 497658.6667 | X88: 161749.6667 | Y88: 16173.66667 | Z88: 0 | AA88: =(AA19+AA42+AA64)/3 -> 1286257.333 | AB88: =(AB17+AB41+AB64)/3 -> 0
A89: Maple / beech / birch group | B89: =(B22+B20+B43+B45+B65+B67)/3 -> 33555493 | C89: =(C22+C20+C43+C45+C65+C67)/3 -> 16260655 | D89: 192972.3333 | E89: 176304.6667 | F89: 0 | G89: 422955.6667 | H89: 5035.666667 | I89: 421087.6667 | J89: 321136.3333 | K89: 2054460.333 | L89: 462644 | M89: 614816 | N89: 1399625 | O89: 239605.3333 | P89: 1443279.333 | Q89: 3274268.333 | R89: 1782155 | S89: 759374 | T89: 217821.3333 | U89: 1273681.333 | V89: 528718.6667 | W89: 0 | X89: 208171 | Y89: 245983 | Z89: 0 | AA89: =(AA22+AA20+AA43+AA45+AA65+AA67)/3 -> 1250742.333 | AB89: =(AB18+AB20+AB42+AB44+AB65+AB67)/3 -> 0
A90: Aspen / birch group | B90: =(B21+B44+B66)/3 -> 125971470 | C90: =(C21+C44+C66)/3 -> 84546924 | D90: 13921715.33 | E90: 4493118.667 | F90: 814026 | G90: 716866 | H90: 942129.3333 | I90: 1712908.333 | J90: 1422916.667 | K90: 2189535 | L90: 1712048.667 | M90: 1191883.667 | N90: 2012053 | O90: 2046780 | P90: 3418776.667 | Q90: 1453736.667 | R90: 1264508.333 | S90: 278134.6667 | T90: 84979.66667 | U90: 44375.33333 | V90: 828903.3333 | W90: 0 | X90: 0 | Y90: 0 | Z90: 716272 | AA90: =(AA21+AA44+AA66)/3 -> 158880 | AB90: =(AB19+AB43+AB66)/3 -> 0
A94: Estimate: Removal Proportions 1999-2011 | C94: Note: The forest type "Other" and "Nonstocked" and the Age-class "Not-Collected" are not considered in this estimate of removals distribution.
B95: Stand-age
A96: Forest type group | B96: Total | C96: 0 to 5 years | D96: 6 to 10 years | E96: 11 to 15 years | F96: 16 to 20 years | G96: 21 to 25 years | H96: 26 to 30 years | I96: 31 to 35 years | J96: 36 to 40 years | K96: 41 to 45 years | L96: 46 to 50 years | M96: 51 to 55 years | N96: 56 to 60 years | O96: 61 to 65 years | P96: 66 to 70 years | Q96: 71 to 75 years | R96: 76 to 80 years | S96: 81 to 85 years | T96: 86 to 90 years | U96: 91 to 95 years | V96: 96 to 100 years | W96: 101 to 105 years | X96: 106 to 110 years | Y96: 111 to 115 years | Z96: 116 to 120 years | AA96: 121+ years | AB96: Not collected
A97: Total | B97: =B84/$B$84 -> 1 | C97: =C84/$B$84 -> 0.5205200238 | D97: 0.07934216993 | E97: 0.02552216034 | F97: 0.004629660331 | G97: 0.008308838449 | H97: 0.007485728286 | I97: 0.0177154018 | J97: 0.01812555158 | K97: 0.03214425589 | L97: 0.02619234311 | M97: 0.02471660794 | N97: 0.04052318803 | O97: 0.02107536776 | P97: 0.04220042392 | Q97: 0.03513256534 | R97: 0.03382822363 | S97: 0.01181461004 | T97: 0.008246559202 | U97: 0.007012435252 | V97: 0.008487885376 | W97: 0.003132245281 | X97: 0.003481080252 | Y97: 0.001428553119 | Z97: 0.004837581268 | AA97: 0.01409654008 | AB97: 0
A98: White / red / jack pine group | B98: =B85/$B$84 -> 0.06670849504 | C98: 0.008238403587 | D98: 0.003157685426 | E98: 0.0002497771761 | F98: 1.441337438e-05 | G98: 0.0007958593009 | H98: 0.001540405571 | I98: 0.005185011677 | J98: 0.007198250956 | K98: 0.01118473864 | L98: 0.004280332065 | M98: 0.003762751764 | N98: 0.001489473589 | O98: 0.001357799239 | P98: 0.001518694678 | Q98: 0.004899012757 | R98: 0.007419507108 | S98: 0.001609568796 | T98: 0.002428231919 | U98: 0 | V98: 0 | W98: 0.0001294412294 | X98: 0 | Y98: 0.0002491376648 | Z98: 0 | AA98: 0 | AB98: 0
A99: Spruce / fir group | B99: =B86/$B$84 -> 0.05984248278 | C99: 0.02028620486 | D99: 0.007037163516 | E99: 0.004399427389 | F99: 0.0006149765478 | G99: 0.000211213018 | H99: 0 | I99: 0.001331276503 | J99: 0.001557216005 | K99: 0.001854520837 | L99: 0.005242654836 | M99: 0.002412883647 | N99: 0.003035532854 | O99: 0.001284417898 | P99: 0.001967139816 | Q99: 0.0001389009755 | R99: 0.001725373517 | S99: 1.504402412e-05 | T99: 0.001005282278 | U99: 0.0003453331663 | V99: 0.000348186598 | W99: 0.0007977807887 | X99: 0.001842037812 | Y99: 0 | Z99: 0.001663927259 | AA99: 0.00072599158 | AB99: 0
A100: Oak / hickory group | B100: =B87/$B$84 -> 0.1064958551 | C100: 0.03076430859 | D100: 0.00303049504 | E100: 0 | F100: 0.0003934885175 | G100: 0.001579476317 | H100: 0.00174862928 | I100: 0.001716296296 | J100: 0.001356307538 | K100: 0 | L100: 0.006713149856 | M100: 0.009326339381 | N100: 0.01178077797 | O100: 0.006138811078 | P100: 0.01159633286 | Q100: 0.004420086707 | R100: 0.01028101165 | S100: 0.002631410429 | T100: 0.0003659112527 | U100: 0.0007191076023 | V100: 0.0004904062385 | W100: 0 | X100: 0 | Y100: 1.785314781e-05 | Z100: 0 | AA100: 0.00142565981 | AB100: 0
A101: Elm / ash / cottonwood group | B101: =B88/$B$84 -> 0.06012197138 | C101: 0.01457344421 | D101: 0.003577546032 | E101: 0.0001837007383 | F101: 0 | G101: 0.0006719742878 | H101: 0 | I101: 2.751966439e-05 | J101: 0.0002862367068 | K101: 0.0003007254046 | L101: 0.0003205901331 | M101: 0.001209518272 | N101: 0.009100959637 | O101: 0.002163836075 | P101: 0.005575485778 | Q101: 0.004725746539 | R101: 0.0009031923428 | S101: 0.00296159914 | T101: 0.00310548476 | U101: 0.000107956307 | V101: 0.001633948504 | W101: 0.002205023263 | X101: 0.0007166795269 | Y101: 7.166219266e-05 | Z101: 0 | AA101: 0.005699141866 | AB101: 0
A102: Maple / beech / birch group | B102: =B89/$B$84 -> 0.1486774925 | C102: 0.07204762009 | D102: 0.0008550207454 | E102: 0.0007811697403 | F102: 0 | G102: 0.001874029625 | H102: 2.231200397e-05 | I102: 0.001865752901 | J102: 0.001422889087 | K102: 0.009102891463 | L102: 0.002049880472 | M102: 0.002724123327 | N102: 0.006201450696 | O102: 0.001061641983 | P102: 0.006394874074 | Q102: 0.01450760999 | R102: 0.007896362501 | S102: 0.003364630112 | T102: 0.000965121557 | U102: 0.005643420195 | V102: 0.002342643739 | W102: 0 | X102: 0.0009223629135 | Y102: 0.001089900114 | Z102: 0 | AA102: 0.005541782201 | AB102: 0
A103: Aspen / birch group | B103: =B90/$B$84 -> 0.5581536914 | C103: 0.3746100425 | D103: 0.06168425917 | E103: 0.0199080853 | F103: 0.003606781891 | G103: 0.003176285901 | H103: 0.004174381431 | I103: 0.007589544754 | J103: 0.006304651283 | K103: 0.009701379548 | L103: 0.007585735747 | M103: 0.005280991547 | N103: 0.008914993285 | O103: 0.009068861485 | P103: 0.01514789671 | Q103: 0.006441208369 | R103: 0.005602776518 | S103: 0.00123235754 | T103: 0.0003765274363 | U103: 0.0001966179811 | V103: 0.003672700297 | W103: 0 | X103: 0 | Y103: 0 | Z103: 0.003173654009 | AA103: 0.0007039646238 | AB103: 0

Sheet Harvest
A1: Table 2. Annual Harvest Volumes: Annual harvest information for the study area. This information is used in conjunction with statewide harvest information to define forest type specific information. | I1: Table 3: Proportion of statewide harvest made up by each forest type. | AN1: http://dnr.wi.gov/topic/ForestBusinesses/documents/WisconsinForestResources.pdf
A2: Year | B2: Total Wood Harvested (cords) | C2: Weight (Based on NPV Formula with 4% interest rate) | D2: Weighted Harvest (Cds) | I2: Forest Type | J2: Proportion of FIA Removals by Forest Type in Procurement Zone | K2: Estimated Statewide harvest (cords) | L2: ODT/cord | M2: Estimated Statewide ODT | N2: Proportion of Statewide Volume in Procurement Zone | O2: Estimated ODT from Procurement Zone | P2: Estimated Mg from Procurement Zone | Q2: Long-term Sustained Yield (Mg) | R2: RotationAge | AI2: Minnesota2007-08 | AK2: % | AS2: Wisconsin | AT2: MCFT | AV2: Michigan
A3: 1980 | B3: 2317100 | C3: =(1/(1+0.04)^(A$33-A3)) -> 0.308318668 | D3: =B3*C3 -> 714405.1856 | H3: 100 | I3: White/red/jack pine | J3: =FIA_Removals!B98 -> 0.06670849504 | K3: =J3*$B$37 -> 223270.9658 | L3: =((D50*B50) + (D49*B49) + (D51*B51))/(B49+B50+B51) -> 1.157600198 | M3: =K3*L3 -> 258458.5142 | N3: 0.9297540034 | O3: =M3*N3 -> 240302.8382 | P3: =O3*0.9072 -> 218002.7349 | Q3: =('CHANGE MATRICES'!BI8/R3)*SUMMARY!N143 -> 325447.5864 | R3: ='AGE FACTORS & ROTATION INPUTS'!F14 -> 75 | AI3: Jack pine | AJ3: 133.7 | AK3: =AJ3/$AJ$19 -> 0.04579080759 | AS3: White Pine | AT3: 14.3
A4: 1981 | B4: 2350600 | C4: =(1/(1+0.04)^(A$33-A4)) -> 0.3206514147 | D4: =B4*C4 -> 753723.2154 | H4: 120 | I4: Spruce/fir | J4: =FIA_Removals!B99 -> 0.05984248278 | K4: 200290.6664 | L4: =((D52*B52)+(D53*B53)+(D54*B54)+(D55*B55))/(B52+B53+B54+B55) -> 1.116304348 | M4: 223585.3418 | N4: 0.9829537594 | O4: 219774.0523 | P4: 199379.0202 | Q4: =('CHANGE MATRICES'!BI157/R4)*SUMMARY!N144 -> 500165.8398 | R4: ='AGE FACTORS & ROTATION INPUTS'!F15 -> 75 | AI4: Red pine | AJ4: 173.9 | AK4: =AJ4/$AJ$19 -> 0.0595588739 | AS4: Soft Maple | AT4: 34.4
A5: 1982 | B5: 2471500 | C5: 0.3334774713 | D5: 824189.5703 | H5: 500 | I5: Oak/hickory - Oak/Pine | J5: =FIA_Removals!B100 -> 0.1064958551 | K5: 356437.8482 | L5: =((D44*B44)+(D48*B48)+(D56*B56))/(B44+B48+B56) -> 1.355078766 | M5: 483001.3597 | N5: 0.5050204258 | O5: 243925.5523 | P5: 221289.2611 | Q5: =('CHANGE MATRICES'!CE305/82)*SUMMARY!N145 -> 555292.7162 | R5: ='AGE FACTORS & ROTATION INPUTS'!F16 -> 75 | AI5: White Pine | AJ5: 12.1 | AK5: 0.00414411946 | AS5: Red pine | AT5: 28.6
A6: 1983 | B6: 3092900 | C6: 0.3468165701 | D6: 1072668.97 | H6: 700 | I6: Elm/ash/cottonwood | J6: =FIA_Removals!B101 -> 0.06012197138 | K6: 201226.1049 | L6: =((D43*B43)+(D47*B47))/(B43+B47) -> 1.25 | M6: 251532.6311 | N6: 0.6842996737 | O6: 172123.6974 | P6: 156150.6182 | Q6: =('CHANGE MATRICES'!BX453/R6)*SUMMARY!N146 -> 277362.6744 | R6: ='AGE FACTORS & ROTATION INPUTS'!F17 -> 75 | AI6: Spruce | AJ6: 242.3 | AK6: 0.08298513597 | AS6: Ash | AT6: 10.5
A7: 1984 | B7: 3335100 | C7: 0.3606892329 | D7: 1202934.661 | H7: 800 | I7: Maple/beech/birch | J7: =FIA_Removals!B102 -> 0.1486774925 | K7: 497618.2917 | L7: =((D45*B45)+(D46*B46))/(B45+B46) -> 1.225116566 | M7: 609640.4128 | N7: 0.7691835386 | O7: 468925.37 | P7: 425409.0957 | Q7: =('CHANGE MATRICES'!BO601/R7)*SUMMARY!N147 -> 375169.6136 | R7: ='AGE FACTORS & ROTATION INPUTS'!F18 -> 75 | AI7: Tamarack | AJ7: 70.4 | AK7: 0.0241112405 | AS7: White Oaks | AT7: 13.1
A8: 1985 | B8: 3066700 | C8: 0.3751168023 | D8: 1150370.697 | H8: 900 | I8: Aspen/birch | J8: =FIA_Removals!B103 -> 0.5581536914 | K8: 1868120.6 | L8: =((D41*B41)+(D42*B42))/(B41+B42) -> 1.15 | M8: 2148338.69 | N8: 0.9038392079 | O8: 1941752.74 | P8: 1761558.085 | Q8: =('CHANGE MATRICES'!AT749/R8)*SUMMARY!N148 -> 1790655.459 | R8: ='AGE FACTORS & ROTATION INPUTS'!F19 -> 50 | AI8: Balsam fir | AJ8: 160.8 | AK8: 0.05507226522 | AS8: Hemlock | AT8: 1.8
A9: 1986 | B9: 3153300 | C9: 0.3901214743 | D9: 1230170.045 | I9: TOTAL | J9: =SUM(J3:J8) -> 0.9999999882 | K9: =SUM(K3:K8) -> 3346964.477 | L9: =((L3*K3)+(L4*K4)+(L5*K5)+(L6*K6)+(L7*K7)+(L8*K8))/SUM(K3:K8) -> 1.187510945 | M9: =SUM(M3:M8) -> 3974556.949 | N9: =((N3*M3)+(N4*M4)+(N5*M5)+(N6*M6)+(N7*M7)+(N8*M8))/SUM(M3:M8) -> 0.8269611662 | O9: =SUM(O3:O8) -> 3286804.25 | P9: =SUM(P3:P8) -> 2981788.815 | Q9: =SUM(Q3:Q8) -> 3824093.889 | AI9: Ash | AJ9: 73.5 | AK9: 0.02517295705 | AS9: Hard Maple | AT9: 30.6
A10: 1987 | B10: 3241900 | C10: 0.4057263333 | D10: 1315324.2 | I10: 1 Assuming conversions in the MN DNR Timber Scaling Manual are in green short tons (50% moisture content) | O10: Estimate w/Thin Volume | P10: =(P9*'Lake_st_Outputs_100-yr'!H97)+P3*'Lake_st_Outputs_100-yr'!L89 -> 3047836.309 | AI10: Oak | AJ10: 131.8 | AK10: 0.04514007809 | AS10: Spruce | AT10: 5.4
A11: 1988 | B11: 3209800 | C11: 0.4219553867 | D11: 1354392.4 | I11: 2 Based on 85 ft3 of solid wood for 100" stick lengths | AI11: Basswood | AJ11: 39 | AK11: 0.01335707925 | AS11: Basswood | AT11: 11.5
A12: 1989 | B12: 3377900 | C12: 0.4388336021 | D12: 1482336.025 | I12: 3 Based on 80 ft3 of solid wood | AI12: Maple | AJ12: =179.4 -> 179.4 | AK12: 0.06144256456 | AS12: Yellow Birch | AT12: 2.7
A13: 1990 | B13: 3448600 | C13: 0.4563869462 | D13: 1573896.023 | M13: ` | N13: Mg/ODT | O13: Mg/Cord | AI13: Aspen | AJ13: 1450.3 | AK13: 0.4967121036 | AS13: Red Oaks | AT13: 42.7
A14: 1991 | B14: 3527200 | C14: 0.474642424 | D14: 1674158.758 | E14: GEIS target (cords) | N14: 0.9072 | O14: =L9*0.9072 -> 1.077309929 | AI14: Paper birch | AJ14: 170.5 | AK14: 0.05839441058 | AS14: Aspen | AT14: 75.8
A15: 1992 | B15: 3850800 | C15: 0.493628121 | D15: 1900863.168 | E15: =AREA!B35*0.271 -> 3583789.094 | F15: FIA Statewide Removals 2007-2011 | AI15: Cottonwood | AJ15: 35.1 | AK15: 0.01202137133 | AS15: Elm | AT15: 3.2
A16: 1993 | B16: 4102600 | C16: 0.5133732459 | D16: 2106165.078 | F16: cubic feet | G16: cords | AI16: White cedar | AJ16: 8.3 | AK16: 0.002842660456 | AS16: Balsam fir | AT16: 5.1
A17: 1994 | B17: 4105800 | C17: 0.5339081757 | D17: 2192120.188 | F17: =FIA_Removals!B84 -> 225693159.3 | G17: =F17*0.0078125 -> 1763227.807 | AI17: Other softwood | AJ17: 10.2 | AK17: 0.003493389958 | AS17: paper Birch | AT17: 12.7
A18: 1995 | B18: 3722600 | C18: 0.5552645027 | D18: 2067027.638 | AI18: Other Hardwood | AJ18: 28.5 | AK18: 0.00976094253 | AS18: Jack pine | AT18: 13.5
A19: 1996 | B19: 3809500 | C19: 0.5774750828 | D19: 2199891.328 | I19: Forest Type | J19: HARVEST TARGET (Mg) | K19: National (Mg) | L19: State (Mg) | M19: Local (Mg) | N19: Private (Mg) | P19: Total (Mg) | AI19: Total | AJ19: =SUM(AJ3:AJ18) -> 2919.8 | AK19: =SUM(AK3:AK18) -> 1 | AS19: Minor species | AT19: 15.9
A20: 1997 | B20: 3740000 | C20: 0.6005740861 | D20: 2246147.082 | I20: White / red / jack pine group | J20: =P3 -> 218002.7349 | K20: =K39 -> 72194.96738 | L20: 36763.77825 | M20: 36130.79435 | N20: 72913.19488 | P20: =SUM(K20:O20) -> 218002.7349 | AS20: =SUM(AT3:AT19) -> 321.8
A21: 1998 | B21: 3660000 | C21: 0.6245970496 | D21: 2286025.201 | I21: Spruce / fir group | J21: 199379.0202 | K21: 33386.41232 | L21: 72806.58324 | M21: 43269.63323 | N21: 49916.39146 | P21: 199379.0202
A22: 1999 | B22: 3820000 | C22: 0.6495809316 | D22: 2481399.159 | I22: Oak/hickory - Oak/Pine group | J22: 221289.2611 | K22: 15699.8994 | L22: 19598.65237 | M22: 33965.09351 | N22: 152025.6158 | P22: 221289.2611
A23: 2000 | B23: 3720000 | C23: 0.6755641688 | D23: 2513098.708 | I23: Elm / ash / cottonwood group | J23: 156150.6182 | K23: 8427.422218 | L23: 28894.26139 | M23: 30088.05554 | N23: 88740.8791 | P23: 156150.6182 | AO23: Forest Type | AP23: % Roundwood | AQ23: % Residual
A24: 2001 | B24: 3560000 | C24: 0.7025867356 | D24: 2501208.779 | I24: Maple / beech / birch group | J24: 425409.0957 | K24: 64530.75029 | L24: 71347.82264 | M24: 107690.2612 | N24: 181840.2616 | P24: 425409.0957 | AO24: Jack pine | AP24: 0.8076365337 | AQ24: 0.1923634663
A25: 2002 | B25: 3680000 | C25: 0.730690205 | D25: 2688939.954 | I25: Aspen / birch group | J25: 1761558.085 | K25: 305819.887 | L25: 292589.955 | M25: 417104.7052 | N25: 746043.5381 | P25: 1761558.085 | AO25: Red pine | AP25: 0.8665790372 | AQ25: 0.1334209628
A26: 2003 | B26: 3600000 | C26: 0.7599178132 | D26: 2735704.128 | I26: Total | J26: =SUM(J20:J25) -> 2981788.815 | K26: 500059.3386 | L26: 522001.0529 | M26: 668248.543 | N26: 1291479.881 | O26: 0 | P26: =SUM(K26:O26) -> 2981788.815 | AO26: Eastern white pine | AP26: 0.8704199199 | AQ26: 0.1295800801
A27: 2004 | B27: 3580000 | C27: 0.7903145257 | D27: 2829326.002 | AO27: Balsam fir | AP27: 0.794811279 | AQ27: 0.205188721
A28: 2005 | B28: 3730000 | C28: 0.8219271068 | D28: 3065788.108 | AO28: White spruce | AP28: 0.7974023836 | AQ28: 0.2025976164
A29: 2006 | B29: 3150000 | C29: 0.854804191 | D29: 2692633.202 | J29: Forest type | K29: National | L29: State | M29: Local | N29: Private | O29: Total | AO29: Black spruce | AP29: 0.6862645624 | AQ29: 0.3137354376
A30: 2007 | B30: 2830000 | C30: 0.8889963587 | D30: 2515859.695 | J30: White / red / jack pine group | K30: 0.3311654206 | L30: 0.168639069 | M30: 0.1657355096 | N30: 0.3344600008 | O30: =SUM(K30:N30) -> 1 | AO30: Tamarack | AP30: 0.6144335489 | AQ30: 0.3855664511
A31: 2008 | B31: 2960000 | C31: 0.924556213 | D31: 2736686.391 | J31: Spruce / fir group | K31: 0.167451983 | L31: 0.3651667219 | M31: 0.2170219975 | N31: 0.2503592976 | O31: 1 | AO31: Northern white-cedar | AP31: 0.8560134646 | AQ31: 0.1439865354
A32: 2009 | B32: 2730000 | C32: 0.9615384615 | D32: 2625000 | I32: weighted average | J32: Oak/hickory - Oak/pine group | K32: 0.07094740759 | L32: 0.08856576354 | M32: 0.1534873104 | N32: 0.6869995184 | O32: 1 | AO32: Other | AP32: 0.5351633221 | AQ32: 0.4648366779
A33: 2010 | B33: 2812000 | C33: 1 | D33: 2812000 | J33: Elm / ash / cottonwood group | K33: 0.05396982934 | L33: 0.1850409669 | M33: 0.1926861122 | N33: 0.5683030916 | O33: 1 | AO33: Oak-pine | AP33: 0.820026788 | AQ33: 0.179973212
J34: Maple / beech / birch group | K34: 0.151691045 | L34: 0.1677157902 | M34: 0.2531451778 | N34: 0.4274479869 | O34: 1 | AO34: Oak-hickory | AP34: 0.7754614568 | AQ34: 0.2245385432
J35: Aspen / birch group | K35: 0.1736076088 | L35: 0.1660972507 | M35: 0.2367816927 | N35: 0.4235134478 | O35: 1 | AO35: Elm-ash-cottonwood | AP35: 0.7890698534 | AQ35: 0.2109301466
C36: Average (30 yr) | D36: Weighted Average (30years) | AO36: Maple-beech-birch | AP36: 0.7814747682 | AQ36: 0.2185252318
A37: AVERAGE (10-Yr) | B37: =AVERAGE(B3:B33) -> 3346964.516 | C37: =AVERAGE(B3:B33) -> 3346964.516 | D37: =(SUM(D3:D33)/(SUM(C3:C33))) -> 3364549.613 | AO37: Aspen | AP37: 0.8329264827 | AQ37: 0.1670735173
K38: National (Mg) | L38: State (Mg) | M38: Local (Mg) | N38: Private (Mg) | O38: TOTAL (Mg) | AO38: Paper birch | AP38: 0.753554744 | AQ38: 0.246445256
A39: Table 4. Forest Type Volume Estimates: This table uses the proportion of total statewide harvest combined with the total harvest values to estimate volumes harvested from each forest type. A conversion to oven-dried tons (ODT) is made to aid in comparison with model outputs. | J39: 100 | K39: =K30*$P3 -> 72194.96738 | L39: 36763.77825 | M39: 36130.79435 | N39: 72913.19488 | O39: =SUM(K39:N39) -> 218002.7349 | AO39: Balsam poplar | AP39: 0.7501767996 | AQ39: 0.2498232004
A40: Forest Type2 | B40: Proportion of total statewide harvest (2004-2009 average) | C40: Estimated wood harvested (cords) | D40: ODT/cord | E40: Estimated wood harvested (ODT) | J40: 120 | K40: 33386.41232 | L40: 72806.58324 | M40: 43269.63323 | N40: 49916.39146 | O40: 199379.0202
A41: Aspen and Balm | B41: 0.557544497 | C41: =$B$37*B41 -> 1866081.648 | D41: 1.15 | E41: =C41*D41 -> 2145993.895 | J41: 500 | K41: 15699.8994 | L41: 19598.65237 | M41: 33965.09351 | N41: 152025.6158 | O41: 221289.2611
A42: Paper Birch | B42: 0.07768495 | C42: 260008.7711 | D42: 1.15 | E42: 299010.0868 | J42: 700 | K42: 8427.422218 | L42: 28894.26139 | M42: 30088.05554 | N42: 88740.8791 | O42: 156150.6182
A43: Ash | B43: 0.013798281 | C43: 46182.35689 | D43: 1.25 | E43: 57727.94611 | J43: 800 | K43: 64530.75029 | L43: 71347.82264 | M43: 107690.2612 | N43: 181840.2616 | O43: 425409.0957
A44: Oak | B44: 0.037462162 | C44: 125384.5269 | D44: 1.375 | E44: 172403.7245 | J44: 900 | K44: 305819.887 | L44: 292589.955 | M44: 417104.7052 | N44: 746043.5381 | O44: 1761558.085
A45: Basswood | B45: 0.012664972 | C45: 42389.21188 | D45: 1.15 | E45: 48747.59366 | J45: Total | K45: =SUM(K39:K44) -> 500059.3386 | L45: =SUM(L39:L44) -> 522001.0529 | M45: =SUM(M39:M44) -> 668248.543 | N45: =SUM(N39:N44) -> 1291479.881 | O45: =SUM(O39:O44) -> 2981788.815
A46: Maple | B46: 0.038232232 | C46: 127961.9239 | D46: 1.25 | E46: 159952.4048
A47: Cottonwood | B47: 0.003283691 | C47: 10990.39726 | D47: 1.25 | E47: 13737.99657
A48: Other Hardwood | B48: 0.006712677 | C48: 22467.09173 | D48: 1.288 | E48: 28937.61414
A49: Red Pine | B49: 0.044610728 | C49: 149310.5237 | D49: 1.175 | E49: 175439.8653
A50: White Pine | B50: 0.00366146 | C50: 12254.7767 | D50: 1.1 | E50: 13480.25437
A51: Jack Pine | B51: 0.074381886 | C51: 248953.5331 | D51: 1.15 | E51: 286296.563
A52: Spruce | B52: 0.06164911 | C52: 206337.3836 | D52: 1.05 | E52: 216654.2528
A53: Balsam Fir | B53: 0.051313718 | C53: 171745.1933 | D53: 1.175 | E53: 201800.6022
A54: Tamarack | B54: 0.013914517 | C54: 46571.39466 | D54: 1.25 | E54: 58214.24332
A55: White Cedar | B55: 0.002005085 | C55: 6710.948347 | D55: 0.725 | E55: 4865.437551
A56: Other Softwood | B56: 0.001080034 | C56: 3614.835474 | D56: 1.081 | E56: 3907.637148
A57: TOTAL | B57: =SUM(B41:B56) -> 1 | C57: =B37 -> 3346964.516 | E57: =SUM(E41:E56) -> 3887170.117
A61: 1 Assuming conversions in the MN DNR Timber Scaling Manual are in green short tons (50% moisture content)
A62: 2 Based on 85 ft3 of solid wood for 100" stick lengths
A63: 3 Based on 80 ft3 of solid wood

Sheet HARVEST VALUES
B2: Table 8. Target Harvest: The targets and estimates in this section help the user determine if the inputs are producing realistic outputs. They are also used as a guide for adjusting the Age Factors, Harvest Inputs, Harvest Range, and Rotation Length values above. The Koochiching County model uses average annual harvest information provided by Tim O'Hara for Koochiching Co. The proportions of each forest type which make up this total were determined by using MN DNR harvest information from the MN DNR Forest Resources Report (2007). | H2: Table X: Forest Type Species volume mix. For reference only. Harvest distribution is according to FIA removals distribution.
B3: Target Harvest - Mg | C3: 1st Year Bole - Mg | D3: Bole harvest - Mg (100 Yr. Avg) | E3: DIFFERENCE | F3: Tops (60%) - Mg | H3: Forest Type Group | I3: Total | J3: WRJP | K3: SpFir | L3: OthESw | M3: ExSw | N3: OkP/OkH | O3: EAC | P3: MapBB/OtHw | Q3: AsBir | R3: OtHw
A4: 100 | B4: =H28 -> 218002.7349 | C4: =SUMMARY!B4 -> 323254.2796 | D4: =SUMMARY!B128 -> 323501.5734 | E4: =B4-D4 -> -105498.8386 | F4: =SUMMARY!P128*0.65 -> 47312.70491 | H4: W-R-J Pine Component | I4: =FType_Spp_Comp!S65 -> 0.1295342534 | J4: =FType_Spp_Comp!T65 -> 0.8342385078 | K4: =FType_Spp_Comp!U65 -> 0.03186519542 | L4: =FType_Spp_Comp!V65 -> 0 | M4: =FType_Spp_Comp!W65 -> 0.9438363349 | N4: =FType_Spp_Comp!Z65 -> 0 | O4: =FType_Spp_Comp!AA65 -> 0.00280794588 | P4: =FType_Spp_Comp!AC65 -> 0.0262637736 | Q4: =FType_Spp_Comp!AD65 -> 0.03020968235 | R4: =FType_Spp_Comp!AE65 -> 0.1383334269
A5: 120 | B5: 199379.0202 | C5: =SUMMARY!C4 -> 480805.0827 | D5: =SUMMARY!C128 -> 480917.9334 | E5: -281538.9131 | F5: =SUMMARY!Q128*0.65 -> 62507.78765 | H5: Spruce-Fir Component | I5: =FType_Spp_Comp!S66 -> 0.2515886367 | J5: =FType_Spp_Comp!T66 -> 0.06541656795 | K5: =FType_Spp_Comp!U66 -> 0.8750117187 | L5: =FType_Spp_Comp!V66 -> 0.9370714737 | M5: =FType_Spp_Comp!W66 -> 0 | N5: =FType_Spp_Comp!Z66 -> 0.01839075995 | O5: =FType_Spp_Comp!AA66 -> 0.1518833003 | P5: =FType_Spp_Comp!AC66 -> 0.06939945648 | Q5: =FType_Spp_Comp!AD66 -> 0.1368444453 | R5: =FType_Spp_Comp!AE66 -> 0.4339964788
A6: 500 | B6: 221289.2611 | C6: =SUMMARY!D4 -> 595828.2118 | D6: =SUMMARY!D128 -> 578828.4412 | E6: -357539.1802 | F6: =SUMMARY!R128*0.65 -> 96046.05178 | H6: Oak-Hickory/Oak-Pine Component | I6: =FType_Spp_Comp!S67 -> 0.07506480461 | J6: =FType_Spp_Comp!T67 -> 0.005844270206 | K6: =FType_Spp_Comp!U67 -> 0.0009012229024 | L6: =FType_Spp_Comp!V67 -> 0.06292826978 | M6: =FType_Spp_Comp!W67 -> 0.01482107141 | N6: =FType_Spp_Comp!Z67 -> 0.5084392514 | O6: =FType_Spp_Comp!AA67 -> 0.02418256897 | P6: =FType_Spp_Comp!AC67 -> 0.08383295086 | Q6: =FType_Spp_Comp!AD67 -> 0.03442817908 | R6: =FType_Spp_Comp!AE67 -> 0.05515141311
A7: 700 | B7: 156150.6182 | C7: =SUMMARY!E4 -> 302289.0831 | D7: =SUMMARY!E128 -> 292079.3355 | E7: -135928.7172 | F7: =SUMMARY!S128*0.65 -> 56913.35213 | H7: Lowland Hardwood Component | I7: =FType_Spp_Comp!S68 -> 0.08524672815 | J7: =FType_Spp_Comp!T68 -> 0.00113040882 | K7: =FType_Spp_Comp!U68 -> 0.01320443006 | L7: =FType_Spp_Comp!V68 -> 0 | M7: =FType_Spp_Comp!W68 -> 0 | N7: =FType_Spp_Comp!Z68 -> 0.07544449687 | O7: =FType_Spp_Comp!AA68 -> 0.6566092946 | P7: =FType_Spp_Comp!AC68 -> 0.04679428482 | Q7: =FType_Spp_Comp!AD68 -> 0.03663916254 | R7: =FType_Spp_Comp!AE68 -> 0.04740912172
A8: 800 | B8: 425409.0957 | C8: =SUMMARY!F4 -> 386763.0645 | D8: =SUMMARY!F128 -> 386478.6163 | E8: 38930.47937 | F8: =SUMMARY!T128*0.65 -> 70090.25442 | H8: Northern Hardwood Component | I8: =FType_Spp_Comp!S69 -> 0.1188531571 | J8: =FType_Spp_Comp!T69 -> 0.008089266552 | K8: =FType_Spp_Comp!U69 -> 0.006297390574 | L8: =FType_Spp_Comp!V69 -> 0 | M8: =FType_Spp_Comp!W69 -> 0 | N8: =FType_Spp_Comp!Z69 -> 0.1937142725 | O8: =FType_Spp_Comp!AA69 -> 0.0657854125 | P8: =FType_Spp_Comp!AC69 -> 0.6010753531 | Q8: =FType_Spp_Comp!AD69 -> 0.06851403254 | R8: =FType_Spp_Comp!AE69 -> 0.1281911159
A9: 900 | B9: 1761558.085 | C9: =SUMMARY!G4 -> 1847657.946 | D9: =SUMMARY!G128 -> 1847128.106 | E9: -85570.02029 | F9: =SUMMARY!U128*0.65 -> 358891.0559 | H9: Aspen-Birch Component | I9: =FType_Spp_Comp!S70 -> 0.3366095152 | J9: =FType_Spp_Comp!T70 -> 0.08430354236 | K9: =FType_Spp_Comp!U70 -> 0.07236649536 | L9: =FType_Spp_Comp!V70 -> 0 | M9: =FType_Spp_Comp!W70 -> 0.04134247649 | N9: =FType_Spp_Comp!Z70 -> 0.2009850088 | O9: =FType_Spp_Comp!AA70 -> 0.09821691632 | P9: =FType_Spp_Comp!AC70 -> 0.1714978441 | Q9: =FType_Spp_Comp!AD70 -> 0.6918515351 | R9: =FType_Spp_Comp!AE70 -> 0.1933734255
A10: 801 | B10: 0 | E10: 0 | H10: Sum | I10: =SUM(I4:I9) -> 0.9968970952 | J10: =SUM(J4:J9) -> 0.9990225637 | K10: 0.999646453 | L10: 0.9999997434 | M10: 0.9999998828 | N10: 0.9969737896 | O10: 0.9994854386 | P10: 0.998863663 | Q10: 0.9984870369 | R10: 0.9964549819 | S10: Includes some non-commercial species to approach 100% of each forest type group
A11: 805 | B11: 0 | E11: 0
A12: 901 | B12: 0 | E12: 0
A13: 902 | B13: 0 | E13: 0 | I13: Assuming original target volumes. | J13: 100 | K13: 120 | L13: 120 | M13: 500 | N13: 500 | O13: 700 | P13: 800 | Q13: 900 | R13: 800
A14: 904 | B14: 0 | E14: 0 | H14: Forest Type Group | I14: Total Volume from Type | J14: WRJP | K14: SpFir | L14: OthESw | M14: ExSw | N14: OkP/OkH | O14: EAC | P14: MapBB/OtHw | Q14: AsBir | R14: OtHw
A15: 999 | B15: 0 | E15: 0 | H15: W-R-J Pine Component | I15: =SUM(J15:Q15) -> 253401.7691 | J15: =J4*Harvest!$P$3 -> 181866.2762 | K15: =K4*Harvest!$P$4*AREA!$X$37 -> 6334.282336 | L15: =L4*Harvest!$P$4*AREA!$X$38 -> 0 | M15: =M4*Harvest!$P$4*AREA!$X$39 -> 373.7896499 | N15: =N4*Harvest!$P$5 -> 0 | O15: =O4*Harvest!$P$6 -> 438.4624852 | P15: =P4*Harvest!$P$7 -> 11172.84818 | Q15: =Q4*Harvest!$P$8 -> 53216.11019 | R15: =R4*Harvest!$P$3*AREA!$X$45 -> 5130.17718
A16: TOTAL | B16: =SUM(B4:B15) -> 2981788.815 | C16: =SUM(C4:C15) -> 3936597.668 | D16: =SUM(D4:D15) -> 3908934.005 | E16: =SUM(E4:E15) -> -927145.19 | F16: =SUM(F4:F9) -> 691761.2068 | H16: Spruce-Fir Component | I16: 486754.7511 | J16: =J5*Harvest!$P$3 -> 14260.99072 | K16: =K5*Harvest!$P$4*AREA!$X$37 -> 173938.0914 | L16: =L5*Harvest!$P$4*AREA!$X$38 -> 186.7209236 | M16: =M5*Harvest!$P$4*AREA!$X$39 -> 0 | N16: =N5*Harvest!$P$5 -> 4069.677679 | O16: =O5*Harvest!$P$6 -> 23716.67125 | P16: =P5*Harvest!$P$7 -> 29523.16002 | Q16: =Q5*Harvest!$P$8 -> 241059.4391 | R16: =R5*Harvest!$P$4*AREA!$X$45 -> 14720.03865
A17: Harvest Goal | B17: =I23 -> 0 | H17: Oak-Hickory/Oak-Pine Component | I17: 214070.4304 | J17: =J6*Harvest!$P$3 -> 1274.066888 | K17: =K6*Harvest!$P$4*AREA!$X$37 -> 179.1484482 | L17: =L6*Harvest!$P$4*AREA!$X$38 -> 12.53909119 | M17: =M6*Harvest!$P$4*AREA!$X$39 -> 5.869622612 | N17: =N6*Harvest!$P$5 -> 112512.1462 | O17: =O6*Harvest!$P$6 -> 3776.123096 | P17: =P6*Harvest!$P$7 -> 35663.29981 | Q17: =Q6*Harvest!$P$8 -> 60647.23722 | R17: =R6*Harvest!$P$5*AREA!$X$45 -> 2076.157373
H18: Lowland Hardwood Component | I18: 206544.9897 | J18: =J7*Harvest!$P$3 -> 246.4322143 | K18: =K7*Harvest!$P$4*AREA!$X$37 -> 2624.825832 | L18: =L7*Harvest!$P$4*AREA!$X$38 -> 0 | M18: =M7*Harvest!$P$4*AREA!$X$39 -> 0 | N18: =N7*Harvest!$P$5 -> 16695.05696 | O18: =O7*Harvest!$P$6 -> 102529.9473 | P18: =P7*Harvest!$P$7 -> 19906.71439 | Q18: =Q7*Harvest!$P$8 -> 64542.01302 | R18: =R7*Harvest!$P$6*AREA!$X$45 -> 1259.357129
H19: Northern Hardwood Component | I19: 432548.9925 | J19: =J8*Harvest!$P$3 -> 1763.482231 | K19: =K8*Harvest!$P$4*AREA!$X$37 -> 1251.818774 | L19: =L8*Harvest!$P$4*AREA!$X$38 -> 0 | M19: =M8*Harvest!$P$4*AREA!$X$39 -> 0 | N19: =N8*Harvest!$P$5 -> 42866.88823 | O19: =O8*Harvest!$P$6 -> 10272.43283 | P19: =P8*Harvest!$P$7 -> 255702.9224 | Q19: =Q8*Harvest!$P$8 -> 120691.448 | R19: =R8*Harvest!$P$7*AREA!$X$45 -> 9277.009179
H20: Aspen-Birch Component | I20: 1384285.922 | J20: =J9*Harvest!$P$3 -> 18378.40279 | K20: =K9*Harvest!$P$4*AREA!$X$37 -> 14385.28172 | L20: =L9*Harvest!$P$4*AREA!$X$38 -> 0 | M20: =M9*Harvest!$P$4*AREA!$X$39 -> 16.37295497 | N20: =N9*Harvest!$P$5 -> 44475.82409 | O20: =O9*Harvest!$P$6 -> 15336.63221 | P20: =P9*Harvest!$P$7 -> 72956.74277 | Q20: =Q9*Harvest!$P$8 -> 1218736.665 | R20: =R9*Harvest!$P$8*AREA!$X$45 -> 57947.81243
H21: Sum | I21: =SUM(I15:I20) -> 2977606.855 | J21: =SUM(J15:J20)*(1/J10) -> 218002.7349 | K21: =SUM(K15:K20)*(1/K10) -> 198783.7279 | L21: 199.2600659 | M21: 396.0322739 | N21: 221289.2611 | O21: 156150.6182 | P21: 425409.0957 | Q21: 1761558.085 | R21: 90732.19923 | S21: Includes some non-commercial species to approach 100% of each forest type group
C23: 0.03 | D23: 0.03
C24: 0.04 | D24: 0.04
C25: 0.05
C26: 0.06 | G26: Table Y: Harvest Goal Input Data | T26: Once the ChangeMatrixGenerator has been run for each forest type, the cells below will contain the auto-generated harvest goals.
C27: 0.07 | H27: Total Volume from Type | O27: LTSY (Mg) | P27: 90% LTSY (Mg) | Q27: 85% LTSY (Mg) | R27: 80% LTSY (Mg) | S27: 75% LTSY (Mg) | T27: Expected Total Yield (Mg) | U27: Bole Harvest (Mg) = Thin + Economic Harvest | V27: Thin Harvest (Mg) | W27: Economic Harvest (Mg) | X27: Thin Proportion
C28: 0.08 | G28: 100 | H28: =Harvest!P3 -> 218002.7349 | J28: 100 | K28: White/Red/Jack Pine | O28: ='Lake_st_Outputs_100-yr'!B8 -> 327200.4976 | P28: =$O28*0.9 -> 294480.4478 | Q28: =$O28*0.85 -> 278120.4229 | R28: =$O28*0.8 -> 261760.3981 | S28: =$O28*0.75 -> 245400.3732 | T28: 323225.6882 | U28: ='Lake_st_Outputs_100-yr'!E8 -> 323501.5734 | V28: =AVERAGE(ThinVolBole!DS5:DS124) -> 32353.22007 | W28: =U28-V28 -> 291148.3534 | X28: =V28/U28 -> 0.1000094674
C29: 0.09 | G29: 120 | H29: =Harvest!P4 -> 199379.0202 | J29: 120 | K29: Spruce/Fir | O29: ='Lake_st_Outputs_100-yr'!B9 -> 538254.4372 | P29: 484428.9935 | Q29: 457516.2716 | R29: 430603.5497 | S29: 403690.8279 | T29: 480514.1642 | U29: ='Lake_st_Outputs_100-yr'!E9 -> 480917.9334 | V29: =AVERAGE(ThinVolBole!DS131:DS250) -> 0 | W29: 480917.9334 | X29: 0
C30: 0.1 | G30: 500 | H30: =Harvest!P5 -> 221289.2611 | J30: 500 | K30: Oak/Hickory/Pine | O30: ='Lake_st_Outputs_100-yr'!B10 -> 547144.459 | P30: 492430.0131 | Q30: 465072.7901 | R30: 437715.5672 | S30: 410358.3442 | T30: 541636.9477 | U30: ='Lake_st_Outputs_100-yr'!E10 -> 578828.4412 | V30: =AVERAGE(ThinVolBole!DS257:DS376) -> 0 | W30: 578828.4412 | X30: 0
G31: 700 | H31: =Harvest!P6 -> 156150.6182 | J31: 700 | K31: Lowland Hardwoods | O31: ='Lake_st_Outputs_100-yr'!B11 -> 277362.6744 | P31: 249626.407 | Q31: 235758.2733 | R31: 221890.1396 | S31: 208022.0058 | T31: 274552.4813 | U31: ='Lake_st_Outputs_100-yr'!E11 -> 292079.3355 | V31: =AVERAGE(ThinVolBole!DS383:DS502) -> 0 | W31: 292079.3355 | X31: 0
G32: 800 | H32: =Harvest!P7 -> 425409.0957 | J32: 800 | K32: Northern Hardwoods | O32: ='Lake_st_Outputs_100-yr'!B12 -> 418810.9513 | P32: 376929.8561 | Q32: 355989.3086 | R32: 335048.761 | S32: 314108.2134 | T32: 386106.3635 | U32: ='Lake_st_Outputs_100-yr'!E12 -> 386478.6163 | V32: =AVERAGE(ThinVolBole!DS509:DS628) -> 0 | W32: 386478.6163 | X32: 0
G33: 900 | H33: =Harvest!P8 -> 1761558.085 | J33: 900 | K33: Aspen/Birch | O33: ='Lake_st_Outputs_100-yr'!B13 -> 2035597.448 | P33: 1832037.703 | Q33: 1730257.831 | R33: 1628477.958 | S33: 1526698.086 | T33: 1845743.881 | U33: ='Lake_st_Outputs_100-yr'!E13 -> 1847128.106 | V33: =AVERAGE(ThinVolBole!DS635:DS754) -> 0 | W33: 1847128.106 | X33: 0
G34: Total | H34: =SUM(H28:H33) -> 2981788.815 | O34: =SUM(O28:O33) -> 4144370.467 | P34: 3729933.42 | Q34: 3522714.897 | R34: 3315496.374 | S34: 3108277.85 | T34: 3851779.526 | U34: =SUM(U28:U33) -> 3908934.005 | V34: =SUM(V28:V33) -> 32353.22007 | W34: =SUM(W28:W33) -> 3876580.785 | X34: =V34/W34 -> 0.008345813453
W36: Thin Efficiency = | X36: =X34/0.3 -> 0.02781937818
G39: Table Z: Harvest Goal Input Data Options
H40: Total Volume from Type | I40: Goal - 50% | J40: Goal - 40% | K40: Goal - 30% | L40: Goal - 20% | M40: Goal - 10% | N40: Original Goal | O40: Goal + 10% | P40: Goal + 20% | Q40: Goal + 30% | R40: Goal + 40% | S40: Goal + 50%
G41: 100 | H41: =Harvest!P3 -> 218002.7349 | I41: =H41*0.5 -> 109001.3674 | J41: =H41*0.6 -> 130801.6409 | K41: =H41*0.7 -> 152601.9144 | L41: =H41*0.8 -> 174402.1879 | M41: =H41*0.9 -> 196202.4614 | N41: =H41 -> 218002.7349 | O41: =H41 + (H41*0.1) -> 239803.0083 | P41: =H41+ (H41*0.2) -> 261603.2818 | Q41: =H41+(H41*0.3) -> 283403.5553 | R41: =H41+(H41*0.4) -> 305203.8288 | S41: =H41+(H41*0.5) -> 327004.1023
G42: 120 | H42: =Harvest!P4 -> 199379.0202 | I42: =H42*0.5 -> 99689.51012 | J42: =H42*0.6 -> 119627.4121 | K42: =H42*0.7 -> 139565.3142 | L42: =H42*0.8 -> 159503.2162 | M42: =H42*0.9 -> 179441.1182 | N42: =H42 -> 199379.0202 | O42: =H42 + (H42*0.1) -> 219316.9223 | P42: =H42+ (H42*0.2) -> 239254.8243 | Q42: =H42+(H42*0.3) -> 259192.7263 | R42: =H42+(H42*0.4) -> 279130.6283 | S42: =H42+(H42*0.5) -> 299068.5304
G43: 500 | H43: =Harvest!P5 -> 221289.2611 | I43: 110644.6305 | J43: 132773.5566 | K43: 154902.4827 | L43: 177031.4089 | M43: 199160.335 | N43: 221289.2611 | O43: 243418.1872 | P43: 265547.1133 | Q43: 287676.0394 | R43: 309804.9655 | S43: 331933.8916
G44: 700 | H44: =Harvest!P6 -> 156150.6182 | I44: 78075.30912 | J44: 93690.37095 | K44: 109305.4328 | L44: 124920.4946 | M44: 140535.5564 | N44: 156150.6182 | O44: 171765.6801 | P44: 187380.7419 | Q44: 202995.8037 | R44: 218610.8655 | S44: 234225.9274
B45: Proportion of total harvest from each forest type | G45: 800 | H45: =Harvest!P7 -> 425409.0957 | I45: 212704.5478 | J45: 255245.4574 | K45: 297786.367 | L45: 340327.2765 | M45: 382868.1861 | N45: 425409.0957 | O45: 467950.0053 | P45: 510490.9148 | Q45: 553031.8244 | R45: 595572.734 | S45: 638113.6435
B46: FORTYPE | C46: Target Proportion | D46: Target Bolewood Proportion | G46: 900 | H46: =Harvest!P8 -> 1761558.085 | I46: 880779.0426 | J46: 1056934.851 | K46: 1233090.66 | L46: 1409246.468 | M46: 1585402.277 | N46: 1761558.085 | O46: 1937713.894 | P46: 2113869.702 | Q46: 2290025.511 | R46: 2466181.319 | S46: 2642337.128
B47: 100 | C47: =B4/$B$16 -> 0.07311139331 | D47: =D4/$D$16 -> 0.08275953827 | G47: Total | H47: =SUM(H41:H46) -> 2981788.815 | I47: 1490894.408 | J47: 1789073.289 | K47: 2087252.171 | L47: 2385431.052 | M47: 2683609.934 | N47: 2981788.815 | O47: 3279967.697 | P47: 3578146.578 | Q47: 3876325.46 | R47: 4174504.342 | S47: 4472683.223
B48: 120 | C48: =B5/$B$16 -> 0.06686557385 | D48: 0.1230304561
B49: 500 | C49: 0.07421359283 | D49: 0.1480783355
B50: 700 | C50: 0.05236810113 | D50: 0.0747209687
B51: 800 | C51: 0.1426690896 | D51: 0.09887059126
B52: 900 | C52: 0.5907722493 | D52: 0.4725401102
B53: 801 | C53: 0 | D53: 0
B54: 805 | C54: 0 | D54: 0
B55: 901 | C55: 0 | D55: 0
B56: 902 | C56: 0 | D56: 0
B57: 904 | C57: 0 | D57: 0
B58: 999 | C58: =B15/$B$16 -> 0 | D58: 0
B59: TOTAL | C59: =SUM(C47:C58) -> 1 | D59: 1

Sheet AGE FACTORS & ROTATION INPUTS
A1: FOREST TYPE | B1: AGE CLASSES (i.e. 0-10, 11-20, etc)
B2: 1 | C2: 2 | D2: 3 | E2: 4 | F2: 5 | G2: 6 | H2: 7 | I2: 8 | J2: 9 | K2: 10 | L2: 11 | M2: 12 | N2: 13 | O2: 14 | P2: 15 | Q2: 16 | R2: 17 | S2: 18 | T2: 19 | U2: 20 | V2: 21 | W2: 22 | X2: 23 | Y2: 24 | Z2: 25 | AA2: 26 | AB2: 27 | AC2: 28 | AD2: 29 | AE2: 30 | AF2: 31 | AG2: 32 | AH2: 33 | AI2: 34 | AJ2: 35 | AK2: 36 | AL2: 37 | AM2: 38 | AN2: 39 | AO2: 40 | AP2: 41 | AQ2: 42 | AR2: 43 | AS2: 44 | AT2: 45 | AU2: 46 | AV2: 47 | AW2: 48 | AX2: 49 | AY2: 50 | AZ2: 51 | BA2: 52 | BB2: 53 | BC2: 54 | BD2: 55 | BE2: 56 | BF2: 57 | BG2: 58 | BH2: 59 | BI2: 60 | BJ2: 61 | BK2: 62 | BL2: 63 | BM2: 64 | BN2: 65 | BO2: 66 | BP2: 67 | BQ2: 68 | BR2: 69 | BS2: 70 | BT2: 71 | BU2: 72 | BV2: 73 | BW2: 74 | BX2: 75 | BY2: 76 | BZ2: 77 | CA2: 78 | CB2: 79 | CC2: 80 | CD2: 81 | CE2: 82 | CF2: 83 | CG2: 84 | CH2: 85 | CI2: 86 | CJ2: 87 | CK2: 88 | CL2: 89 | CM2: 90 | CN2: 91 | CO2: 92 | CP2: 93 | CQ2: 94 | CR2: 95 | CS2: 96 | CT2: 97 | CU2: 98 | CV2: 99 | CW2: 100 | CX2: 101 | CY2: 102 | CZ2: 103 | DA2: 104 | DB2: 105 | DC2: 106 | DD2: 107 | DE2: 108 | DF2: 109 | DG2: 110 | DH2: 111 | DI2: 112 | DJ2: 113 | DK2: 114 | DL2: 115 | DM2: 116 | DN2: 117 | DO2: 118 | DP2: 119 | DQ2: 120
A3: 100 | B3: =$B$31/10 -> 0.001068940929 | C3: 0.001068940929 | D3: 0.001068940929 | E3: 0.001068940929 | F3: 0.001068940929 | G3: 0.001068940929 | H3: 0.001068940929 | I3: 0.001068940929 | J3: 0.001068940929 | K3: 0.001068940929 | L3: =$B$32/10 -> 0.001057760899 | M3: 0.001057760899 | N3: 0.001057760899 | O3: 0.001057760899 | P3: 0.001057760899 | Q3: 0.001057760899 | R3: 0.001057760899 | S3: 0.001057760899 | T3: 0.001057760899 | U3: 0.001057760899 | V3: =$B$33/10 -> 0.0002336882529 | W3: 0.0002336882529 | X3: 0.0002336882529 | Y3: 0.0002336882529 | Z3: 0.0002336882529 | AA3: 0.0002336882529 | AB3: 0.0002336882529 | AC3: 0.0002336882529 | AD3: 0.0002336882529 | AE3: 0.0002336882529 | AF3: =$B$34/10 -> 0.0005768452861 | AG3: 0.0005768452861 | AH3: 0.0005768452861 | AI3: 0.0005768452861 | AJ3: 0.0005768452861 | AK3: 0.0005768452861 | AL3: 0.0005768452861 | AM3: 0.0005768452861 | AN3: 0.0005768452861 | AO3: 0.0005768452861 | AP3: =$B$35/10 -> 0.0008215609502 | AQ3: 0.0008215609502 | AR3: 0.0008215609502 | AS3: 0.0008215609502 | AT3: 0.0008215609502 | AU3: 0.0008215609502 | AV3: 0.0008215609502 | AW3: 0.0008215609502 | AX3: 0.0008215609502 | AY3: 0.0008215609502 | AZ3: =$B$36/10 -> 0.001065614607 | BA3: 0.001065614607 | BB3: 0.001065614607 | BC3: 0.001065614607 | BD3: 0.001065614607 | BE3: 0.001065614607 | BF3: 0.001065614607 | BG3: 0.001065614607 | BH3: 0.001065614607 | BI3: 0.001065614607 | BJ3: =$B$37/10 -> 0.001476928827 | BK3: 0.001476928827 | BL3: 0.001476928827 | BM3: 0.001476928827 | BN3: 0.001476928827 | BO3: 0.001476928827 | BP3: 0.001476928827 | BQ3: 0.001476928827 | BR3: 0.001476928827 | BS3: 0.001476928827 | BT3: =$B$38/10 -> 0.0009889827889 | BU3: 0.0009889827889 | BV3: 0.0009889827889 | BW3: 0.0009889827889 | BX3: 0.0009889827889 | BY3: 0.0009889827889 | BZ3: 0.0009889827889 | CA3: 0.0009889827889 | CB3: 0.0009889827889 | CC3: 0.0009889827889 | CD3: =$B$39/10 -> 0.0008604784968 | CE3: 0.0008604784968 | CF3: 0.0008604784968 | CG3: 0.0008604784968 | CH3: 0.0008604784968 | CI3: 0.0008604784968 | CJ3: 0.0008604784968 | CK3: 0.0008604784968 | CL3: 0.0008604784968 | CM3: 0.0008604784968 | CN3: =$B$40/10 -> 0.0003872089841 | CO3: 0.0003872089841 | CP3: 0.0003872089841 | CQ3: 0.0003872089841 | CR3: 0.0003872089841 | CS3: 0.0003872089841 | CT3: 0.0003872089841 | CU3: 0.0003872089841 | CV3: 0.0003872089841 | CW3: 0.0003872089841 | CX3: =$B$41/10 -> 0.0006470205379 | CY3: 0.0006470205379 | CZ3: 0.0006470205379 | DA3: 0.0006470205379 | DB3: 0.0006470205379 | DC3: 0.0006470205379 | DD3: 0.0006470205379 | DE3: 0.0006470205379 | DF3: 0.0006470205379 | DG3: 0.0006470205379 | DH3: =$B$42/10 -> 0.0006470205379 | DI3: 0.0006470205379 | DJ3: 0.0006470205379 | DK3: 0.0006470205379 | DL3: 0.0006470205379 | DM3: 0.0006470205379 | DN3: 0.0006470205379 | DO3: 0.0006470205379 | DP3: 0.0006470205379 | DQ3: 0.0006470205379
A4: 120 | B4: =$C$31/10 -> 0.00351959106 | C4: 0.00351959106 | D4: 0.00351959106 | E4: 0.00351959106 | F4: 0.00351959106 | G4: 0.00351959106 | H4: 0.00351959106 | I4: 0.00351959106 | J4: 0.00351959106 | K4: 0.00351959106 | L4: =$C$32/10 -> 0.002195227089 | M4: 0.002195227089 | N4: 0.002195227089 | O4: 0.002195227089 | P4: 0.002195227089 | Q4: 0.002195227089 | R4: 0.002195227089 | S4: 0.002195227089 | T4: 0.002195227089 | U4: 0.002195227089 | V4: =$C$33/10 -> 0.002190976278 | W4: 0.002190976278 | X4: 0.002190976278 | Y4: 0.002190976278 | Z4: 0.002190976278 | AA4: 0.002190976278 | AB4: 0.002190976278 | AC4: 0.002190976278 | AD4: 0.002190976278 | AE4: 0.002190976278 | AF4: =$C$34/10 -> 0.0007995530389 | AG4: 0.0007995530389 | AH4: 0.0007995530389 | AI4: 0.0007995530389 | AJ4: 0.0007995530389 | AK4: 0.0007995530389 | AL4: 0.0007995530389 | AM4: 0.0007995530389 | AN4: 0.0007995530389 | AO4: 0.0007995530389 | AP4: =$C$35/10 -> 0.001220985264 | AQ4: 0.001220985264 | AR4: 0.001220985264 | AS4: 0.001220985264 | AT4: 0.001220985264 | AU4: 0.001220985264 | AV4: 0.001220985264 | AW4: 0.001220985264 | AX4: 0.001220985264 | AY4: 0.001220985264 | AZ4: =$C$36/10 -> 0.002005765075 | BA4: 0.002005765075 | BB4: 0.002005765075 | BC4: 0.002005765075 | BD4: 0.002005765075 | BE4: 0.002005765075 | BF4: 0.002005765075 | BG4: 0.002005765075 | BH4: 0.002005765075 | BI4: 0.002005765075 | BJ4: =$C$37/10 -> 0.001257195012 | BK4: 0.001257195012 | BL4: 0.001257195012 | BM4: 0.001257195012 | BN4: 0.001257195012 | BO4: 0.001257195012 | BP4: 0.001257195012 | BQ4: 0.001257195012 | BR4: 0.001257195012 | BS4: 0.001257195012 | BT4: =$C$38/10 -> 0.001792290751 | BU4: 0.001792290751 | BV4: 0.001792290751 | BW4: 0.001792290751 | BX4: 0.001792290751 | BY4: 0.001792290751 | BZ4: 0.001792290751 | CA4: 0.001792290751 | CB4: 0.001792290751 | CC4: 0.001792290751 | CD4: =$C$39/10 -> 0.001585228423 | CE4: 0.001585228423 | CF4: 0.001585228423 | CG4: 0.001585228423 | CH4: 0.001585228423 | CI4: 0.001585228423 | CJ4: 0.001585228423 | CK4: 0.001585228423 | CL4: 0.001585228423 | CM4: 0.001585228423 | CN4: =$C$40/10 -> 0.0007966096764 | CO4: 0.0007966096764 | CP4: 0.0007966096764 | CQ4: 0.0007966096764 | CR4: 0.0007966096764 | CS4: 0.0007966096764 | CT4: 0.0007966096764 | CU4: 0.0007966096764 | CV4: 0.0007966096764 | CW4: 0.0007966096764 | CX4: =$C$41/10 -> 0.001116256245 | CY4: 0.001116256245 | CZ4: 0.001116256245 | DA4: 0.001116256245 | DB4: 0.001116256245 | DC4: 0.001116256245 | DD4: 0.001116256245 | DE4: 0.001116256245 | DF4: 0.001116256245 | DG4: 0.001116256245 | DH4: =$C$42/10 -> 0.001116256245 | DI4: 0.001116256245 | DJ4: 0.001116256245 | DK4: 0.001116256245 | DL4: 0.001116256245 | DM4: 0.001116256245 | DN4: 0.001116256245 | DO4: 0.001116256245 | DP4: 0.001116256245 | DQ4: 0.001116256245
A5: 500 | B5: =$D$31/10 -> 0.002598648034 | C5: 0.002598648034 | D5: 0.002598648034 | E5: 0.002598648034 | F5: 0.002598648034 | G5: 0.002598648034 | H5: 0.002598648034 | I5: 0.002598648034 | J5: 0.002598648034 | K5: 0.002598648034 | L5: =$D$32/10 -> 0.00125838589 | M5: 0.00125838589 | N5: 0.00125838589 | O5: 0.00125838589 | P5: 0.00125838589 | Q5: 0.00125838589 | R5: 0.00125838589 | S5: 0.00125838589 | T5: 0.00125838589 | U5: 0.00125838589 | V5: =$D$33/10 -> 0.0008454169361 | W5: 0.0008454169361 | X5: 0.0008454169361 | Y5: 0.0008454169361 | Z5: 0.0008454169361 | AA5: 0.0008454169361 | AB5: 0.0008454169361 | AC5: 0.0008454169361 | AD5: 0.0008454169361 | AE5: 0.0008454169361 | AF5: =$D$34/10 -> 0.0004492942851 | AG5: 0.0004492942851 | AH5: 0.0004492942851 | AI5: 0.0004492942851 | AJ5: 0.0004492942851 | AK5: 0.0004492942851 | AL5: 0.0004492942851 | AM5: 0.0004492942851 | AN5: 0.0004492942851 | AO5: 0.0004492942851 | AP5: =$D$35/10 -> 0.001090487392 | AQ5: 0.001090487392 | AR5: 0.001090487392 | AS5: 0.001090487392 | AT5: 0.001090487392 | AU5: 0.001090487392 | AV5: 0.001090487392 | AW5: 0.001090487392 | AX5: 0.001090487392 | AY5: 0.001090487392 | AZ5: =$D$36/10 -> 0.001331444131 | BA5: 0.001331444131 | BB5: 0.001331444131 | BC5: 0.001331444131 | BD5: 0.001331444131 | BE5: 0.001331444131 | BF5: 0.001331444131 | BG5: 0.001331444131 | BH5: 0.001331444131 | BI5: 0.001331444131 | BJ5: =$D$37/10 -> 0.001252244201 | BK5: 0.001252244201 | BL5: 0.001252244201 | BM5: 0.001252244201 | BN5: 0.001252244201 | BO5: 0.001252244201 | BP5: 0.001252244201 | BQ5: 0.001252244201 | BR5: 0.001252244201 | BS5: 0.001252244201 | BT5: =$D$38/10 -> 0.001417880552 | BU5: 0.001417880552 | BV5: 0.001417880552 | BW5: 0.001417880552 | BX5: 0.001417880552 | BY5: 0.001417880552 | BZ5: 0.001417880552 | CA5: 0.001417880552 | CB5: 0.001417880552 | CC5: 0.001417880552 | CD5: =$D$39/10 -> 0.000944471913 | CE5: 0.000944471913 | CF5: 0.000944471913 | CG5: 0.000944471913 | CH5: 0.000944471913 | CI5: 0.000944471913 | CJ5: 0.000944471913 | CK5: 0.000944471913 | CL5: 0.000944471913 | CM5: 0.000944471913 | CN5: =$D$40/10 -> 0.001082956349 | CO5: 0.001082956349 | CP5: 0.001082956349 | CQ5: 0.001082956349 | CR5: 0.001082956349 | CS5: 0.001082956349 | CT5: 0.001082956349 | CU5: 0.001082956349 | CV5: 0.001082956349 | CW5: 0.001082956349 | CX5: =$D$41/10 -> 0.002067710651 | CY5: 0.002067710651 | CZ5: 0.002067710651 | DA5: 0.002067710651 | DB5: 0.002067710651 | DC5: 0.002067710651 | DD5: 0.002067710651 | DE5: 0.002067710651 | DF5: 0.002067710651 | DG5: 0.002067710651 | DH5: =$D$42/10 -> 0.002067710651 | DI5: 0.002067710651 | DJ5: 0.002067710651 | DK5: 0.002067710651 | DL5: 0.002067710651 | DM5: 0.002067710651 | DN5: 0.002067710651 | DO5: 0.002067710651 | DP5: 0.002067710651 | DQ5: 0.002067710651
A6: 700 | B6: =$E$31/10 -> 0.002195490652 | C6: 0.002195490652 | D6: 0.002195490652 | E6: 0.002195490652 | F6: 0.002195490652 | G6: 0.002195490652 | H6: 0.002195490652 | I6: 0.002195490652 | J6: 0.002195490652 | K6: 0.002195490652 | L6: =$E$32/10 -> 0.001526942622 | M6: 0.001526942622 | N6: 0.001526942622 | O6: 0.001526942622 | P6: 0.001526942622 | Q6: 0.001526942622 | R6: 0.001526942622 | S6: 0.001526942622 | T6: 0.001526942622 | U6: 0.001526942622 | V6: =$E$33/10 -> 0.004831559326 | W6: 0.004831559326 | X6: 0.004831559326 | Y6: 0.004831559326 | Z6: 0.004831559326 | AA6: 0.004831559326 | AB6: 0.004831559326 | AC6: 0.004831559326 | AD6: 0.004831559326 | AE6: 0.004831559326 | AF6: =$E$34/10 -> 0.001814455407 | AG6: 0.001814455407 | AH6: 0.001814455407 | AI6: 0.001814455407 | AJ6: 0.001814455407 | AK6: 0.001814455407 | AL6: 0.001814455407 | AM6: 0.001814455407 | AN6: 0.001814455407 | AO6: 0.001814455407 | AP6: =$E$35/10 -> 0.002486855924 | AQ6: 0.002486855924 | AR6: 0.002486855924 | AS6: 0.002486855924 | AT6: 0.002486855924 | AU6: 0.002486855924 | AV6: 0.002486855924 | AW6: 0.002486855924 | AX6: 0.002486855924 | AY6: 0.002486855924 | AZ6: =$E$36/10 -> 0.002456280505 | BA6: 0.002456280505 | BB6: 0.002456280505 | BC6: 0.002456280505 | BD6: 0.002456280505 | BE6: 0.002456280505 | BF6: 0.002456280505 | BG6: 0.002456280505 | BH6: 0.002456280505 | BI6: 0.002456280505 | BJ6: =$E$37/10 -> 0.001908158406 | BK6: 0.001908158406 | BL6: 0.001908158406 | BM6: 0.001908158406 | BN6: 0.001908158406 | BO6: 0.001908158406 | BP6: 0.001908158406 | BQ6: 0.001908158406 | BR6: 0.001908158406 | BS6: 0.001908158406 | BT6: =$E$38/10 -> 0.001492225578 | BU6: 0.001492225578 | BV6: 0.001492225578 | BW6: 0.001492225578 | BX6: 0.001492225578 | BY6: 0.001492225578 | BZ6: 0.001492225578 | CA6: 0.001492225578 | CB6: 0.001492225578 | CC6: 0.001492225578 | CD6: =$E$39/10 -> 0.002192314682 | CE6: 0.002192314682 | CF6: 0.002192314682 | CG6: 0.002192314682 | CH6: 0.002192314682 | CI6: 0.002192314682 | CJ6: 0.002192314682 | CK6: 0.002192314682 | CL6: 0.002192314682 | CM6: 0.002192314682 | CN6: =$E$40/10 -> 0.00113704247 | CO6: 0.00113704247 | CP6: 0.00113704247 | CQ6: 0.00113704247 | CR6: 0.00113704247 | CS6: 0.00113704247 | CT6: 0.00113704247 | CU6: 0.00113704247 | CV6: 0.00113704247 | CW6: 0.00113704247 | CX6: =$E$41/10 -> 0.001214893727 | CY6: 0.001214893727 | CZ6: 0.001214893727 | DA6: 0.001214893727 | DB6: 0.001214893727 | DC6: 0.001214893727 | DD6: 0.001214893727 | DE6: 0.001214893727 | DF6: 0.001214893727 | DG6: 0.001214893727 | DH6: =$E$42/10 -> 0.001214893727 | DI6: 0.001214893727 | DJ6: 0.001214893727 | DK6: 0.001214893727 | DL6: 0.001214893727 | DM6: 0.001214893727 | DN6: 0.001214893727 | DO6: 0.001214893727 | DP6: 0.001214893727 | DQ6: 0.001214893727
A7: 800 | B7: =$F$31/10 -> 0.007052032966 | C7: =$F$31/10 -> 0.007052032966 | D7: 0.007052032966 | E7: 0.007052032966 | F7: 0.007052032966 | G7: 0.007052032966 | H7: 0.007052032966 | I7: 0.007052032966 | J7: 0.007052032966 | K7: 0.007052032966 | L7: =$F$32/10 -> 0.001260473269 | M7: =$F$32/10 -> 0.001260473269 | N7: 0.001260473269 | O7: 0.001260473269 | P7: 0.001260473269 | Q7: 0.001260473269 | R7: 0.001260473269 | S7: 0.001260473269 | T7: 0.001260473269 | U7: 0.001260473269 | V7: =$F$33/10 -> 0.002265761667 | W7: =$F$33/10 -> 0.002265761667 | X7: 0.002265761667 | Y7: 0.002265761667 | Z7: 0.002265761667 | AA7: 0.002265761667 | AB7: 0.002265761667 | AC7: 0.002265761667 | AD7: 0.002265761667 | AE7: 0.002265761667 | AF7: =$F$34/10 -> 0.001041478961 | AG7: =$F$34/10 -> 0.001041478961 | AH7: 0.001041478961 | AI7: 0.001041478961 | AJ7: 0.001041478961 | AK7: 0.001041478961 | AL7: 0.001041478961 | AM7: 0.001041478961 | AN7: 0.001041478961 | AO7: 0.001041478961 | AP7: =$F$35/10 -> 0.003081060353 | AQ7: =$F$35/10 -> 0.003081060353 | AR7: 0.003081060353 | AS7: 0.003081060353 | AT7: 0.003081060353 | AU7: 0.003081060353 | AV7: 0.003081060353 | AW7: 0.003081060353 | AX7: 0.003081060353 | AY7: 0.003081060353 | AZ7: =$F$36/10 -> 0.002163540443 | BA7: =$F$36/10 -> 0.002163540443 | BB7: 0.002163540443 | BC7: 0.002163540443 | BD7: 0.002163540443 | BE7: 0.002163540443 | BF7: 0.002163540443 | BG7: 0.002163540443 | BH7: 0.002163540443 | BI7: 0.002163540443 | BJ7: =$F$37/10 -> 0.001723096931 | BK7: =$F$37/10 -> 0.001723096931 | BL7: 0.001723096931 | BM7: 0.001723096931 | BN7: 0.001723096931 | BO7: 0.001723096931 | BP7: 0.001723096931 | BQ7: 0.001723096931 | BR7: 0.001723096931 | BS7: 0.001723096931 | BT7: =$F$38/10 -> 0.001764692399 | BU7: =$F$38/10 -> 0.001764692399 | BV7: 0.001764692399 | BW7: 0.001764692399 | BX7: 0.001764692399 | BY7: 0.001764692399 | BZ7: 0.001764692399 | CA7: 0.001764692399 | CB7: 0.001764692399 | CC7: 0.001764692399 | CD7: =$F$39/10 -> 0.001442802996 | CE7: =$F$39/10 -> 0.001442802996 | CF7: 0.001442802996 | CG7: 0.001442802996 | CH7: 0.001442802996 | CI7: 0.001442802996 | CJ7: 0.001442802996 | CK7: 0.001442802996 | CL7: 0.001442802996 | CM7: 0.001442802996 | CN7: =$F$40/10 -> 0.001265144105 | CO7: =$F$40/10 -> 0.001265144105 | CP7: 0.001265144105 | CQ7: 0.001265144105 | CR7: 0.001265144105 | CS7: 0.001265144105 | CT7: 0.001265144105 | CU7: 0.001265144105 | CV7: 0.001265144105 | CW7: 0.001265144105 | CX7: =$F$41/10 -> 0.001700710344 | CY7: =$F$41/10 -> 0.001700710344 | CZ7: 0.001700710344 | DA7: 0.001700710344 | DB7: 0.001700710344 | DC7: 0.001700710344 | DD7: 0.001700710344 | DE7: 0.001700710344 | DF7: 0.001700710344 | DG7: 0.001700710344 | DH7: =$F$42/10 -> 0.001700710344 | DI7: =$F$42/10 -> 0.001700710344 | DJ7: 0.001700710344 | DK7: 0.001700710344 | DL7: 0.001700710344 | DM7: 0.001700710344 | DN7: 0.001700710344 | DO7: 0.001700710344 | DP7: 0.001700710344 | DQ7: 0.001700710344
A8: 900 | B8: =$G$31/10 -> 0.005645314317 | C8: 0.005645314317 | D8: 0.005645314317 | E8: 0.005645314317 | F8: 0.005645314317 | G8: 0.005645314317 | H8: 0.005645314317 | I8: 0.005645314317 | J8: 0.005645314317 | K8: 0.005645314317 | L8: =$G$32/10 -> 0.00235822121 | M8: 0.00235822121 | N8: 0.00235822121 | O8: 0.00235822121 | P8: 0.00235822121 | Q8: 0.00235822121 | R8: 0.00235822121 | S8: 0.00235822121 | T8: 0.00235822121 | U8: 0.00235822121 | V8: =$G$33/10 -> 0.002185423834 | W8: 0.002185423834 | X8: 0.002185423834 | Y8: 0.002185423834 | Z8: 0.002185423834 | AA8: 0.002185423834 | AB8: 0.002185423834 | AC8: 0.002185423834 | AD8: 0.002185423834 | AE8: 0.002185423834 | AF8: =$G$34/10 -> 0.002153871614 | AG8: 0.002153871614 | AH8: 0.002153871614 | AI8: 0.002153871614 | AJ8: 0.002153871614 | AK8: 0.002153871614 | AL8: 0.002153871614 | AM8: 0.002153871614 | AN8: 0.002153871614 | AO8: 0.002153871614 | AP8: =$G$35/10 -> 0.002307896817 | AQ8: 0.002307896817 | AR8: 0.002307896817 | AS8: 0.002307896817 | AT8: 0.002307896817 | AU8: 0.002307896817 | AV8: 0.002307896817 | AW8: 0.002307896817 | AX8: 0.002307896817 | AY8: 0.002307896817 | AZ8: =$G$36/10 -> 0.002871555708 | BA8: 0.002871555708 | BB8: 0.002871555708 | BC8: 0.002871555708 | BD8: 0.002871555708 | BE8: 0.002871555708 | BF8: 0.002871555708 | BG8: 0.002871555708 | BH8: 0.002871555708 | BI8: 0.002871555708 | BJ8: =$G$37/10 -> 0.002732931209 | BK8: 0.002732931209 | BL8: 0.002732931209 | BM8: 0.002732931209 | BN8: 0.002732931209 | BO8: 0.002732931209 | BP8: 0.002732931209 | BQ8: 0.002732931209 | BR8: 0.002732931209 | BS8: 0.002732931209 | BT8: =$G$38/10 -> 0.002863083805 | BU8: 0.002863083805 | BV8: 0.002863083805 | BW8: 0.002863083805 | BX8: 0.002863083805 | BY8: 0.002863083805 | BZ8: 0.002863083805 | CA8: 0.002863083805 | CB8: 0.002863083805 | CC8: 0.002863083805 | CD8: =$G$39/10 -> 0.002381091472 | CE8: 0.002381091472 | CF8: 0.002381091472 | CG8: 0.002381091472 | CH8: 0.002381091472 | CI8: 0.002381091472 | CJ8: 0.002381091472 | CK8: 0.002381091472 | CL8: 0.002381091472 | CM8: 0.002381091472 | CN8: =$G$40/10 -> 0.003790571225 | CO8: 0.003790571225 | CP8: 0.003790571225 | CQ8: 0.003790571225 | CR8: 0.003790571225 | CS8: 0.003790571225 | CT8: 0.003790571225 | CU8: 0.003790571225 | CV8: 0.003790571225 | CW8: 0.003790571225 | CX8: =$G$41/10 -> 0.004240741385 | CY8: 0.004240741385 | CZ8: 0.004240741385 | DA8: 0.004240741385 | DB8: 0.004240741385 | DC8: 0.004240741385 | DD8: 0.004240741385 | DE8: 0.004240741385 | DF8: 0.004240741385 | DG8: 0.004240741385 | DH8: =$G$42/10 -> 0.004240741385 | DI8: 0.004240741385 | DJ8: 0.004240741385 | DK8: 0.004240741385 | DL8: 0.004240741385 | DM8: 0.004240741385 | DN8: 0.004240741385 | DO8: 0.004240741385 | DP8: 0.004240741385 | DQ8: 0.004240741385
A9: XXXX | B9: =$H$31 -> 0 | C9: 0 | D9: 0 | E9: 0 | F9: 0 | G9: 0 | H9: 0 | I9: 0 | J9: 0 | K9: 0 | L9: =$H$32 -> 0 | M9: 0 | N9: 0 | O9: 0 | P9: 0 | Q9: 0 | R9: 0 | S9: 0 | T9: 0 | U9: 0 | V9: =$H$33 -> 0 | W9: 0 | X9: 0 | Y9: 0 | Z9: 0 | AA9: 0 | AB9: 0 | AC9: 0 | AD9: 0 | AE9: 0 | AF9: =$H$34 -> 0 | AG9: 0 | AH9: 0 | AI9: 0 | AJ9: 0 | AK9: 0 | AL9: 0 | AM9: 0 | AN9: 0 | AO9: 0 | AP9: =$H$35 -> 0 | AQ9: 0 | AR9: 0 | AS9: 0 | AT9: 0 | AU9: 0 | AV9: 0 | AW9: 0 | AX9: 0 | AY9: 0 | AZ9: =$H$36 -> 0 | BA9: 0 | BB9: 0 | BC9: 0 | BD9: 0 | BE9: 0 | BF9: 0 | BG9: 0 | BH9: 0 | BI9: 0 | BJ9: =$H$37 -> 0 | BK9: 0 | BL9: 0 | BM9: 0 | BN9: 0 | BO9: 0 | BP9: 0 | BQ9: 0 | BR9: 0 | BS9: 0 | BT9: =$H$38 -> 0 | BU9: 0 | BV9: 0 | BW9: 0 | BX9: 0 | BY9: 0 | BZ9: 0 | CA9: 0 | CB9: 0 | CC9: 0 | CD9: =$H$39 -> 0 | CE9: 0 | CF9: 0 | CG9: 0 | CH9: 0 | CI9: 0 | CJ9: 0 | CK9: 0 | CL9: 0 | CM9: 0 | CN9: =$H$40 -> 0 | CO9: 0 | CP9: 0 | CQ9: 0 | CR9: 0 | CS9: 0 | CT9: 0 | CU9: 0 | CV9: 0 | CW9: 0 | CX9: =$H$41 -> 0 | CY9: 0 | CZ9: 0 | DA9: 0 | DB9: 0 | DC9: 0 | DD9: 0 | DE9: 0 | DF9: 0 | DG9: 0 | DH9: =$H$42 -> 0 | DI9: 0 | DJ9: 0 | DK9: 0 | DL9: 0 | DM9: 0 | DN9: 0 | DO9: 0 | DP9: 0 | DQ9: 0
A10: YYYY | B10: =$I$31 -> 0 | C10: =$I$31 -> 0 | D10: 0 | E10: 0 | F10: 0 | G10: 0 | H10: 0 | I10: 0 | J10: 0 | K10: 0 | L10: =$I$32 -> 0 | M10: =$I$32 -> 0 | N10: 0 | O10: 0 | P10: 0 | Q10: 0 | R10: 0 | S10: 0 | T10: 0 | U10: 0 | V10: =$I$33 -> 0 | W10: =$I$33 -> 0 | X10: 0 | Y10: 0 | Z10: 0 | AA10: 0 | AB10: 0 | AC10: 0 | AD10: 0 | AE10: 0 | AF10: =$I$34 -> 0 | AG10: =$I$34 -> 0 | AH10: 0 | AI10: 0 | AJ10: 0 | AK10: 0 | AL10: 0 | AM10: 0 | AN10: 0 | AO10: 0 | AP10: =$I$35 -> 0 | AQ10: =$I$35 -> 0 | AR10: 0 | AS10: 0 | AT10: 0 | AU10: 0 | AV10: 0 | AW10: 0 | AX10: 0 | AY10: 0 | AZ10: =$I$36 -> 0 | BA10: =$I$36 -> 0 | BB10: 0 | BC10: 0 | BD10: 0 | BE10: 0 | BF10: 0 | BG10: 0 | BH10: 0 | BI10: 0 | BJ10: =$I$37 -> 0 | BK10: =$I$37 -> 0 | BL10: 0 | BM10: 0 | BN10: 0 | BO10: 0 | BP10: 0 | BQ10: 0 | BR10: 0 | BS10: 0 | BT10: =$I$38 -> 0 | BU10: =$I$38 -> 0 | BV10: 0 | BW10: 0 | BX10: 0 | BY10: 0 | BZ10: 0 | CA10: 0 | CB10: 0 | CC10: 0 | CD10: =$I$39 -> 0 | CE10: =$I$39 -> 0 | CF10: 0 | CG10: 0 | CH10: 0 | CI10: 0 | CJ10: 0 | CK10: 0 | CL10: 0 | CM10: 0 | CN10: =$I$40 -> 0 | CO10: =$I$40 -> 0 | CP10: 0 | CQ10: 0 | CR10: 0 | CS10: 0 | CT10: 0 | CU10: 0 | CV10: 0 | CW10: 0 | CX10: =$I$41 -> 0 | CY10: =$I$41 -> 0 | CZ10: 0 | DA10: 0 | DB10: 0 | DC10: 0 | DD10: 0 | DE10: 0 | DF10: 0 | DG10: =$I$41 -> 0 | DH10: =$I$42 -> 0 | DI10: =$I$42 -> 0 | DJ10: 0 | DK10: 0 | DL10: 0 | DM10: 0 | DN10: 0 | DO10: 0 | DP10: 0 | DQ10: 0
A12: Table 7. Rotation Length: This table shows a range of stand ages for which harvests typically occur. This range is specified by the user and adjusted within each forest type sheet. Values for this analysis were based on the MN DNR Forest Development Manual (1997). (See also D’Amato, 2009 for rotation age assessment.)
A13: FOREST TYPE | B13: ROTATION | C13: EXTENDED | D13: SHORTENED | E13: BIOLOGICAL | F13: USED | G13: ERFMax | H13: Mature Retention
A14: 100 | B14: 75 | C14: 85 | D14: 65 | E14: =MAI_LTSY!AD3 -> 35 | F14: 75 | G14: 119 | H14: 0.1 | J14: Note: | K14: ERFMax and additional rotation-age inputs have been interpreted from the North 4 Subsection Forest Resource Management Plan (SFRMP).
A15: 120 | B15: 75 | C15: 85 | D15: 65 | E15: =MAI_LTSY!AE3 -> 38 | F15: 75 | G15: 119 | H15: 0.1 | K15: http://files.dnr.state.mn.us/forestry/subsection/north4/finalplan/n4chapter4.pdf
A16: 500 | B16: 75 | C16: 85 | D16: 65 | E16: =MAI_LTSY!AF3 -> 82 | F16: 75 | G16: 119 | H16: 0.1 | K16: See Table 4.2 - Treatment Summary
A17: 700 | B17: 75 | C17: 85 | D17: 65 | E17: =MAI_LTSY!AG3 -> 82 | F17: 75 | G17: 119 | H17: 0.1
A18: 800 | B18: 75 | C18: 85 | D18: 65 | E18: =MAI_LTSY!AH3 -> 66 | F18: 75 | G18: 119 | H18: 0.1
A19: 900 | B19: 50 | C19: 60 | D19: 40 | E19: =MAI_LTSY!AI3 -> 51 | F19: 50 | G19: 119 | H19: 0.1
A20: 801 | B20: 80 | C20: 90 | D20: 70 | E20: 80
A21: 805 | B21: 80 | C21: 90 | D21: 70 | E21: 80
A22: 901 | B22: 40 | C22: 50 | D22: 30 | E22: 40
A23: 902 | B23: 60 | C23: 70 | D23: 50 | E23: 60
A24: 904 | B24: 50 | C24: 60 | D24: 40 | E24: 50
A25: 999 | B25: 80 | C25: 90 | D25: 70 | E25: 80
A29: Table 6. Age Factor Inputs: These values are used to move forest type acres from one age class to the next. They can be adjusted to incorporate mortality as necessary. In the Koochiching county example, FIA data has been used to adjust age factor rates to included natural mortality.
A30: AGE CLASS | B30: 100 | C30: 120 | D30: 500 | E30: 700 | F30: 800 | G30: 900 | H30: XXXX | I30: YYYY
A31: 0-10 | B31: 0.01068940929 | C31: 0.0351959106 | D31: 0.02598648034 | E31: 0.02195490652 | F31: 0.07052032966 | G31: 0.05645314317 | H31: 0 | I31: 0
A32: 11-20 | B32: 0.01057760899 | C32: 0.02195227089 | D32: 0.0125838589 | E32: 0.01526942622 | F32: 0.01260473269 | G32: 0.0235822121 | H32: 0 | I32: 0
A33: 21-30 | B33: 0.002336882529 | C33: 0.02190976278 | D33: 0.008454169361 | E33: 0.04831559326 | F33: 0.02265761667 | G33: 0.02185423834 | H33: 0 | I33: 0
A34: 31-40 | B34: 0.005768452861 | C34: 0.007995530389 | D34: 0.004492942851 | E34: 0.01814455407 | F34: 0.01041478961 | G34: 0.02153871614 | H34: 0 | I34: 0
A35: 41-50 | B35: 0.008215609502 | C35: 0.01220985264 | D35: 0.01090487392 | E35: 0.02486855924 | F35: 0.03081060353 | G35: 0.02307896817 | H35: 0 | I35: 0
A36: 51-60 | B36: 0.01065614607 | C36: 0.02005765075 | D36: 0.01331444131 | E36: 0.02456280505 | F36: 0.02163540443 | G36: 0.02871555708 | H36: 0 | I36: 0
A37: 61-70 | B37: 0.01476928827 | C37: 0.01257195012 | D37: 0.01252244201 | E37: 0.01908158406 | F37: 0.01723096931 | G37: 0.02732931209 | H37: 0 | I37: 0
A38: 71-80 | B38: 0.009889827889 | C38: 0.01792290751 | D38: 0.01417880552 | E38: 0.01492225578 | F38: 0.01764692399 | G38: 0.02863083805 | H38: 0 | I38: 0
A39: 81-90 | B39: 0.008604784968 | C39: 0.01585228423 | D39: 0.00944471913 | E39: 0.02192314682 | F39: 0.01442802996 | G39: 0.02381091472 | H39: 0 | I39: 0
A40: 91-100 | B40: 0.003872089841 | C40: 0.007966096764 | D40: 0.01082956349 | E40: 0.0113704247 | F40: 0.01265144105 | G40: 0.03790571225 | H40: 0 | I40: 0
A41: 101-110 | B41: 0.006470205379 | C41: 0.01116256245 | D41: 0.02067710651 | E41: 0.01214893727 | F41: 0.01700710344 | G41: 0.04240741385 | H41: 0 | I41: 0
A42: 111-120 | B42: 0.006470205379 | C42: 0.01116256245 | D42: 0.02067710651 | E42: 0.01214893727 | F42: 0.01700710344 | G42: 0.04240741385 | H42: 0 | I42: 0
A46: Mortality - % | B46: 0 to 10 years | C46: 11 to 20 years | D46: 21 to 30 years | E46: 31 to 40 years | F46: 41 to 50 years | G46: 51 to 60 years | H46: 61 to 70 years | I46: 71 to 80 years | J46: 81 to 90 years | K46: 91 to 100 years | L46: 101 to 110 years | M46: 111 to 120 years
A47: 100 | B47: 0.01068940929 | C47: 0.01057760899 | D47: 0.002336882529 | E47: 0.005768452861 | F47: 0.008215609502 | G47: 0.01065614607 | H47: 0.01476928827 | I47: 0.009889827889 | J47: 0.008604784968 | K47: 0.003872089841 | L47: 0.006470205379 | M47: 0.006470205379
A48: 120 | B48: 0.0351959106 | C48: 0.02195227089 | D48: 0.02190976278 | E48: 0.007995530389 | F48: 0.01220985264 | G48: 0.02005765075 | H48: 0.01257195012 | I48: 0.01792290751 | J48: 0.01585228423 | K48: 0.007966096764 | L48: 0.01116256245 | M48: 0.01116256245
A49: 500 | B49: 0.02598648034 | C49: 0.0125838589 | D49: 0.008454169361 | E49: 0.004492942851 | F49: 0.01090487392 | G49: 0.01331444131 | H49: 0.01252244201 | I49: 0.01417880552 | J49: 0.00944471913 | K49: 0.01082956349 | L49: 0.02067710651 | M49: 0.02067710651
A50: 700 | B50: 0.02195490652 | C50: 0.01526942622 | D50: 0.04831559326 | E50: 0.01814455407 | F50: 0.02486855924 | G50: 0.02456280505 | H50: 0.01908158406 | I50: 0.01492225578 | J50: 0.02192314682 | K50: 0.0113704247 | L50: 0.01214893727 | M50: 0.01214893727
A51: 800 | B51: 0.07052032966 | C51: 0.01260473269 | D51: 0.02265761667 | E51: 0.01041478961 | F51: 0.03081060353 | G51: 0.02163540443 | H51: 0.01723096931 | I51: 0.01764692399 | J51: 0.01442802996 | K51: 0.01265144105 | L51: 0.01700710344 | M51: 0.01700710344
A52: 900 | B52: 0.05645314317 | C52: 0.0235822121 | D52: 0.02185423834 | E52: 0.02153871614 | F52: 0.02307896817 | G52: 0.02871555708 | H52: 0.02732931209 | I52: 0.02863083805 | J52: 0.02381091472 | K52: 0.03790571225 | L52: 0.04240741385 | M52: 0.04240741385

Sheet BIOMASS YIELD
A1: Table 10. Roundwood and Residual Proportions: This section can be used to separate roundwood from woody residue when estimating residual woody biomass. Analysis of FIA data has been performed to develop age-specific yield functions for the forest types of interest. (Domke 2012)
A2: Forest type | B2: Function | C2: Parameter | D2: Estimate | E2: SE | G2: Bolewood | H2: Year 1 Estimate
A3: 100 | B3: MBB = a/(1+e((b-A)/c)) | C3: a | D3: 68.565 | E3: 4.634 | F3: 100 | G3: White / red / jack pine group | H3: =68.565/(1+EXP((24.923-1)/6.873)) -> 2.047746064
C4: b | D4: 24.923 | E4: 1.923 | F4: 120 | G4: Spruce / fir group | H4: =28.9183*EXP(-4.1974*0.9432^1) -> 0.5518312051
C5: c | D5: 6.873 | E5: 1.054 | F5: 500 | G5: Oak / hickory group | H5: =99.892-(91.156*EXP(-EXP(-13.458)*1^(3.19))) -> 8.736130332
A6: 120 | B6: MBB = a*e(-b*c^A) | C6: a | D6: 28.918256 | E6: 1.57873 | F6: 700 | G6: Elm / ash / cottonwood group | H6: =60.6284-(55.3844*EXP(-EXP(-13.611)*1^(3.2246))) -> 5.244067952
C7: b | D7: 4.197357 | E7: 0.722313 | F7: 800 | G7: Maple / beech / birch group | H7: =4.102+((87.927-4.102)/(1+EXP(49.09-1)/14.796)) -> 4.102
C8: c | D8: 0.943219 | E8: 0.008954 | F8: 900 | G8: Aspen / birch group | H8: =3.17+((56.278-13.17)/(1+EXP(37.838-1)/9.876)) -> 3.17
A9: 500 | B9: MBB = a-b*e(-e(c)*A^d) | C9: a | D9: 99.892 | E9: 27.65
C10: b | D10: 91.156 | E10: 28.672
C11: c | D11: -13.458 | E11: 4.395
C12: d | D12: 3.19 | E12: 1.136
A13: 700 | B13: MBB = a-b*e(-e(c)*A^d) | C13: a | D13: 60.6284 | E13: 6.2107
C14: b | D14: 55.3844 | E14: 6.5943
C15: c | D15: -13.611 | E15: 2.1015
C16: d | D16: 3.2246 | E16: 0.5322
A17: 800 | B17: MBB = a + (b-a)/(1+e((c-A)/d)) | C17: a | D17: 4.102 | E17: 4.22
C18: b | D18: 87.927 | E18: 11.103
C19: c | D19: 49.09 | E19: 4.703
C20: d | D20: 14.796 | E20: 4.504
A21: 900 | B21: MBB = a + (b-a)/(1+e((c-A)/d)) | C21: a | D21: 3.17 | E21: 1.027
C22: b | D22: 56.278 | E22: 2.885
C23: c | D23: 37.838 | E23: 1.642
C24: d | D24: 9.876 | E24: 1.277
A26: Forest type | B26: Function | C26: Parameter | D26: Estimate | E26: SE | G26: Tops and Limbs | H26: Year 1 Estimate
A27: 100 | B27: TBB = a/(1+e((b-A)/c)) | C27: a | D27: 13.014 | E27: 0.8081 | F27: 100 | G27: White / red / jack pine group | H27: =13.014/(1+EXP((24.0644-1)/6.6677)) -> 0.3969000462
C28: b | D28: 24.0644 | E28: 1.7641 | F28: 120 | G28: Spruce / fir group | H28: =5.3164*EXP(-5.0405*0.9313^1) -> 0.04863454163
C29: c | D29: 6.6677 | E29: 1.0076 | F29: 500 | G29: Oak / hickory group | H29: =23.925-(21.745*EXP(-EXP(-13.206)*1^(3.2))) -> 2.180040001
A30: 120 | B30: TBB = a*e(-b*c^A) | C30: a | D30: 5.31637 | E30: 0.26806 | F30: 700 | G30: Elm / ash / cottonwood group | H30: =17.2973-(15.4875*EXP(-EXP(-13.9899)*1^(3.3141))) -> 1.809813009
C31: b | D31: 5.04051 | E31: 1.09442 | F31: 800 | G31: Maple / beech / birch group | H31: =24.221/(1+EXP((44.711-1)/17.429)) -> 1.823913315
C32: c | D32: 0.93134 | E32: 0.01182 | F32: 900 | G32: Aspen / birch group | H32: =1.0114+((14.8146-1.0114)/(1+EXP(32.3351-1)/7.8517)) -> 1.0114
A33: 500 | B33: TBB = a-b*e(-e(c)*A^d) | C33: a | D33: 23.925 | E33: 4.841
C34: b | D34: 21.745 | E34: 5.049
C35: c | D35: -13.206 | E35: 4.2
C36: d | D36: 3.2 | E36: 1.089
A37: 700 | B37: TBB = a-b*e(-e(c)*A^d) | C37: a | D37: 17.2973 | E37: 1.7508
C38: b | D38: 15.4875 | E38: 1.8895
C39: c | D39: -13.9899 | E39: 2.4018
C40: d | D40: 3.3141 | E40: 0.6028
A41: 800 | B41: TBB = a/(1+e((b-A)/c)) | C41: a | D41: 24.221 | E41: 2.453
C42: b | D42: 44.711 | E42: 5.31
C43: c | D43: 17.429 | E43: 2.237
A44: 900 | B44: TBB = a + (b-a)/(1+e((c-A)/d)) | C44: a | D44: 1.0114 | E44: 0.2362
C45: b | D45: 14.8146 | E45: 0.5246
C46: c | D46: 32.3351 | E46: 1.129
C47: d | D47: 7.8517 | E47: 0.9242

Sheet MAI_LTSY
B1: Bolewood Yield Curves | I1: Mean Annual Increment | P1: Periodic Annual Increment | W1: Current Annual Increment | AD1: Biological Rotation Age | AP1: Annual Growth Proportion | AX1: Cumulative Growth Proportion
A2: Age | B2: 100 | C2: 120 | D2: 500 | E2: 700 | F2: 800 | G2: 900 | H2: Age | I2: MAI-100 | J2: MAI-120 | K2: MAI-500 | L2: MAI-700 | M2: MAI-800 | N2: MAI-900 | O2: Age | P2: PAI-100 | Q2: PAI-120 | R2: PAI-500 | S2: PAI-700 | T2: PAI-800 | U2: PAI-900 | V2: Age | W2: CAI-100 | X2: CAI-120 | Y2: CAI-500 | Z2: CAI-700 | AA2: CAI-800 | AB2: CAI-900 | AD2: 100 | AE2: 120 | AF2: 500 | AG2: 700 | AH2: 800 | AI2: 900 | AO2: Age | AP2: AGP-100 | AQ2: AGP-120 | AR2: AGP-500 | AS2: AGP-700 | AT2: AGP-800 | AU2: AGP-900 | AW2: Age | AX2: CGP-100 | AY2: CGP-120 | AZ2: CGP-500 | BA2: CGP-700 | BB2: CGP-800 | BC2: CGP-900
A3: 1 | B3: 2.047746064 | C3: 0.5518312051 | D3: 8.736130332 | E3: 5.244067952 | F3: 7.230315656 | G3: 4.414291917 | H3: 1 | O3: 1 | V3: 1 | AD3: 35 | AE3: 38 | AF3: 82 | AG3: 82 | AH3: 66 | AI3: 51 | AO3: 1 | AP3: =W3/B$122 -> 0 | AQ3: 0 | AR3: 0 | AS3: 0 | AT3: 0 | AU3: 0 | AW3: 1 | AX3: =AP3 -> 0 | AY3: 0 | AZ3: 0 | BA3: 0 | BB3: 0 | BC3: 0
A4: 2 | B4: 2.357425383 | C4: 0.690981266 | D4: 8.737189414 | E4: 5.244635191 | F4: 7.440342742 | G4: 4.543453921 | H4: 2 | O4: 2 | V4: 2 | W4: =B4-B3 -> 0.3096793187 | X4: 0.1391500608 | Y4: 0.00105908218 | Z4: 0.0005672382179 | AA4: 0.2100270858 | AB4: 0.1291620041 | AO4: 2 | AP4: 0.004516584597 | AQ4: 0.004829970966 | AR4: 1.062325583e-05 | AS4: 9.37312348e-06 | AT4: 0.00240752741 | AU4: 0.002295598881 | AW4: 2 | AX4: =SUM(AP$3:AP4) -> 0.004516584597 | AY4: =SUM(AQ$3:AQ4) -> 0.004829970966 | AZ4: =SUM(AR$3:AR4) -> 1.062325583e-05 | BA4: =SUM(AS$3:AS4) -> 9.37312348e-06 | BB4: =SUM(AT$3:AT4) -> 0.00240752741 | BC4: =SUM(AU$3:AU4) -> 0.002295598881
A5: 3 | B5: 2.712027856 | C5: 0.8542386187 | D5: 8.740335674 | E5: 5.246348125 | F5: 7.663848122 | G5: 4.685631597 | H5: 3 | O5: 3 | V5: 3 | W5: =B5-B4 -> 0.3546024734 | X5: =C5-C4 -> 0.1632573527 | Y5: =D5-D4 -> 0.003146259958 | Z5: =E5-E4 -> 0.001712934573 | AA5: =F5-F4 -> 0.2235053795 | AB5: =G5-G4 -> 0.1421776759 | AO5: 3 | AP5: =W5/B$122 -> 0.005171776004 | AQ5: =X5/C$122 -> 0.005666747602 | AR5: =Y5/D$122 -> 3.155895272e-05 | AS5: =Z5/E$122 -> 2.830476996e-05 | AT5: =AA5/F$122 -> 0.002562028252 | AU5: =AB5/G$122 -> 0.002526926676 | AW5: 3 | AX5: =SUM(AP$3:AP5) -> 0.009688360601 | AY5: =SUM(AQ$3:AQ5) -> 0.01049671857 | AZ5: =SUM(AR$3:AR5) -> 4.218220855e-05 | BA5: =SUM(AS$3:AS5) -> 3.767789344e-05 | BB5: =SUM(AT$3:AT5) -> 0.004969555662 | BC5: =SUM(AU$3:AU5) -> 0.004822525557
A6: 4 | B6: 3.117457884 | C6: 1.043422303 | D6: 8.746854145 | E6: 5.24993724 | F6: 7.901610994 | G6: 4.842051587 | H6: 4 | I6: =B6/$A6 -> 0.779364471 | J6: 0.2608555757 | K6: 2.186713536 | L6: 1.31248431 | M6: 1.975402748 | N6: 1.210512897 | O6: 4 | P6: =(B9-B3)/($A9-$A3) -> 0.4431145021 | Q6: 0.2048171768 | R6: 0.01075799856 | S6: 0.006000629102 | T6: 0.2464030602 | U6: 0.1660367976 | V6: 4 | W6: 0.4054300283 | X6: 0.189183684 | Y6: 0.00651847169 | Z6: 0.003589115134 | AA6: 0.2377628722 | AB6: 0.1564199904 | AO6: 4 | AP6: 0.005913081405 | AQ6: 0.006566664041 | AR6: 6.538434287e-05 | AS6: 5.930703939e-05 | AT6: 0.002725461003 | AU6: 0.002780055616 | AW6: 4 | AX6: =SUM(AP$3:AP6) -> 0.01560144201 | AY6: =SUM(AQ$3:AQ6) -> 0.01706338261 | AZ6: =SUM(AR$3:AR6) -> 0.0001075665514 | BA6: =SUM(AS$3:AS6) -> 9.698493283e-05 | BB6: =SUM(AT$3:AT6) -> 0.007695016665 | BC6: =SUM(AU$3:AU6) -> 0.007602581173
A7: 5 | B7: 3.580201881 | C7: 1.260103429 | D7: 8.758116263 | E7: 5.256191472 | F7: 8.154443839 | G7: 5.014037824 | H7: 5 | I7: =B7/$A7 -> 0.7160403762 | J7: =C7/$A7 -> 0.2520206859 | K7: =D7/$A7 -> 1.751623253 | L7: =E7/$A7 -> 1.051238294 | M7: =F7/$A7 -> 1.630888768 | N7: =G7/$A7 -> 1.002807565 | O7: 5 | P7: =(B10-B4)/($A10-$A4) -> 0.504700742 | Q7: =(C10-C4)/($A10-$A4) -> 0.2325394641 | R7: =(D10-D4)/($A10-$A4) -> 0.01630313318 | S7: =(E10-E4)/($A10-$A4) -> 0.009139847573 | T7: =(F10-F4)/($A10-$A4) -> 0.2619393807 | U7: =(G10-G4)/($A10-$A4) -> 0.1824518036 | V7: 5 | W7: 0.462743997 | X7: 0.2166811266 | Y7: 0.01126211758 | Z7: 0.006254231324 | AA7: 0.2528328449 | AB7: 0.171986237 | AO7: 5 | AP7: 0.006748989303 | AQ7: 0.007521114574 | AR7: 0.0001129660744 | AS7: 0.0001033457913 | AT7: 0.002898207162 | AU7: 0.003056714828 | AW7: 5 | AX7: =SUM(AP$3:AP7) -> 0.02235043131 | AY7: =SUM(AQ$3:AQ7) -> 0.02458449718 | AZ7: =SUM(AR$3:AR7) -> 0.0002205326258 | BA7: =SUM(AS$3:AS7) -> 0.0002003307241 | BB7: =SUM(AT$3:AT7) -> 0.01059322383 | BC7: =SUM(AU$3:AU7) -> 0.010659296
A8: 6 | B8: 4.10732321 | C8: 1.505558844 | D8: 8.775560189 | E8: 5.265945512 | F8: 8.423192173 | G8: 5.203015247 | H8: 6 | I8: 0.6845538683 | J8: 0.250926474 | K8: 1.462593365 | L8: 0.8776575854 | M8: 1.403865362 | N8: 0.8671692079 | O8: 6 | P8: 0.5735617356 | Q8: 0.2613312479 | R8: 0.0232982682 | S8: 0.01312272013 | T8: 0.278336521 | U8: 0.2003467372 | V8: 6 | W8: 0.5271213288 | X8: 0.2454554148 | Y8: 0.01744392577 | Z8: 0.009754040814 | AA8: 0.2687483347 | AB8: 0.1889774232 | AO8: 6 | AP8: 0.007687914337 | AQ8: 0.008519885077 | AR8: 0.000174973472 | AS8: 0.0001611771318 | AT8: 0.003080645431 | AU8: 0.00335869952 | AW8: 6 | AX8: =SUM(AP$3:AP8) -> 0.03003834565 | AY8: =SUM(AQ$3:AQ8) -> 0.03310438226 | AZ8: =SUM(AR$3:AR8) -> 0.0003955060977 | BA8: =SUM(AS$3:AS8) -> 0.0003615078559 | BB8: =SUM(AT$3:AT8) -> 0.01367386926 | BC8: =SUM(AU$3:AU8) -> 0.01401799552
A9: 7 | B9: 4.706433077 | C9: 1.780734266 | D9: 8.800678323 | E9: 5.280071727 | F9: 8.708734018 | G9: 5.410512702 | H9: 7 | I9: 0.6723475824 | J9: 0.2543906094 | K9: 1.25723976 | L9: 0.754295961 | M9: 1.24410486 | N9: 0.772930386 | O9: 7 | P9: 0.6501670169 | Q9: 0.2908626032 | R9: 0.03179707457 | S9: 0.01798657162 | T9: 0.2956260766 | U9: 0.2198247171 | V9: 7 | W9: 0.5991098666 | X9: 0.275175422 | Y9: 0.0251181342 | Z9: 0.01412621455 | AA9: 0.2855418442 | AB9: 0.2074974546 | AO9: 7 | AP9: 0.008737846642 | AQ9: 0.009551481982 | AR9: 0.0002519505763 | AS9: 0.0002334235408 | AT9: 0.003273148385 | AU9: 0.003687856407 | AW9: 7 | AX9: =SUM(AP$3:AP9) -> 0.03877619229 | AY9: =SUM(AQ$3:AQ9) -> 0.04265586424 | AZ9: =SUM(AR$3:AR9) -> 0.0006474566741 | BA9: =SUM(AS$3:AS9) -> 0.0005949313966 | BB9: =SUM(AT$3:AT9) -> 0.01694701764 | BC9: =SUM(AU$3:AU9) -> 0.01770585193
A10: 8 | B10: 5.385629834 | C10: 2.08621805 | D10: 8.835008213 | E10: 5.299474276 | F10: 9.011979026 | G10: 5.638164742 | H10: 8 | I10: 0.6732037293 | J10: 0.2607772563 | K10: 1.104376027 | L10: 0.6624342845 | M10: 1.126497378 | N10: 0.7047705928 | O10: 8 | P10: 0.7348940723 | Q10: 0.3207832854 | R10: 0.04184315197 | S10: 0.0237622466 | T10: 0.3138385274 | U10: 0.2409894974 | V10: 8 | W10: 0.6791967579 | X10: 0.3054837843 | Y10: 0.0343298899 | Z10: 0.01940254905 | AA10: 0.3032450088 | AB10: 0.2276520403 | AO10: 8 | AP10: 0.009905891126 | AQ10: 0.010603501 | AR10: 0.0003443502402 | AS10: 0.0003206104284 | AT10: 0.003476078659 | AU10: 0.004046064261 | AW10: 8 | AX10: =SUM(AP$3:AP10) -> 0.04868208341 | AY10: =SUM(AQ$3:AQ10) -> 0.05325936524 | AZ10: =SUM(AR$3:AR10) -> 0.0009918069142 | BA10: =SUM(AS$3:AS10) -> 0.000915541825 | BB10: =SUM(AT$3:AT10) -> 0.0204230963 | BC10: =SUM(AU$3:AU10) -> 0.02175191619
A11: 9 | B11: 6.153398269 | C11: 2.422226106 | D11: 8.880125283 | E11: 5.325084446 | F11: 9.333867247 | G11: 5.88771202 | H11: 9 | I11: 0.6837109188 | J11: 0.269136234 | K11: 0.986680587 | L11: 0.5916760496 | M11: 1.037096361 | N11: 0.6541902245 | O11: 9 | P11: 0.8279838959 | Q11: 0.3507331445 | R11: 0.05347241437 | S11: 0.03047566558 | T11: 0.3330028343 | U11: 0.2639438049 | V11: 9 | W11: 0.7677684348 | X11: 0.3360080556 | Y11: 0.04511707007 | Z11: 0.02561016989 | AA11: 0.321888221 | AB11: 0.2495472779 | AO11: 9 | AP11: 0.01119768379 | AQ11: 0.01166301432 | AR11: 0.0004525523956 | AS11: 0.0004231860216 | AT11: 0.00368978464 | AU11: 0.004435208757 | AW11: 9 | AX11: =SUM(AP$3:AP11) -> 0.0598797672 | AY11: =SUM(AQ$3:AQ11) -> 0.06492237956 | AZ11: =SUM(AR$3:AR11) -> 0.00144435931 | BA11: =SUM(AS$3:AS11) -> 0.001338727847 | BB11: =SUM(AT$3:AT11) -> 0.02411288094 | BC11: =SUM(AU$3:AU11) -> 0.02618712495
A12: 10 | B12: 7.018459986 | C12: 2.788597922 | D12: 8.937636593 | E12: 5.35785667 | F12: 9.675367453 | G12: 6.16099989 | H12: 10 | I12: 0.7018459986 | J12: 0.2788597922 | K12: 0.8937636593 | L12: 0.535785667 | M12: 0.9675367453 | N12: 0.616099989 | O12: 10 | P12: 0.9294890784 | Q12: 0.3803523393 | R12: 0.06671429947 | S12: 0.03814863055 | T12: 0.3531459885 | U12: 0.2887872828 | V12: 10 | W12: 0.8650617163 | X12: 0.3663718157 | Y12: 0.05751130992 | Z12: 0.03277222409 | AA12: 0.341500206 | AB12: 0.2732878694 | AO12: 10 | AP12: 0.01261667857 | AQ12: 0.01271695623 | AR12: 0.0005768743634 | AS12: 0.0005415328048 | AT12: 0.003914595603 | AU12: 0.004857150764 | AW12: 10 | AX12: =SUM(AP$3:AP12) -> 0.07249644577 | AY12: =SUM(AQ$3:AQ12) -> 0.07763933579 | AZ12: =SUM(AR$3:AR12) -> 0.002021233673 | BA12: =SUM(AS$3:AS12) -> 0.001880260651 | BB12: =SUM(AT$3:AT12) -> 0.02802747655 | BC12: =SUM(AU$3:AU12) -> 0.03104427571
A13: 11 | B13: 7.989566315 | C13: 3.184803142 | D13: 9.009175175 | E13: 5.398764951 | F13: 10.037475 | G13: 6.459974809 | H13: 11 | I13: 0.7263242105 | J13: 0.2895275583 | K13: 0.819015925 | L13: 0.4907968138 | M13: 0.9124977276 | N13: 0.5872704372 | O13: 11 | P13: 1.039215801 | Q13: 0.4092909107 | R13: 0.0815924122 | S13: 0.04679926554 | T13: 0.3742925123 | U13: 0.3156139998 | V13: 11 | W13: 0.9711063295 | X13: 0.3962052199 | Y13: 0.07153858197 | Z13: 0.04090828124 | AA13: 0.3621075499 | AB13: 0.2989749193 | AO13: 11 | AP13: 0.01416330903 | AQ13: 0.0137524892 | AR13: 0.0007175766644 | AS13: 0.0006759741486 | AT13: 0.004150816303 | AU13: 0.005313687215 | AW13: 11 | AX13: =SUM(AP$3:AP13) -> 0.0866597548 | AY13: =SUM(AQ$3:AQ13) -> 0.09139182498 | AZ13: =SUM(AR$3:AR13) -> 0.002738810338 | BA13: =SUM(AS$3:AS13) -> 0.0025562348 | BB13: =SUM(AT$3:AT13) -> 0.03217829285 | BC13: =SUM(AU$3:AU13) -> 0.03635796292
A14: 12 | B14: 9.075226585 | C14: 3.609957711 | D14: 9.096394675 | E14: 5.448799506 | F14: 10.42120918 | G14: 6.786678077 | H14: 12 | I14: 0.7562688821 | J14: 0.3008298093 | K14: 0.7580328896 | L14: 0.4540666255 | M14: 0.8684340983 | N14: 0.5655565064 | O14: 12 | P14: 1.156662422 | Q14: 0.4372173589 | R14: 0.09812485109 | S14: 0.0564422506 | T14: 0.3964639093 | U14: 0.3445094851 | V14: 12 | W14: 1.08566027 | X14: 0.4251545696 | Y14: 0.08721950015 | Z14: 0.05003455467 | AA14: 0.3837341758 | AB14: 0.3267032682 | AO14: 12 | AP14: 0.0158340456 | AQ14: 0.01475733618 | AR14: 0.000874866069 | AS14: 0.0008267779645 | AT14: 0.004398720969 | AU14: 0.005806503715 | AW14: 12 | AX14: =SUM(AP$3:AP14) -> 0.1024938004 | AY14: =SUM(AQ$3:AQ14) -> 0.1061491612 | AZ14: =SUM(AR$3:AR14) -> 0.003613676407 | BA14: =SUM(AS$3:AS14) -> 0.003383012765 | BB14: =SUM(AT$3:AT14) -> 0.03657701382 | BC14: =SUM(AU$3:AU14) -> 0.04216446664
A15: 13 | B15: 10.28336755 | C15: 4.062848302 | D15: 9.20096412 | E15: 5.50896351 | F15: 10.82760995 | G15: 7.143236399 | H15: 13 | I15: 0.7910282728 | J15: 0.3125267925 | K15: 0.7077664708 | L15: 0.4237664239 | M15: 0.8328930729 | N15: 0.549479723 | O15: 13 | P15: 1.280958952 | Q15: 0.463825963 | R15: 0.1163243399 | S15: 0.06708892766 | T15: 0.4196780645 | U15: 0.3755472603 | V15: 13 | W15: 1.208140962 | X15: 0.4528905907 | Y15: 0.1045694448 | Z15: 0.06016400439 | AA15: 0.4064007693 | AB15: 0.3565583217 | AO15: 13 | AP15: 0.01762039158 | AQ15: 0.01572006789 | AR15: 0.001048896852 | AS15: 0.0009941584055 | AT15: 0.00465854672 | AU15: 0.006337118178 | AW15: 13 | AX15: =SUM(AP$3:AP15) -> 0.120114192 | AY15: =SUM(AQ$3:AQ15) -> 0.1218692291 | AZ15: =SUM(AR$3:AR15) -> 0.004662573258 | BA15: =SUM(AS$3:AS15) -> 0.00437717117 | BB15: =SUM(AT$3:AT15) -> 0.04123556054 | BC15: =SUM(AU$3:AU15) -> 0.04850158482
A16: 14 | B16: 11.62092464 | C16: 4.541963514 | D16: 9.324562686 | E16: 5.580269869 | F16: 11.2577341 | G16: 7.531848741 | H16: 14 | I16: 0.8300660456 | J16: 0.3244259653 | K16: 0.6660401919 | L16: 0.398590705 | M16: 0.8041238643 | N16: 0.5379891958 | O16: 14 | P16: 1.410813428 | Q16: 0.4888426781 | R16: 0.1361982323 | S16: 0.07874732186 | T16: 0.4439485947 | U16: 0.4087848533 | V16: 14 | W16: 1.337557092 | X16: 0.4791152126 | Y16: 0.1235985663 | Z16: 0.07130635899 | AA16: 0.4301241518 | AB16: 0.3886123422 | AO16: 14 | AP16: 0.01950788895 | AQ16: 0.01663033816 | AR16: 0.001239770827 | AS16: 0.001178276228 | AT16: 0.004930486376 | AU16: 0.006906814924 | AW16: 14 | AX16: =SUM(AP$3:AP16) -> 0.1396220809 | AY16: =SUM(AQ$3:AQ16) -> 0.1384995672 | AZ16: =SUM(AR$3:AR16) -> 0.005902344085 | BA16: =SUM(AS$3:AS16) -> 0.005555447398 | BB16: =SUM(AT$3:AT16) -> 0.04616604691 | BC16: =SUM(AU$3:AU16) -> 0.05540839974
A17: 15 | B17: 13.0933728 | C17: 5.045530259 | D17: 9.46887439 | E17: 5.66373795 | F17: 11.7126507 | G17: 7.954768931 | H17: 15 | I17: 0.8728915202 | J17: 0.336368684 | K17: 0.6312582926 | L17: 0.37758253 | M17: 0.7808433802 | N17: 0.5303179287 | O17: 15 | P17: 1.544472835 | Q17: 0.5120295359 | R17: 0.1577484302 | S17: 0.09142210473 | T17: 0.4692841517 | U17: 0.4442593005 | V17: 15 | W17: 1.472448164 | X17: 0.5035667449 | Y17: 0.1443117034 | Z17: 0.08346808023 | AA17: 0.4549166032 | AB17: 0.42292019 | AO17: 15 | AP17: 0.02147523679 | AQ17: 0.01747906356 | AR17: 0.001447536531 | AS17: 0.001379238207 | AT17: 0.005214680704 | AU17: 0.007516568989 | AW17: 15 | AX17: =SUM(AP$3:AP17) -> 0.1610973177 | AY17: =SUM(AQ$3:AQ17) -> 0.1559786308 | AZ17: =SUM(AR$3:AR17) -> 0.007349880616 | BA17: =SUM(AS$3:AS17) -> 0.006934685605 | BB17: =SUM(AT$3:AT17) -> 0.05138072762 | BC17: =SUM(AU$3:AU17) -> 0.06292496873
A18: 16 | B18: 14.7042137 | C18: 5.5715537 | D18: 9.635582633 | E18: 5.760390236 | F18: 12.19343584 | G18: 8.414283452 | H18: 16 | I18: 0.9190133563 | J18: 0.3482221062 | K18: 0.6022239145 | L18: 0.3600243898 | M18: 0.76208974 | N18: 0.5258927157 | O18: 16 | P18: 1.679707346 | Q18: 0.5331875552 | R18: 0.1809712434 | S18: 0.1051145167 | T18: 0.4956876823 | U18: 0.4819821716 | V18: 16 | W18: 1.610840897 | X18: 0.5260234405 | Y18: 0.166708243 | Z18: 0.09665228647 | AA18: 0.4807851371 | AB18: 0.4595145207 | AO18: 16 | AP18: 0.02349365536 | AQ18: 0.01825854714 | AR18: 0.001672187813 | AS18: 0.001597095871 | AT18: 0.005511210098 | AU18: 0.00816696076 | AW18: 16 | AX18: =SUM(AP$3:AP18) -> 0.1845909731 | AY18: =SUM(AQ$3:AQ18) -> 0.1742371779 | AZ18: =SUM(AR$3:AR18) -> 0.009022068429 | BA18: =SUM(AS$3:AS18) -> 0.008531781476 | BB18: =SUM(AT$3:AT18) -> 0.05689193772 | BC18: =SUM(AU$3:AU18) -> 0.07109192949
A19: 17 | B19: 16.45444688 | C19: 6.11785921 | D19: 9.826364569 | E19: 5.871248882 | F19: 12.70116657 | G19: 8.912683929 | H19: 17 | I19: 0.9679086401 | J19: 0.3598740712 | K19: 0.5780214452 | L19: 0.3453675813 | M19: 0.7471274454 | N19: 0.5242755252 | O19: 17 | P19: 1.813826829 | Q19: 0.5521582358 | R19: 0.2058572089 | S19: 0.1198222607 | T19: 0.5231556481 | U19: 0.5219341848 | V19: 17 | W19: 1.750233182 | X19: 0.5463055104 | Y19: 0.1907819362 | Z19: 0.1108586464 | AA19: 0.5077307308 | AB19: 0.4984004769 | AO19: 17 | AP19: 0.0255266521 | AQ19: 0.01896254833 | AR19: 0.001913661994 | AS19: 0.001831843746 | AT19: 0.005820085761 | AU19: 0.008858081636 | AW19: 17 | AX19: =SUM(AP$3:AP19) -> 0.2101176252 | AY19: =SUM(AQ$3:AQ19) -> 0.1931997262 | AZ19: =SUM(AR$3:AR19) -> 0.01093573042 | BA19: =SUM(AS$3:AS19) -> 0.01036362522 | BB19: =SUM(AT$3:AT19) -> 0.06271202348 | BC19: =SUM(AU$3:AU19) -> 0.07995001113
A20: 18 | B20: 18.34206359 | C20: 6.682134926 | D20: 10.04288526 | E20: 5.997332134 | F20: 13.23691409 | G20: 9.45223388 | H20: 18 | I20: 1.019003533 | J20: 0.3712297181 | K20: 0.5579380698 | L20: 0.3331851186 | M20: 0.7353841161 | N20: 0.5251241044 | O20: 18 | P20: 1.94373736 | Q20: 0.5688237594 | R20: 0.2323908829 | S20: 0.1355393765 | T20: 0.5516772162 | U20: 0.5640595261 | V20: 18 | W20: 1.887616712 | X20: 0.5642757161 | Y20: 0.2165206874 | Z20: 0.1260832519 | AA20: 0.5357475183 | AB20: 0.5395499515 | AO20: 18 | AP20: 0.02753035172 | AQ20: 0.01958630351 | AR20: 0.002171837746 | AS20: 0.002083417251 | AT20: 0.006141240452 | AU20: 0.00958943207 | AW20: 18 | AX20: =SUM(AP$3:AP20) -> 0.2376479769 | AY20: =SUM(AQ$3:AQ20) -> 0.2127860297 | AZ20: =SUM(AR$3:AR20) -> 0.01310756817 | BA20: =SUM(AS$3:AS20) -> 0.01244704247 | BB20: =SUM(AT$3:AT20) -> 0.06885326393 | BC20: =SUM(AU$3:AU20) -> 0.0895394432
A21: 19 | B21: 20.36161163 | C21: 7.261973633 | D21: 10.28679158 | E21: 6.13965061 | F21: 13.80173604 | G21: 10.03512943 | H21: 19 | I21: 1.07166377 | J21: 0.3822091386 | K21: 0.5414100832 | L21: 0.3231395058 | M21: 0.7264071601 | N21: 0.5281647068 | O21: 19 | P21: 2.066042541 | Q21: 0.5831060596 | R21: 0.2605506184 | S21: 0.1522561018 | T21: 0.5812334263 | U21: 0.6082600353 | V21: 19 | W21: 2.019548032 | X21: 0.5798387068 | Y21: 0.2439063242 | Z21: 0.1423184759 | AA21: 0.5648219523 | AB21: 0.5828955483 | AO21: 19 | AP21: 0.02945453242 | AQ21: 0.02012650301 | AR21: 0.00244653279 | AS21: 0.002351690359 | AT21: 0.006474518879 | AU21: 0.01035981423 | AW21: 19 | AX21: =SUM(AP$3:AP21) -> 0.2671025093 | AY21: =SUM(AQ$3:AQ21) -> 0.2329125328 | AZ21: =SUM(AR$3:AR21) -> 0.01555410096 | BA21: =SUM(AS$3:AS21) -> 0.01479873283 | BB21: =SUM(AT$3:AT21) -> 0.07532778281 | BC21: =SUM(AU$3:AU21) -> 0.09989925743
A22: 20 | B22: 22.50388562 | C22: 7.854912929 | D22: 10.55970594 | E22: 6.299203433 | F22: 14.39666799 | G22: 10.66345385 | H22: 20 | I22: 1.125194281 | J22: 0.3927456465 | K22: 0.527985297 | L22: 0.3149601717 | M22: 0.7198333994 | N22: 0.5331726925 | O22: 20 | P22: 2.1771897 | Q22: 0.594964943 | R22: 0.2903083342 | S22: 0.1699587261 | T22: 0.6117963487 | U22: 0.6543894785 | V22: 20 | W22: 2.14227399 | X22: 0.5929392963 | Y22: 0.272914359 | Z22: 0.1595528232 | AA22: 0.5949319467 | AB22: 0.6283244213 | AO22: 20 | AP22: 0.03124445554 | AQ22: 0.02058123129 | AR22: 0.002737501499 | AS22: 0.002636473118 | AT22: 0.006819667871 | AU22: 0.0111672225 | AW22: 20 | AX22: =SUM(AP$3:AP22) -> 0.2983469649 | AY22: =SUM(AQ$3:AQ22) -> 0.253493764 | AZ22: =SUM(AR$3:AR22) -> 0.01829160246 | BA22: =SUM(AS$3:AS22) -> 0.01743520595 | BB22: =SUM(AT$3:AT22) -> 0.08214745068 | BC22: =SUM(AU$3:AU22) -> 0.1110664799
A23: 21 | B23: 24.75579696 | C23: 8.458472816 | D23: 10.86321969 | E23: 6.476974209 | F23: 15.022714 | G23: 11.33912609 | H23: 21 | I23: 1.178847474 | J23: 0.4027844198 | K23: 0.5172961756 | L23: 0.3084273433 | M23: 0.7153673334 | N23: 0.5399583851 | O23: 21 | P23: 2.2736549 | Q23: 0.6043954536 | R23: 0.3216292865 | S23: 0.1886294428 | T23: 0.6433282464 | U23: 0.702248185 | V23: 21 | W23: 2.251911345 | X23: 0.6035598864 | Y23: 0.3035137479 | Z23: 0.1777707754 | AA23: 0.6260460118 | AB23: 0.6756722378 | AO23: 21 | AP23: 0.03284348512 | AQ23: 0.02094987749 | AR23: 0.003044432484 | AS23: 0.002937509103 | AT23: 0.007176326461 | AU23: 0.01200873619 | AW23: 21 | AX23: =SUM(AP$3:AP23) -> 0.33119045 | AY23: =SUM(AQ$3:AQ23) -> 0.2744436415 | AZ23: =SUM(AR$3:AR23) -> 0.02133603494 | BA23: =SUM(AS$3:AS23) -> 0.02037271505 | BB23: =SUM(AT$3:AT23) -> 0.08932377714 | BC23: =SUM(AU$3:AU23) -> 0.1230752161
A24: 22 | B24: 27.10046895 | C24: 9.070190057 | D24: 11.19888634 | E24: 6.673926847 | F24: 15.6808364 | G24: 12.06384366 | H24: 22 | I24: 1.231839498 | J24: 0.4122813662 | K24: 0.5090402883 | L24: 0.3033603112 | M24: 0.7127652908 | N24: 0.5483565302 | O24: 22 | P24: 2.352154039 | Q24: 0.6114246699 | R24: 0.3544718461 | S24: 0.2082462029 | T24: 0.6757807584 | U24: 0.7515783877 | V24: 22 | W24: 2.344671986 | X24: 0.6117172414 | Y24: 0.3356666557 | Z24: 0.1969526382 | AA24: 0.6581223977 | AB24: 0.7247175762 | AO24: 22 | AP24: 0.03419637263 | AQ24: 0.02123302353 | AR24: 0.003366946234 | AS24: 0.003254472881 | AT24: 0.007544016077 | AU24: 0.01288041997 | AW24: 22 | AX24: =SUM(AP$3:AP24) -> 0.3653868226 | AY24: =SUM(AQ$3:AQ24) -> 0.2956766651 | AZ24: =SUM(AR$3:AR24) -> 0.02470298118 | BA24: =SUM(AS$3:AS24) -> 0.02362718794 | BB24: =SUM(AT$3:AT24) -> 0.09686779322 | BC24: =SUM(AU$3:AU24) -> 0.1359556361
A25: 23 | B25: 29.51758508 | C25: 9.687648868 | D25: 11.56821457 | E25: 6.891001239 | F25: 16.37194466 | G25: 12.8390208 | H25: 23 | I25: 1.283373264 | J25: 0.4212021247 | K25: 0.5029658511 | L25: 0.2996087495 | M25: 0.711823681 | N25: 0.5582182956 | O25: 23 | P25: 2.40986128 | Q25: 0.6161081149 | R25: 0.3887872911 | S25: 0.2287825754 | T25: 0.709094124 | U25: 0.8020606527 | V25: 23 | W25: 2.417116136 | X25: 0.6174588109 | Y25: 0.3693282313 | Z25: 0.2170743921 | AA25: 0.6911082654 | AB25: 0.7751771357 | AO25: 23 | AP25: 0.03525294991 | AQ25: 0.02143231639 | AR25: 0.003704592864 | AS25: 0.003586967552 | AT25: 0.007922131024 | AU25: 0.01377723872 | AW25: 23 | AX25: =SUM(AP$3:AP25) -> 0.4006397725 | AY25: =SUM(AQ$3:AQ25) -> 0.3171089814 | AZ25: =SUM(AR$3:AR25) -> 0.02840757404 | BA25: =SUM(AS$3:AS25) -> 0.02721415549 | BB25: =SUM(AT$3:AT25) -> 0.1047899242 | BC25: =SUM(AU$3:AU25) -> 0.1497328748
A26: 24 | B26: 31.98399299 | C26: 10.30850765 | D26: 11.97266097 | E26: 7.129108791 | F26: 17.09688357 | G26: 13.66572299 | H26: 24 | I26: 1.332666375 | J26: 0.429521152 | K26: 0.498860874 | L26: 0.2970461996 | M26: 0.7123701487 | N26: 0.5694051246 | O26: 24 | P26: 2.444612126 | Q26: 0.618525944 | R26: 0.4245196173 | S26: 0.2502076164 | T26: 0.7431964709 | U26: 0.8533118248 | V26: 24 | W26: 2.466407911 | X26: 0.6208587798 | Y26: 0.4044464007 | Z26: 0.2381075519 | AA26: 0.7249389045 | AB26: 0.8267021906 | AO26: 24 | AP26: 0.0359718564 | AQ26: 0.02155033108 | AR26: 0.004056850041 | AS26: 0.003934522419 | AT26: 0.008309929535 | AU26: 0.01469299455 | AW26: 24 | AX26: =SUM(AP$3:AP26) -> 0.4366116289 | AY26: =SUM(AQ$3:AQ26) -> 0.3386593125 | AZ26: =SUM(AR$3:AR26) -> 0.03246442408 | BA26: =SUM(AS$3:AS26) -> 0.03114867791 | BB26: =SUM(AT$3:AT26) -> 0.1130998538 | BC26: =SUM(AU$3:AU26) -> 0.1644258694
A27: 25 | B27: 34.47453586 | C27: 10.93052165 | D27: 12.41362266 | E27: 7.389127828 | F27: 17.85642059 | G27: 14.54459975 | H27: 25 | I27: 1.378981434 | J27: 0.4372208661 | K27: 0.4965449063 | L27: 0.2955651131 | M27: 0.7142568237 | N27: 0.5817839902 | O27: 25 | P27: 2.455067704 | Q27: 0.6187790524 | R27: 0.4616053749 | S27: 0.2724857525 | T27: 0.7780031901 | U27: 0.9048849275 | V27: 25 | W27: 2.490542862 | X27: 0.6220140043 | Y27: 0.4409616821 | Z27: 0.2600190369 | AA27: 0.7595370242 | AB27: 0.8788767644 | AO27: 25 | AP27: 0.03632385778 | AQ27: 0.02159042952 | AR27: 0.004423121122 | AS27: 0.004296590856 | AT27: 0.008706525627 | AU27: 0.0156202943 | AW27: 25 | AX27: =SUM(AP$3:AP27) -> 0.4729354867 | AY27: =SUM(AQ$3:AQ27) -> 0.360249742 | AZ27: =SUM(AR$3:AR27) -> 0.0368875452 | BA27: =SUM(AS$3:AS27) -> 0.03544526876 | BB27: =SUM(AT$3:AT27) -> 0.1218063794 | BC27: =SUM(AU$3:AU27) -> 0.1800461637
A28: 26 | B28: 36.9630533 | C28: 11.55156162 | D28: 12.89242969 | E28: 7.671898886 | F28: 18.65123273 | G28: 15.47581777 | H28: 26 | I28: 1.421655896 | J28: 0.4442908315 | K28: 0.4958626802 | L28: 0.2950730341 | M28: 0.7173551051 | N28: 0.5952237602 | O28: 26 | P28: 2.44081999 | Q28: 0.6169852262 | R28: 0.4999735342 | S28: 0.2955766803 | T28: 0.8134164268 | U28: 0.9562714407 | V28: 26 | W28: 2.488517439 | X28: 0.6210399666 | Y28: 0.4788070287 | Z28: 0.282771058 | AA28: 0.7948121407 | AB28: 0.9312180113 | AO28: 26 | AP28: 0.03629431756 | AQ28: 0.02155662016 | AR28: 0.004802733589 | AS28: 0.004672548428 | AT28: 0.009110882091 | AU28: 0.01655055633 | AW28: 26 | AX28: =SUM(AP$3:AP28) -> 0.5092298043 | AY28: =SUM(AQ$3:AQ28) -> 0.3818063622 | AZ28: =SUM(AR$3:AR28) -> 0.04169027879 | BA28: =SUM(AS$3:AS28) -> 0.04011781719 | BB28: =SUM(AT$3:AT28) -> 0.1309172615 | BC28: =SUM(AU$3:AU28) -> 0.19659672
A29: 27 | B29: 39.42346972 | C29: 12.16962848 | D29: 13.41033739 | E29: 7.978219907 | F29: 19.48189283 | G29: 16.45899704 | H29: 27 | I29: 1.460128508 | J29: 0.4507269807 | K29: 0.4966791626 | L29: 0.2954896262 | M29: 0.7215515861 | N29: 0.6095924828 | O29: 27 | P29: 2.402424402 | Q29: 0.6132754344 | R29: 0.5395453871 | S29: 0.3194352862 | T29: 0.8493247135 | U29: 1.006906323 | V29: 27 | W29: 2.46041642 | X29: 0.6180668608 | Y29: 0.5179077052 | Z29: 0.3063210213 | AA29: 0.8306600928 | AB29: 0.9831792705 | AO29: 27 | AP29: 0.03588447221 | AQ29: 0.02145342211 | AR29: 0.005194937799 | AS29: 0.005061691308 | AT29: 0.009521804935 | AU29: 0.01747406482 | AW29: 27 | AX29: =SUM(AP$3:AP29) -> 0.5451142765 | AY29: =SUM(AQ$3:AQ29) -> 0.4032597843 | AZ29: =SUM(AR$3:AR29) -> 0.04688521659 | BA29: =SUM(AS$3:AS29) -> 0.0451795085 | BB29: =SUM(AT$3:AT29) -> 0.1404390664 | BC29: =SUM(AU$3:AU29) -> 0.2140707848
A30: 28 | B30: 41.83087517 | C30: 12.78286437 | D30: 13.96851859 | E30: 8.308841362 | F30: 20.34885554 | G30: 17.49315323 | H30: 28 | I30: 1.493959828 | J30: 0.4565308704 | K30: 0.498875664 | L30: 0.2967443344 | M30: 0.7267448407 | N30: 0.6247554725 | O30: 28 | P30: 2.341355491 | Q30: 0.6077903393 | R30: 0.5802344883 | S30: 0.3440115886 | T30: 0.8856027751 | U30: 1.056176047 | V30: 28 | W30: 2.407405456 | X30: 0.6132358918 | Y30: 0.5581812012 | Z30: 0.3306214547 | AA30: 0.866962713 | AB30: 1.034156193 | AO30: 28 | AP30: 0.03511132241 | AQ30: 0.02128573667 | AR30: 0.005598906121 | AS30: 0.005463235062 | AT30: 0.00993793961 | AU30: 0.01838007868 | AW30: 28 | AX30: =SUM(AP$3:AP30) -> 0.5802255989 | AY30: =SUM(AQ$3:AQ30) -> 0.424545521 | AZ30: =SUM(AR$3:AR30) -> 0.05248412271 | BA30: =SUM(AS$3:AS30) -> 0.05064274356 | BB30: =SUM(AT$3:AT30) -> 0.150377006 | BC30: =SUM(AU$3:AU30) -> 0.2324508635
A31: 29 | B31: 44.16250503 | C31: 13.38956023 | D31: 14.56805578 | E31: 8.664461321 | F31: 21.25244322 | G31: 18.57664944 | H31: 29 | I31: 1.522845001 | J31: 0.4617089733 | K31: 0.502346751 | L31: 0.2987745283 | M31: 0.7328428698 | N31: 0.6405741187 | O31: 29 | P31: 2.259891534 | Q31: 0.6006770806 | R31: 0.6219466406 | S31: 0.3692507072 | T31: 0.9221115365 | U31: 1.103429769 | V31: 29 | W31: 2.331629854 | X31: 0.6066958538 | Y31: 0.5995371872 | Z31: 0.3556199592 | AA31: 0.9035876858 | AB31: 1.083496215 | AO31: 29 | AP31: 0.03400615684 | AQ31: 0.02105872855 | AR31: 0.006013732494 | AS31: 0.005876313838 | AT31: 0.01035776939 | AU31: 0.01925699988 | AW31: 29 | AX31: =SUM(AP$3:AP31) -> 0.6142317557 | AY31: =SUM(AQ$3:AQ31) -> 0.4456042495 | AZ31: =SUM(AR$3:AR31) -> 0.05849785521 | BA31: =SUM(AS$3:AS31) -> 0.0565190574 | BB31: =SUM(AT$3:AT31) -> 0.1607347754 | BC31: =SUM(AU$3:AU31) -> 0.2517078634
A32: 30 | B32: 46.39853941 | C32: 13.98816025 | D32: 15.2099333 | E32: 9.045720508 | F32: 22.19283185 | G32: 19.70716093 | H32: 30 | I32: 1.54661798 | J32: 0.4662720085 | K32: 0.5069977766 | L32: 0.3015240169 | M32: 0.7397610616 | N32: 0.6569053642 | O32: 30 | P32: 2.160942829 | Q32: 0.592086372 | R32: 0.6645799295 | S32: 0.3950928609 | T32: 0.9586983586 | U32: 1.147993568 | V32: 30 | W32: 2.236034383 | X32: 0.5986000294 | Y32: 0.6418775184 | Z32: 0.3812591869 | AA32: 0.9403886244 | AB32: 1.130511483 | AO32: 30 | AP32: 0.03261192416 | AQ32: 0.02077771828 | AR32: 0.006438432465 | AS32: 0.006299980015 | AT32: 0.01077961626 | AU32: 0.02009260319 | AW32: 30 | AX32: =SUM(AP$3:AP32) -> 0.6468436799 | AY32: =SUM(AQ$3:AQ32) -> 0.4663819678 | AZ32: =SUM(AR$3:AR32) -> 0.06493628767 | BA32: =SUM(AS$3:AS32) -> 0.06281903741 | BB32: =SUM(AT$3:AT32) -> 0.1715143917 | BC32: =SUM(AU$3:AU32) -> 0.2718004665
A33: 31 | B33: 48.5226688 | C33: 14.57726369 | D33: 15.89502959 | E33: 9.453197359 | F33: 23.17003724 | G33: 20.88165603 | H33: 31 | I33: 1.565247381 | J33: 0.4702343125 | K33: 0.5127428899 | L33: 0.3049418503 | M33: 0.7474205562 | N33: 0.6736018075 | O33: 31 | P33: 2.047844708 | Q33: 0.5821699292 | R33: 0.7080248106 | S33: 0.4214733973 | T33: 0.9951975313 | U33: 1.18918746 | V33: 31 | W33: 2.124129392 | X33: 0.5891034335 | Y33: 0.6850962891 | Z33: 0.4074768513 | AA33: 0.9772053941 | AB33: 1.174495107 | AO33: 31 | AP33: 0.03097982176 | AQ33: 0.02044808649 | AR33: 0.006871943731 | AS33: 0.006733204362 | AT33: 0.0112016446 | AU33: 0.02087432501 | AW33: 31 | AX33: =SUM(AP$3:AP33) -> 0.6778235016 | AY33: =SUM(AQ$3:AQ33) -> 0.4868300543 | AZ33: =SUM(AR$3:AR33) -> 0.0718082314 | BA33: =SUM(AS$3:AS33) -> 0.06955224177 | BB33: =SUM(AT$3:AT33) -> 0.1827160363 | BC33: =SUM(AU$3:AU33) -> 0.2926747915
A34: 32 | B34: 50.5224025 | C34: 15.1556241 | D34: 16.62410953 | E34: 9.887403129 | F34: 24.18390195 | G34: 22.09639638 | H34: 32 | I34: 1.578825078 | J34: 0.4736132532 | K34: 0.5195034228 | L34: 0.3089813478 | M34: 0.755746936 | N34: 0.6905123868 | O34: 32 | P34: 1.924138822 | Q34: 0.5710782399 | R34: 0.7521642534 | S34: 0.4483228568 | T34: 1.031431044 | U34: 1.226344664 | V34: 32 | W34: 1.999733697 | X34: 0.5783604146 | Y34: 0.7290799423 | Z34: 0.43420577 | AA34: 1.013864709 | AB34: 1.214740344 | AO34: 32 | AP34: 0.029165546 | AQ34: 0.02007519072 | AR34: 0.007313127248 | AS34: 0.007174876744 | AT34: 0.01162186804 | AU34: 0.02158960441 | AW34: 32 | AX34: =SUM(AP$3:AP34) -> 0.7069890476 | AY34: =SUM(AQ$3:AQ34) -> 0.506905245 | AZ34: =SUM(AR$3:AR34) -> 0.07912135865 | BA34: =SUM(AS$3:AS34) -> 0.07672711852 | BB34: =SUM(AT$3:AT34) -> 0.1943379043 | BC34: =SUM(AU$3:AU34) -> 0.314264396
A35: 33 | B35: 52.38912669 | C35: 15.72214671 | D35: 17.39781697 | E35: 10.34877707 | F35: 25.23408298 | G35: 23.34695844 | H35: 33 | I35: 1.587549294 | J35: 0.4764286882 | K35: 0.5272065748 | L35: 0.3135993052 | M35: 0.7646691811 | N35: 0.7074835892 | O35: 33 | P35: 1.79336497 | Q35: 0.5589586682 | R35: 0.7968739451 | S35: 0.4755670743 | T35: 1.067209654 | U35: 1.258832343 | V35: 33 | W35: 1.866724192 | X35: 0.5665226086 | Y35: 0.7737074387 | Z35: 0.4613739435 | AA35: 1.050181025 | AB35: 1.250562066 | AO35: 33 | AP35: 0.02722564027 | AQ35: 0.01966429432 | AR35: 0.007760768914 | AS35: 0.007623807435 | AT35: 0.01203815972 | AU35: 0.02222626458 | AW35: 33 | AX35: =SUM(AP$3:AP35) -> 0.7342146879 | AY35: =SUM(AQ$3:AQ35) -> 0.5265695394 | AZ35: =SUM(AR$3:AR35) -> 0.08688212756 | BA35: =SUM(AS$3:AS35) -> 0.08435092595 | BB35: =SUM(AT$3:AT35) -> 0.2063760641 | BC35: =SUM(AU$3:AU35) -> 0.3364906605
A36: 34 | B36: 54.11794342 | C36: 16.27588395 | D36: 18.21666746 | E36: 10.83768175 | F36: 26.32004073 | G36: 24.62827799 | H36: 34 | I36: 1.591704218 | J36: 0.478702469 | K36: 0.5357843369 | L36: 0.3187553455 | M36: 0.7741188449 | N36: 0.7243611174 | O36: 34 | P36: 1.658881404 | Q36: 0.5459538848 | R36: 0.8420225575 | S36: 0.5031273184 | T36: 1.10233426 | U36: 1.286072867 | V36: 34 | W36: 1.728816731 | X36: 0.5537372355 | Y36: 0.8188504879 | Z36: 0.4889046727 | AA36: 1.085957749 | AB36: 1.281319548 | AO36: 34 | AP36: 0.02521429927 | AQ36: 0.01922050737 | AR36: 0.008213581897 | AS36: 0.008078729047 | AT36: 0.01244826608 | AU36: 0.02277291793 | AW36: 34 | AX36: =SUM(AP$3:AP36) -> 0.7594289872 | AY36: =SUM(AQ$3:AQ36) -> 0.5457900467 | AZ36: =SUM(AR$3:AR36) -> 0.09509570946 | BA36: =SUM(AS$3:AS36) -> 0.092429655 | BB36: =SUM(AT$3:AT36) -> 0.2188243301 | BC36: =SUM(AU$3:AU36) -> 0.3592635785
A37: 35 | B37: 55.70733796 | C37: 16.81602966 | D37: 19.0810413 | E37: 11.35439846 | F37: 27.44102949 | G37: 25.93471743 | H37: 35 | I37: 1.591638227 | J37: 0.4804579904 | K37: 0.5451726086 | L37: 0.3244113846 | M37: 0.784029414 | N37: 0.7409919264 | O37: 35 | P37: 1.523725313 | Q37: 0.532200602 | R37: 0.8874720794 | S37: 0.5309204731 | T37: 1.136597589 | U37: 1.307564452 | V37: 35 | W37: 1.589394534 | X37: 0.5401457178 | Y37: 0.8643738439 | Z37: 0.5167167165 | AA37: 1.120988763 | AB37: 1.306439435 | AO37: 35 | AP37: 0.02318086626 | AQ37: 0.01874873872 | AR37: 0.008670209594 | AS37: 0.00853829914 | AT37: 0.01284982441 | AU37: 0.02321937419 | AW37: 35 | AX37: =SUM(AP$3:AP37) -> 0.7826098534 | AY37: =SUM(AQ$3:AQ37) -> 0.5645387855 | AZ37: =SUM(AR$3:AR37) -> 0.1037659191 | BA37: =SUM(AS$3:AS37) -> 0.1009679541 | BB37: =SUM(AT$3:AT37) -> 0.2316741545 | BC37: =SUM(AU$3:AU37) -> 0.3824829527
A38: 36 | B38: 57.15872923 | C38: 17.34191226 | D38: 19.99117697 | E38: 11.89912295 | F38: 28.59608977 | G38: 27.26015498 | H38: 36 | I38: 1.587742479 | J38: 0.4817197851 | K38: 0.5553104713 | L38: 0.3305311932 | M38: 0.794335827 | N38: 0.7572265274 | O38: 36 | P38: 1.390518548 | Q38: 0.5178285896 | R38: 0.933078216 | S38: 0.5588592603 | T38: 1.169786187 | U38: 1.322900008 | V38: 36 | W38: 1.451391272 | X38: 0.5258825991 | Y38: 0.9101356685 | Z38: 0.5447244916 | AA38: 1.155060284 | AB38: 1.325437559 | AO38: 36 | AP38: 0.02116812802 | AQ38: 0.01825365846 | AR38: 0.00912922928 | AS38: 0.009001103525 | AT38: 0.01324038414 | AU38: 0.02355702822 | AW38: 36 | AX38: =SUM(AP$3:AP38) -> 0.8037779814 | AY38: =SUM(AQ$3:AQ38) -> 0.5827924439 | AZ38: =SUM(AR$3:AR38) -> 0.1128951483 | BA38: =SUM(AS$3:AS38) -> 0.1099690577 | BB38: =SUM(AT$3:AT38) -> 0.2449145387 | BC38: =SUM(AU$3:AU38) -> 0.4060399809
A39: 37 | B39: 58.47595722 | C39: 17.852987 | D39: 20.94716493 | E39: 12.47196127 | F39: 29.7840428 | G39: 28.59809323 | H39: 37 | I39: 1.580431276 | J39: 0.4825131621 | K39: 0.5661395928 | L39: 0.3370800343 | M39: 0.8049741298 | N39: 0.7729214387 | O39: 37 | P39: 1.261417675 | Q39: 0.5029599476 | R39: 0.9786908573 | S39: 0.5868525076 | T39: 1.201682706 | U39: 1.33178302 | V39: 37 | W39: 1.317227996 | X39: 0.5110747335 | Y39: 0.9559879636 | Z39: 0.5728383162 | AA39: 1.187953029 | AB39: 1.337938249 | AO39: 37 | AP39: 0.01921139488 | AQ39: 0.01773966974 | AR39: 0.009589156442 | AS39: 0.009465660286 | AT39: 0.01361743162 | AU39: 0.02377920323 | AW39: 37 | AX39: =SUM(AP$3:AP39) -> 0.8229893763 | AY39: =SUM(AQ$3:AQ39) -> 0.6005321137 | AZ39: =SUM(AR$3:AR39) -> 0.1224843048 | BA39: =SUM(AS$3:AS39) -> 0.119434718 | BB39: =SUM(AT$3:AT39) -> 0.2585319703 | BC39: =SUM(AU$3:AU39) -> 0.4298191841
A40: 38 | B40: 59.66475438 | C40: 18.34882771 | D40: 21.94894201 | E40: 13.07292597 | F40: 31.00348748 | G40: 29.94178309 | H40: 38 | I40: 1.570125115 | J40: 0.4828638872 | K40: 0.577603737 | L40: 0.3440243676 | M40: 0.8158812496 | N40: 0.7879416602 | O40: 38 | P40: 1.138102988 | Q40: 0.4877086058 | R40: 1.024154616 | S40: 0.6148054588 | T40: 1.232068446 | U40: 1.334039437 | V40: 38 | W40: 1.188797153 | X40: 0.4958407173 | Y40: 1.001777074 | Z40: 0.6009646978 | AA40: 1.219444681 | AB40: 1.343689854 | AO40: 38 | AP40: 0.01733826764 | AQ40: 0.01721088912 | AR40: 0.01004844982 | AS40: 0.009930424542 | AT40: 0.01397841846 | AU40: 0.02388142664 | AW40: 38 | AX40: =SUM(AP$3:AP40) -> 0.840327644 | AY40: =SUM(AQ$3:AQ40) -> 0.6177430028 | AZ40: =SUM(AR$3:AR40) -> 0.1325327546 | BA40: =SUM(AS$3:AS40) -> 0.1293651425 | BB40: =SUM(AT$3:AT40) -> 0.2725103888 | BC40: =SUM(AU$3:AU40) -> 0.4537006107
A41: 39 | B41: 60.73223798 | C41: 18.82911825 | D41: 22.99628626 | E41: 13.70193263 | F41: 32.2528001 | G41: 31.28435849 | H41: 39 | I41: 1.557236871 | J41: 0.4827979038 | K41: 0.5896483657 | L41: 0.351331606 | M41: 0.8269948744 | N41: 0.8021630382 | O41: 39 | P41: 1.021798459 | Q41: 0.4721800222 | R41: 1.069309433 | S41: 0.6426201309 | T41: 1.260726129 | U41: 1.329624782 | V41: 39 | W41: 1.067483604 | X41: 0.4802905342 | Y41: 1.047344258 | Z41: 0.629006667 | AA41: 1.249312618 | AB41: 1.342575403 | AO41: 39 | AP41: 0.0155689441 | AQ41: 0.01667113418 | AR41: 0.01050551714 | AS41: 0.01039379395 | AT41: 0.01432079277 | AU41: 0.02386161947 | AW41: 39 | AX41: =SUM(AP$3:AP41) -> 0.8558965881 | AY41: =SUM(AQ$3:AQ41) -> 0.634414137 | AZ41: =SUM(AR$3:AR41) -> 0.1430382717 | BA41: =SUM(AS$3:AS41) -> 0.1397589365 | BB41: =SUM(AT$3:AT41) -> 0.2868311815 | BC41: =SUM(AU$3:AU41) -> 0.4775622302
A42: 40 | B42: 61.68644947 | C42: 19.29364363 | D42: 24.0888126 | E42: 14.35879679 | F42: 33.53013696 | G42: 32.61897611 | H42: 40 | I42: 1.542161237 | J42: 0.4823410908 | K42: 0.602220315 | L42: 0.3589699198 | M42: 0.8382534241 | N42: 0.8154744027 | O42: 40 | P42: 0.9133136056 | Q42: 0.4564710544 | R42: 1.113991256 | S42: 0.6701957138 | T42: 1.287442855 | U42: 1.318625975 | V42: 40 | W42: 0.9542114895 | X42: 0.4645253839 | Y42: 1.092526335 | Z42: 0.6568641563 | AA42: 1.277336863 | AB42: 1.334617618 | AO42: 40 | AP42: 0.0139169026 | AQ42: 0.01612391761 | AR42: 0.0109587216 | AS42: 0.010854115 | AT42: 0.01464203295 | AU42: 0.02372018559 | AW42: 40 | AX42: =SUM(AP$3:AP42) -> 0.8698134907 | AY42: =SUM(AQ$3:AQ42) -> 0.6505380546 | AZ42: =SUM(AR$3:AR42) -> 0.1539969933 | BA42: =SUM(AS$3:AS42) -> 0.1506130514 | BB42: =SUM(AT$3:AT42) -> 0.3014732145 | BC42: =SUM(AU$3:AU42) -> 0.5012824158
A43: 41 | B43: 62.53595588 | C43: 19.7422813 | D43: 25.22596899 | E43: 15.04323122 | F43: 34.83344016 | G43: 33.93895405 | H43: 41 | I43: 1.525267217 | J43: 0.4815190561 | K43: 0.6152675364 | L43: 0.3669080784 | M43: 0.8495961015 | N43: 0.8277793671 | O43: 41 | P43: 0.8130986386 | Q43: 0.4406699755 | R43: 1.158032778 | S43: 0.6974290161 | T43: 1.312013173 | U43: 1.301257767 | V43: 41 | W43: 0.8495064102 | X43: 0.4486376666 | Y43: 1.137156394 | Z43: 0.6844344241 | AA43: 1.303303199 | AB43: 1.319977941 | AO43: 41 | AP43: 0.01238980886 | AQ43: 0.01557244669 | AR43: 0.01140638897 | AS43: 0.01130968995 | AT43: 0.01493968343 | AU43: 0.02345999433 | AW43: 41 | AX43: =SUM(AP$3:AP43) -> 0.8822032995 | AY43: =SUM(AQ$3:AQ43) -> 0.6661105013 | AZ43: =SUM(AR$3:AR43) -> 0.1654033823 | BA43: =SUM(AS$3:AS43) -> 0.1619227414 | BB43: =SUM(AT$3:AT43) -> 0.3164128979 | BC43: =SUM(AU$3:AU43) -> 0.5247424101
A44: 42 | B44: 63.28951998 | C44: 20.1749924 | D44: 26.40703357 | E44: 15.75484374 | F44: 36.16044655 | G44: 35.23790368 | H44: 42 | I44: 1.506893333 | J44: 0.4803569618 | K44: 0.6287388944 | L44: 0.3751153271 | M44: 0.860963013 | N44: 0.8389977066 | O44: 42 | P44: 0.7213054735 | Q44: 0.4248566106 | R44: 1.201264249 | S44: 0.724214952 | T44: 1.334242203 | U44: 1.277854013 | V44: 42 | W44: 0.7535640986 | X44: 0.4327110975 | Y44: 1.181064572 | Z44: 0.7116125237 | AA44: 1.327006382 | AB44: 1.298949626 | AO44: 42 | AP44: 0.01099051759 | AQ44: 0.01501962719 | AR44: 0.01184681542 | AS44: 0.01175878466 | AT44: 0.01521139155 | AU44: 0.02308625767 | AW44: 42 | AX44: =SUM(AP$3:AP44) -> 0.8931938171 | AY44: =SUM(AQ$3:AQ44) -> 0.6811301284 | AZ44: =SUM(AR$3:AR44) -> 0.1772501977 | BA44: =SUM(AS$3:AS44) -> 0.1736815261 | BB44: =SUM(AT$3:AT44) -> 0.3316242895 | BC44: =SUM(AU$3:AU44) -> 0.5478286678
A45: 43 | B45: 63.95583886 | C45: 20.59181332 | D45: 27.63111247 | E45: 16.49313555 | F45: 37.50869993 | G45: 36.50984908 | H45: 43 | I45: 1.48734509 | J45: 0.4788793796 | K45: 0.6425840108 | L45: 0.3835612919 | M45: 0.8722953473 | N45: 0.8490662577 | O45: 43 | P45: 0.6378488555 | Q45: 0.4091025711 | R45: 1.243514339 | S45: 0.7504470706 | T45: 1.353948744 | U45: 1.248854391 | V45: 43 | W45: 0.6663188784 | X45: 0.4168209269 | Y45: 1.224078901 | Z45: 0.7382918138 | AA45: 1.348253387 | AB45: 1.271945405 | AO45: 43 | AP45: 0.009718070924 | AQ45: 0.01446807111 | AR45: 0.01227827601 | AS45: 0.01219963697 | AT45: 0.01545494465 | AU45: 0.02260631111 | AW45: 43 | AX45: =SUM(AP$3:AP45) -> 0.9029118881 | AY45: =SUM(AQ$3:AQ45) -> 0.6955981996 | AZ45: =SUM(AR$3:AR45) -> 0.1895284737 | BA45: =SUM(AS$3:AS45) -> 0.185881163 | BB45: =SUM(AT$3:AT45) -> 0.3470792341 | BC45: =SUM(AU$3:AU45) -> 0.5704349789
A46: 44 | B46: 64.54334621 | C46: 20.99284757 | D46: 28.89713868 | E46: 17.25750006 | F46: 38.87556652 | G46: 37.74932969 | H46: 44 | I46: 1.466894232 | J46: 0.477110172 | K46: 0.6567531517 | L46: 0.3922159105 | M46: 0.8835356027 | N46: 0.8579393111 | O46: 44 | P46: 0.5624635661 | Q46: 0.3934715669 | R46: 1.284611065 | S46: 0.7760181227 | T46: 1.37096827 | U46: 1.214787431 | V46: 44 | W46: 0.5875073512 | X46: 0.4010342439 | Y46: 1.266026209 | Z46: 0.7643645115 | AA46: 1.366866587 | AB46: 1.239480606 | AO46: 44 | AP46: 0.008568627263 | AQ46: 0.01392010713 | AR46: 0.01269903371 | AS46: 0.01263046587 | AT46: 0.0156683066 | AU46: 0.02202931358 | AW46: 44 | AX46: =SUM(AP$3:AP46) -> 0.9114805153 | AY46: =SUM(AQ$3:AQ46) -> 0.7095183067 | AZ46: =SUM(AR$3:AR46) -> 0.2022275074 | BA46: =SUM(AS$3:AS46) -> 0.1985116289 | BB46: =SUM(AT$3:AT46) -> 0.3627475407 | BC46: =SUM(AU$3:AU46) -> 0.5924642925
A47: 45 | B47: 65.06007082 | C47: 21.37825791 | D47: 30.20387176 | E47: 18.04722235 | F47: 40.25825332 | G47: 38.95148257 | H47: 45 | I47: 1.445779352 | J47: 0.475072398 | K47: 0.6711971502 | L47: 0.4010493855 | M47: 0.8946278515 | N47: 0.8655885016 | O47: 45 | P47: 0.4947552448 | Q47: 0.3780197761 | R47: 1.324382771 | S47: 0.8008206649 | T47: 1.385155756 | U47: 1.176250967 | V47: 45 | W47: 0.516724613 | X47: 0.3854103445 | Y47: 1.306733083 | Z47: 0.7897222827 | AA47: 1.3826868 | AB47: 1.202152884 | AO47: 45 | AP47: 0.0075362812 | AQ47: 0.01337779346 | AR47: 0.01310734909 | AS47: 0.01304948122 | AT47: 0.01584965272 | AU47: 0.02136588722 | AW47: 45 | AX47: =SUM(AP$3:AP47) -> 0.9190167965 | AY47: =SUM(AQ$3:AQ47) -> 0.7228961002 | AZ47: =SUM(AR$3:AR47) -> 0.2153348565 | BA47: =SUM(AS$3:AS47) -> 0.2115611101 | BB47: =SUM(AT$3:AT47) -> 0.3785971934 | BC47: =SUM(AU$3:AU47) -> 0.6138301797
A48: 46 | B48: 65.5135426 | C48: 21.74825906 | D48: 31.54989863 | E48: 18.86147921 | F48: 41.65382943 | G48: 40.11210245 | H48: 46 | I48: 1.424207448 | J48: 0.4727882404 | K48: 0.6858673616 | L48: 0.4100321568 | M48: 0.905518031 | N48: 0.8720022272 | O48: 46 | P48: 0.4342436295 | Q48: 0.3627962588 | R48: 1.362659142 | S48: 0.8247476948 | T48: 1.396388226 | U48: 1.133891156 | V48: 46 | W48: 0.4534717814 | X48: 0.3700011473 | Y48: 1.346026874 | Z48: 0.8142568675 | AA48: 1.395576108 | AB48: 1.160619881 | AO48: 46 | AP48: 0.00661375668 | AQ48: 0.01284293221 | AR48: 0.01350149035 | AS48: 0.01345489412 | AT48: 0.01599740205 | AU48: 0.02062772034 | AW48: 46 | AX48: =SUM(AP$3:AP48) -> 0.9256305532 | AY48: =SUM(AQ$3:AQ48) -> 0.7357390324 | AZ48: =SUM(AR$3:AR48) -> 0.2288363469 | BA48: =SUM(AS$3:AS48) -> 0.2250160042 | BB48: =SUM(AT$3:AT48) -> 0.3945945955 | BC48: =SUM(AU$3:AU48) -> 0.6344579001
A49: 47 | B49: 65.91073728 | C49: 22.1031107 | D49: 32.93363539 | E49: 19.69933995 | F49: 43.05924979 | G49: 41.22767864 | H49: 47 | I49: 1.402356112 | J49: 0.4702789511 | K49: 0.7007156465 | L49: 0.4191348926 | M49: 0.9161542508 | N49: 0.8771846518 | O49: 47 | P49: 0.3803979633 | Q49: 0.3478433991 | R49: 1.399272276 | S49: 0.847693315 | T49: 1.404566981 | U49: 1.088381276 | V49: 47 | W49: 0.397194674 | X49: 0.3548516411 | Y49: 1.383736753 | Z49: 0.8378607369 | AA49: 1.405420359 | AB49: 1.115576184 | AO49: 47 | AP49: 0.00579297111 | AQ49: 0.01231708498 | AR49: 0.013879744 | AS49: 0.01384492775 | AT49: 0.01611024608 | AU49: 0.01982715781 | AW49: 47 | AX49: =SUM(AP$3:AP49) -> 0.9314235243 | AY49: =SUM(AQ$3:AQ49) -> 0.7480561173 | AZ49: =SUM(AR$3:AR49) -> 0.2427160909 | BA49: =SUM(AS$3:AS49) -> 0.238860932 | BB49: =SUM(AT$3:AT49) -> 0.4107048416 | BC49: =SUM(AU$3:AU49) -> 0.6542850579
A50: 48 | B50: 66.25805145 | C50: 22.44311105 | D50: 34.35333019 | E50: 20.55976773 | F50: 44.47138108 | G50: 42.29540947 | H50: 48 | I50: 1.380376072 | J50: 0.4675648136 | K50: 0.7156943789 | L50: 0.4283284943 | M50: 0.9264871058 | N50: 0.8811543641 | O50: 48 | P50: 0.332664951 | Q50: 0.3331973643 | R50: 1.434057763 | S50: 0.8695534204 | T50: 1.409619409 | U50: 1.040401363 | V50: 48 | W50: 0.3473141708 | X50: 0.3400003526 | Y50: 1.419694804 | Z50: 0.8604277769 | AA50: 1.412131293 | AB50: 1.067730839 | AO50: 48 | AP50: 0.005065478187 | AQ50: 0.01180158903 | AR50: 0.0142404257 | AS50: 0.01421782867 | AT50: 0.01618717311 | AU50: 0.01897680154 | AW50: 48 | AX50: =SUM(AP$3:AP50) -> 0.9364890025 | AY50: =SUM(AQ$3:AQ50) -> 0.7598577064 | AZ50: =SUM(AR$3:AR50) -> 0.2569565166 | BA50: =SUM(AS$3:AS50) -> 0.2530787607 | BB50: =SUM(AT$3:AT50) -> 0.4268920147 | BC50: =SUM(AU$3:AU50) -> 0.6732618594
A51: 49 | B51: 66.56130064 | C51: 22.76859088 | D51: 35.80706732 | E51: 21.44162172 | F51: 45.88702929 | G51: 43.31319602 | H51: 49 | I51: 1.358393891 | J51: 0.4646651199 | K51: 0.7307564759 | L51: 0.4375841168 | M51: 0.9364699854 | N51: 0.8839427758 | O51: 49 | P51: 0.290490027 | Q51: 0.3188885707 | R51: 1.466855811 | S51: 0.8902264035 | T51: 1.411500341 | U51: 0.9906195957 | V51: 49 | W51: 0.3032491867 | X51: 0.3254798232 | Y51: 1.453737132 | Z51: 0.8818539932 | AA51: 1.415648207 | AB51: 1.01778654 | AO51: 49 | AP51: 0.004422802954 | AQ51: 0.0112975739 | AR51: 0.01458189152 | AS51: 0.01457187846 | AT51: 0.01622748728 | AU51: 0.01808914052 | AW51: 49 | AX51: =SUM(AP$3:AP51) -> 0.9409118055 | AY51: =SUM(AQ$3:AQ51) -> 0.7711552803 | AZ51: =SUM(AR$3:AR51) -> 0.2715384081 | BA51: =SUM(AS$3:AS51) -> 0.2676506391 | BB51: =SUM(AT$3:AT51) -> 0.4431195019 | BC51: =SUM(AU$3:AU51) -> 0.6913509999
A52: 50 | B52: 66.82573399 | C52: 23.07990796 | D52: 37.29277233 | E52: 22.34365995 | F52: 47.3029684 | G52: 44.27961735 | H52: 50 | I52: 1.33651468 | J52: 0.4615981592 | K52: 0.7458554466 | L52: 0.4468731991 | M52: 0.946059368 | N52: 0.8855923469 | O52: 50 | P52: 0.2533328814 | Q52: 0.3049421491 | R52: 1.497512363 | S52: 0.9096138718 | T52: 1.4101929 | U52: 0.9396761433 | V52: 50 | W52: 0.2644333543 | X52: 0.3113170859 | Y52: 1.485705008 | Z52: 0.9020382329 | AA52: 1.415939116 | AB52: 0.9664213302 | AO52: 50 | AP52: 0.003856685102 | AQ52: 0.01080597793 | AR52: 0.01490254929 | AS52: 0.01490540566 | AT52: 0.01623082195 | AU52: 0.01717622562 | AW52: 50 | AX52: =SUM(AP$3:AP52) -> 0.9447684906 | AY52: =SUM(AQ$3:AQ52) -> 0.7819612582 | AZ52: =SUM(AR$3:AR52) -> 0.2864409574 | BA52: =SUM(AS$3:AS52) -> 0.2825560448 | BB52: =SUM(AT$3:AT52) -> 0.4593503239 | BC52: =SUM(AU$3:AU52) -> 0.7085272255
A53: 51 | B53: 67.05606053 | C53: 23.3774421 | D53: 38.80821834 | E53: 23.26454287 | F53: 48.71596977 | G53: 45.19389075 | H53: 51 | I53: 1.314824716 | J53: 0.4583812176 | K53: 0.7609454576 | L53: 0.4561675072 | M53: 0.9552150936 | N53: 0.8861547205 | O53: 51 | P53: 0.220678229 | Q53: 0.2913784015 | R53: 1.525880231 | S53: 0.927621372 | T53: 1.40570882 | U53: 0.8881698945 | V53: 51 | W53: 0.2303265387 | X53: 0.2975341354 | Y53: 1.515446009 | Z53: 0.9208829152 | AA53: 1.413001369 | AB53: 0.9142734002 | AO53: 51 | AP53: 0.003359246919 | AQ53: 0.01032756455 | AR53: 0.01520087011 | AS53: 0.01521679782 | AT53: 0.01619714673 | AU53: 0.01624939941 | AW53: 51 | AX53: =SUM(AP$3:AP53) -> 0.9481277375 | AY53: =SUM(AQ$3:AQ53) -> 0.7922888227 | AZ53: =SUM(AR$3:AR53) -> 0.3016418275 | BA53: =SUM(AS$3:AS53) -> 0.2977728426 | BB53: =SUM(AT$3:AT53) -> 0.4755474706 | BC53: =SUM(AU$3:AU53) -> 0.724776625
A54: 52 | B54: 67.25648277 | C54: 23.66159048 | D54: 40.3510335 | E54: 24.20283764 | F54: 50.12283147 | G54: 46.05582003 | H54: 52 | I54: 1.293393899 | J54: 0.4550305862 | K54: 0.7759814134 | L54: 0.4654391853 | M54: 0.9639006052 | N54: 0.8856888466 | O54: 52 | P54: 0.1920427668 | Q54: 0.278213245 | R54: 1.551820213 | S54: 0.9441591116 | T54: 1.398088227 | U54: 0.8366483082 | V54: 52 | W54: 0.2004222378 | X54: 0.2841483859 | Y54: 1.542815161 | Z54: 0.9382947657 | AA54: 1.4068617 | AB54: 0.86192928 | AO54: 52 | AP54: 0.002923101213 | AQ54: 0.009862938225 | AR54: 0.0154753998 | AS54: 0.01550451366 | AT54: 0.01612676809 | AU54: 0.01531908632 | AW54: 52 | AX54: =SUM(AP$3:AP54) -> 0.9510508387 | AY54: =SUM(AQ$3:AQ54) -> 0.802151761 | AZ54: =SUM(AR$3:AR54) -> 0.3171172273 | BA54: =SUM(AS$3:AS54) -> 0.3132773563 | BB54: =SUM(AT$3:AT54) -> 0.4916742387 | BC54: =SUM(AU$3:AU54) -> 0.7400957113
A55: 53 | B55: 67.43073457 | C55: 23.9327636 | D55: 41.91870956 | E55: 25.15702318 | F55: 51.52040718 | G55: 46.8657355 | H55: 53 | I55: 1.272278011 | J55: 0.4515615773 | K55: 0.7909190484 | L55: 0.4746608148 | M55: 0.9720831544 | N55: 0.8842591603 | O55: 53 | P55: 0.1669791639 | Q55: 0.2654586389 | R55: 1.575202198 | S55: 0.9591426745 | T55: 1.387398878 | U55: 0.7856003752 | V55: 53 | W55: 0.1742518002 | X55: 0.2711731116 | Y55: 1.567676066 | Z55: 0.9541855471 | AA55: 1.397575713 | AB55: 0.8099154699 | AO55: 53 | AP55: 0.00254141284 | AQ55: 0.009412559706 | AR55: 0.0157247702 | AS55: 0.01576709515 | AT55: 0.0160203234 | AU55: 0.01439464383 | AW55: 53 | AX55: =SUM(AP$3:AP55) -> 0.9535922515 | AY55: =SUM(AQ$3:AQ55) -> 0.8115643207 | AZ55: =SUM(AR$3:AR55) -> 0.3328419975 | BA55: =SUM(AS$3:AS55) -> 0.3290444514 | BB55: =SUM(AT$3:AT55) -> 0.5076945621 | BC55: =SUM(AU$3:AU55) -> 0.7544903551
A56: 54 | B56: 67.58212082 | C56: 24.19138146 | D56: 43.50861157 | E56: 26.12549596 | F56: 52.905634 | G56: 47.62442884 | H56: 54 | I56: 1.251520756 | J56: 0.4479885456 | K56: 0.8057150291 | L56: 0.4838054807 | M56: 0.979733963 | N56: 0.8819338674 | O56: 54 | P56: 0.1450778118 | Q56: 0.2531229905 | R56: 1.595906231 | S56: 0.9724937189 | T56: 1.373734897 | U56: 0.7354525203 | V56: 54 | W56: 0.1513862564 | X56: 0.2586178669 | Y56: 1.589902009 | Z56: 0.9684727777 | AA56: 1.385226817 | AB56: 0.7586933465 | AO56: 54 | AP56: 0.002207925401 | AQ56: 0.008976760633 | AR56: 0.0159477103 | AS56: 0.01600317935 | AT56: 0.01587876878 | AU56: 0.01348427201 | AW56: 54 | AX56: =SUM(AP$3:AP56) -> 0.9558001769 | AY56: =SUM(AQ$3:AQ56) -> 0.8205410813 | AZ56: =SUM(AR$3:AR56) -> 0.3487897078 | BA56: =SUM(AS$3:AS56) -> 0.3450476308 | BB56: =SUM(AT$3:AT56) -> 0.5235733309 | BC56: =SUM(AU$3:AU56) -> 0.7679746271
A57: 55 | B57: 67.71355724 | C57: 24.43787035 | D57: 45.1179886 | E57: 27.10657639 | F57: 54.27555865 | G57: 48.33308586 | H57: 55 | I57: 1.231155586 | J57: 0.4443249154 | K57: 0.8203270654 | L57: 0.4928468435 | M57: 0.9868283391 | N57: 0.8787833793 | O57: 55 | P57: 0.1259669382 | Q57: 0.2412115401 | R57: 1.613823544 | S57: 0.9841406535 | T57: 1.357215043 | U57: 0.6865671387 | V57: 55 | W57: 0.1314364134 | X57: 0.2464888844 | Y57: 1.609377025 | Z57: 0.9810804313 | AA57: 1.369924647 | AB57: 0.7086570223 | AO57: 55 | AP57: 0.001916962627 | AQ57: 0.008555757346 | AR57: 0.01614305688 | AS57: 0.01621150997 | AT57: 0.01570336095 | AU57: 0.01259497542 | AW57: 55 | AX57: =SUM(AP$3:AP57) -> 0.9577171396 | AY57: =SUM(AQ$3:AQ57) -> 0.8290968387 | AZ57: =SUM(AR$3:AR57) -> 0.3649327647 | BA57: =SUM(AS$3:AS57) -> 0.3612591407 | BB57: =SUM(AT$3:AT57) -> 0.5392766918 | BC57: =SUM(AU$3:AU57) -> 0.7805696025
A58: 56 | B58: 67.82760897 | C58: 24.6726598 | D58: 46.74398551 | E58: 28.098516 | F58: 55.62736167 | G58: 48.9932196 | H58: 56 | I58: 1.211207303 | J58: 0.4405832106 | K58: 0.834714027 | L58: 0.5017592143 | M58: 0.9933457441 | N58: 0.8748789214 | O58: 56 | P58: 0.1093115707 | Q58: 0.2297267207 | R58: 1.628857523 | S58: 0.9940192818 | T58: 1.337980553 | U58: 0.6392433771 | V58: 56 | W58: 0.1140517366 | X58: 0.2347894489 | Y58: 1.625996916 | Z58: 0.99193961 | AA58: 1.351803019 | AB58: 0.6601337323 | AO58: 56 | AP58: 0.001663412071 | AQ58: 0.008149663856 | AR58: 0.01630976477 | AS58: 0.01639094856 | AT58: 0.01549563386 | AU58: 0.01173257002 | AW58: 56 | AX58: =SUM(AP$3:AP58) -> 0.9593805516 | AY58: =SUM(AQ$3:AQ58) -> 0.8372465025 | AZ58: =SUM(AR$3:AR58) -> 0.3812425294 | BA58: =SUM(AS$3:AS58) -> 0.3776500893 | BB58: =SUM(AT$3:AT58) -> 0.5547723257 | BC58: =SUM(AU$3:AU58) -> 0.7923021726
A59: 57 | B59: 67.9265274 | C59: 24.89618004 | D59: 48.38365572 | E59: 29.09950518 | F59: 56.95837915 | G59: 49.60660587 | H59: 57 | I59: 1.191693463 | J59: 0.4367750884 | K59: 0.8488360653 | L59: 0.5105176348 | M59: 0.9992698097 | N59: 0.870291331 | O59: 57 | P59: 0.09481173098 | Q59: 0.2186684941 | R59: 1.640924616 | S59: 1.002073407 | T59: 1.316192643 | U59: 0.5937197274 | V59: 57 | W59: 0.09891842603 | X59: 0.2235202455 | Y59: 1.639670209 | Z59: 1.000989181 | AA59: 1.331017487 | AB59: 0.6133862707 | AO59: 57 | AP59: 0.001442697049 | AQ59: 0.007758503946 | AR59: 0.01644691643 | AS59: 0.01654048494 | AT59: 0.01525737059 | AU59: 0.01090172645 | AW59: 57 | AX59: =SUM(AP$3:AP59) -> 0.9608232487 | AY59: =SUM(AQ$3:AQ59) -> 0.8450050065 | AZ59: =SUM(AR$3:AR59) -> 0.3976894459 | BA59: =SUM(AS$3:AS59) -> 0.3941905742 | BB59: =SUM(AT$3:AT59) -> 0.5700296963 | BC59: =SUM(AU$3:AU59) -> 0.803203899
A60: 58 | B60: 68.0122844 | C60: 25.10885972 | D60: 50.03397476 | E60: 30.10768156 | F60: 58.26612173 | G60: 50.17522286 | H60: 58 | I60: 1.172625593 | J60: 0.4329113746 | K60: 0.8626547372 | L60: 0.5190979579 | M60: 1.004588306 | N60: 0.8650900493 | O60: 58 | P60: 0.08220015406 | Q60: 0.2080346627 | R60: 1.649955157 | S60: 1.008255392 | T60: 1.292029732 | U60: 0.5501779949 | V60: 58 | W60: 0.08575699669 | X60: 0.2126796835 | Y60: 1.650319037 | Z60: 1.008176373 | AA60: 1.307742575 | AB60: 0.5686169902 | AO60: 58 | AP60: 0.001250741354 | AQ60: 0.007382222403 | AR60: 0.01655373082 | AS60: 0.0166592471 | AT60: 0.01499057173 | AU60: 0.01010604113 | AW60: 58 | AX60: =SUM(AP$3:AP60) -> 0.96207399 | AY60: =SUM(AQ$3:AQ60) -> 0.8523872289 | AZ60: =SUM(AR$3:AR60) -> 0.4142431767 | BA60: =SUM(AS$3:AS60) -> 0.4108498213 | BB60: =SUM(AT$3:AT60) -> 0.585020268 | BC60: =SUM(AU$3:AU60) -> 0.8133099401
A61: 59 | B61: 68.08660399 | C61: 25.31112392 | D61: 51.6918547 | E61: 31.12113887 | F61: 59.5482905 | G61: 50.70119576 | H61: 59 | I61: 1.154010237 | J61: 0.4290021003 | K61: 0.8761331305 | L61: 0.52747693 | M61: 1.009293059 | N61: 0.859342301 | O61: 59 | P61: 0.0712397499 | Q61: 0.1978211557 | R61: 1.655894102 | S61: 1.012526661 | T61: 1.265684462 | U61: 0.5087482267 | V61: 59 | W61: 0.07431959509 | X61: 0.2022641949 | Y61: 1.65787994 | Z61: 1.013457317 | AA61: 1.282168772 | AB61: 0.5259729003 | AO61: 59 | AP61: 0.001083930111 | AQ61: 0.007020695375 | AR61: 0.01662957141 | AS61: 0.01674651015 | AT61: 0.01469742082 | AU61: 0.009348126868 | AW61: 59 | AX61: =SUM(AP$3:AP61) -> 0.9631579201 | AY61: =SUM(AQ$3:AQ61) -> 0.8594079242 | AZ61: =SUM(AR$3:AR61) -> 0.4308727481 | BA61: =SUM(AS$3:AS61) -> 0.4275963315 | BB61: =SUM(AT$3:AT61) -> 0.5997176888 | BC61: =SUM(AU$3:AU61) -> 0.822658067
A62: 60 | B62: 68.15099121 | C62: 25.50339243 | D62: 53.35415927 | E62: 32.1379364 | F62: 60.80278986 | G62: 51.18674721 | H62: 60 | I62: 1.135849853 | J62: 0.4250565404 | K62: 0.8892359878 | L62: 0.5356322734 | M62: 1.013379831 | N62: 0.8531124534 | O62: 60 | P62: 0.06172096725 | Q62: 0.1880222927 | R62: 1.658701663 | S62: 1.014858143 | T62: 1.237360614 | U62: 0.4695142262 | V62: 60 | W62: 0.06438721801 | X62: 0.1922685075 | Y62: 1.662304568 | Z62: 1.01679753 | AA62: 1.254499359 | AB62: 0.4855514484 | AO62: 60 | AP62: 0.0009390692227 | AQ62: 0.00667373987 | AR62: 0.01667395319 | AS62: 0.0168017043 | AT62: 0.01438024806 | AU62: 0.008629715595 | AW62: 60 | AX62: =SUM(AP$3:AP62) -> 0.9640969894 | AY62: =SUM(AQ$3:AQ62) -> 0.8660816641 | AZ62: =SUM(AR$3:AR62) -> 0.4475467013 | BA62: =SUM(AS$3:AS62) -> 0.4443980358 | BB62: =SUM(AT$3:AT62) -> 0.6140979369 | BC62: =SUM(AU$3:AU62) -> 0.8312877826
A63: 61 | B63: 68.20675816 | C63: 25.68607832 | D63: 55.01771954 | E63: 33.15610874 | F63: 62.02773704 | G63: 51.63415383 | H63: 61 | I63: 1.118143576 | J63: 0.4210832512 | K63: 0.9019298285 | L63: 0.5435427663 | M63: 1.016848148 | N63: 0.8464615383 | O63: 61 | P63: 0.0534591721 | Q63: 0.178631023 | R63: 1.658353834 | S63: 1.015230647 | T63: 1.207269977 | U63: 0.4325193368 | V63: 61 | W63: 0.05576695188 | X63: 0.1826858958 | Y63: 1.663560272 | Z63: 1.01817234 | AA63: 1.224947178 | AB63: 0.4474066279 | AO63: 61 | AP63: 0.0008133450982 | AQ63: 0.006341122434 | AR63: 0.01668654869 | AS63: 0.01682442184 | AT63: 0.01404149324 | AU63: 0.007951766938 | AW63: 61 | AX63: =SUM(AP$3:AP63) -> 0.9649103345 | AY63: =SUM(AQ$3:AQ63) -> 0.8724227865 | AZ63: =SUM(AR$3:AR63) -> 0.46423325 | BA63: =SUM(AS$3:AS63) -> 0.4612224576 | BB63: =SUM(AT$3:AT63) -> 0.6281394302 | BC63: =SUM(AU$3:AU63) -> 0.8392395495
A64: 62 | B64: 68.25504747 | C64: 25.85958673 | D64: 56.67935013 | E64: 34.17367597 | F64: 63.22146844 | G64: 52.04570896 | H64: 62 | I64: 1.100887862 | J64: 0.4170901085 | K64: 0.9141830666 | L64: 0.551188322 | M64: 1.019701104 | N64: 0.8394469187 | O64: 62 | P64: 0.04629211722 | Q64: 0.1696391438 | R64: 1.654842793 | S64: 1.013635159 | T64: 1.175629262 | U64: 0.3977722338 | V64: 62 | W64: 0.0482893117 | X64: 0.173508407 | Y64: 1.661630586 | Z64: 1.017567222 | AA64: 1.193731402 | AB64: 0.4115551231 | AO64: 62 | AP64: 0.0007042858475 | AQ64: 0.006022567028 | AR64: 0.01666719273 | AS64: 0.0168144228 | AT64: 0.01368366875 | AU64: 0.007314577427 | AW64: 62 | AX64: =SUM(AP$3:AP64) -> 0.9656146203 | AY64: =SUM(AQ$3:AQ64) -> 0.8784453536 | AZ64: =SUM(AR$3:AR64) -> 0.4809004427 | BA64: =SUM(AS$3:AS64) -> 0.4780368804 | BB64: =SUM(AT$3:AT64) -> 0.6418230989 | BC64: =SUM(AU$3:AU64) -> 0.846554127
A65: 63 | B65: 68.2968532 | C65: 26.0243138 | D65: 58.3358657 | E65: 35.18865404 | F65: 64.38254284 | G65: 52.42369122 | H65: 63 | I65: 1.084077035 | J65: 0.413084346 | K65: 0.9259661222 | L65: 0.5585500641 | M65: 1.021945124 | N65: 0.8321220829 | O65: 63 | P65: 0.04007755148 | Q65: 0.1610374968 | R65: 1.648177184 | S65: 1.01007306 | T65: 1.142657123 | U65: 0.3652525246 | V65: 63 | W65: 0.04180573009 | X65: 0.1647270672 | Y65: 1.656515575 | Z65: 1.014978076 | AA65: 1.1610744 | AB65: 0.3779822677 | AO65: 63 | AP65: 0.0006097246577 | AQ65: 0.005717762157 | AR65: 0.01661588598 | AS65: 0.01677163938 | AT65: 0.01330932357 | AU65: 0.006717886397 | AW65: 63 | AX65: =SUM(AP$3:AP65) -> 0.966224345 | AY65: =SUM(AQ$3:AQ65) -> 0.8841631157 | AZ65: =SUM(AR$3:AR65) -> 0.4975163287 | BA65: =SUM(AS$3:AS65) -> 0.4948085198 | BB65: =SUM(AT$3:AT65) -> 0.6551324225 | BC65: =SUM(AU$3:AU65) -> 0.8532720134
A66: 64 | B66: 68.33303943 | C66: 26.18064586 | D66: 59.98409776 | E66: 36.19906544 | F66: 65.50974159 | G66: 52.77033888 | H66: 64 | I66: 1.067703741 | J66: 0.4090725916 | K66: 0.9372515275 | L66: 0.5656103975 | M66: 1.023589712 | N66: 0.824536545 | O66: 64 | P66: 0.03469099797 | Q66: 0.1528161445 | R66: 1.638382252 | S66: 1.00455626 | T66: 1.108571348 | U66: 0.3349160106 | V66: 64 | W66: 0.03618622582 | X66: 0.1563320655 | Y66: 1.648232061 | Z66: 1.010411399 | AA66: 1.127198754 | AB66: 0.3466476537 | AO66: 64 | AP66: 0.0005277657897 | AQ66: 0.005426367283 | AR66: 0.01653279716 | AS66: 0.01669617897 | AT66: 0.01292100915 | AU66: 0.006160975676 | AW66: 64 | AX66: =SUM(AP$3:AP66) -> 0.9667521108 | AY66: =SUM(AQ$3:AQ66) -> 0.889589483 | AZ66: =SUM(AR$3:AR66) -> 0.5140491259 | BA66: =SUM(AS$3:AS66) -> 0.5115046988 | BB66: =SUM(AT$3:AT66) -> 0.6680534316 | BC66: =SUM(AU$3:AU66) -> 0.859432989
A67: 65 | B67: 68.36435669 | C67: 26.32895878 | D67: 61.62091146 | E67: 37.20294983 | F67: 66.60206608 | G67: 53.08782916 | H67: 65 | I67: 1.051759334 | J67: 0.4050609043 | K67: 0.9480140225 | L67: 0.5723530743 | M67: 1.02464717 | N67: 0.8167358332 | O67: 65 | P67: 0.03002371458 | Q67: 0.1449645297 | R67: 1.625499854 | S67: 0.9971072417 | T67: 1.073586268 | U67: 0.3066995139 | V67: 65 | W67: 0.03131726579 | X67: 0.14831292 | Y67: 1.636813698 | Z67: 1.003884388 | AA67: 1.092324481 | AB67: 0.3174902823 | AO67: 65 | AP67: 0.0004567533953 | AQ67: 0.00514801857 | AR67: 0.01641826384 | AS67: 0.01658832573 | AT67: 0.01252124753 | AU67: 0.005642761132 | AW67: 65 | AX67: =SUM(AP$3:AP67) -> 0.9672088642 | AY67: =SUM(AQ$3:AQ67) -> 0.8947375016 | AZ67: =SUM(AR$3:AR67) -> 0.5304673897 | BA67: =SUM(AS$3:AS67) -> 0.5280930245 | BB67: =SUM(AT$3:AT67) -> 0.6805746791 | BC67: =SUM(AU$3:AU67) -> 0.8650757502
A68: 66 | B68: 68.39145652 | C68: 26.46961741 | D68: 63.24322237 | E68: 38.19837476 | F68: 67.6587326 | G68: 53.37826235 | H68: 66 | I68: =B68/$A68 -> 1.03623419 | J68: =C68/$A68 -> 0.4010548092 | K68: =D68/$A68 -> 0.958230642 | L68: =E68/$A68 -> 0.578763254 | M68: =F68/$A68 -> 1.025132312 | N68: =G68/$A68 -> 0.8087615508 | O68: 66 | P68: 0.02598084098 | Q68: 0.1374716152 | R68: 1.609588316 | S68: 0.9877590115 | T68: 1.037910424 | U68: 0.280525211 | V68: 66 | W68: 0.02709982361 | X68: 0.140658625 | Y68: 1.62231091 | Z68: 0.9954249356 | AA68: 1.056666525 | AB68: 0.2904331931 | AO68: 66 | AP68: 0.0003952432032 | AQ68: 0.004882334011 | AR68: 0.01627279182 | AS68: 0.01644854056 | AT68: 0.0121125026 | AU68: 0.005161874946 | AW68: 66 | AX68: =SUM(AP$3:AP68) -> 0.9676041074 | AY68: =SUM(AQ$3:AQ68) -> 0.8996198356 | AZ68: =SUM(AR$3:AR68) -> 0.5467401815 | BA68: =SUM(AS$3:AS68) -> 0.5445415651 | BB68: =SUM(AT$3:AT68) -> 0.6926871817 | BC68: =SUM(AU$3:AU68) -> 0.8702376251
A69: 67 | B69: 68.41490415 | C69: 26.60297519 | D69: 64.84801305 | E69: 39.1834463 | F69: 68.67916513 | G69: 53.6436499 | H69: 67 | I69: 1.021117972 | J69: 0.3970593312 | K69: 0.9678807918 | L69: 0.5848275568 | M69: 1.025062166 | N69: 0.800651491 | O69: 67 | P69: 0.02247972819 | Q69: 0.1303260101 | R69: 1.590722148 | S69: 0.9765549571 | T69: 1.001744521 | U69: 0.2563044508 | V69: 67 | W69: =B69-B68 -> 0.02344763078 | X69: =C69-C68 -> 0.1333577825 | Y69: =D69-D68 -> 1.604790681 | Z69: =E69-E68 -> 0.9850715398 | AA69: =F69-F68 -> 1.020432528 | AB69: =G69-G68 -> 0.265387544 | AO69: 67 | AP69: =W69/B$122 -> 0.0003419770118 | AQ69: =X69/C$122 -> 0.004628917973 | AR69: =Y69/D$122 -> 0.01609705298 | AS69: =Z69/E$122 -> 0.01627745961 | AT69: =AA69/F$122 -> 0.01169715454 | AU69: =AB69/G$122 -> 0.004716738123 | AW69: 67 | AX69: =SUM(AP$3:AP69) -> 0.9679460844 | AY69: =SUM(AQ$3:AQ69) -> 0.9042487536 | AZ69: =SUM(AR$3:AR69) -> 0.5628372345 | BA69: =SUM(AS$3:AS69) -> 0.5608190247 | BB69: =SUM(AT$3:AT69) -> 0.7043843363 | BC69: =SUM(AU$3:AU69) -> 0.8749543632
A70: 68 | B70: 68.43518976 | C70: 26.72937391 | D70: 66.43234925 | E70: 40.15631942 | F70: 69.66298605 | G70: 53.88590604 | H70: 68 | I70: 1.006399849 | J70: 0.3930790281 | K70: 0.9769463125 | L70: 0.590534109 | M70: 1.024455677 | N70: 0.7924397947 | O70: 68 | P70: 0.01944844278 | Q70: 0.1235160792 | R70: 1.568991616 | S70: 0.96354861 | T70: 0.9652796883 | U70: 0.2339410575 | V70: 68 | W70: 0.02028561138 | X70: 0.1263987177 | Y70: 1.584336199 | Z70: 0.9728731126 | AA70: 0.983820921 | AB70: 0.2422561426 | AO70: 68 | AP70: 0.00029585986 | AQ70: 0.004387365215 | AR70: 0.01589188175 | AS70: 0.01607589109 | AT70: 0.01127747797 | AU70: 0.004305623264 | AW70: 68 | AX70: =SUM(AP$3:AP70) -> 0.9682419442 | AY70: =SUM(AQ$3:AQ70) -> 0.9086361188 | AZ70: =SUM(AR$3:AR70) -> 0.5787291162 | BA70: =SUM(AS$3:AS70) -> 0.5768949158 | BB70: =SUM(AT$3:AT70) -> 0.7156618143 | BC70: =SUM(AU$3:AU70) -> 0.8792599865
A71: 69 | B71: 68.45273825 | C71: 26.84914349 | D71: 67.9933956 | E71: 41.11520811 | F71: 70.61000538 | G71: 54.10684249 | H71: 69 | I71: 0.9920686703 | J71: 0.3891180216 | K71: 0.9854115304 | L71: 0.5958725813 | M71: 1.023333411 | N71: 0.7841571375 | O71: 69 | P71: =(B74-B68)/($A74-$A68) -> 0.01682443454 | Q71: =(C74-C68)/($A74-$A68) -> 0.1170300403 | R71: =(D74-D68)/($A74-$A68) -> 1.544502167 | S71: =(E74-E68)/($A74-$A68) -> 0.9488033139 | T71: =(F74-F68)/($A74-$A68) -> 0.9286960448 | U71: =(G74-G68)/($A74-$A68) -> 0.2133341377 | V71: 69 | W71: 0.01754848849 | X71: 0.1197695805 | Y71: 1.561046347 | Z71: 0.9588886944 | AA71: 0.9470193354 | AB71: 0.2209364503 | AO71: 69 | AP71: 0.0002559397029 | AQ71: 0.004157264417 | AR71: 0.01565826998 | AS71: 0.01584481062 | AT71: 0.01085562369 | AU71: 0.003926707946 | AW71: 69 | AX71: =SUM(AP$3:AP71) -> 0.9684978839 | AY71: =SUM(AQ$3:AQ71) -> 0.9127933832 | AZ71: =SUM(AR$3:AR71) -> 0.5943873862 | BA71: =SUM(AS$3:AS71) -> 0.5927397264 | BB71: =SUM(AT$3:AT71) -> 0.726517438 | BC71: =SUM(AU$3:AU71) -> 0.8831866944
A72: 70 | B72: 68.4679178 | C72: 26.96260192 | D72: 69.52843065 | E72: 42.05839518 | F72: 71.52020872 | G72: 54.30816558 | H72: 70 | I72: 0.9781131114 | J72: 0.3851800275 | K72: 0.993263295 | L72: 0.6008342169 | M72: 1.021717267 | N72: 0.7758309369 | O72: 70 | P72: 0.01455335514 | Q72: 0.1108560487 | R72: 1.517373718 | S72: 0.9323918006 | T72: 0.8921615803 | U72: 0.1943804267 | V72: 70 | W72: 0.01517954911 | X72: 0.1134584347 | Y72: 1.535035054 | Z72: 0.9431870723 | AA72: 0.9102033379 | AB72: 0.2013230928 | AO72: 70 | AP72: 0.0002213893972 | AQ72: 0.003938201263 | AR72: 0.01539736046 | AS72: 0.01558535482 | AT72: 0.0104336042 | AU72: 0.003578119352 | AW72: 70 | AX72: =SUM(AP$3:AP72) -> 0.9687192733 | AY72: =SUM(AQ$3:AQ72) -> 0.9167315845 | AZ72: =SUM(AR$3:AR72) -> 0.6097847467 | BA72: =SUM(AS$3:AS72) -> 0.6083250812 | BB72: =SUM(AT$3:AT72) -> 0.7369510422 | BC72: =SUM(AU$3:AU72) -> 0.8867648138
A73: 71 | B73: 68.48104735 | C73: 27.07005526 | D73: 71.03486116 | E73: 42.98424149 | F73: 72.39374421 | G73: 54.49147551 | H73: 71 | I73: 0.9645217937 | J73: 0.3812683839 | K73: 1.000491002 | L73: 0.6054118519 | M73: 1.0196302 | N73: 0.7674855705 | O73: 71 | P73: 0.01258801455 | Q73: 0.1049822702 | R73: 1.487739805 | S73: 0.9143956759 | T73: 0.8558313307 | U73: 0.1769762115 | V73: 71 | W73: 0.01312955332 | X73: 0.1074533345 | Y73: 1.506430506 | Z73: 0.9258463051 | AA73: 0.8735354831 | AB73: 0.183309922 | AO73: 71 | AP73: 0.0001914907929 | AQ73: 0.003729761115 | AR73: 0.01511043898 | AS73: 0.01529881356 | AT73: 0.01001328286 | AU73: 0.003257970907 | AW73: 71 | AX73: =SUM(AP$3:AP73) -> 0.9689107641 | AY73: =SUM(AQ$3:AQ73) -> 0.9204613456 | AZ73: =SUM(AR$3:AR73) -> 0.6248951857 | BA73: =SUM(AS$3:AS73) -> 0.6236238948 | BB73: =SUM(AT$3:AT73) -> 0.746964325 | BC73: =SUM(AU$3:AU73) -> 0.8900227847
A74: 72 | B74: 68.49240312 | C74: 27.17179765 | D74: 72.51023537 | E74: 43.89119465 | F74: 73.23090887 | G74: 54.65826718 | H74: 72 | I74: 0.9512833767 | J74: 0.3773860785 | K74: 1.007086602 | L74: 0.6095999256 | M74: 1.017095957 | N74: 0.7591425997 | O74: 72 | P74: 0.01088746211 | Q74: 0.09939694419 | R74: 1.455746608 | S74: 0.8949048205 | T74: 0.8198468373 | U74: 0.1610188778 | V74: 72 | W74: 0.01135577415 | X74: 0.101742392 | Y74: 1.475374218 | Z74: 0.9069531593 | AA74: 0.8371646638 | AB74: 0.1667916744 | AO74: 72 | AP74: 0.0001656207292 | AQ74: 0.003531531329 | AR74: 0.01479892501 | AS74: 0.01498662059 | AT74: 0.009596366427 | AU74: 0.002964391763 | AW74: 72 | AX74: =SUM(AP$3:AP74) -> 0.9690763848 | AY74: =SUM(AQ$3:AQ74) -> 0.9239928769 | AZ74: =SUM(AR$3:AR74) -> 0.6396941107 | BA74: =SUM(AS$3:AS74) -> 0.6386105154 | BB74: =SUM(AT$3:AT74) -> 0.7565606914 | BC74: =SUM(AU$3:AU74) -> 0.8929871765
A75: 73 | B75: 68.50222428 | C75: 27.26811148 | D75: 73.95225536 | E75: 44.77779711 | F75: 74.03213461 | G75: 54.80993246 | H75: 73 | I75: 0.938386634 | J75: 0.3735357737 | K75: 1.013044594 | L75: 0.6133944809 | M75: 1.01413883 | N75: 0.7508209926 | O75: 73 | P75: 0.009416179347 | Q75: 0.09408843773 | R75: 1.421551859 | S75: 0.8740167107 | T75: 0.784335866 | U75: 0.1464081241 | V75: 73 | W75: 0.009821154366 | X75: 0.09631383304 | Y75: 1.442019985 | Z75: 0.8866024602 | AA75: 0.8012257406 | AB75: 0.1516652779 | AO75: 73 | AP75: 0.0001432387372 | AQ75: 0.003343103225 | AR75: 0.01446436123 | AS75: 0.01465034279 | AT75: 0.009184400788 | AU75: 0.002695550016 | AW75: 73 | AX75: =SUM(AP$3:AP75) -> 0.9692196236 | AY75: =SUM(AQ$3:AQ75) -> 0.9273359801 | AZ75: =SUM(AR$3:AR75) -> 0.6541584719 | BA75: =SUM(AS$3:AS75) -> 0.6532608582 | BB75: =SUM(AT$3:AT75) -> 0.7657450922 | BC75: =SUM(AU$3:AU75) -> 0.8956827265
A76: 74 | B76: 68.51071785 | C76: 27.35926753 | D76: 75.35878808 | E76: 45.64269347 | F76: 74.79797403 | G76: 54.94776331 | H76: 74 | I76: 0.9258205114 | J76: 0.3697198315 | K76: 1.018362001 | L76: 0.616793155 | M76: 1.010783433 | N76: 0.742537342 | O76: 74 | P76: 0.008143372796 | Q76: 0.08904529107 | R76: 1.385323638 | S76: 0.8518356664 | T76: 0.7494123607 | U76: 0.1330468908 | V76: 74 | W76: 0.008493567891 | X76: 0.09115604651 | Y76: 1.406532718 | Z76: 0.8648963644 | AA76: 0.7658394234 | AB76: 0.1378308518 | AO76: 74 | AP76: 0.0001238762668 | AQ76: 0.003164073773 | AR76: 0.01410840176 | AS76: 0.01429166824 | AT76: 0.008778769636 | AU76: 0.002449670484 | AW76: 74 | AX76: =SUM(AP$3:AP76) -> 0.9693434999 | AY76: =SUM(AQ$3:AQ76) -> 0.9305000539 | AZ76: =SUM(AR$3:AR76) -> 0.6682668737 | BA76: =SUM(AS$3:AS76) -> 0.6675525264 | BB76: =SUM(AT$3:AT76) -> 0.7745238619 | BC76: =SUM(AU$3:AU76) -> 0.898132397
A77: 75 | B77: 68.51806302 | C77: 27.44552515 | D77: 76.72787524 | E77: 46.48463703 | F77: 75.52908641 | G77: 55.07295576 | H77: 75 | I77: 0.9135741736 | J77: 0.3659403354 | K77: 1.023038337 | L77: 0.6197951604 | M77: 1.007054485 | N77: 0.7343060768 | O77: 75 | P77: 0.007042355387 | Q77: 0.08425625594 | R77: 1.347239076 | S77: 0.8284720328 | T77: 0.7151766042 | U77: 0.1208420433 | V77: 75 | W77: 0.007345173823 | X77: 0.08625762442 | Y77: 1.369087166 | Z77: 0.8419435617 | AA77: 0.7311123751 | AB77: 0.1251924477 | AO77: 75 | AP77: 0.0001071272666 | AQ77: 0.002994046995 | AR77: 0.01373279949 | AS77: 0.01391239292 | AT77: 0.008380695644 | AU77: 0.002225047874 | AW77: 75 | AX77: =SUM(AP$3:AP77) -> 0.9694506271 | AY77: =SUM(AQ$3:AQ77) -> 0.9334941009 | AZ77: =SUM(AR$3:AR77) -> 0.6819996731 | BA77: =SUM(AS$3:AS77) -> 0.6814649193 | BB77: =SUM(AT$3:AT77) -> 0.7829045575 | BC77: =SUM(AU$3:AU77) -> 0.9003574448
A78: 76 | B78: 68.52441487 | C78: 27.52713255 | D78: 78.05774181 | E78: 47.30249545 | F78: 76.22622392 | G78: 55.18661433 | H78: 76 | I78: 0.9016370378 | J78: 0.3621991125 | K78: 1.02707555 | L78: 0.6224012559 | M78: 1.002976631 | N78: 0.7261396622 | O78: 76 | P78: 0.00609000632 | Q78: 0.07971032716 | R78: 1.307482974 | S78: 0.8040413058 | T78: 0.6817155557 | U78: 0.1097048513 | V78: 76 | W78: 0.006351852536 | X78: 0.08160739587 | Y78: 1.329866562 | Z78: 0.8178584136 | AA78: 0.6971375099 | AB78: 0.1136585709 | AO78: 76 | AP78: 9.26399588e-05 | AQ78: 0.002832635144 | AR78: 0.01333939233 | AS78: 0.01351440657 | AT78: 0.007991243879 | AU78: 0.002020056051 | AW78: 76 | AX78: =SUM(AP$3:AP78) -> 0.9695432671 | AY78: =SUM(AQ$3:AQ78) -> 0.936326736 | AZ78: =SUM(AR$3:AR78) -> 0.6953390655 | BA78: =SUM(AS$3:AS78) -> 0.6949793259 | BB78: =SUM(AT$3:AT78) -> 0.7908958014 | BC78: =SUM(AU$3:AU78) -> 0.9023775009
A79: 77 | B79: 68.52990759 | C79: 27.604327 | D79: 79.34680299 | E79: 48.09525549 | F79: 76.89021837 | G79: 55.28975685 | H79: 77 | I79: 0.8899987998 | J79: 0.3584977533 | K79: 1.030477961 | L79: 0.6246137076 | M79: 0.9985742645 | N79: 0.7180487903 | O79: 77 | P79: 0.005266300077 | Q79: 0.07539676843 | R79: 1.266246359 | S79: 0.7786632097 | T79: 0.6491033371 | U79: 0.09955129677 | V79: 77 | W79: 0.005492714014 | X79: 0.07719445461 | Y79: 1.289061181 | Z79: 0.7927600394 | AA79: 0.6639944514 | AB79: 0.103142522 | AO79: 77 | AP79: 8.010966834e-05 | AQ79: 0.002679459658 | AR79: 0.01293008887 | AS79: 0.01309967753 | AT79: 0.007611327063 | AU79: 0.001833154105 | AW79: 77 | AX79: =SUM(AP$3:AP79) -> 0.9696233767 | AY79: =SUM(AQ$3:AQ79) -> 0.9390061957 | AZ79: =SUM(AR$3:AR79) -> 0.7082691543 | BA79: =SUM(AS$3:AS79) -> 0.7080790034 | BB79: =SUM(AT$3:AT79) -> 0.7985071285 | BC79: =SUM(AU$3:AU79) -> 0.904210655
A80: 78 | B80: 68.53465726 | C80: 27.67733518 | D80: 80.59366983 | E80: 48.86202684 | F80: 77.52196849 | G80: 55.38331944 | H80: 78 | I80: 0.878649452 | J80: 0.3548376306 | K80: 1.033252177 | L80: 0.6264362416 | M80: 0.993871391 | N80: 0.7100425569 | O80: 78 | P80: 0.004553896215 | Q80: 0.07130513292 | R80: 1.223724984 | S80: 0.7524607388 | T80: 0.6174018388 | U80: 0.09030224442 | V80: 78 | W80: 0.004749669691 | X80: 0.07300818118 | Y80: 1.246866844 | Z80: 0.7667713578 | AA80: 0.6317501246 | AB80: 0.09356258976 | AO80: 78 | AP80: 6.927257867e-05 | AQ80: 0.002534151931 | AR80: 0.01250685331 | AS80: 0.01267023693 | AT80: 0.007241712352 | AU80: 0.001662889778 | AW80: 78 | AX80: =SUM(AP$3:AP80) -> 0.9696926493 | AY80: =SUM(AQ$3:AQ80) -> 0.9415403476 | AZ80: =SUM(AR$3:AR80) -> 0.7207760076 | BA80: =SUM(AS$3:AS80) -> 0.7207492404 | BB80: =SUM(AT$3:AT80) -> 0.8057488408 | BC80: =SUM(AU$3:AU80) -> 0.9058735448
A81: 79 | B81: 68.53876432 | C81: 27.74637345 | D81: 81.7971532 | E81: 49.60204494 | F81: 78.12242794 | G81: 55.46816157 | H81: 79 | I81: 0.8675792952 | J81: 0.351219917 | K81: 1.035407003 | L81: 0.6278739866 | M81: 0.988891493 | N81: 0.7021286274 | O81: 79 | P81: 0.00393778247 | Q81: 0.06742527925 | R81: 1.180117802 | S81: 0.7255591726 | T81: 0.5866614181 | U81: 0.08188350004 | V81: 79 | W81: 0.004107059965 | X81: 0.06903826034 | Y81: 1.203483373 | Z81: 0.7400180978 | AA81: 0.6004594496 | AB81: 0.08484212565 | AO81: 79 | AP81: 5.990029898e-05 | AQ81: 0.002396353914 | AR81: 0.01207168999 | AS81: 0.01222816233 | AT81: 0.006883029292 | AU81: 0.001507900795 | AW81: 79 | AX81: =SUM(AP$3:AP81) -> 0.9697525496 | AY81: =SUM(AQ$3:AQ81) -> 0.9439367015 | AZ81: =SUM(AR$3:AR81) -> 0.7328476976 | BA81: =SUM(AS$3:AS81) -> 0.7329774027 | BB81: =SUM(AT$3:AT81) -> 0.8126318701 | BC81: =SUM(AU$3:AU81) -> 0.9073814456
A82: 80 | B82: 68.54231565 | C82: 27.81164814 | D82: 82.95626623 | E82: 50.31467273 | F82: 78.69259406 | G82: 55.54507109 | H82: 80 | I82: 0.8567789456 | J82: 0.3476456017 | K82: 1.036953328 | L82: 0.6289334091 | M82: 0.9836574257 | N82: 0.6943133886 | O82: 80 | P82: 0.003404964499 | Q82: 0.06374738343 | R82: 1.135625412 | S82: 0.6980850766 | T82: 0.5569216648 | U82: 0.07422578114 | V82: 80 | W82: 0.00355133043 | X82: 0.06527469413 | Y82: 1.159113026 | Z82: 0.7126277878 | AA82: 0.5701661119 | AB82: 0.07690952467 | AO82: 80 | AP82: 5.179514211e-05 | AQ82: 0.002265718574 | AR82: 0.0116266277 | AS82: 0.01177556103 | AT82: 0.006535778647 | AU82: 0.001366914519 | AW82: 80 | AX82: =SUM(AP$3:AP82) -> 0.9698043448 | AY82: =SUM(AQ$3:AQ82) -> 0.9462024201 | AZ82: =SUM(AR$3:AR82) -> 0.7444743253 | BA82: =SUM(AS$3:AS82) -> 0.7447529637 | BB82: =SUM(AT$3:AT82) -> 0.8191676487 | BC82: =SUM(AU$3:AU82) -> 0.9087483601
A83: 81 | B83: 68.5453864 | C83: 27.87335595 | D83: 84.07022515 | E83: 50.99940147 | F83: 79.23349744 | G83: 55.61476922 | H83: 81 | I83: 0.8462393382 | J83: 0.3441155056 | K83: 1.037904014 | L83: 0.6296222403 | M83: 0.9781913264 | N83: 0.6866020892 | O83: 81 | P83: 0.002944196382 | Q83: 0.06026194732 | R83: 1.090448513 | S83: 0.6701653006 | T83: 0.5282122127 | U83: 0.06726461972 | V83: 81 | W83: 0.003070750652 | X83: 0.06170781137 | Y83: 1.113958921 | Z83: 0.6847287365 | AA83: 0.5409033855 | AB83: 0.06969813361 | AO83: 81 | AP83: 4.478602303e-05 | AQ83: 0.002141910219 | AR83: 0.01117370382 | AS83: 0.01131455321 | AT83: 0.006200341836 | AU83: 0.001238746322 | AW83: 81 | AX83: =SUM(AP$3:AP83) -> 0.9698491308 | AY83: =SUM(AQ$3:AQ83) -> 0.9483443303 | AZ83: =SUM(AR$3:AR83) -> 0.7556480292 | BA83: =SUM(AS$3:AS83) -> 0.7560675169 | BB83: =SUM(AT$3:AT83) -> 0.8253679906 | BC83: =SUM(AU$3:AU83) -> 0.9099871064
A84: 82 | B84: 68.54804157 | C84: 27.93168422 | D84: 85.13844862 | E84: 51.65585048 | F84: 79.74619243 | G84: 55.67791533 | H84: 82 | I84: 0.8359517264 | J84: 0.3406302954 | K84: 1.038273764 | L84: 0.6299493961 | M84: 0.9725145418 | N84: 0.6789989674 | O84: 82 | P84: 0.002545746671 | Q84: 0.05695980395 | R84: 1.044786382 | S84: 0.6419259861 | T84: 0.5005535741 | U84: 0.06094021392 | V84: 82 | W84: 0.002655170065 | X84: 0.05832827385 | Y84: 1.068223469 | Z84: 0.6564490164 | AA84: 0.5126949854 | AB84: 0.06314610458 | AO84: 82 | AP84: 3.87248986e-05 | AQ84: 0.002024604714 | AR84: 0.01071494867 | AS84: 0.01084725517 | AT84: 0.005876990702 | AU84: 0.001122296979 | AW84: 82 | AX84: =SUM(AP$3:AP84) -> 0.9698878557 | AY84: =SUM(AQ$3:AQ84) -> 0.9503689351 | AZ84: =SUM(AR$3:AR84) -> 0.7663629778 | BA84: =SUM(AS$3:AS84) -> 0.7669147721 | BB84: =SUM(AT$3:AT84) -> 0.8312449813 | BC84: =SUM(AU$3:AU84) -> 0.9111094034
A85: 83 | B85: 68.55033737 | C85: 27.9868113 | D85: 86.16055546 | E85: 52.28376594 | F85: 80.23174836 | G85: 55.73511154 | H85: 83 | I85: 0.8259076792 | J85: 0.3371904976 | K85: 1.038078981 | L85: 0.6299248909 | M85: 0.9666475706 | N85: 0.6715073679 | O85: 83 | P85: 0.002201195415 | Q85: 0.05383212022 | R85: 0.9988353732 | S85: 0.6134915942 | T85: 0.4739579833 | U85: 0.0551972424 | V85: 83 | W85: 0.002295806188 | X85: 0.05512707973 | Y85: 1.022106837 | Z85: 0.6279154632 | AA85: 0.4855559321 | AB85: 0.05719620857 | AO85: 83 | AP85: 3.348367888e-05 | AQ85: 0.001913489602 | AR85: 0.01025237004 | AS85: 0.01037576275 | AT85: 0.005565897424 | AU85: 0.001016549358 | AW85: 83 | AX85: =SUM(AP$3:AP85) -> 0.9699213394 | AY85: =SUM(AQ$3:AQ85) -> 0.9522824247 | AZ85: =SUM(AR$3:AR85) -> 0.7766153479 | BA85: =SUM(AS$3:AS85) -> 0.7772905348 | BB85: =SUM(AT$3:AT85) -> 0.8368108787 | BC85: =SUM(AU$3:AU85) -> 0.9121259528
A86: 84 | B86: 68.55232244 | C86: 28.03890687 | D86: 87.13636091 | E86: 52.88301865 | F86: 80.69124177 | G86: 55.78690716 | H86: 84 | I86: 0.8160990766 | J86: 0.3337965103 | K86: 1.03733763 | L86: 0.6295597458 | M86: 0.9606100211 | N86: 0.6641298471 | O86: 84 | P86: 0.00190325814 | Q86: 0.05087039731 | R86: 0.9527874868 | S86: 0.5849839657 | T86: 0.4484302307 | U86: 0.04998465316 | V86: 84 | W86: 0.001985060989 | X86: 0.05209556453 | Y86: 0.9758054534 | Z86: 0.5992527018 | AA86: 0.4594934118 | AB86: 0.05179562126 | AO86: 84 | AP86: 2.895154873e-05 | AQ86: 0.001808264133 | AR86: 0.009787938243 | AS86: 0.00990213528 | AT86: 0.005267144376 | AU86: 0.0009205646118 | AW86: 84 | AX86: =SUM(AP$3:AP86) -> 0.9699502909 | AY86: =SUM(AQ$3:AQ86) -> 0.9540906888 | AZ86: =SUM(AR$3:AR86) -> 0.7864032861 | BA86: =SUM(AS$3:AS86) -> 0.7871926701 | BB86: =SUM(AT$3:AT86) -> 0.8420780231 | BC86: =SUM(AU$3:AU86) -> 0.9130465174
A87: 85 | B87: 68.5540388 | C87: 28.08813227 | D87: 88.06587149 | E87: 53.45360086 | F87: 81.12574939 | G87: 55.83380285 | H87: 85 | I87: 0.8065181035 | J87: 0.3304486149 | K87: 1.036069076 | L87: 0.6288658924 | M87: 0.954420581 | N87: 0.6568682688 | O87: 85 | P87: 0.001645633265 | Q87: 0.04806646911 | R87: 0.9068289948 | S87: 0.5565214244 | T87: 0.4239684786 | U87: 0.04525543571 | V87: 85 | W87: 0.001716361702 | X87: 0.0492254001 | Y87: 0.9295105835 | Z87: 0.5705822108 | AA87: 0.4345076183 | AB87: 0.0468956908 | AO87: 85 | AP87: 2.503264622e-05 | AQ87: 0.001708639233 | AR87: 0.00932357178 | AS87: 0.009428380086 | AT87: 0.00498073378 | AU87: 0.0008334780498 | AW87: 85 | AX87: =SUM(AP$3:AP87) -> 0.9699753236 | AY87: =SUM(AQ$3:AQ87) -> 0.955799328 | AZ87: =SUM(AR$3:AR87) -> 0.7957268579 | BA87: =SUM(AS$3:AS87) -> 0.7966210502 | BB87: =SUM(AT$3:AT87) -> 0.8470587569 | BC87: =SUM(AU$3:AU87) -> 0.9138799954
A88: 86 | B88: 68.55552282 | C88: 28.13464086 | D88: 88.94927847 | E88: 53.99562229 | F88: 81.53634196 | G88: 55.87625454 | H88: 86 | I88: 0.7971572421 | J88: 0.3271469868 | K88: 1.034293936 | L88: 0.6278560732 | M88: 0.9480969995 | N88: 0.6497238901 | O88: 86 | P88: 0.001422869895 | Q88: 0.04541249897 | R88: 0.8611391578 | S88: 0.528217933 | T88: 0.4005650462 | U88: 0.04096638443 | V88: 86 | W88: 0.001484022896 | X88: 0.04650859174 | Y88: 0.883406975 | Z88: 0.5420214365 | AA88: 0.4105925666 | AB88: 0.04245169559 | AO88: 86 | AP88: 2.164405096e-05 | AQ88: 0.001614337403 | AR88: 0.008861123788 | AS88: 0.008956437864 | AT88: 0.004706597031 | AU88: 0.0007544948341 | AW88: 86 | AX88: =SUM(AP$3:AP88) -> 0.9699969676 | AY88: =SUM(AQ$3:AQ88) -> 0.9574136654 | AZ88: =SUM(AR$3:AR88) -> 0.8045879817 | BA88: =SUM(AS$3:AS88) -> 0.8055774881 | BB88: =SUM(AT$3:AT88) -> 0.8517653539 | BC88: =SUM(AU$3:AU88) -> 0.9146344902
A89: 87 | B89: 68.55680595 | C89: 28.17857833 | D89: 89.78695007 | E89: 54.50930526 | F89: 81.92407883 | G89: 55.91467714 | H89: 87 | I89: 0.7880092638 | J89: 0.323891705 | K89: 1.032033909 | L89: 0.6265437386 | M89: 0.9416560785 | N89: 0.6426974384 | O89: 87 | P89: 0.00123025328 | Q89: 0.0429009751 | R89: 0.8158890378 | S89: 0.5001823122 | T89: 0.3782071575 | U89: 0.03707785861 | V89: 87 | W89: 0.001283126997 | X89: 0.04393747391 | Y89: 0.8376716026 | Z89: 0.5136829658 | AA89: 0.3877368699 | AB89: 0.03842259813 | AO89: 87 | AP89: 1.871404153e-05 | AQ89: 0.001525092566 | AR89: 0.008402369434 | AS89: 0.00848816902 | AT89: 0.004444603603 | AU89: 0.0006828856045 | AW89: 87 | AX89: =SUM(AP$3:AP89) -> 0.9700156817 | AY89: =SUM(AQ$3:AQ89) -> 0.958938758 | AZ89: =SUM(AR$3:AR89) -> 0.8129903511 | BA89: =SUM(AS$3:AS89) -> 0.8140656571 | BB89: =SUM(AT$3:AT89) -> 0.8562099575 | BC89: =SUM(AU$3:AU89) -> 0.9153173759
A90: 88 | B90: 68.55791537 | C90: 28.22008304 | D90: 90.57942259 | E90: 54.99497903 | F90: 82.2900033 | G90: 55.94944794 | H90: 88 | I90: 0.7790672201 | J90: 0.3206827618 | K90: 1.02931162 | L90: 0.6249429435 | M90: 0.9351136738 | N90: 0.6357891812 | O90: 88 | P90: 0.001063705632 | Q90: 0.04052470473 | R90: 0.7712404212 | S90: 0.4725175306 | T90: 0.3568776467 | U90: 0.03355354405 | V90: 88 | W90: 0.001109420817 | X90: 0.04150470463 | Y90: 0.7924725174 | Z90: 0.4856737684 | AA90: 0.3659244728 | AB90: 0.03477079991 | AO90: 88 | AP90: 1.61805864e-05 | AQ90: 0.001440649879 | AR90: 0.007948994375 | AS90: 0.008025341134 | AT90: 0.004194569453 | AU90: 0.0006179821216 | AW90: 88 | AX90: =SUM(AP$3:AP90) -> 0.9700318622 | AY90: =SUM(AQ$3:AQ90) -> 0.9603794079 | AZ90: =SUM(AR$3:AR90) -> 0.8209393455 | BA90: =SUM(AS$3:AS90) -> 0.8220909982 | BB90: =SUM(AT$3:AT90) -> 0.860404527 | BC90: =SUM(AU$3:AU90) -> 0.915935358
A91: 89 | B91: 68.55887459 | C91: 28.2592863 | D91: 91.3273904 | E91: 55.45307354 | F91: 82.63513864 | G91: 55.98090984 | H91: 89 | I91: 0.7703244336 | J91: 0.3175200708 | K91: 1.026150454 | L91: 0.6230682421 | M91: 0.9284847038 | N91: 0.628998987 | O91: 89 | P91: 0.0009197002379 | Q91: 0.03827680733 | R91: 0.7273448636 | S91: 0.4453200725 | T91: 0.3365556156 | U91: 0.03036021939 | V91: 89 | W91: 0.0009592259654 | X91: 0.03920325891 | Y91: 0.7479678151 | Z91: 0.4580945147 | AA91: 0.3451353377 | AB91: 0.03146190087 | AO91: 89 | AP91: 1.39900373e-05 | AQ91: 0.001360765501 | AR91: 0.007502584411 | AS91: 0.007569617695 | AT91: 0.003956264891 | AU91: 0.0005591729929 | AW91: 89 | AX91: =SUM(AP$3:AP91) -> 0.9700458523 | AY91: =SUM(AQ$3:AQ91) -> 0.9617401734 | AZ91: =SUM(AR$3:AR91) -> 0.8284419299 | BA91: =SUM(AS$3:AS91) -> 0.8296606159 | BB91: =SUM(AT$3:AT91) -> 0.8643607918 | BC91: =SUM(AU$3:AU91) -> 0.916494531
A92: 90 | B92: 68.55970396 | C92: 28.29631272 | D92: 92.03169514 | E92: 55.88411252 | F92: 82.96048472 | G92: 56.00937431 | H92: 90 | I92: 0.7617744884 | J92: 0.3144034747 | K92: 1.02257439 | L92: 0.6209345836 | M92: 0.9217831635 | N92: 0.6223263812 | O92: 90 | P92: 0.000795187115 | Q92: 0.03615070709 | R92: 0.6843428633 | S92: 0.4186793904 | T92: 0.3172170434 | U92: 0.02746752997 | V92: 90 | W92: 0.0008293613027 | X92: 0.03702642132 | Y92: 0.7043047333 | Z92: 0.4310389771 | AA92: 0.32534608 | AB92: 0.02846446637 | AO92: 90 | AP92: 1.209599821e-05 | AQ92: 0.001285206337 | AR92: 0.007064616426 | AS92: 0.007122548216 | AT92: 0.003729421862 | AU92: 0.0005058995297 | AW92: 90 | AX92: =SUM(AP$3:AP92) -> 0.9700579483 | AY92: =SUM(AQ$3:AQ92) -> 0.9630253797 | AZ92: =SUM(AR$3:AR92) -> 0.8355065463 | BA92: =SUM(AS$3:AS92) -> 0.8367831641 | BB92: =SUM(AT$3:AT92) -> 0.8680902137 | BC92: =SUM(AU$3:AU92) -> 0.9170004305
A93: 91 | B93: 68.56042103 | C93: 28.3312805 | D93: 92.69331402 | E93: 56.28870604 | F93: 83.26701527 | G93: 56.03512411 | H93: 91 | I93: 0.7534112201 | J93: 0.3113327527 | K93: 1.018607846 | L93: 0.6185572092 | M93: 0.9150221458 | N93: 0.6157705947 | O93: 91 | P93: 0.0006875286643 | Q93: 0.03414012469 | R93: 0.6423631722 | S93: 0.3926774467 | T93: 0.2988353449 | U93: 0.02484777093 | V93: 91 | W93: 0.0007170758149 | X93: 0.03496777786 | Y93: 0.661618884 | Z93: 0.404593521 | AA93: 0.3065305531 | AB93: 0.02574980342 | AO93: 91 | AP93: 1.045834638e-05 | AQ93: 0.001213749752 | AR93: 0.006636450693 | AS93: 0.006685559809 | AT93: 0.003513740648 | AU93: 0.0004576517709 | AW93: 91 | AX93: =SUM(AP$3:AP93) -> 0.9700684066 | AY93: =SUM(AQ$3:AQ93) -> 0.9642391295 | AZ93: =SUM(AR$3:AR93) -> 0.842142997 | BA93: =SUM(AS$3:AS93) -> 0.8434687239 | BB93: =SUM(AT$3:AT93) -> 0.8716039544 | BC93: =SUM(AU$3:AU93) -> 0.9174580823
A94: 92 | B94: 68.56104102 | C94: 28.3643017 | D94: 93.31334765 | E94: 56.66754273 | F94: 83.55567565 | G94: 56.05841586 | H94: 92 | I94: 0.7452287068 | J94: 0.3083076272 | K94: 1.014275518 | L94: 0.6159515514 | M94: 0.9082138658 | N94: 0.6093306072 | O94: 92 | P94: 0.000594443983 | Q94: 0.03223906869 | R94: 0.6015222466 | S94: 0.3673883467 | T94: 0.281381879 | U94: 0.02247568078 | V94: 92 | W94: 0.0006199905303 | X94: 0.03302120736 | Y94: 0.6200336292 | Z94: 0.3788366877 | AA94: 0.2886603803 | AB94: 0.02329174763 | AO94: 92 | AP94: 9.042385172e-06 | AQ94: 0.001146183278 | AR94: 0.00621932461 | AS94: 0.006259950301 | AT94: 0.00330889597 | AU94: 0.000413964696 | AW94: 92 | AX94: =SUM(AP$3:AP94) -> 0.970077449 | AY94: =SUM(AQ$3:AQ94) -> 0.9653853127 | AZ94: =SUM(AR$3:AR94) -> 0.8483623216 | BA94: =SUM(AS$3:AS94) -> 0.8497286742 | BB94: =SUM(AT$3:AT94) -> 0.8749128503 | BC94: =SUM(AU$3:AU94) -> 0.917872047
A95: 93 | B95: 68.56157707 | C95: 28.39548258 | D95: 93.89300725 | E95: 57.0213816 | F95: 83.82738109 | G95: 56.07948232 | H95: 93 | I95: 0.7372212588 | J95: 0.3053277696 | K95: 1.009602229 | L95: 0.6131331355 | M95: 0.9013696891 | N95: 0.6030051863 | O95: 93 | P95: 0.0005139606801 | Q95: 0.03044182645 | R95: 0.5619238424 | S95: 0.3428780671 | T95: 0.2648264084 | U95: 0.0203282463 | V95: 93 | W95: 0.0005360482598 | X95: 0.03118087246 | Y95: 0.5796596011 | Z95: 0.3538388736 | AA95: 0.2717054368 | AB95: 0.02106646165 | AO95: 93 | AP95: 7.818111082e-06 | AQ95: 0.001082304296 | AR95: 0.005814347888 | AS95: 0.005846882932 | AT95: 0.003114542508 | AU95: 0.0003744146438 | AW95: 93 | AX95: =SUM(AP$3:AP95) -> 0.9700852671 | AY95: =SUM(AQ$3:AQ95) -> 0.966467617 | AZ95: =SUM(AR$3:AR95) -> 0.8541766695 | BA95: =SUM(AS$3:AS95) -> 0.8555755572 | BB95: =SUM(AT$3:AT95) -> 0.8780273928 | BC95: =SUM(AU$3:AU95) -> 0.9182464616
A96: 94 | B96: 68.56204054 | C96: 28.42492379 | D96: 94.43360162 | E96: 57.35104371 | F96: 84.08301537 | G96: 56.09853457 | H96: 94 | I96: 0.72938341 | J96: 0.3023928062 | K96: 1.004612783 | L96: 0.6101174863 | M96: 0.8945001635 | N96: 0.5967929209 | O96: 94 | P96: 0.0004443731871 | Q96: 0.0287429549 | R96: 0.5236587537 | S96: 0.3192042787 | T96: 0.2491375104 | U96: 0.01838451908 | V96: 94 | W96: 0.0004634701124 | X96: 0.02944121026 | Y96: 0.5405943706 | Z96: 0.3296621059 | AA96: 0.2556342816 | AB96: 0.01905224567 | AO96: 94 | AP96: 6.759579489e-06 | AQ96: 0.001021919717 | AR96: 0.005422499224 | AS96: 0.005447382648 | AT96: 0.002930319856 | AU96: 0.0003386159431 | AW96: 94 | AX96: =SUM(AP$3:AP96) -> 0.9700920267 | AY96: =SUM(AQ$3:AQ96) -> 0.9674895367 | AZ96: =SUM(AR$3:AR96) -> 0.8595991688 | BA96: =SUM(AS$3:AS96) -> 0.8610229398 | BB96: =SUM(AT$3:AT96) -> 0.8809577127 | BC96: =SUM(AU$3:AU96) -> 0.9185850775
A97: 95 | B97: 68.56244126 | C97: 28.45272071 | D97: 94.93652388 | E97: 57.65740362 | F97: 84.32342991 | G97: 56.11576393 | H97: 95 | I97: 0.721709908 | J97: 0.2995023233 | K97: 0.9993318303 | L97: 0.6069200381 | M97: 0.8876150517 | N97: 0.5906922519 | O97: 95 | P97: 0.0003842066925 | Q97: 0.02713727107 | R97: 0.4868046938 | S97: 0.2964162623 | T97: 0.2342829435 | U97: 0.0166254439 | V97: 95 | W97: 0.0004007178778 | X97: 0.02779692289 | Y97: 0.5029222615 | Z97: 0.3063599146 | AA97: 0.2404145425 | AB97: 0.01722935996 | AO97: 95 | AP97: 5.844356034e-06 | AQ97: 0.000964845647 | AR97: 0.005044624438 | AS97: 0.005062333986 | AT97: 0.002755856934 | AU97: 0.000306217759 | AW97: 95 | AX97: =SUM(AP$3:AP97) -> 0.9700978711 | AY97: =SUM(AQ$3:AQ97) -> 0.9684543824 | AZ97: =SUM(AR$3:AR97) -> 0.8646437932 | BA97: =SUM(AS$3:AS97) -> 0.8660852738 | BB97: =SUM(AT$3:AT97) -> 0.8837135696 | BC97: =SUM(AU$3:AU97) -> 0.9188912953
A98: 96 | B98: 68.56278772 | C98: 28.47896368 | D98: 95.40323819 | E98: 57.94138092 | F98: 84.54944317 | G98: 56.13134379 | H98: 96 | I98: 0.7141957054 | J98: 0.2966558716 | K98: 0.9937837312 | L98: 0.6035560513 | M98: 0.8807233663 | N98: 0.5847014978 | O98: 96 | P98: 0.0003321859432 | Q98: 0.02561984259 | R98: 0.451426315 | S98: 0.2745549173 | T98: 0.2202299699 | U98: 0.01503369876 | V98: 96 | W98: 0.0003464614854 | X98: 0.02624296788 | Y98: 0.466714308 | Z98: 0.2839772998 | AA98: 0.226013256 | AB98: 0.01557985946 | AO98: 96 | AP98: 5.053042014e-06 | AQ98: 0.0009109070606 | AR98: 0.004681436046 | AS98: 0.004692480536 | AT98: 0.002590775884 | AU98: 0.0002769011536 | AW98: 96 | AX98: =SUM(AP$3:AP98) -> 0.9701029241 | AY98: =SUM(AQ$3:AQ98) -> 0.9693652895 | AZ98: =SUM(AR$3:AR98) -> 0.8693252292 | BA98: =SUM(AS$3:AS98) -> 0.8707777543 | BB98: =SUM(AT$3:AT98) -> 0.8863043455 | BC98: =SUM(AU$3:AU98) -> 0.9191681965
A99: 97 | B99: 68.56308727 | C99: 28.50373823 | D99: 95.83526654 | E99: 58.20393171 | F99: 84.76184033 | G99: 56.14543123 | H99: 97 | I99: 0.7068359512 | J99: 0.2938529714 | K99: 0.9879924386 | L99: 0.6000405331 | M99: 0.8738334055 | N99: 0.5788188786 | O99: 97 | P99: 0.000287208259 | Q99: 0.02418597815 | R99: 0.4175753608 | S99: 0.2536528567 | T99: 0.2069456375 | U99: 0.01359354632 | V99: 97 | W99: 0.000299550857 | X99: 0.02477454854 | Y99: 0.4320283517 | Z99: 0.2625507904 | AA99: 0.2123971653 | AB99: 0.0140874401 | AO99: 97 | AP99: 4.36886387e-06 | AQ99: 0.0008599374619 | AR99: 0.004333514238 | AS99: 0.004338425903 | AT99: 0.002434695484 | AU99: 0.0002503763545 | AW99: 97 | AX99: =SUM(AP$3:AP99) -> 0.970107293 | AY99: =SUM(AQ$3:AQ99) -> 0.9702252269 | AZ99: =SUM(AR$3:AR99) -> 0.8736587435 | BA99: =SUM(AS$3:AS99) -> 0.8751161802 | BB99: =SUM(AT$3:AT99) -> 0.888739041 | BC99: =SUM(AU$3:AU99) -> 0.9194185728
A100: 98 | B100: 68.56334626 | C100: 28.52712533 | D100: 96.23417581 | E100: 58.4460403 | F100: 84.96137331 | G100: 56.15816852 | H100: 98 | I100: 0.6996259823 | J100: 0.2910931156 | K100: 0.9819813858 | L100: 0.5963881664 | M100: 0.8669527889 | N100: 0.573042536 | O100: 98 | P100: 0.0002483201915 | Q100: 0.022831218 | R100: 0.3852909442 | S100: 0.2337345864 | T100: 0.1943970256 | U100: 0.01229069638 | V100: 98 | W100: 0.0002589915625 | X100: 0.02338710438 | Y100: 0.39890927 | Z100: 0.2421085896 | AA100: 0.1995329792 | AB100: 0.01273729656 | AO100: 98 | AP100: 3.777318121e-06 | AQ100: 0.0008117785538 | AR100: 0.00400130916 | AS100: 0.004000636125 | AT100: 0.002287234119 | AU100: 0.0002263802264 | AW100: 98 | AX100: =SUM(AP$3:AP100) -> 0.9701110703 | AY100: =SUM(AQ$3:AQ100) -> 0.9710370055 | AZ100: =SUM(AR$3:AR100) -> 0.8776600526 | BA100: =SUM(AS$3:AS100) -> 0.8791168164 | BB100: =SUM(AT$3:AT100) -> 0.8910262751 | BC100: =SUM(AU$3:AU100) -> 0.919644953
A101: 99 | B101: 68.56357019 | C101: 28.54920163 | D101: 96.60156514 | E101: 58.66871111 | F101: 85.14876091 | G101: 56.16968452 | H101: 99 | I101: 0.692561315 | J101: 0.2883757741 | K101: 0.9757733853 | L101: 0.5926132435 | M101: 0.860088494 | N101: 0.5673705507 | O101: 99 | P101: 0.0002146973367 | Q101: 0.02155132457 | R101: 0.3545999429 | S101: 0.2148167611 | T101: 0.1825514547 | U101: 0.01111217888 | V101: 99 | W101: 0.0002239237642 | X101: 0.02207630158 | Y101: 0.3673893282 | Z101: 0.2226708033 | AA101: 0.1873875948 | AB101: 0.01151599081 | AO101: 99 | AP101: 3.265864277e-06 | AQ101: 0.0007662799069 | AR101: 0.003685144455 | AS101: 0.003679443432 | AT101: 0.002148012334 | AU101: 0.0002046739348 | AW101: 99 | AX101: =SUM(AP$3:AP101) -> 0.9701143361 | AY101: =SUM(AQ$3:AQ101) -> 0.9718032854 | AZ101: =SUM(AR$3:AR101) -> 0.8813451971 | BA101: =SUM(AS$3:AS101) -> 0.8827962598 | BB101: =SUM(AT$3:AT101) -> 0.8931742874 | BC101: =SUM(AU$3:AU101) -> 0.919849627
A102: 100 | B102: 68.56376379 | C102: 28.57003966 | D102: 96.93905379 | E102: 58.87296085 | F102: 85.32468919 | G102: 56.18009585 | H102: 100 | I102: 0.6856376379 | J102: 0.2857003966 | K102: 0.9693905379 | L102: 0.5887296085 | M102: 0.8532468919 | N102: 0.5618009585 | O102: 100 | P102: 0.0001856268772 | Q102: 0.02034227319 | R102: 0.3255174999 | S102: 0.1969085101 | T102: 0.1713766655 | U102: 0.01004622692 | V102: 100 | W102: 0.0001936040073 | X102: 0.02083802361 | Y102: 0.3374886454 | Z102: 0.2042497423 | AA102: 0.1759282875 | AB102: 0.01041133103 | AO102: 100 | AP102: 2.823659264e-06 | AQ102: 0.0007232986346 | AR102: 0.003385221928 | AS102: 0.003375051248 | AT102: 0.002016655008 | AU102: 0.0001850407945 | AW102: 100 | AX102: =SUM(AP$3:AP102) -> 0.9701171598 | AY102: =SUM(AQ$3:AQ102) -> 0.972526584 | AZ102: =SUM(AR$3:AR102) -> 0.884730419 | BA102: =SUM(AS$3:AS102) -> 0.886171311 | BB102: =SUM(AT$3:AT102) -> 0.8951909425 | BC102: =SUM(AU$3:AU102) -> 0.9200346678
A103: 101 | B103: 68.56393118 | C103: 28.58970802 | D103: 97.24826955 | E103: 59.05981114 | F103: 85.48981206 | G103: 56.18950811 | H103: 101 | I103: 0.6788508038 | J103: 0.283066416 | K103: 0.9628541539 | L103: 0.5847506054 | M103: 0.8464337828 | N103: 0.5563317634 | O103: 101 | P103: 0.0001604924829 | Q103: 0.01920024303 | R103: 0.2980476205 | S103: 0.1800118269 | T103: 0.1608409691 | U103: 0.009082169212 | V103: 101 | W103: 0.0001673894723 | X103: 0.01966836199 | Y103: 0.3092157623 | Z103: 0.186850293 | AA103: 0.1651228712 | AB103: 0.009412260318 | AO103: 101 | AP103: 2.441327744e-06 | AQ103: 0.0006826990717 | AR103: 0.003101627251 | AS103: 0.00308754032 | AT103: 0.001892793193 | AU103: 0.0001672842907 | AW103: 101 | AX103: =SUM(AP$3:AP103) -> 0.9701196011 | AY103: =SUM(AQ$3:AQ103) -> 0.9732092831 | AZ103: =SUM(AR$3:AR103) -> 0.8878320463 | BA103: =SUM(AS$3:AS103) -> 0.8892588514 | BB103: =SUM(AT$3:AT103) -> 0.8970837356 | BC103: =SUM(AU$3:AU103) -> 0.9202019521
A104: 102 | B104: 68.5640759 | C104: 28.60827163 | D104: 97.53083785 | E104: 59.23028149 | F104: 85.64475189 | G104: 56.19801686 | H104: 102 | I104: 0.6721968226 | J104: 0.2804732512 | K104: 0.9561846848 | L104: 0.5806890342 | M104: 0.8396544303 | N104: 0.5509609496 | O104: 102 | P104: 0.0001387612547 | Q104: 0.01812160814 | R104: 0.2721838509 | S104: 0.1641220122 | T104: 0.1509133715 | U104: 0.008210331372 | V104: 102 | W104: 0.000144724357 | X104: 0.0185636073 | Y104: 0.2825682998 | Z104: 0.1704703477 | AA104: 0.1549398304 | AB104: 0.008508754463 | AO104: 102 | AP104: 2.110763497e-06 | AQ104: 0.0006443524619 | AR104: 0.002834336556 | AS104: 0.002816875817 | AT104: 0.001776065631 | AU104: 0.0001512262631 | AW104: 102 | AX104: =SUM(AP$3:AP104) -> 0.9701217119 | AY104: =SUM(AQ$3:AQ104) -> 0.9738536355 | AZ104: =SUM(AR$3:AR104) -> 0.8906663828 | BA104: =SUM(AS$3:AS104) -> 0.8920757272 | BB104: =SUM(AT$3:AT104) -> 0.8988598013 | BC104: =SUM(AU$3:AU104) -> 0.9203531783
A105: 103 | B105: 68.56420103 | C105: 28.62579187 | D105: 97.78837154 | E105: 59.38538277 | F105: 85.79010032 | G105: 56.20570859 | H105: 103 | I105: 0.6656718547 | J105: 0.2779203094 | K105: 0.9494016655 | L105: 0.5765571143 | M105: 0.8329135954 | N105: 0.5456864912 | O105: 103 | P105: 0.0001199724335 | Q105: 0.01710292885 | R105: 0.2479100268 | S105: 0.1492281635 | T105: 0.1415636748 | U105: 0.007421945518 | V105: 103 | W105: 0.0001251280998 | X105: 0.0175202403 | Y105: 0.2575336938 | Z105: 0.1551012845 | AA105: 0.1453484298 | AB105: 0.007691728353 | AO105: 103 | AP105: 1.824957671e-06 | AQ105: 0.0006081366509 | AR105: 0.002583223819 | AS105: 0.002562915272 | AT105: 0.001666120003 | AU105: 0.0001367052417 | AW105: 103 | AX105: =SUM(AP$3:AP105) -> 0.9701235369 | AY105: =SUM(AQ$3:AQ105) -> 0.9744617722 | AZ105: =SUM(AR$3:AR105) -> 0.8932496066 | BA105: =SUM(AS$3:AS105) -> 0.8946386425 | BB105: =SUM(AT$3:AT105) -> 0.9005259213 | BC105: =SUM(AU$3:AU105) -> 0.9204898836
A106: 104 | B106: 68.56430922 | C106: 28.64232679 | D106: 98.02246154 | E106: 59.52611126 | F106: 85.92641912 | G106: 56.21266154 | H106: 104 | I106: 0.659272204 | J106: 0.2754069884 | K106: 0.9425236686 | L106: 0.5723664545 | M106: 0.8262155685 | N106: 0.540506361 | O106: 104 | P106: 0.0001037276366 | Q106: 0.01614094325 | R106: 0.2252010783 | S106: 0.1353137007 | T106: 0.1327625577 | U106: 0.006709067539 | V106: 104 | W106: 0.0001081851966 | X106: 0.0165349234 | Y106: 0.2340899937 | Z106: 0.1407284904 | AA106: 0.1363188007 | AB106: 0.0069529503 | AO106: 104 | AP106: 1.577850257e-06 | AQ106: 0.0005739357888 | AR106: 0.002348068863 | AS106: 0.002325417217 | AT106: 0.001562613927 | AU106: 0.0001235749246 | AW106: 104 | AX106: =SUM(AP$3:AP106) -> 0.9701251147 | AY106: =SUM(AQ$3:AQ106) -> 0.975035708 | AZ106: =SUM(AR$3:AR106) -> 0.8955976755 | BA106: =SUM(AS$3:AS106) -> 0.8969640597 | BB106: =SUM(AT$3:AT106) -> 0.9020885352 | BC106: =SUM(AU$3:AU106) -> 0.9206134585
A107: 105 | B107: 68.56440275 | C107: 28.65793128 | D107: 98.23466825 | E107: 59.65344318 | F107: 86.05424113 | G107: 56.2189465 | H107: 105 | I107: 0.6529943119 | J107: 0.2729326789 | K107: 0.935568269 | L107: 0.5681280303 | M107: 0.8195642013 | N107: 0.5354185381 | O107: 105 | P107: 8.968241483e-05 | Q107: 0.01523255906 | R107: 0.2040238769 | S107: 0.1223569202 | T107: 0.1244816383 | U107: 0.006064501507 | V107: 105 | W107: 9.353639504e-05 | X107: 0.01560449227 | Y107: 0.2122067106 | Z107: 0.1273319154 | AA107: 0.1278220093 | AB107: 0.006284963765 | AO107: 105 | AP107: 1.364201661e-06 | AQ107: 0.0005416400407 | AR107: 0.002128565865 | AS107: 0.002104050342 | AT107: 0.001465215735 | AU107: 0.0001117027866 | AW107: 105 | AX107: =SUM(AP$3:AP107) -> 0.9701264789 | AY107: =SUM(AQ$3:AQ107) -> 0.975577348 | AZ107: =SUM(AR$3:AR107) -> 0.8977262414 | BA107: =SUM(AS$3:AS107) -> 0.89906811 | BB107: =SUM(AT$3:AT107) -> 0.9035537509 | BC107: =SUM(AU$3:AU107) -> 0.9207251613
A108: 106 | B108: 68.56448362 | C108: 28.67265723 | D108: 98.42651395 | E108: 59.76832983 | F108: 86.17407124 | G108: 56.22462752 | H108: 106 | I108: 0.6468347512 | J108: 0.2704967663 | K108: 0.9285520184 | L108: 0.5638521682 | M108: 0.8129629362 | N108: 0.5304210143 | O108: 106 | P108: 7.753895234e-05 | Q108: 0.01437484565 | R108: 0.1843381125 | S108: 0.1103315673 | T108: 0.11669352 | U108: 0.005481730697 | V108: 106 | W108: 8.087108017e-05 | X108: 0.01472594784 | Y108: 0.1918457008 | Z108: 0.1148866499 | AA108: 0.1198301073 | AB108: 0.005681015908 | AO108: 106 | AP108: 1.179481654e-06 | AQ108: 0.0005111453065 | AR108: 0.001924332217 | AS108: 0.001898403038 | AT108: 0.00137360506 | AU108: 0.0001009688093 | AW108: 106 | AX108: =SUM(AP$3:AP108) -> 0.9701276584 | AY108: =SUM(AQ$3:AQ108) -> 0.9760884933 | AZ108: =SUM(AR$3:AR108) -> 0.8996505736 | BA108: =SUM(AS$3:AS108) -> 0.9009665131 | BB108: =SUM(AT$3:AT108) -> 0.904927356 | BC108: =SUM(AU$3:AU108) -> 0.9208261301
A109: 107 | B109: 68.56455354 | C109: 28.68655368 | D109: 98.59947602 | E109: 59.87169335 | F109: 86.28638741 | G109: 56.22976251 | H109: 107 | I109: 0.64079022 | J109: 0.2680986325 | K109: 0.9214904301 | L109: 0.5595485359 | M109: 0.8064148356 | N109: 0.5255117992 | O109: 107 | P109: 6.703975396e-05 | Q109: 0.01356502643 | R109: 0.1660971859 | S109: 0.09920741817 | T109: 0.1093718244 | U109: 0.004954854682 | V109: 107 | W109: 6.992069085e-05 | X109: 0.0138964484 | Y109: 0.1729620708 | Z109: 0.1033635163 | AA109: 0.1123161689 | AB109: 0.005134992441 | AO109: 107 | AP109: 1.019773347e-06 | AQ109: 0.0004823529496 | AR109: 0.001734917612 | AS109: 0.001707993169 | AT109: 0.001287473252 | AU109: 9.126432328e-05 | AW109: 107 | AX109: =SUM(AP$3:AP109) -> 0.9701286782 | AY109: =SUM(AQ$3:AQ109) -> 0.9765708463 | AZ109: =SUM(AR$3:AR109) -> 0.9013854912 | BA109: =SUM(AS$3:AS109) -> 0.9026745062 | BB109: =SUM(AT$3:AT109) -> 0.9062148293 | BC109: =SUM(AU$3:AU109) -> 0.9209173944
A110: 108 | B110: 68.564614 | C110: 28.69966698 | D110: 98.75498111 | E110: 59.96442301 | F110: 86.39164172 | G110: 56.23440387 | H110: 108 | I110: 0.634857537 | J110: 0.2657376572 | K110: 0.9143979732 | L110: 0.555226139 | M110: 0.7999226086 | N110: 0.5206889247 | O110: 108 | P110: 5.796218692e-05 | Q110: 0.01280047139 | R110: 0.1492491039 | S110: 0.08895086401 | T110: 0.1024912114 | U110: 0.004478532041 | V110: 108 | W110: 6.045302646e-05 | X110: 0.01311330214 | Y110: 0.1555050914 | Z110: 0.09272966486 | AA110: 0.1052543137 | AB110: 0.004641358274 | AO110: 108 | AP110: 8.816901604e-07 | AQ110: 0.0004551695359 | AR110: 0.001559813205 | AS110: 0.001532277924 | AT110: 0.001206523646 | AU110: 8.249095336e-05 | AW110: 108 | AX110: =SUM(AP$3:AP110) -> 0.9701295598 | AY110: =SUM(AQ$3:AQ110) -> 0.9770260158 | AZ110: =SUM(AR$3:AR110) -> 0.9029453044 | BA110: =SUM(AS$3:AS110) -> 0.9042067841 | BB110: =SUM(AT$3:AT110) -> 0.9074213529 | BC110: =SUM(AU$3:AU110) -> 0.9209998854
A111: 109 | B111: 68.56466626 | C111: 28.71204094 | D111: 98.89440022 | E111: 60.04737218 | F111: 86.49026144 | G111: 56.23859897 | H111: 109 | I111: 0.6290336355 | J111: 0.2634132196 | K111: 0.9072880754 | L111: 0.5508933227 | M111: 0.7934886371 | N111: 0.5159504493 | O111: 109 | P111: 5.011376139e-05 | Q111: 0.01207869003 | R111: 0.1337373673 | S111: 0.07952548804 | T111: 0.09602738915 | U111: 0.0040479282 | V111: 109 | W111: 5.226732492e-05 | X111: 0.01237395988 | Y111: 0.1394191079 | Z111: 0.08294916684 | AA111: 0.09861972005 | AB111: 0.004195103492 | AO111: 109 | AP111: 7.623040364e-07 | AQ111: 0.0004295065816 | AR111: 0.001398460741 | AS111: 0.00137066361 | AT111: 0.001130471712 | AU111: 7.455965819e-05 | AW111: 109 | AX111: =SUM(AP$3:AP111) -> 0.9701303222 | AY111: =SUM(AQ$3:AQ111) -> 0.9774555224 | AZ111: =SUM(AR$3:AR111) -> 0.9043437651 | BA111: =SUM(AS$3:AS111) -> 0.9055774478 | BB111: =SUM(AT$3:AT111) -> 0.9085518246 | BC111: =SUM(AU$3:AU111) -> 0.921074445
A112: 110 | B112: 68.56471145 | C112: 28.72371695 | D112: 99.01904465 | E112: 60.12135577 | F112: 86.58265007 | G112: 56.24239067 | H112: 110 | I112: 0.6233155587 | J112: 0.2611246995 | K112: 0.9001731332 | L112: 0.5465577798 | M112: 0.7871150006 | N112: 0.5112944606 | O112: 110 | P112: 4.332804963e-05 | Q112: 0.0113973245 | R112: 0.1195018379 | S112: 0.07089262896 | T112: 0.08995711472 | U112: 0.003658668002 | V112: 110 | W112: 4.519000632e-05 | X112: 0.01167600805 | Y112: 0.1246444337 | Z112: 0.07398359571 | AA112: 0.09238862727 | AB112: 0.003791694212 | AO112: 110 | AP112: 6.590833619e-07 | AQ112: 0.0004052803107 | AR112: 0.00125026153 | AS112: 0.001222515261 | AT112: 0.001059045083 | AU112: 6.738985701e-05 | AW112: 110 | AX112: =SUM(AP$3:AP112) -> 0.9701309812 | AY112: =SUM(AQ$3:AQ112) -> 0.9778608027 | AZ112: =SUM(AR$3:AR112) -> 0.9055940267 | BA112: =SUM(AS$3:AS112) -> 0.906799963 | BB112: =SUM(AT$3:AT112) -> 0.9096108697 | BC112: =SUM(AU$3:AU112) -> 0.9211418349
A113: 111 | B113: 68.56475053 | C113: 28.73473411 | D113: 99.13016287 | E113: 60.18714836 | F113: 86.6691884 | G113: 56.2458177 | H113: 111 | I113: 0.6177004552 | J113: 0.2588714785 | K113: 0.8930645304 | L113: 0.5422265618 | M113: 0.7808034991 | N113: 0.5067190783 | O113: 111 | P113: 3.746115767e-05 | Q113: 0.01075414303 | R113: 0.106479577 | S113: 0.063011924 | T113: 0.08425818785 | U113: 0.003306792584 | V113: 111 | W113: 3.907099283e-05 | X113: 0.01101716203 | Y113: 0.1111182187 | Z113: 0.06579259047 | AA113: 0.08653833144 | AB113: 0.003427027916 | AO113: 111 | AP113: 5.698392942e-07 | AQ113: 0.0003824114227 | AR113: 0.001114585145 | AS113: 0.001087165947 | AT113: 0.0009919835062 | AU113: 6.090863564e-05 | AW113: 111 | AX113: =SUM(AP$3:AP113) -> 0.9701315511 | AY113: =SUM(AQ$3:AQ113) -> 0.9782432141 | AZ113: =SUM(AR$3:AR113) -> 0.9067086118 | BA113: =SUM(AS$3:AS113) -> 0.907887129 | BB113: =SUM(AT$3:AT113) -> 0.9106028532 | BC113: =SUM(AU$3:AU113) -> 0.9212027435
A114: 112 | B114: 68.56478431 | C114: 28.74512937 | D114: 99.22893815 | E114: 60.24548276 | F114: 86.75023558 | G114: 56.24891509 | H114: 112 | I114: 0.6121855742 | J114: 0.2566529408 | K114: 0.8859726621 | L114: 0.537906096 | M114: 0.7745556748 | N114: 0.5022224561 | O114: 112 | P114: 3.238867452e-05 | Q114: 0.0101470336 | R114: 0.0946056444 | S114: 0.05584182562 | T114: 0.07890943775 | U114: 0.002988720208 | V114: 112 | W114: 3.378052695e-05 | X114: 0.01039525969 | Y114: 0.0987752811 | Z114: 0.05833439407 | AA114: 0.08104717353 | AB114: 0.003097392866 | AO114: 112 | AP114: 4.926793572e-07 | AQ114: 0.000360824869 | AR114: 0.0009907777704 | AS114: 0.0009639256692 | AT114: 0.000929038705 | AU114: 5.50500253e-05 | AW114: 112 | AX114: =SUM(AP$3:AP114) -> 0.9701320438 | AY114: =SUM(AQ$3:AQ114) -> 0.978604039 | AZ114: =SUM(AR$3:AR114) -> 0.9076993896 | BA114: =SUM(AS$3:AS114) -> 0.9088510546 | BB114: =SUM(AT$3:AT114) -> 0.9115318919 | BC114: =SUM(AU$3:AU114) -> 0.9212577935
A115: 113 | B115: 68.56481351 | C115: 28.75493762 | D115: 99.31648705 | E115: 60.29704912 | F115: 86.8261301 | G115: 56.25171452 | H115: 113 | I115: 0.6067682612 | J115: 0.2544684746 | K115: 0.878906965 | L115: 0.5336022046 | M115: 0.7683728327 | N115: 0.4978027834 | O115: 113 | P115: 2.80030343e-05 | Q115: 0.009573997938 | R115: 0.08381385238 | S115: 0.04934008709 | T115: 0.07389070499 | U115: 0.002701210695 | V115: 113 | W115: 2.920642028e-05 | X115: 0.009808255229 | Y115: 0.08754889478 | Z115: 0.05156636183 | AA115: 0.0758945223 | AB115: 0.002799431255 | AO115: 113 | AP115: 4.259673152e-07 | AQ115: 0.000340449639 | AR115: 0.0008781701029 | AS115: 0.0008520897598 | AT115: 0.0008699741847 | AU115: 4.975434764e-05 | AW115: 113 | AX115: =SUM(AP$3:AP115) -> 0.9701324697 | AY115: =SUM(AQ$3:AQ115) -> 0.9789444886 | AZ115: =SUM(AR$3:AR115) -> 0.9085775597 | BA115: =SUM(AS$3:AS115) -> 0.9097031444 | BB115: =SUM(AT$3:AT115) -> 0.9124018661 | BC115: =SUM(AU$3:AU115) -> 0.9213075479
A116: 114 | B116: 68.56483876 | C116: 28.76419184 | D116: 99.39385857 | E116: 60.34249455 | F116: 86.89719085 | G116: 56.25424463 | H116: 114 | I116: 0.6014459541 | J116: 0.2523174723 | K116: 0.8718759524 | L116: 0.5293201277 | M116: 0.7622560601 | N116: 0.4934582862 | O116: 114 | P116: 2.421123565e-05 | Q116: 0.009033145723 | R116: 0.07403746685 | S116: 0.04346421276 | T116: 0.06918281901 | U116: 0.002441333145 | V116: 114 | W116: 2.525167476e-05 | X116: 0.009254213289 | Y116: 0.07737152589 | Z116: 0.04544543508 | AA116: 0.0710607525 | AB116: 0.002530105767 | AO116: 114 | AP116: 3.68288479e-07 | AQ116: 0.0003212185552 | AR116: 0.0007760847355 | AS116: 0.000750946712 | AT116: 0.0008145649823 | AU116: 4.496762036e-05 | AW116: 114 | AX116: =SUM(AP$3:AP116) -> 0.970132838 | AY116: =SUM(AQ$3:AQ116) -> 0.9792657072 | AZ116: =SUM(AR$3:AR116) -> 0.9093536444 | BA116: =SUM(AS$3:AS116) -> 0.9104540911 | BB116: =SUM(AT$3:AT116) -> 0.9132164311 | BC116: =SUM(AU$3:AU116) -> 0.9213525155
A117: 115 | B117: 68.5648606 | C117: 28.77292314 | D117: 99.46203408 | E117: 60.38242313 | F117: 86.96371807 | G117: 56.25653129 | H117: 115 | I117: 0.5962161791 | J117: 0.2501993317 | K117: 0.8648872529 | L117: 0.525064549 | M117: 0.7562062441 | N117: 0.4891872286 | O117: 115 | P117: 2.093286967e-05 | Q117: 0.008522689057 | R117: 0.06520985133 | S117: 0.03817186984 | T117: 0.06476757216 | U117: 0.002206436659 | V117: 115 | W117: 2.183242597e-05 | X117: 0.008731303299 | Y117: 0.06817551224 | Z117: 0.03992857654 | AA117: 0.06652721945 | AB117: 0.002286669235 | AO117: 115 | AP117: 3.1841971e-07 | AQ117: 0.0003030680775 | AR117: 0.0006838429743 | AS117: 0.0006597853714 | AT117: 0.0007625973753 | AU117: 4.064101802e-05 | AW117: 115 | AX117: =SUM(AP$3:AP117) -> 0.9701331564 | AY117: =SUM(AQ$3:AQ117) -> 0.9795687753 | AZ117: =SUM(AR$3:AR117) -> 0.9100374874 | BA117: =SUM(AS$3:AS117) -> 0.9111138765 | BB117: =SUM(AT$3:AT117) -> 0.9139790284 | BC117: =SUM(AU$3:AU117) -> 0.9213931565
A118: 116 | B118: 68.56487947 | C118: 28.78116094 | D118: 99.52192777 | E118: 60.4173963 | F118: 87.0259943 | G118: 56.25859793 | H118: 116 | I118: 0.5910765472 | J118: 0.2481134563 | K118: 0.8579476531 | L118: 0.5208396232 | M118: 0.7502240888 | N118: 0.4849879132 | O118: 116 | P118: 1.809841503e-05 | Q118: 0.008040937194 | R118: 0.05726504995 | S118: 0.03342125931 | T118: 0.06062769114 | U118: 0.001994123782 | V118: 116 | W118: 1.887616503e-05 | X118: 0.008237794089 | Y118: 0.05989368157 | Z118: 0.03497316455 | AA118: 0.06227623073 | AB118: 0.00206663713 | AO118: 116 | AP118: 2.753034868e-07 | AQ118: 0.0002859381162 | AR118: 0.0006007710392 | AS118: 0.0005779014521 | AT118: 0.0007138685561 | AU118: 3.673038302e-05 | AW118: 116 | AX118: =SUM(AP$3:AP118) -> 0.9701334317 | AY118: =SUM(AQ$3:AQ118) -> 0.9798547134 | AZ118: =SUM(AR$3:AR118) -> 0.9106382584 | BA118: =SUM(AS$3:AS118) -> 0.9116917779 | BB118: =SUM(AT$3:AT118) -> 0.914692897 | BC118: =SUM(AU$3:AU118) -> 0.9214298869
A119: 117 | B119: 68.56489579 | C119: 28.78893298 | D119: 99.57438767 | E119: 60.44793364 | F119: 87.08428532 | G119: 56.26046569 | H119: 117 | I119: 0.5860247504 | J119: 0.2460592563 | K119: 0.8510631425 | L119: 0.5166490055 | M119: 0.7443101309 | N119: 0.4808586811 | O119: 117 | V119: 117 | W119: 1.63202009e-05 | X119: 0.007772048743 | Y119: 0.05245990554 | Z119: 0.03053734453 | AA119: 0.05829101552 | AB119: 0.001867762616 | AO119: 117 | AP119: 2.380254784e-07 | AQ119: 0.0002697718531 | AR119: 0.0005262056221 | AS119: 0.000504603343 | AT119: 0.0006681862823 | AU119: 3.319578231e-05 | AW119: 117 | AX119: =SUM(AP$3:AP119) -> 0.9701336698 | AY119: =SUM(AQ$3:AQ119) -> 0.9801244852 | AZ119: =SUM(AR$3:AR119) -> 0.9111644641 | BA119: =SUM(AS$3:AS119) -> 0.9121963813 | BB119: =SUM(AT$3:AT119) -> 0.9153610833 | BC119: =SUM(AU$3:AU119) -> 0.9214630827
A120: 118 | B120: 68.5649099 | C120: 28.7962655 | D120: 99.62019726 | E120: 60.47451398 | F120: 87.13884101 | G120: 56.26215371 | H120: 118 | I120: 0.5810585585 | J120: 0.2440361483 | K120: 0.8442389598 | L120: 0.5124958812 | M120: 0.7384647543 | N120: 0.4767979128 | O120: 118 | V120: 118 | W120: 1.411033108e-05 | X120: 0.007332519696 | Y120: 0.04580958795 | Z120: 0.0265803365 | AA120: 0.05455569245 | AB120: 0.001688013949 | AO120: 118 | AP120: 2.05795157e-07 | AQ120: 0.0002545155713 | AR120: 0.0004594987825 | AS120: 0.00043921719 | AT120: 0.0006253685064 | AU120: 3.000110564e-05 | AW120: 118 | AX120: =SUM(AP$3:AP120) -> 0.9701338756 | AY120: =SUM(AQ$3:AQ120) -> 0.9803790008 | AZ120: =SUM(AR$3:AR120) -> 0.9116239628 | BA120: =SUM(AS$3:AS120) -> 0.9126355985 | BB120: =SUM(AT$3:AT120) -> 0.9159864518 | BC120: =SUM(AU$3:AU120) -> 0.9214930838
A121: 119 | B121: 68.5649221 | C121: 28.80318325 | D121: 99.66007735 | E121: 60.49757668 | F121: 87.18989625 | G121: 56.26367926 | H121: 119 | I121: 0.576175816 | J121: 0.2420435567 | K121: 0.8374796416 | L121: 0.5083829973 | M121: 0.7326882037 | N121: 0.4728040274 | O121: 119 | V121: 119 | W121: 1.219969246e-05 | X121: 0.00691774405 | Y121: 0.03988008653 | Z121: 0.02306269869 | AA121: 0.05105523618 | AB121: 0.001525553994 | AO121: 119 | AP121: 1.779290374e-07 | AQ121: 0.000240118493 | AR121: 0.0004000221794 | AS121: 0.0003810912519 | AT121: 0.0005852429941 | AU121: 2.711370162e-05 | AW121: 119 | AX121: =SUM(AP$3:AP121) -> 0.9701340535 | AY121: =SUM(AQ$3:AQ121) -> 0.9806191193 | AZ121: =SUM(AR$3:AR121) -> 0.912023985 | BA121: =SUM(AS$3:AS121) -> 0.9130166897 | BB121: =SUM(AT$3:AT121) -> 0.9165716948 | BC121: =SUM(AU$3:AU121) -> 0.9215201975
A122: 120 | B122: 68.56493265 | C122: 28.80970959 | D122: 99.69468841 | E122: 60.51752322 | F122: 87.23767169 | G122: 56.26505798 | H122: 120 | I122: 0.5713744388 | J122: 0.2400809132 | K122: 0.8307890701 | L122: 0.5043126935 | M122: 0.7269805974 | N122: 0.4688754832 | O122: 120 | V122: 120 | W122: 1.054776725e-05 | X122: 0.006526339126 | Y122: 0.03461106895 | Z122: 0.01994654769 | AA122: 0.04777544335 | AB122: 0.001378721679 | AO122: 120 | AP122: 1.538361789e-07 | AQ122: 0.0002265326246 | AR122: 0.0003471706417 | AS122: 0.000329599538 | AT122: 0.0005476469331 | AU122: 2.450404796e-05 | AW122: 120 | AX122: =SUM(AP$3:AP122) -> 0.9701342073 | AY122: =SUM(AQ$3:AQ122) -> 0.9808456519 | AZ122: =SUM(AR$3:AR122) -> 0.9123711557 | BA122: =SUM(AS$3:AS122) -> 0.9133462893 | BB122: =SUM(AT$3:AT122) -> 0.9171193417 | BC122: =SUM(AU$3:AU122) -> 0.9215447015
AP124: =SUM(AP3:AP122) -> 0.9701342073 | AQ124: 0.9808456519 | AR124: 0.9123711557 | AS124: 0.9133462893 | AT124: 0.9171193417 | AU124: 0.9215447015

Sheet CHANGE MATRICES
A1: Table 9: Change Matrices and Summary tables
A2: 100
A3: Variables | B3: Age Class
B4: 1 | C4: 2 | D4: 3 | E4: 4 | F4: 5 | G4: 6 | H4: 7 | I4: 8 | J4: 9 | K4: 10 | L4: 11 | M4: 12 | N4: 13 | O4: 14 | P4: 15 | Q4: 16 | R4: 17 | S4: 18 | T4: 19 | U4: 20 | V4: 21 | W4: 22 | X4: 23 | Y4: 24 | Z4: 25 | AA4: 26 | AB4: 27 | AC4: 28 | AD4: 29 | AE4: 30 | AF4: 31 | AG4: 32 | AH4: 33 | AI4: 34 | AJ4: 35 | AK4: 36 | AL4: 37 | AM4: 38 | AN4: 39 | AO4: 40 | AP4: 41 | AQ4: 42 | AR4: 43 | AS4: 44 | AT4: 45 | AU4: 46 | AV4: 47 | AW4: 48 | AX4: 49 | AY4: 50 | AZ4: 51 | BA4: 52 | BB4: 53 | BC4: 54 | BD4: 55 | BE4: 56 | BF4: 57 | BG4: 58 | BH4: 59 | BI4: 60 | BJ4: 61 | BK4: 62 | BL4: 63 | BM4: 64 | BN4: 65 | BO4: 66 | BP4: 67 | BQ4: 68 | BR4: 69 | BS4: 70 | BT4: 71 | BU4: 72 | BV4: 73 | BW4: 74 | BX4: 75 | BY4: 76 | BZ4: 77 | CA4: 78 | CB4: 79 | CC4: 80 | CD4: 81 | CE4: 82 | CF4: 83 | CG4: 84 | CH4: 85 | CI4: 86 | CJ4: 87 | CK4: 88 | CL4: 89 | CM4: 90 | CN4: 91 | CO4: 92 | CP4: 93 | CQ4: 94 | CR4: 95 | CS4: 96 | CT4: 97 | CU4: 98 | CV4: 99 | CW4: 100 | CX4: 101 | CY4: 102 | CZ4: 103 | DA4: 104 | DB4: 105 | DC4: 106 | DD4: 107 | DE4: 108 | DF4: 109 | DG4: 110 | DH4: 111 | DI4: 112 | DJ4: 113 | DK4: 114 | DL4: 115 | DM4: 116 | DN4: 117 | DO4: 118 | DP4: 119 | DQ4: 120
A6: MORTALITY FACTOR | B6: ='AGE FACTORS & ROTATION INPUTS'!B$3 -> 0.001068940929 | C6: ='AGE FACTORS & ROTATION INPUTS'!C$3 -> 0.001068940929 | D6: ='AGE FACTORS & ROTATION INPUTS'!D$3 -> 0.001068940929 | E6: ='AGE FACTORS & ROTATION INPUTS'!E$3 -> 0.001068940929 | F6: ='AGE FACTORS & ROTATION INPUTS'!F$3 -> 0.001068940929 | G6: ='AGE FACTORS & ROTATION INPUTS'!G$3 -> 0.001068940929 | H6: ='AGE FACTORS & ROTATION INPUTS'!H$3 -> 0.001068940929 | I6: ='AGE FACTORS & ROTATION INPUTS'!I$3 -> 0.001068940929 | J6: ='AGE FACTORS & ROTATION INPUTS'!J$3 -> 0.001068940929 | K6: ='AGE FACTORS & ROTATION INPUTS'!K$3 -> 0.001068940929 | L6: ='AGE FACTORS & ROTATION INPUTS'!L$3 -> 0.001057760899 | M6: ='AGE FACTORS & ROTATION INPUTS'!M$3 -> 0.001057760899 | N6: ='AGE FACTORS & ROTATION INPUTS'!N$3 -> 0.001057760899 | O6: ='AGE FACTORS & ROTATION INPUTS'!O$3 -> 0.001057760899 | P6: ='AGE FACTORS & ROTATION INPUTS'!P$3 -> 0.001057760899 | Q6: ='AGE FACTORS & ROTATION INPUTS'!Q$3 -> 0.001057760899 | R6: ='AGE FACTORS & ROTATION INPUTS'!R$3 -> 0.001057760899 | S6: ='AGE FACTORS & ROTATION INPUTS'!S$3 -> 0.001057760899 | T6: ='AGE FACTORS & ROTATION INPUTS'!T$3 -> 0.001057760899 | U6: ='AGE FACTORS & ROTATION INPUTS'!U$3 -> 0.001057760899 | V6: ='AGE FACTORS & ROTATION INPUTS'!V$3 -> 0.0002336882529 | W6: ='AGE FACTORS & ROTATION INPUTS'!W$3 -> 0.0002336882529 | X6: ='AGE FACTORS & ROTATION INPUTS'!X$3 -> 0.0002336882529 | Y6: ='AGE FACTORS & ROTATION INPUTS'!Y$3 -> 0.0002336882529 | Z6: ='AGE FACTORS & ROTATION INPUTS'!Z$3 -> 0.0002336882529 | AA6: ='AGE FACTORS & ROTATION INPUTS'!AA$3 -> 0.0002336882529 | AB6: ='AGE FACTORS & ROTATION INPUTS'!AB$3 -> 0.0002336882529 | AC6: ='AGE FACTORS & ROTATION INPUTS'!AC$3 -> 0.0002336882529 | AD6: ='AGE FACTORS & ROTATION INPUTS'!AD$3 -> 0.0002336882529 | AE6: ='AGE FACTORS & ROTATION INPUTS'!AE$3 -> 0.0002336882529 | AF6: ='AGE FACTORS & ROTATION INPUTS'!AF$3 -> 0.0005768452861 | AG6: ='AGE FACTORS & ROTATION INPUTS'!AG$3 -> 0.0005768452861 | AH6: ='AGE FACTORS & ROTATION INPUTS'!AH$3 -> 0.0005768452861 | AI6: ='AGE FACTORS & ROTATION INPUTS'!AI$3 -> 0.0005768452861 | AJ6: ='AGE FACTORS & ROTATION INPUTS'!AJ$3 -> 0.0005768452861 | AK6: ='AGE FACTORS & ROTATION INPUTS'!AK$3 -> 0.0005768452861 | AL6: ='AGE FACTORS & ROTATION INPUTS'!AL$3 -> 0.0005768452861 | AM6: ='AGE FACTORS & ROTATION INPUTS'!AM$3 -> 0.0005768452861 | AN6: ='AGE FACTORS & ROTATION INPUTS'!AN$3 -> 0.0005768452861 | AO6: ='AGE FACTORS & ROTATION INPUTS'!AO$3 -> 0.0005768452861 | AP6: ='AGE FACTORS & ROTATION INPUTS'!AP$3 -> 0.0008215609502 | AQ6: ='AGE FACTORS & ROTATION INPUTS'!AQ$3 -> 0.0008215609502 | AR6: ='AGE FACTORS & ROTATION INPUTS'!AR$3 -> 0.0008215609502 | AS6: ='AGE FACTORS & ROTATION INPUTS'!AS$3 -> 0.0008215609502 | AT6: ='AGE FACTORS & ROTATION INPUTS'!AT$3 -> 0.0008215609502 | AU6: ='AGE FACTORS & ROTATION INPUTS'!AU$3 -> 0.0008215609502 | AV6: ='AGE FACTORS & ROTATION INPUTS'!AV$3 -> 0.0008215609502 | AW6: ='AGE FACTORS & ROTATION INPUTS'!AW$3 -> 0.0008215609502 | AX6: ='AGE FACTORS & ROTATION INPUTS'!AX$3 -> 0.0008215609502 | AY6: ='AGE FACTORS & ROTATION INPUTS'!AY$3 -> 0.0008215609502 | AZ6: ='AGE FACTORS & ROTATION INPUTS'!AZ$3 -> 0.001065614607 | BA6: ='AGE FACTORS & ROTATION INPUTS'!BA$3 -> 0.001065614607 | BB6: ='AGE FACTORS & ROTATION INPUTS'!BB$3 -> 0.001065614607 | BC6: ='AGE FACTORS & ROTATION INPUTS'!BC$3 -> 0.001065614607 | BD6: ='AGE FACTORS & ROTATION INPUTS'!BD$3 -> 0.001065614607 | BE6: ='AGE FACTORS & ROTATION INPUTS'!BE$3 -> 0.001065614607 | BF6: ='AGE FACTORS & ROTATION INPUTS'!BF$3 -> 0.001065614607 | BG6: ='AGE FACTORS & ROTATION INPUTS'!BG$3 -> 0.001065614607 | BH6: ='AGE FACTORS & ROTATION INPUTS'!BH$3 -> 0.001065614607 | BI6: ='AGE FACTORS & ROTATION INPUTS'!BI$3 -> 0.001065614607 | BJ6: ='AGE FACTORS & ROTATION INPUTS'!BJ$3 -> 0.001476928827 | BK6: ='AGE FACTORS & ROTATION INPUTS'!BK$3 -> 0.001476928827 | BL6: ='AGE FACTORS & ROTATION INPUTS'!BL$3 -> 0.001476928827 | BM6: ='AGE FACTORS & ROTATION INPUTS'!BM$3 -> 0.001476928827 | BN6: ='AGE FACTORS & ROTATION INPUTS'!BN$3 -> 0.001476928827 | BO6: ='AGE FACTORS & ROTATION INPUTS'!BO$3 -> 0.001476928827 | BP6: ='AGE FACTORS & ROTATION INPUTS'!BP$3 -> 0.001476928827 | BQ6: ='AGE FACTORS & ROTATION INPUTS'!BQ$3 -> 0.001476928827 | BR6: ='AGE FACTORS & ROTATION INPUTS'!BR$3 -> 0.001476928827 | BS6: ='AGE FACTORS & ROTATION INPUTS'!BS$3 -> 0.001476928827 | BT6: ='AGE FACTORS & ROTATION INPUTS'!BT$3 -> 0.0009889827889 | BU6: ='AGE FACTORS & ROTATION INPUTS'!BU$3 -> 0.0009889827889 | BV6: ='AGE FACTORS & ROTATION INPUTS'!BV$3 -> 0.0009889827889 | BW6: ='AGE FACTORS & ROTATION INPUTS'!BW$3 -> 0.0009889827889 | BX6: ='AGE FACTORS & ROTATION INPUTS'!BX$3 -> 0.0009889827889 | BY6: ='AGE FACTORS & ROTATION INPUTS'!BY$3 -> 0.0009889827889 | BZ6: ='AGE FACTORS & ROTATION INPUTS'!BZ$3 -> 0.0009889827889 | CA6: ='AGE FACTORS & ROTATION INPUTS'!CA$3 -> 0.0009889827889 | CB6: ='AGE FACTORS & ROTATION INPUTS'!CB$3 -> 0.0009889827889 | CC6: ='AGE FACTORS & ROTATION INPUTS'!CC$3 -> 0.0009889827889 | CD6: ='AGE FACTORS & ROTATION INPUTS'!CD$3 -> 0.0008604784968 | CE6: ='AGE FACTORS & ROTATION INPUTS'!CE$3 -> 0.0008604784968 | CF6: ='AGE FACTORS & ROTATION INPUTS'!CF$3 -> 0.0008604784968 | CG6: ='AGE FACTORS & ROTATION INPUTS'!CG$3 -> 0.0008604784968 | CH6: ='AGE FACTORS & ROTATION INPUTS'!CH$3 -> 0.0008604784968 | CI6: ='AGE FACTORS & ROTATION INPUTS'!CI$3 -> 0.0008604784968 | CJ6: ='AGE FACTORS & ROTATION INPUTS'!CJ$3 -> 0.0008604784968 | CK6: ='AGE FACTORS & ROTATION INPUTS'!CK$3 -> 0.0008604784968 | CL6: ='AGE FACTORS & ROTATION INPUTS'!CL$3 -> 0.0008604784968 | CM6: ='AGE FACTORS & ROTATION INPUTS'!CM$3 -> 0.0008604784968 | CN6: ='AGE FACTORS & ROTATION INPUTS'!CN$3 -> 0.0003872089841 | CO6: ='AGE FACTORS & ROTATION INPUTS'!CO$3 -> 0.0003872089841 | CP6: ='AGE FACTORS & ROTATION INPUTS'!CP$3 -> 0.0003872089841 | CQ6: ='AGE FACTORS & ROTATION INPUTS'!CQ$3 -> 0.0003872089841 | CR6: ='AGE FACTORS & ROTATION INPUTS'!CR$3 -> 0.0003872089841 | CS6: ='AGE FACTORS & ROTATION INPUTS'!CS$3 -> 0.0003872089841 | CT6: ='AGE FACTORS & ROTATION INPUTS'!CT$3 -> 0.0003872089841 | CU6: ='AGE FACTORS & ROTATION INPUTS'!CU$3 -> 0.0003872089841 | CV6: ='AGE FACTORS & ROTATION INPUTS'!CV$3 -> 0.0003872089841 | CW6: ='AGE FACTORS & ROTATION INPUTS'!CW$3 -> 0.0003872089841 | CX6: ='AGE FACTORS & ROTATION INPUTS'!CX$3 -> 0.0006470205379 | CY6: ='AGE FACTORS & ROTATION INPUTS'!CY$3 -> 0.0006470205379 | CZ6: ='AGE FACTORS & ROTATION INPUTS'!CZ$3 -> 0.0006470205379 | DA6: ='AGE FACTORS & ROTATION INPUTS'!DA$3 -> 0.0006470205379 | DB6: ='AGE FACTORS & ROTATION INPUTS'!DB$3 -> 0.0006470205379 | DC6: ='AGE FACTORS & ROTATION INPUTS'!DC$3 -> 0.0006470205379 | DD6: ='AGE FACTORS & ROTATION INPUTS'!DD$3 -> 0.0006470205379 | DE6: ='AGE FACTORS & ROTATION INPUTS'!DE$3 -> 0.0006470205379 | DF6: ='AGE FACTORS & ROTATION INPUTS'!DF$3 -> 0.0006470205379 | DG6: ='AGE FACTORS & ROTATION INPUTS'!DG$3 -> 0.0006470205379 | DH6: ='AGE FACTORS & ROTATION INPUTS'!DH$3 -> 0.0006470205379 | DI6: ='AGE FACTORS & ROTATION INPUTS'!DI$3 -> 0.0006470205379 | DJ6: ='AGE FACTORS & ROTATION INPUTS'!DJ$3 -> 0.0006470205379 | DK6: ='AGE FACTORS & ROTATION INPUTS'!DK$3 -> 0.0006470205379 | DL6: ='AGE FACTORS & ROTATION INPUTS'!DL$3 -> 0.0006470205379 | DM6: ='AGE FACTORS & ROTATION INPUTS'!DM$3 -> 0.0006470205379 | DN6: ='AGE FACTORS & ROTATION INPUTS'!DN$3 -> 0.0006470205379 | DO6: ='AGE FACTORS & ROTATION INPUTS'!DO$3 -> 0.0006470205379 | DP6: ='AGE FACTORS & ROTATION INPUTS'!DP$3 -> 0.0006470205379 | DQ6: ='AGE FACTORS & ROTATION INPUTS'!DQ$3 -> 0.0006470205379 | DS6: Forest type | DT6: 5 | DU6: 10 | DV6: 15 | DW6: 20 | DX6: 25 | DY6: 30 | DZ6: 35 | EA6: 40 | EB6: 45 | EC6: 50 | ED6: 55 | EE6: 60 | EF6: 65 | EG6: 70 | EH6: 75 | EI6: 80 | EJ6: 85 | EK6: 90 | EL6: 95 | EM6: 100 | EN6: 105
A7: Hectares | B7: =$DT7/5 -> 1387.47348 | C7: =($DT7/5) + 0.001 -> 1387.47448 | D7: =($DT7/5) - 0.001 -> 1387.47248 | E7: =($DT7/5)+ 0.002 -> 1387.47548 | F7: =($DT7/5)- 0.002 -> 1387.47148 | G7: =$DU7/5 -> 1860.8106 | H7: =($DU7/5) + 0.001 -> 1860.8116 | I7: =($DU7/5) - 0.001 -> 1860.8096 | J7: =($DU7/5)+0.002 -> 1860.8126 | K7: =($DU7/5)-0.002 -> 1860.8086 | L7: =$DV7/5 -> 3057.42756 | M7: =($DV7/5) + 0.001 -> 3057.42856 | N7: =($DV7/5) - 0.001 -> 3057.42656 | O7: =($DV7/5) + 0.002 -> 3057.42956 | P7: =($DV7/5) - 0.002 -> 3057.42556 | Q7: =$DW7/5 -> 2989.5189 | R7: =($DW7/5) + 0.001 -> 2989.5199 | S7: =($DW7/5) - 0.001 -> 2989.5179 | T7: =($DW7/5) + 0.002 -> 2989.5209 | U7: =($DW7/5) - 0.002 -> 2989.5169 | V7: =$DX7/5 -> 4206.93744 | W7: =($DX7/5) +0.001 -> 4206.93844 | X7: =($DX7/5) - 0.001 -> 4206.93644 | Y7: =($DX7/5) + 0.002 -> 4206.93944 | Z7: =($DX7/5) - 0.002 -> 4206.93544 | AA7: =$DY7/5 -> 5822.09514 | AB7: =($DY7/5) + 0.001 -> 5822.09614 | AC7: =($DY7/5) -0.001 -> 5822.09414 | AD7: =($DY7/5) +0.002 -> 5822.09714 | AE7: =($DY7/5) - 0.002 -> 5822.09314 | AF7: =$DZ7/5 -> 4567.4442 | AG7: =($DZ7/5) + 0.001 -> 4567.4452 | AH7: =($DZ7/5) - 0.001 -> 4567.4432 | AI7: =($DZ7/5) +0.002 -> 4567.4462 | AJ7: =($DZ7/5) - 0.002 -> 4567.4422 | AK7: =$EA7/5 -> 5106.82836 | AL7: =($EA7/5) +0.001 -> 5106.82936 | AM7: =($EA7/5) - 0.001 -> 5106.82736 | AN7: =($EA7/5) + 0.002 -> 5106.83036 | AO7: =($EA7/5) - 0.002 -> 5106.82636 | AP7: =$EB7/5 -> 5399.75022 | AQ7: =($EB7/5) + 0.001 -> 5399.75122 | AR7: =($EB7/5) - 0.001 -> 5399.74922 | AS7: =($EB7/5) +0.002 -> 5399.75222 | AT7: =($EB7/5) - 0.002 -> 5399.74822 | AU7: =$EC7/5 -> 3853.71528 | AV7: =($EC7/5) + 0.001 -> 3853.71628 | AW7: =($EC7/5) - 0.001 -> 3853.71428 | AX7: =($EC7/5)+ 0.002 -> 3853.71728 | AY7: =($EC7/5) - 0.002 -> 3853.71328 | AZ7: =$ED7/5 -> 4048.45692 | BA7: =($ED7/5)+ 0.001 -> 4048.45792 | BB7: =($ED7/5) - 0.001 -> 4048.45592 | BC7: =($ED7/5) + 0.002 -> 4048.45892 | BD7: =($ED7/5) - 0.002 -> 4048.45492 | BE7: =$EE7/5 -> 1715.44236 | BF7: =($EE7/5) + 0.001 -> 1715.44336 | BG7: =($EE7/5) - 0.001 -> 1715.44136 | BH7: =($EE7/5) + 0.002 -> 1715.44436 | BI7: =($EE7/5) - 0.002 -> 1715.44036 | BJ7: =$EF7/5 -> 2150.9805 | BK7: =($EF7/5) + 0.001 -> 2150.9815 | BL7: =($EF7/5) - 0.001 -> 2150.9795 | BM7: =($EF7/5) +0.002 -> 2150.9825 | BN7: =($EF7/5) - 0.002 -> 2150.9785 | BO7: =$EG7/5 -> 2919.1011 | BP7: =($EG7/5) + 0.001 -> 2919.1021 | BQ7: =($EG7/5) - 0.001 -> 2919.1001 | BR7: =($EG7/5) +0.002 -> 2919.1031 | BS7: =($EG7/5) -0.002 -> 2919.0991 | BT7: =$EH7/5 -> 2407.72218 | BU7: =($EH7/5) + 0.001 -> 2407.72318 | BV7: =($EH7/5) - 0.001 -> 2407.72118 | BW7: =($EH7/5) + 0.002 -> 2407.72418 | BX7: =($EH7/5) - 0.002 -> 2407.72018 | BY7: =$EI7/5 -> 1889.5443 | BZ7: =($EI7/5) + 0.001 -> 1889.5453 | CA7: =($EI7/5) - 0.001 -> 1889.5433 | CB7: =($EI7/5) + 0.002 -> 1889.5463 | CC7: =($EI7/5) - 0.002 -> 1889.5423 | CD7: =$EJ7/5 -> 2215.89438 | CE7: =($EJ7/5)+ 0.001 -> 2215.89538 | CF7: =($EJ7/5) -0.001 -> 2215.89338 | CG7: =($EJ7/5) + 0.002 -> 2215.89638 | CH7: =($EJ7/5) - 0.002 -> 2215.89238 | CI7: =$EK7/5 -> 2221.3983 | CJ7: =($EK7/5) + 0.001 -> 2221.3993 | CK7: =($EK7/5) - 0.001 -> 2221.3973 | CL7: =($EK7/5) + 0.002 -> 2221.4003 | CM7: =($EK7/5) - 0.002 -> 2221.3963 | CN7: =$EL7/5 -> 618.94818 | CO7: =($EL7/5) + 0.001 -> 618.94918 | CP7: =($EL7/5) - 0.001 -> 618.94718 | CQ7: =($EL7/5) + 0.002 -> 618.95018 | CR7: =($EL7/5) - 0.002 -> 618.94618 | CS7: =$EM7/5 -> 341.80962 | CT7: =($EM7/5) + 0.001 -> 341.81062 | CU7: =($EM7/5) - 0.001 -> 341.80862 | CV7: =($EM7/5) + 0.002 -> 341.81162 | CW7: =($EM7/5) -0.002 -> 341.80762 | CX7: =$EN7/20 -> 1115.980485 | CY7: =($EN7/20) + 0.001 -> 1115.981485 | CZ7: =($EN7/20) - 0.001 -> 1115.979485 | DA7: =($EN7/20) +0.002 -> 1115.982485 | DB7: =($EN7/20) - 0.002 -> 1115.978485 | DC7: =($EN7/20) + 0.003 -> 1115.983485 | DD7: =($EN7/20) - 0.003 -> 1115.977485 | DE7: =($EN7/20) + 0.004 -> 1115.984485 | DF7: =($EN7/20) - 0.004 -> 1115.976485 | DG7: =($EN7/20) + 0.005 -> 1115.985485 | DH7: =($EN7/20) - 0.005 -> 1115.975485 | DI7: =($EN7/20) +0.006 -> 1115.986485 | DJ7: =($EN7/20) - 0.006 -> 1115.974485 | DK7: =($EN7/20) + 0.007 -> 1115.987485 | DL7: =($EN7/20) - 0.007 -> 1115.973485 | DM7: =($EN7/20) + 0.008 -> 1115.988485 | DN7: =($EN7/20) - 0.008 -> 1115.972485 | DO7: =($EN7/20) + 0.009 -> 1115.989485 | DP7: =($EN7/20) - 0.009 -> 1115.971485 | DQ7: =($EN7/20) + 0.0001 -> 1115.980585 | DS7: 100 | DT7: =AREA!B4 -> 6937.3674 | DU7: =AREA!C4 -> 9304.053 | DV7: =AREA!D4 -> 15287.1378 | DW7: =AREA!E4 -> 14947.5945 | DX7: =AREA!F4 -> 21034.6872 | DY7: =AREA!G4 -> 29110.4757 | DZ7: =AREA!H4 -> 22837.221 | EA7: =AREA!I4 -> 25534.1418 | EB7: =AREA!J4 -> 26998.7511 | EC7: =AREA!K4 -> 19268.5764 | ED7: =AREA!L4 -> 20242.2846 | EE7: =AREA!M4 -> 8577.2118 | EF7: =AREA!N4 -> 10754.9025 | EG7: =AREA!O4 -> 14595.5055 | EH7: =AREA!P4 -> 12038.6109 | EI7: =AREA!Q4 -> 9447.7215 | EJ7: =AREA!R4 -> 11079.4719 | EK7: =AREA!S4 -> 11106.9915 | EL7: =AREA!T4 -> 3094.7409 | EM7: =AREA!U4 -> 1709.0481 | EN7: =AREA!V4 -> 22319.6097 | EP7: =SUM(DT7:EN7) -> 316226.1048
A8: Bole (Mg-Predict) | B8: 2.319255114 | C8: 2.669994571 | D8: 3.071613509 | E8: 3.530799188 | F8: 4.05489805 | G8: 4.651909983 | H8: 5.330455359 | I8: 6.099706284 | J8: 6.969272535 | K8: 7.949032108 | L8: 9.048896667 | M8: 10.27850378 | N8: 11.64683121 | O8: 13.16173395 | P8: 14.82941287 | Q8: 16.6538339 | R8: 18.63612913 | S8: 20.77402347 | T8: 23.06134179 | U8: 25.48765822 | V8: 28.03814873 | W8: 30.69369894 | X8: 33.43129861 | Y8: 36.22472562 | Z8: 39.04548762 | AA8: 41.86395564 | AB8: 44.65059675 | AC8: 47.37719821 | AD8: 50.01797704 | AE8: 52.55048548 | AF8: 54.95625153 | AG8: 57.22112835 | AH8: 59.33536004 | AI8: 61.29339923 | AJ8: 63.09353035 | AK8: 64.73736045 | AL8: 66.22923868 | AM8: 67.57565752 | AN8: 68.78467794 | AO8: 69.86540758 | AP8: 70.82754938 | AQ8: 71.68102796 | AR8: 72.43569353 | AS8: 73.10109803 | AT8: 73.68633475 | AU8: 74.199932 | AV8: 74.64979041 | AW8: 75.04315469 | AX8: 75.38661145 | AY8: 75.68610582 | AZ8: 75.94697117 | BA8: 76.17396724 | BB8: 76.37132295 | BC8: 76.54278139 | BD8: 76.69164485 | BE8: 76.82081862 | BF8: 76.93285256 | BG8: 77.02998001 | BH8: 77.11415359 | BI8: 77.18707785 | BJ8: 77.2502389 | BK8: 77.30493086 | BL8: 77.35227958 | BM8: 77.39326371 | BN8: 77.4287333 | BO8: 77.45942627 | BP8: 77.4859828 | BQ8: 77.50895807 | BR8: 77.5288333 | BS8: 77.54602549 | BT8: 77.56089588 | BU8: 77.57375731 | BV8: 77.58488064 | BW8: 77.59450037 | BX8: 77.60281943 | BY8: 77.61001347 | BZ8: 77.61623446 | CA8: 77.62161388 | CB8: 77.6262655 | CC8: 77.6302877 | CD8: 77.63376559 | CE8: 77.63677281 | CF8: 77.63937302 | CG8: 77.64162128 | CH8: 77.64356521 | CI8: 77.645246 | CJ8: 77.64669925 | CK8: 77.64795577 | CL8: 77.64904218 | CM8: 77.6499815 | CN8: 77.65079366 | CO8: 77.65149585 | CP8: 77.65210297 | CQ8: 77.6526279 | CR8: 77.65308174 | CS8: 77.65347414 | CT8: 77.65381341 | CU8: 77.65410674 | CV8: 77.65436036 | CW8: 77.65457963 | CX8: 77.65476921 | CY8: 77.65493313 | CZ8: 77.65507484 | DA8: 77.65519737 | DB8: 77.65530331 | DC8: 77.65539491 | DD8: 77.6554741 | DE8: 77.65554257 | DF8: 77.65560176 | DG8: 77.65565295 | DH8: 77.6556972 | DI8: 77.65573546 | DJ8: 77.65576853 | DK8: 77.65579713 | DL8: 77.65582186 | DM8: 77.65584324 | DN8: 77.65586172 | DO8: 77.65587771 | DP8: 77.65589152 | DQ8: 77.65590347 | DS8: 120 | DT8: =AREA!B5 -> 27462.5373 | DU8: =AREA!C5 -> 20804.4129 | DV8: =AREA!D5 -> 23552.3259 | DW8: =AREA!E5 -> 23959.4541 | DX8: =AREA!F5 -> 38087.9358 | DY8: =AREA!G5 -> 33078.9639 | DZ8: =AREA!H5 -> 34920.3489 | EA8: =AREA!I5 -> 44476.1253 | EB8: =AREA!J5 -> 54920.2182 | EC8: =AREA!K5 -> 86867.2362 | ED8: =AREA!L5 -> 86871.2832 | EE8: =AREA!M5 -> 81246.7626 | EF8: =AREA!N5 -> 85250.8644 | EG8: =AREA!O5 -> 97622.1387 | EH8: =AREA!P5 -> 81019.7259 | EI8: =AREA!Q5 -> 78690.2727 | EJ8: =AREA!R5 -> 80799.5691 | EK8: =AREA!S5 -> 60906.1359 | EL8: =AREA!T5 -> 50589.1188 | EM8: =AREA!U5 -> 43205.772 | EN8: =AREA!V5 -> 260288.0661 | EP8: =SUM(DT9:EN9) -> 473438.295
A9: BOLEWOOD (ODT) 3rd | B9: =('BIOMASS YIELD'!#REF!+('BIOMASS YIELD'!#REF!*'CHANGE MATRICES'!B$4)) ->  | C9: =('BIOMASS YIELD'!#REF!+('BIOMASS YIELD'!#REF!*'CHANGE MATRICES'!C$4)) ->  | D9: =('BIOMASS YIELD'!#REF!+('BIOMASS YIELD'!#REF!*'CHANGE MATRICES'!D$4)) ->  | E9: =('BIOMASS YIELD'!#REF!+('BIOMASS YIELD'!#REF!*'CHANGE MATRICES'!E$4)) ->  | F9: =('BIOMASS YIELD'!#REF!+('BIOMASS YIELD'!#REF!*'CHANGE MATRICES'!F$4)) ->  | G9: =('BIOMASS YIELD'!#REF!+('BIOMASS YIELD'!#REF!*'CHANGE MATRICES'!G$4)) ->  | H9: =('BIOMASS YIELD'!#REF!+('BIOMASS YIELD'!#REF!*'CHANGE MATRICES'!H$4)) ->  | I9: =('BIOMASS YIELD'!#REF!+('BIOMASS YIELD'!#REF!*'CHANGE MATRICES'!I$4)) ->  | J9: =('BIOMASS YIELD'!#REF!+('BIOMASS YIELD'!#REF!*'CHANGE MATRICES'!J$4)) ->  | K9: =('BIOMASS YIELD'!#REF!+('BIOMASS YIELD'!#REF!*'CHANGE MATRICES'!K$4)) ->  | L9: =('BIOMASS YIELD'!#REF!+('BIOMASS YIELD'!#REF!*'CHANGE MATRICES'!L$4)) ->  | M9: =('BIOMASS YIELD'!#REF!+('BIOMASS YIELD'!#REF!*'CHANGE MATRICES'!M$4)) ->  | N9: =('BIOMASS YIELD'!#REF!+('BIOMASS YIELD'!#REF!*'CHANGE MATRICES'!N$4)) ->  | O9: =('BIOMASS YIELD'!#REF!+('BIOMASS YIELD'!#REF!*'CHANGE MATRICES'!O$4)) ->  | P9: =('BIOMASS YIELD'!#REF!+('BIOMASS YIELD'!#REF!*'CHANGE MATRICES'!P$4)) ->  | Q9: =('BIOMASS YIELD'!#REF!+('BIOMASS YIELD'!#REF!*'CHANGE MATRICES'!Q$4)) ->  | R9: =('BIOMASS YIELD'!#REF!+('BIOMASS YIELD'!#REF!*'CHANGE MATRICES'!R$4)) ->  | S9: =('BIOMASS YIELD'!#REF!+('BIOMASS YIELD'!#REF!*'CHANGE MATRICES'!S$4)) ->  | T9: =('BIOMASS YIELD'!#REF!+('BIOMASS YIELD'!#REF!*'CHANGE MATRICES'!T$4)) ->  | U9: =('BIOMASS YIELD'!#REF!+('BIOMASS YIELD'!#REF!*'CHANGE MATRICES'!U$4)) ->  | V9: =('BIOMASS YIELD'!#REF!+('BIOMASS YIELD'!#REF!*'CHANGE MATRICES'!V$4)) ->  | W9: =('BIOMASS YIELD'!#REF!+('BIOMASS YIELD'!#REF!*'CHANGE MATRICES'!W$4)) ->  | X9: =('BIOMASS YIELD'!#REF!+('BIOMASS YIELD'!#REF!*'CHANGE MATRICES'!X$4)) ->  | Y9: =('BIOMASS YIELD'!#REF!+('BIOMASS YIELD'!#REF!*'CHANGE MATRICES'!Y$4)) ->  | Z9: =('BIOMASS YIELD'!#REF!+('BIOMASS YIELD'!#REF!*'CHANGE MATRICES'!Z$4)) ->  | AA9: =('BIOMASS YIELD'!#REF!+('BIOMASS YIELD'!#REF!*'CHANGE MATRICES'!AA$4)) ->  | AB9: =('BIOMASS YIELD'!#REF!+('BIOMASS YIELD'!#REF!*'CHANGE MATRICES'!AB$4)) ->  | AC9: =('BIOMASS YIELD'!#REF!+('BIOMASS YIELD'!#REF!*'CHANGE MATRICES'!AC$4)) ->  | AD9: =('BIOMASS YIELD'!#REF!+('BIOMASS YIELD'!#REF!*'CHANGE MATRICES'!AD$4)) ->  | AE9: =('BIOMASS YIELD'!#REF!+('BIOMASS YIELD'!#REF!*'CHANGE MATRICES'!AE$4)) ->  | AF9: =('BIOMASS YIELD'!#REF!+('BIOMASS YIELD'!#REF!*'CHANGE MATRICES'!AF$4)) ->  | AG9: =('BIOMASS YIELD'!#REF!+('BIOMASS YIELD'!#REF!*'CHANGE MATRICES'!AG$4)) ->  | AH9: =('BIOMASS YIELD'!#REF!+('BIOMASS YIELD'!#REF!*'CHANGE MATRICES'!AH$4)) ->  | AI9: =('BIOMASS YIELD'!#REF!+('BIOMASS YIELD'!#REF!*'CHANGE MATRICES'!AI$4)) ->  | AJ9: =('BIOMASS YIELD'!#REF!+('BIOMASS YIELD'!#REF!*'CHANGE MATRICES'!AJ$4)) ->  | AK9: =('BIOMASS YIELD'!#REF!+('BIOMASS YIELD'!#REF!*'CHANGE MATRICES'!AK$4)) ->  | AL9: =('BIOMASS YIELD'!#REF!+('BIOMASS YIELD'!#REF!*'CHANGE MATRICES'!AL$4)) ->  | AM9: =('BIOMASS YIELD'!#REF!+('BIOMASS YIELD'!#REF!*'CHANGE MATRICES'!AM$4)) ->  | AN9: =('BIOMASS YIELD'!#REF!+('BIOMASS YIELD'!#REF!*'CHANGE MATRICES'!AN$4)) ->  | AO9: =('BIOMASS YIELD'!#REF!+('BIOMASS YIELD'!#REF!*'CHANGE MATRICES'!AO$4)) ->  | AP9: =('BIOMASS YIELD'!#REF!+('BIOMASS YIELD'!#REF!*'CHANGE MATRICES'!AP$4)) ->  | AQ9: =('BIOMASS YIELD'!#REF!+('BIOMASS YIELD'!#REF!*'CHANGE MATRICES'!AQ$4)) ->  | AR9: =('BIOMASS YIELD'!#REF!+('BIOMASS YIELD'!#REF!*'CHANGE MATRICES'!AR$4)) ->  | AS9: =('BIOMASS YIELD'!#REF!+('BIOMASS YIELD'!#REF!*'CHANGE MATRICES'!AS$4)) ->  | AT9: =('BIOMASS YIELD'!#REF!+('BIOMASS YIELD'!#REF!*'CHANGE MATRICES'!AT$4)) ->  | AU9: =('BIOMASS YIELD'!#REF!+('BIOMASS YIELD'!#REF!*'CHANGE MATRICES'!AU$4)) ->  | AV9: =('BIOMASS YIELD'!#REF!+('BIOMASS YIELD'!#REF!*'CHANGE MATRICES'!AV$4)) ->  | AW9: =('BIOMASS YIELD'!#REF!+('BIOMASS YIELD'!#REF!*'CHANGE MATRICES'!AW$4)) ->  | AX9: =('BIOMASS YIELD'!#REF!+('BIOMASS YIELD'!#REF!*'CHANGE MATRICES'!AX$4)) ->  | AY9: =('BIOMASS YIELD'!#REF!+('BIOMASS YIELD'!#REF!*'CHANGE MATRICES'!AY$4)) ->  | AZ9: =('BIOMASS YIELD'!#REF!+('BIOMASS YIELD'!#REF!*'CHANGE MATRICES'!AZ$4)) ->  | BA9: =('BIOMASS YIELD'!#REF!+('BIOMASS YIELD'!#REF!*'CHANGE MATRICES'!BA$4)) ->  | BB9: =('BIOMASS YIELD'!#REF!+('BIOMASS YIELD'!#REF!*'CHANGE MATRICES'!BB$4)) ->  | BC9: =('BIOMASS YIELD'!#REF!+('BIOMASS YIELD'!#REF!*'CHANGE MATRICES'!BC$4)) ->  | BD9: =('BIOMASS YIELD'!#REF!+('BIOMASS YIELD'!#REF!*'CHANGE MATRICES'!BD$4)) ->  | BE9: =('BIOMASS YIELD'!#REF!+('BIOMASS YIELD'!#REF!*'CHANGE MATRICES'!BE$4)) ->  | BF9: =('BIOMASS YIELD'!#REF!+('BIOMASS YIELD'!#REF!*'CHANGE MATRICES'!BF$4)) ->  | BG9: =('BIOMASS YIELD'!#REF!+('BIOMASS YIELD'!#REF!*'CHANGE MATRICES'!BG$4)) ->  | BH9: =('BIOMASS YIELD'!#REF!+('BIOMASS YIELD'!#REF!*'CHANGE MATRICES'!BH$4)) ->  | BI9: =('BIOMASS YIELD'!#REF!+('BIOMASS YIELD'!#REF!*'CHANGE MATRICES'!BI$4)) ->  | BJ9: =('BIOMASS YIELD'!#REF!+('BIOMASS YIELD'!#REF!*'CHANGE MATRICES'!BJ$4)) ->  | BK9: =('BIOMASS YIELD'!#REF!+('BIOMASS YIELD'!#REF!*'CHANGE MATRICES'!BK$4)) ->  | BL9: =('BIOMASS YIELD'!#REF!+('BIOMASS YIELD'!#REF!*'CHANGE MATRICES'!BL$4)) ->  | BM9: =('BIOMASS YIELD'!#REF!+('BIOMASS YIELD'!#REF!*'CHANGE MATRICES'!BM$4)) ->  | BN9: =('BIOMASS YIELD'!#REF!+('BIOMASS YIELD'!#REF!*'CHANGE MATRICES'!BN$4)) ->  | BO9: =('BIOMASS YIELD'!#REF!+('BIOMASS YIELD'!#REF!*'CHANGE MATRICES'!BO$4)) ->  | BP9: =('BIOMASS YIELD'!#REF!+('BIOMASS YIELD'!#REF!*'CHANGE MATRICES'!BP$4)) ->  | BQ9: =('BIOMASS YIELD'!#REF!+('BIOMASS YIELD'!#REF!*'CHANGE MATRICES'!BQ$4)) ->  | BR9: =('BIOMASS YIELD'!#REF!+('BIOMASS YIELD'!#REF!*'CHANGE MATRICES'!BR$4)) ->  | BS9: =('BIOMASS YIELD'!#REF!+('BIOMASS YIELD'!#REF!*'CHANGE MATRICES'!BS$4)) ->  | BT9: =('BIOMASS YIELD'!#REF!+('BIOMASS YIELD'!#REF!*'CHANGE MATRICES'!BT$4)) ->  | BU9: =('BIOMASS YIELD'!#REF!+('BIOMASS YIELD'!#REF!*'CHANGE MATRICES'!BU$4)) ->  | BV9: =('BIOMASS YIELD'!#REF!+('BIOMASS YIELD'!#REF!*'CHANGE MATRICES'!BV$4)) ->  | BW9: =('BIOMASS YIELD'!#REF!+('BIOMASS YIELD'!#REF!*'CHANGE MATRICES'!BW$4)) ->  | BX9: =('BIOMASS YIELD'!#REF!+('BIOMASS YIELD'!#REF!*'CHANGE MATRICES'!BX$4)) ->  | BY9: =('BIOMASS YIELD'!#REF!+('BIOMASS YIELD'!#REF!*'CHANGE MATRICES'!BY$4)) ->  | BZ9: =('BIOMASS YIELD'!#REF!+('BIOMASS YIELD'!#REF!*'CHANGE MATRICES'!BZ$4)) ->  | CA9: =('BIOMASS YIELD'!#REF!+('BIOMASS YIELD'!#REF!*'CHANGE MATRICES'!CA$4)) ->  | CB9: =('BIOMASS YIELD'!#REF!+('BIOMASS YIELD'!#REF!*'CHANGE MATRICES'!CB$4)) ->  | CC9: =('BIOMASS YIELD'!#REF!+('BIOMASS YIELD'!#REF!*'CHANGE MATRICES'!CC$4)) ->  | CD9: =('BIOMASS YIELD'!#REF!+('BIOMASS YIELD'!#REF!*'CHANGE MATRICES'!CD$4)) ->  | CE9: =('BIOMASS YIELD'!#REF!+('BIOMASS YIELD'!#REF!*'CHANGE MATRICES'!CE$4)) ->  | CF9: =('BIOMASS YIELD'!#REF!+('BIOMASS YIELD'!#REF!*'CHANGE MATRICES'!CF$4)) ->  | CG9: =('BIOMASS YIELD'!#REF!+('BIOMASS YIELD'!#REF!*'CHANGE MATRICES'!CG$4)) ->  | CH9: =('BIOMASS YIELD'!#REF!+('BIOMASS YIELD'!#REF!*'CHANGE MATRICES'!CH$4)) ->  | CI9: =('BIOMASS YIELD'!#REF!+('BIOMASS YIELD'!#REF!*'CHANGE MATRICES'!CI$4)) ->  | CJ9: =('BIOMASS YIELD'!#REF!+('BIOMASS YIELD'!#REF!*'CHANGE MATRICES'!CJ$4)) ->  | CK9: =('BIOMASS YIELD'!#REF!+('BIOMASS YIELD'!#REF!*'CHANGE MATRICES'!CK$4)) ->  | CL9: =('BIOMASS YIELD'!#REF!+('BIOMASS YIELD'!#REF!*'CHANGE MATRICES'!CL$4)) ->  | CM9: =('BIOMASS YIELD'!#REF!+('BIOMASS YIELD'!#REF!*'CHANGE MATRICES'!CM$4)) ->  | CN9: =('BIOMASS YIELD'!#REF!+('BIOMASS YIELD'!#REF!*'CHANGE MATRICES'!CN$4)) ->  | CO9: =('BIOMASS YIELD'!#REF!+('BIOMASS YIELD'!#REF!*'CHANGE MATRICES'!CO$4)) ->  | CP9: =('BIOMASS YIELD'!#REF!+('BIOMASS YIELD'!#REF!*'CHANGE MATRICES'!CP$4)) ->  | CQ9: =('BIOMASS YIELD'!#REF!+('BIOMASS YIELD'!#REF!*'CHANGE MATRICES'!CQ$4)) ->  | CR9: =('BIOMASS YIELD'!#REF!+('BIOMASS YIELD'!#REF!*'CHANGE MATRICES'!CR$4)) ->  | CS9: =('BIOMASS YIELD'!#REF!+('BIOMASS YIELD'!#REF!*'CHANGE MATRICES'!CS$4)) ->  | CT9: =('BIOMASS YIELD'!#REF!+('BIOMASS YIELD'!#REF!*'CHANGE MATRICES'!CT$4)) ->  | CU9: =('BIOMASS YIELD'!#REF!+('BIOMASS YIELD'!#REF!*'CHANGE MATRICES'!CU$4)) ->  | CV9: =('BIOMASS YIELD'!#REF!+('BIOMASS YIELD'!#REF!*'CHANGE MATRICES'!CV$4)) ->  | CW9: =('BIOMASS YIELD'!#REF!+('BIOMASS YIELD'!#REF!*'CHANGE MATRICES'!CW$4)) ->  | CX9: =('BIOMASS YIELD'!#REF!+('BIOMASS YIELD'!#REF!*'CHANGE MATRICES'!CX$4)) ->  | CY9: =('BIOMASS YIELD'!#REF!+('BIOMASS YIELD'!#REF!*'CHANGE MATRICES'!CY$4)) ->  | CZ9: =('BIOMASS YIELD'!#REF!+('BIOMASS YIELD'!#REF!*'CHANGE MATRICES'!CZ$4)) ->  | DA9: =('BIOMASS YIELD'!#REF!+('BIOMASS YIELD'!#REF!*'CHANGE MATRICES'!DA$4)) ->  | DB9: =('BIOMASS YIELD'!#REF!+('BIOMASS YIELD'!#REF!*'CHANGE MATRICES'!DB$4)) ->  | DC9: =('BIOMASS YIELD'!#REF!+('BIOMASS YIELD'!#REF!*'CHANGE MATRICES'!DC$4)) ->  | DD9: =('BIOMASS YIELD'!#REF!+('BIOMASS YIELD'!#REF!*'CHANGE MATRICES'!DD$4)) ->  | DE9: =('BIOMASS YIELD'!#REF!+('BIOMASS YIELD'!#REF!*'CHANGE MATRICES'!DE$4)) ->  | DF9: =('BIOMASS YIELD'!#REF!+('BIOMASS YIELD'!#REF!*'CHANGE MATRICES'!DF$4)) ->  | DG9: =('BIOMASS YIELD'!#REF!+('BIOMASS YIELD'!#REF!*'CHANGE MATRICES'!DG$4)) ->  | DH9: =('BIOMASS YIELD'!#REF!+('BIOMASS YIELD'!#REF!*'CHANGE MATRICES'!DH$4)) ->  | DI9: =('BIOMASS YIELD'!#REF!+('BIOMASS YIELD'!#REF!*'CHANGE MATRICES'!DI$4)) ->  | DJ9: =('BIOMASS YIELD'!#REF!+('BIOMASS YIELD'!#REF!*'CHANGE MATRICES'!DJ$4)) ->  | DK9: =('BIOMASS YIELD'!#REF!+('BIOMASS YIELD'!#REF!*'CHANGE MATRICES'!DK$4)) ->  | DL9: =('BIOMASS YIELD'!#REF!+('BIOMASS YIELD'!#REF!*'CHANGE MATRICES'!DL$4)) ->  | DM9: =('BIOMASS YIELD'!#REF!+('BIOMASS YIELD'!#REF!*'CHANGE MATRICES'!DM$4)) ->  | DN9: =('BIOMASS YIELD'!#REF!+('BIOMASS YIELD'!#REF!*'CHANGE MATRICES'!DN$4)) ->  | DO9: =('BIOMASS YIELD'!#REF!+('BIOMASS YIELD'!#REF!*'CHANGE MATRICES'!DO$4)) ->  | DP9: =('BIOMASS YIELD'!#REF!+('BIOMASS YIELD'!#REF!*'CHANGE MATRICES'!DP$4)) ->  | DQ9: =('BIOMASS YIELD'!#REF!+('BIOMASS YIELD'!#REF!*'CHANGE MATRICES'!DQ$4)) ->  | DS9: 500 | DT9: =AREA!B6 -> 21024.165 | DU9: =AREA!C6 -> 16853.7315 | DV9: =AREA!D6 -> 14663.0904 | DW9: =AREA!E6 -> 10283.0223 | DX9: =AREA!F6 -> 7093.5816 | DY9: =AREA!G6 -> 14557.4637 | DZ9: =AREA!H6 -> 4087.47 | EA9: =AREA!I6 -> 14710.0356 | EB9: =AREA!J6 -> 14302.5027 | EC9: =AREA!K6 -> 21672.8991 | ED9: =AREA!L6 -> 37737.8703 | EE9: =AREA!M6 -> 36809.0838 | EF9: =AREA!N6 -> 52759.5249 | EG9: =AREA!O6 -> 38589.3591 | EH9: =AREA!P6 -> 45355.5384 | EI9: =AREA!Q6 -> 29317.2774 | EJ9: =AREA!R6 -> 29270.7369 | EK9: =AREA!S6 -> 21348.3297 | EL9: =AREA!T6 -> 15304.1352 | EM9: =AREA!U6 -> 6785.2002 | EN9: =AREA!V6 -> 20913.2772 | EP9: 427552.5996
A10: TOPS (Mg-Predict) | B10: 0.530681838 | C10: 0.6135223972 | D10: 0.7087512515 | E10: 0.8180409145 | F10: 0.9432307678 | G10: 1.086324117 | H10: 1.249477401 | I10: 1.434979104 | J10: 1.64521567 | K10: 1.882621647 | L10: 2.149611468 | M10: 2.448490937 | N10: 2.781347642 | O10: 3.149921437 | P10: 3.555458674 | Q10: 3.99855714 | R10: 4.47901221 | S10: 4.995678171 | T10: 5.546361178 | U10: 6.127761103 | V10: 6.735477781 | W10: 7.364092409 | X10: 8.007327277 | Y10: 8.658277488 | Z10: 9.309698452 | AA10: 9.954324654 | AB10: 10.58519039 | AC10: 11.19592278 | AD10: 11.78098181 | AE10: 12.3358299 | AF10: 12.85702336 | AG10: 13.34222792 | AH10: 13.79016799 | AI10: 14.20052503 | AJ10: 14.57380193 | AK10: 14.9111703 | AL10: 15.2143149 | AM10: 15.48528617 | AN10: 15.72636842 | AO10: 15.93996748 | AP10: 16.12851956 | AQ10: 16.29442046 | AR10: 16.4399735 | AS10: 16.56735355 | AT10: 16.67858444 | AU10: 16.77552697 | AV10: 16.8598751 | AW10: 16.93315809 | AX10: 16.99674688 | AY10: 17.05186322 | AZ10: 17.09959044 | BA10: 17.14088506 | BB10: 17.17658855 | BC10: 17.20743886 | BD10: 17.23408147 | BE10: 17.25707966 | BF10: 17.27692405 | BG10: 17.29404126 | BH10: 17.30880171 | BI10: 17.32152663 | BJ10: 17.33249432 | BK10: 17.34194565 | BL10: 17.35008892 | BM10: 17.3571042 | BN10: 17.36314698 | BO10: 17.36835155 | BP10: 17.37283376 | BQ10: 17.37669358 | BR10: 17.38001721 | BS10: 17.38287897 | BT10: 17.38534292 | BU10: 17.38746428 | BV10: 17.3892906 | BW10: 17.39086287 | BX10: 17.3922164 | BY10: 17.39338158 | BZ10: 17.39438462 | CA10: 17.39524805 | CB10: 17.3959913 | CC10: 17.39663108 | CD10: 17.3971818 | CE10: 17.39765585 | CF10: 17.3980639 | CG10: 17.39841513 | CH10: 17.39871746 | CI10: 17.39897769 | CJ10: 17.39920168 | CK10: 17.39939448 | CL10: 17.39956044 | CM10: 17.39970328 | CN10: 17.39982623 | CO10: 17.39993206 | CP10: 17.40002315 | CQ10: 17.40010155 | CR10: 17.40016904 | CS10: 17.40022713 | CT10: 17.40027713 | CU10: 17.40032016 | CV10: 17.4003572 | CW10: 17.40038909 | CX10: 17.40041653 | CY10: 17.40044015 | CZ10: 17.40046048 | DA10: 17.40047798 | DB10: 17.40049304 | DC10: 17.40050601 | DD10: 17.40051716 | DE10: 17.40052677 | DF10: 17.40053504 | DG10: 17.40054215 | DH10: 17.40054828 | DI10: 17.40055355 | DJ10: 17.40055809 | DK10: 17.40056199 | DL10: 17.40056535 | DM10: 17.40056825 | DN10: 17.40057074 | DO10: 17.40057288 | DP10: 17.40057473 | DQ10: 17.40057631 | DS10: 700 | DT10: =AREA!B7 -> 6179.3643 | DU10: =AREA!C7 -> 8465.1099 | DV10: =AREA!D7 -> 9717.6564 | DW10: =AREA!E7 -> 8849.5749 | DX10: =AREA!F7 -> 6038.124 | DY10: =AREA!G7 -> 8380.1229 | DZ10: =AREA!H7 -> 12461.9271 | EA10: =AREA!I7 -> 7151.4537 | EB10: =AREA!J7 -> 12306.1176 | EC10: =AREA!K7 -> 17138.6403 | ED10: =AREA!L7 -> 18886.1349 | EE10: =AREA!M7 -> 30184.9542 | EF10: =AREA!N7 -> 33414.0555 | EG10: =AREA!O7 -> 38420.1945 | EH10: =AREA!P7 -> 44400.8511 | EI10: =AREA!Q7 -> 22765.1844 | EJ10: =AREA!R7 -> 31362.6312 | EK10: =AREA!S7 -> 28050.5664 | EL10: =AREA!T7 -> 13176.2226 | EM10: =AREA!U7 -> 15277.0203 | EN10: =AREA!V7 -> 54926.6934 | EP10: 438037.9719
A11: TOPS AND LIMBS (ODT) 3rd | B11: =('BIOMASS YIELD'!#REF!+('BIOMASS YIELD'!#REF!*'CHANGE MATRICES'!B$4)) ->  | C11: =('BIOMASS YIELD'!#REF!+('BIOMASS YIELD'!#REF!*'CHANGE MATRICES'!C$4)) ->  | D11: =('BIOMASS YIELD'!#REF!+('BIOMASS YIELD'!#REF!*'CHANGE MATRICES'!D$4)) ->  | E11: =('BIOMASS YIELD'!#REF!+('BIOMASS YIELD'!#REF!*'CHANGE MATRICES'!E$4)) ->  | F11: =('BIOMASS YIELD'!#REF!+('BIOMASS YIELD'!#REF!*'CHANGE MATRICES'!F$4)) ->  | G11: =('BIOMASS YIELD'!#REF!+('BIOMASS YIELD'!#REF!*'CHANGE MATRICES'!G$4)) ->  | H11: =('BIOMASS YIELD'!#REF!+('BIOMASS YIELD'!#REF!*'CHANGE MATRICES'!H$4)) ->  | I11: =('BIOMASS YIELD'!#REF!+('BIOMASS YIELD'!#REF!*'CHANGE MATRICES'!I$4)) ->  | J11: =('BIOMASS YIELD'!#REF!+('BIOMASS YIELD'!#REF!*'CHANGE MATRICES'!J$4)) ->  | K11: =('BIOMASS YIELD'!#REF!+('BIOMASS YIELD'!#REF!*'CHANGE MATRICES'!K$4)) ->  | L11: =('BIOMASS YIELD'!#REF!+('BIOMASS YIELD'!#REF!*'CHANGE MATRICES'!L$4)) ->  | M11: =('BIOMASS YIELD'!#REF!+('BIOMASS YIELD'!#REF!*'CHANGE MATRICES'!M$4)) ->  | N11: =('BIOMASS YIELD'!#REF!+('BIOMASS YIELD'!#REF!*'CHANGE MATRICES'!N$4)) ->  | O11: =('BIOMASS YIELD'!#REF!+('BIOMASS YIELD'!#REF!*'CHANGE MATRICES'!O$4)) ->  | P11: =('BIOMASS YIELD'!#REF!+('BIOMASS YIELD'!#REF!*'CHANGE MATRICES'!P$4)) ->  | Q11: =('BIOMASS YIELD'!#REF!+('BIOMASS YIELD'!#REF!*'CHANGE MATRICES'!Q$4)) ->  | R11: =('BIOMASS YIELD'!#REF!+('BIOMASS YIELD'!#REF!*'CHANGE MATRICES'!R$4)) ->  | S11: =('BIOMASS YIELD'!#REF!+('BIOMASS YIELD'!#REF!*'CHANGE MATRICES'!S$4)) ->  | T11: =('BIOMASS YIELD'!#REF!+('BIOMASS YIELD'!#REF!*'CHANGE MATRICES'!T$4)) ->  | U11: =('BIOMASS YIELD'!#REF!+('BIOMASS YIELD'!#REF!*'CHANGE MATRICES'!U$4)) ->  | V11: =('BIOMASS YIELD'!#REF!+('BIOMASS YIELD'!#REF!*'CHANGE MATRICES'!V$4)) ->  | W11: =('BIOMASS YIELD'!#REF!+('BIOMASS YIELD'!#REF!*'CHANGE MATRICES'!W$4)) ->  | X11: =('BIOMASS YIELD'!#REF!+('BIOMASS YIELD'!#REF!*'CHANGE MATRICES'!X$4)) ->  | Y11: =('BIOMASS YIELD'!#REF!+('BIOMASS YIELD'!#REF!*'CHANGE MATRICES'!Y$4)) ->  | Z11: =('BIOMASS YIELD'!#REF!+('BIOMASS YIELD'!#REF!*'CHANGE MATRICES'!Z$4)) ->  | AA11: =('BIOMASS YIELD'!#REF!+('BIOMASS YIELD'!#REF!*'CHANGE MATRICES'!AA$4)) ->  | AB11: =('BIOMASS YIELD'!#REF!+('BIOMASS YIELD'!#REF!*'CHANGE MATRICES'!AB$4)) ->  | AC11: =('BIOMASS YIELD'!#REF!+('BIOMASS YIELD'!#REF!*'CHANGE MATRICES'!AC$4)) ->  | AD11: =('BIOMASS YIELD'!#REF!+('BIOMASS YIELD'!#REF!*'CHANGE MATRICES'!AD$4)) ->  | AE11: =('BIOMASS YIELD'!#REF!+('BIOMASS YIELD'!#REF!*'CHANGE MATRICES'!AE$4)) ->  | AF11: =('BIOMASS YIELD'!#REF!+('BIOMASS YIELD'!#REF!*'CHANGE MATRICES'!AF$4)) ->  | AG11: =('BIOMASS YIELD'!#REF!+('BIOMASS YIELD'!#REF!*'CHANGE MATRICES'!AG$4)) ->  | AH11: =('BIOMASS YIELD'!#REF!+('BIOMASS YIELD'!#REF!*'CHANGE MATRICES'!AH$4)) ->  | AI11: =('BIOMASS YIELD'!#REF!+('BIOMASS YIELD'!#REF!*'CHANGE MATRICES'!AI$4)) ->  | AJ11: =('BIOMASS YIELD'!#REF!+('BIOMASS YIELD'!#REF!*'CHANGE MATRICES'!AJ$4)) ->  | AK11: =('BIOMASS YIELD'!#REF!+('BIOMASS YIELD'!#REF!*'CHANGE MATRICES'!AK$4)) ->  | AL11: =('BIOMASS YIELD'!#REF!+('BIOMASS YIELD'!#REF!*'CHANGE MATRICES'!AL$4)) ->  | AM11: =('BIOMASS YIELD'!#REF!+('BIOMASS YIELD'!#REF!*'CHANGE MATRICES'!AM$4)) ->  | AN11: =('BIOMASS YIELD'!#REF!+('BIOMASS YIELD'!#REF!*'CHANGE MATRICES'!AN$4)) ->  | AO11: =('BIOMASS YIELD'!#REF!+('BIOMASS YIELD'!#REF!*'CHANGE MATRICES'!AO$4)) ->  | AP11: =('BIOMASS YIELD'!#REF!+('BIOMASS YIELD'!#REF!*'CHANGE MATRICES'!AP$4)) ->  | AQ11: =('BIOMASS YIELD'!#REF!+('BIOMASS YIELD'!#REF!*'CHANGE MATRICES'!AQ$4)) ->  | AR11: =('BIOMASS YIELD'!#REF!+('BIOMASS YIELD'!#REF!*'CHANGE MATRICES'!AR$4)) ->  | AS11: =('BIOMASS YIELD'!#REF!+('BIOMASS YIELD'!#REF!*'CHANGE MATRICES'!AS$4)) ->  | AT11: =('BIOMASS YIELD'!#REF!+('BIOMASS YIELD'!#REF!*'CHANGE MATRICES'!AT$4)) ->  | AU11: =('BIOMASS YIELD'!#REF!+('BIOMASS YIELD'!#REF!*'CHANGE MATRICES'!AU$4)) ->  | AV11: =('BIOMASS YIELD'!#REF!+('BIOMASS YIELD'!#REF!*'CHANGE MATRICES'!AV$4)) ->  | AW11: =('BIOMASS YIELD'!#REF!+('BIOMASS YIELD'!#REF!*'CHANGE MATRICES'!AW$4)) ->  | AX11: =('BIOMASS YIELD'!#REF!+('BIOMASS YIELD'!#REF!*'CHANGE MATRICES'!AX$4)) ->  | AY11: =('BIOMASS YIELD'!#REF!+('BIOMASS YIELD'!#REF!*'CHANGE MATRICES'!AY$4)) ->  | AZ11: =('BIOMASS YIELD'!#REF!+('BIOMASS YIELD'!#REF!*'CHANGE MATRICES'!AZ$4)) ->  | BA11: =('BIOMASS YIELD'!#REF!+('BIOMASS YIELD'!#REF!*'CHANGE MATRICES'!BA$4)) ->  | BB11: =('BIOMASS YIELD'!#REF!+('BIOMASS YIELD'!#REF!*'CHANGE MATRICES'!BB$4)) ->  | BC11: =('BIOMASS YIELD'!#REF!+('BIOMASS YIELD'!#REF!*'CHANGE MATRICES'!BC$4)) ->  | BD11: =('BIOMASS YIELD'!#REF!+('BIOMASS YIELD'!#REF!*'CHANGE MATRICES'!BD$4)) ->  | BE11: =('BIOMASS YIELD'!#REF!+('BIOMASS YIELD'!#REF!*'CHANGE MATRICES'!BE$4)) ->  | BF11: =('BIOMASS YIELD'!#REF!+('BIOMASS YIELD'!#REF!*'CHANGE MATRICES'!BF$4)) ->  | BG11: =('BIOMASS YIELD'!#REF!+('BIOMASS YIELD'!#REF!*'CHANGE MATRICES'!BG$4)) ->  | BH11: =('BIOMASS YIELD'!#REF!+('BIOMASS YIELD'!#REF!*'CHANGE MATRICES'!BH$4)) ->  | BI11: =('BIOMASS YIELD'!#REF!+('BIOMASS YIELD'!#REF!*'CHANGE MATRICES'!BI$4)) ->  | BJ11: =('BIOMASS YIELD'!#REF!+('BIOMASS YIELD'!#REF!*'CHANGE MATRICES'!BJ$4)) ->  | BK11: =('BIOMASS YIELD'!#REF!+('BIOMASS YIELD'!#REF!*'CHANGE MATRICES'!BK$4)) ->  | BL11: =('BIOMASS YIELD'!#REF!+('BIOMASS YIELD'!#REF!*'CHANGE MATRICES'!BL$4)) ->  | BM11: =('BIOMASS YIELD'!#REF!+('BIOMASS YIELD'!#REF!*'CHANGE MATRICES'!BM$4)) ->  | BN11: =('BIOMASS YIELD'!#REF!+('BIOMASS YIELD'!#REF!*'CHANGE MATRICES'!BN$4)) ->  | BO11: =('BIOMASS YIELD'!#REF!+('BIOMASS YIELD'!#REF!*'CHANGE MATRICES'!BO$4)) ->  | BP11: =('BIOMASS YIELD'!#REF!+('BIOMASS YIELD'!#REF!*'CHANGE MATRICES'!BP$4)) ->  | BQ11: =('BIOMASS YIELD'!#REF!+('BIOMASS YIELD'!#REF!*'CHANGE MATRICES'!BQ$4)) ->  | BR11: =('BIOMASS YIELD'!#REF!+('BIOMASS YIELD'!#REF!*'CHANGE MATRICES'!BR$4)) ->  | BS11: =('BIOMASS YIELD'!#REF!+('BIOMASS YIELD'!#REF!*'CHANGE MATRICES'!BS$4)) ->  | BT11: =('BIOMASS YIELD'!#REF!+('BIOMASS YIELD'!#REF!*'CHANGE MATRICES'!BT$4)) ->  | BU11: =('BIOMASS YIELD'!#REF!+('BIOMASS YIELD'!#REF!*'CHANGE MATRICES'!BU$4)) ->  | BV11: =('BIOMASS YIELD'!#REF!+('BIOMASS YIELD'!#REF!*'CHANGE MATRICES'!BV$4)) ->  | BW11: =('BIOMASS YIELD'!#REF!+('BIOMASS YIELD'!#REF!*'CHANGE MATRICES'!BW$4)) ->  | BX11: =('BIOMASS YIELD'!#REF!+('BIOMASS YIELD'!#REF!*'CHANGE MATRICES'!BX$4)) ->  | BY11: =('BIOMASS YIELD'!#REF!+('BIOMASS YIELD'!#REF!*'CHANGE MATRICES'!BY$4)) ->  | BZ11: =('BIOMASS YIELD'!#REF!+('BIOMASS YIELD'!#REF!*'CHANGE MATRICES'!BZ$4)) ->  | CA11: =('BIOMASS YIELD'!#REF!+('BIOMASS YIELD'!#REF!*'CHANGE MATRICES'!CA$4)) ->  | CB11: =('BIOMASS YIELD'!#REF!+('BIOMASS YIELD'!#REF!*'CHANGE MATRICES'!CB$4)) ->  | CC11: =('BIOMASS YIELD'!#REF!+('BIOMASS YIELD'!#REF!*'CHANGE MATRICES'!CC$4)) ->  | CD11: =('BIOMASS YIELD'!#REF!+('BIOMASS YIELD'!#REF!*'CHANGE MATRICES'!CD$4)) ->  | CE11: =('BIOMASS YIELD'!#REF!+('BIOMASS YIELD'!#REF!*'CHANGE MATRICES'!CE$4)) ->  | CF11: =('BIOMASS YIELD'!#REF!+('BIOMASS YIELD'!#REF!*'CHANGE MATRICES'!CF$4)) ->  | CG11: =('BIOMASS YIELD'!#REF!+('BIOMASS YIELD'!#REF!*'CHANGE MATRICES'!CG$4)) ->  | CH11: =('BIOMASS YIELD'!#REF!+('BIOMASS YIELD'!#REF!*'CHANGE MATRICES'!CH$4)) ->  | CI11: =('BIOMASS YIELD'!#REF!+('BIOMASS YIELD'!#REF!*'CHANGE MATRICES'!CI$4)) ->  | CJ11: =('BIOMASS YIELD'!#REF!+('BIOMASS YIELD'!#REF!*'CHANGE MATRICES'!CJ$4)) ->  | CK11: =('BIOMASS YIELD'!#REF!+('BIOMASS YIELD'!#REF!*'CHANGE MATRICES'!CK$4)) ->  | CL11: =('BIOMASS YIELD'!#REF!+('BIOMASS YIELD'!#REF!*'CHANGE MATRICES'!CL$4)) ->  | CM11: =('BIOMASS YIELD'!#REF!+('BIOMASS YIELD'!#REF!*'CHANGE MATRICES'!CM$4)) ->  | CN11: =('BIOMASS YIELD'!#REF!+('BIOMASS YIELD'!#REF!*'CHANGE MATRICES'!CN$4)) ->  | CO11: =('BIOMASS YIELD'!#REF!+('BIOMASS YIELD'!#REF!*'CHANGE MATRICES'!CO$4)) ->  | CP11: =('BIOMASS YIELD'!#REF!+('BIOMASS YIELD'!#REF!*'CHANGE MATRICES'!CP$4)) ->  | CQ11: =('BIOMASS YIELD'!#REF!+('BIOMASS YIELD'!#REF!*'CHANGE MATRICES'!CQ$4)) ->  | CR11: =('BIOMASS YIELD'!#REF!+('BIOMASS YIELD'!#REF!*'CHANGE MATRICES'!CR$4)) ->  | CS11: =('BIOMASS YIELD'!#REF!+('BIOMASS YIELD'!#REF!*'CHANGE MATRICES'!CS$4)) ->  | CT11: =('BIOMASS YIELD'!#REF!+('BIOMASS YIELD'!#REF!*'CHANGE MATRICES'!CT$4)) ->  | CU11: =('BIOMASS YIELD'!#REF!+('BIOMASS YIELD'!#REF!*'CHANGE MATRICES'!CU$4)) ->  | CV11: =('BIOMASS YIELD'!#REF!+('BIOMASS YIELD'!#REF!*'CHANGE MATRICES'!CV$4)) ->  | CW11: =('BIOMASS YIELD'!#REF!+('BIOMASS YIELD'!#REF!*'CHANGE MATRICES'!CW$4)) ->  | CX11: =('BIOMASS YIELD'!#REF!+('BIOMASS YIELD'!#REF!*'CHANGE MATRICES'!CX$4)) ->  | CY11: =('BIOMASS YIELD'!#REF!+('BIOMASS YIELD'!#REF!*'CHANGE MATRICES'!CY$4)) ->  | CZ11: =('BIOMASS YIELD'!#REF!+('BIOMASS YIELD'!#REF!*'CHANGE MATRICES'!CZ$4)) ->  | DA11: =('BIOMASS YIELD'!#REF!+('BIOMASS YIELD'!#REF!*'CHANGE MATRICES'!DA$4)) ->  | DB11: =('BIOMASS YIELD'!#REF!+('BIOMASS YIELD'!#REF!*'CHANGE MATRICES'!DB$4)) ->  | DC11: =('BIOMASS YIELD'!#REF!+('BIOMASS YIELD'!#REF!*'CHANGE MATRICES'!DC$4)) ->  | DD11: =('BIOMASS YIELD'!#REF!+('BIOMASS YIELD'!#REF!*'CHANGE MATRICES'!DD$4)) ->  | DE11: =('BIOMASS YIELD'!#REF!+('BIOMASS YIELD'!#REF!*'CHANGE MATRICES'!DE$4)) ->  | DF11: =('BIOMASS YIELD'!#REF!+('BIOMASS YIELD'!#REF!*'CHANGE MATRICES'!DF$4)) ->  | DG11: =('BIOMASS YIELD'!#REF!+('BIOMASS YIELD'!#REF!*'CHANGE MATRICES'!DG$4)) ->  | DH11: =('BIOMASS YIELD'!#REF!+('BIOMASS YIELD'!#REF!*'CHANGE MATRICES'!DH$4)) ->  | DI11: =('BIOMASS YIELD'!#REF!+('BIOMASS YIELD'!#REF!*'CHANGE MATRICES'!DI$4)) ->  | DJ11: =('BIOMASS YIELD'!#REF!+('BIOMASS YIELD'!#REF!*'CHANGE MATRICES'!DJ$4)) ->  | DK11: =('BIOMASS YIELD'!#REF!+('BIOMASS YIELD'!#REF!*'CHANGE MATRICES'!DK$4)) ->  | DL11: =('BIOMASS YIELD'!#REF!+('BIOMASS YIELD'!#REF!*'CHANGE MATRICES'!DL$4)) ->  | DM11: =('BIOMASS YIELD'!#REF!+('BIOMASS YIELD'!#REF!*'CHANGE MATRICES'!DM$4)) ->  | DN11: =('BIOMASS YIELD'!#REF!+('BIOMASS YIELD'!#REF!*'CHANGE MATRICES'!DN$4)) ->  | DO11: =('BIOMASS YIELD'!#REF!+('BIOMASS YIELD'!#REF!*'CHANGE MATRICES'!DO$4)) ->  | DP11: =('BIOMASS YIELD'!#REF!+('BIOMASS YIELD'!#REF!*'CHANGE MATRICES'!DP$4)) ->  | DQ11: =('BIOMASS YIELD'!#REF!+('BIOMASS YIELD'!#REF!*'CHANGE MATRICES'!DQ$4)) ->  | DS11: 800 | DT11: =AREA!B8 -> 28305.5274 | DU11: =AREA!C8 -> 19945.2348 | DV11: =AREA!D8 -> 19752.1929 | DW11: =AREA!E8 -> 5550.4605 | DX11: =AREA!F8 -> 14283.8865 | DY11: =AREA!G8 -> 10930.5423 | DZ11: =AREA!H8 -> 11560.6602 | EA11: =AREA!I8 -> 3234.3624 | EB11: =AREA!J8 -> 13645.6746 | EC11: =AREA!K8 -> 15023.6781 | ED11: =AREA!L8 -> 21538.134 | EE11: =AREA!M8 -> 24605.3553 | EF11: =AREA!N8 -> 21744.531 | EG11: =AREA!O8 -> 42640.8108 | EH11: =AREA!P8 -> 41174.178 | EI11: =AREA!Q8 -> 36337.2036 | EJ11: =AREA!R8 -> 32502.6711 | EK11: =AREA!S8 -> 22911.6858 | EL11: =AREA!T8 -> 27634.9395 | EM11: =AREA!U8 -> 6221.8578 | EN11: =AREA!V8 -> 18494.3853 | EP11: 2241164.253
A12: STUMPS (ODT) mean | B12: =('BIOMASS YIELD'!#REF!+('BIOMASS YIELD'!#REF!*'CHANGE MATRICES'!B$4)) ->  | C12: =('BIOMASS YIELD'!#REF!+('BIOMASS YIELD'!#REF!*'CHANGE MATRICES'!C$4)) ->  | D12: =('BIOMASS YIELD'!#REF!+('BIOMASS YIELD'!#REF!*'CHANGE MATRICES'!D$4)) ->  | E12: =('BIOMASS YIELD'!#REF!+('BIOMASS YIELD'!#REF!*'CHANGE MATRICES'!E$4)) ->  | F12: =('BIOMASS YIELD'!#REF!+('BIOMASS YIELD'!#REF!*'CHANGE MATRICES'!F$4)) ->  | G12: =('BIOMASS YIELD'!#REF!+('BIOMASS YIELD'!#REF!*'CHANGE MATRICES'!G$4)) ->  | H12: =('BIOMASS YIELD'!#REF!+('BIOMASS YIELD'!#REF!*'CHANGE MATRICES'!H$4)) ->  | I12: =('BIOMASS YIELD'!#REF!+('BIOMASS YIELD'!#REF!*'CHANGE MATRICES'!I$4)) ->  | J12: =('BIOMASS YIELD'!#REF!+('BIOMASS YIELD'!#REF!*'CHANGE MATRICES'!J$4)) ->  | K12: =('BIOMASS YIELD'!#REF!+('BIOMASS YIELD'!#REF!*'CHANGE MATRICES'!K$4)) ->  | L12: =('BIOMASS YIELD'!#REF!+('BIOMASS YIELD'!#REF!*'CHANGE MATRICES'!L$4)) ->  | M12: =('BIOMASS YIELD'!#REF!+('BIOMASS YIELD'!#REF!*'CHANGE MATRICES'!M$4)) ->  | N12: =('BIOMASS YIELD'!#REF!+('BIOMASS YIELD'!#REF!*'CHANGE MATRICES'!N$4)) ->  | O12: =('BIOMASS YIELD'!#REF!+('BIOMASS YIELD'!#REF!*'CHANGE MATRICES'!O$4)) ->  | P12: =('BIOMASS YIELD'!#REF!+('BIOMASS YIELD'!#REF!*'CHANGE MATRICES'!P$4)) ->  | Q12: =('BIOMASS YIELD'!#REF!+('BIOMASS YIELD'!#REF!*'CHANGE MATRICES'!Q$4)) ->  | R12: =('BIOMASS YIELD'!#REF!+('BIOMASS YIELD'!#REF!*'CHANGE MATRICES'!R$4)) ->  | S12: =('BIOMASS YIELD'!#REF!+('BIOMASS YIELD'!#REF!*'CHANGE MATRICES'!S$4)) ->  | T12: =('BIOMASS YIELD'!#REF!+('BIOMASS YIELD'!#REF!*'CHANGE MATRICES'!T$4)) ->  | U12: =('BIOMASS YIELD'!#REF!+('BIOMASS YIELD'!#REF!*'CHANGE MATRICES'!U$4)) ->  | V12: =('BIOMASS YIELD'!#REF!+('BIOMASS YIELD'!#REF!*'CHANGE MATRICES'!V$4)) ->  | W12: =('BIOMASS YIELD'!#REF!+('BIOMASS YIELD'!#REF!*'CHANGE MATRICES'!W$4)) ->  | X12: =('BIOMASS YIELD'!#REF!+('BIOMASS YIELD'!#REF!*'CHANGE MATRICES'!X$4)) ->  | Y12: =('BIOMASS YIELD'!#REF!+('BIOMASS YIELD'!#REF!*'CHANGE MATRICES'!Y$4)) ->  | Z12: =('BIOMASS YIELD'!#REF!+('BIOMASS YIELD'!#REF!*'CHANGE MATRICES'!Z$4)) ->  | AA12: =('BIOMASS YIELD'!#REF!+('BIOMASS YIELD'!#REF!*'CHANGE MATRICES'!AA$4)) ->  | AB12: =('BIOMASS YIELD'!#REF!+('BIOMASS YIELD'!#REF!*'CHANGE MATRICES'!AB$4)) ->  | AC12: =('BIOMASS YIELD'!#REF!+('BIOMASS YIELD'!#REF!*'CHANGE MATRICES'!AC$4)) ->  | AD12: =('BIOMASS YIELD'!#REF!+('BIOMASS YIELD'!#REF!*'CHANGE MATRICES'!AD$4)) ->  | AE12: =('BIOMASS YIELD'!#REF!+('BIOMASS YIELD'!#REF!*'CHANGE MATRICES'!AE$4)) ->  | AF12: =('BIOMASS YIELD'!#REF!+('BIOMASS YIELD'!#REF!*'CHANGE MATRICES'!AF$4)) ->  | AG12: =('BIOMASS YIELD'!#REF!+('BIOMASS YIELD'!#REF!*'CHANGE MATRICES'!AG$4)) ->  | AH12: =('BIOMASS YIELD'!#REF!+('BIOMASS YIELD'!#REF!*'CHANGE MATRICES'!AH$4)) ->  | AI12: =('BIOMASS YIELD'!#REF!+('BIOMASS YIELD'!#REF!*'CHANGE MATRICES'!AI$4)) ->  | AJ12: =('BIOMASS YIELD'!#REF!+('BIOMASS YIELD'!#REF!*'CHANGE MATRICES'!AJ$4)) ->  | AK12: =('BIOMASS YIELD'!#REF!+('BIOMASS YIELD'!#REF!*'CHANGE MATRICES'!AK$4)) ->  | AL12: =('BIOMASS YIELD'!#REF!+('BIOMASS YIELD'!#REF!*'CHANGE MATRICES'!AL$4)) ->  | AM12: =('BIOMASS YIELD'!#REF!+('BIOMASS YIELD'!#REF!*'CHANGE MATRICES'!AM$4)) ->  | AN12: =('BIOMASS YIELD'!#REF!+('BIOMASS YIELD'!#REF!*'CHANGE MATRICES'!AN$4)) ->  | AO12: =('BIOMASS YIELD'!#REF!+('BIOMASS YIELD'!#REF!*'CHANGE MATRICES'!AO$4)) ->  | AP12: =('BIOMASS YIELD'!#REF!+('BIOMASS YIELD'!#REF!*'CHANGE MATRICES'!AP$4)) ->  | AQ12: =('BIOMASS YIELD'!#REF!+('BIOMASS YIELD'!#REF!*'CHANGE MATRICES'!AQ$4)) ->  | AR12: =('BIOMASS YIELD'!#REF!+('BIOMASS YIELD'!#REF!*'CHANGE MATRICES'!AR$4)) ->  | AS12: =('BIOMASS YIELD'!#REF!+('BIOMASS YIELD'!#REF!*'CHANGE MATRICES'!AS$4)) ->  | AT12: =('BIOMASS YIELD'!#REF!+('BIOMASS YIELD'!#REF!*'CHANGE MATRICES'!AT$4)) ->  | AU12: =('BIOMASS YIELD'!#REF!+('BIOMASS YIELD'!#REF!*'CHANGE MATRICES'!AU$4)) ->  | AV12: =('BIOMASS YIELD'!#REF!+('BIOMASS YIELD'!#REF!*'CHANGE MATRICES'!AV$4)) ->  | AW12: =('BIOMASS YIELD'!#REF!+('BIOMASS YIELD'!#REF!*'CHANGE MATRICES'!AW$4)) ->  | AX12: =('BIOMASS YIELD'!#REF!+('BIOMASS YIELD'!#REF!*'CHANGE MATRICES'!AX$4)) ->  | AY12: =('BIOMASS YIELD'!#REF!+('BIOMASS YIELD'!#REF!*'CHANGE MATRICES'!AY$4)) ->  | AZ12: =('BIOMASS YIELD'!#REF!+('BIOMASS YIELD'!#REF!*'CHANGE MATRICES'!AZ$4)) ->  | BA12: =('BIOMASS YIELD'!#REF!+('BIOMASS YIELD'!#REF!*'CHANGE MATRICES'!BA$4)) ->  | BB12: =('BIOMASS YIELD'!#REF!+('BIOMASS YIELD'!#REF!*'CHANGE MATRICES'!BB$4)) ->  | BC12: =('BIOMASS YIELD'!#REF!+('BIOMASS YIELD'!#REF!*'CHANGE MATRICES'!BC$4)) ->  | BD12: =('BIOMASS YIELD'!#REF!+('BIOMASS YIELD'!#REF!*'CHANGE MATRICES'!BD$4)) ->  | BE12: =('BIOMASS YIELD'!#REF!+('BIOMASS YIELD'!#REF!*'CHANGE MATRICES'!BE$4)) ->  | BF12: =('BIOMASS YIELD'!#REF!+('BIOMASS YIELD'!#REF!*'CHANGE MATRICES'!BF$4)) ->  | BG12: =('BIOMASS YIELD'!#REF!+('BIOMASS YIELD'!#REF!*'CHANGE MATRICES'!BG$4)) ->  | BH12: =('BIOMASS YIELD'!#REF!+('BIOMASS YIELD'!#REF!*'CHANGE MATRICES'!BH$4)) ->  | BI12: =('BIOMASS YIELD'!#REF!+('BIOMASS YIELD'!#REF!*'CHANGE MATRICES'!BI$4)) ->  | BJ12: =('BIOMASS YIELD'!#REF!+('BIOMASS YIELD'!#REF!*'CHANGE MATRICES'!BJ$4)) ->  | BK12: =('BIOMASS YIELD'!#REF!+('BIOMASS YIELD'!#REF!*'CHANGE MATRICES'!BK$4)) ->  | BL12: =('BIOMASS YIELD'!#REF!+('BIOMASS YIELD'!#REF!*'CHANGE MATRICES'!BL$4)) ->  | BM12: =('BIOMASS YIELD'!#REF!+('BIOMASS YIELD'!#REF!*'CHANGE MATRICES'!BM$4)) ->  | BN12: =('BIOMASS YIELD'!#REF!+('BIOMASS YIELD'!#REF!*'CHANGE MATRICES'!BN$4)) ->  | BO12: =('BIOMASS YIELD'!#REF!+('BIOMASS YIELD'!#REF!*'CHANGE MATRICES'!BO$4)) ->  | BP12: =('BIOMASS YIELD'!#REF!+('BIOMASS YIELD'!#REF!*'CHANGE MATRICES'!BP$4)) ->  | BQ12: =('BIOMASS YIELD'!#REF!+('BIOMASS YIELD'!#REF!*'CHANGE MATRICES'!BQ$4)) ->  | BR12: =('BIOMASS YIELD'!#REF!+('BIOMASS YIELD'!#REF!*'CHANGE MATRICES'!BR$4)) ->  | BS12: =('BIOMASS YIELD'!#REF!+('BIOMASS YIELD'!#REF!*'CHANGE MATRICES'!BS$4)) ->  | BT12: =('BIOMASS YIELD'!#REF!+('BIOMASS YIELD'!#REF!*'CHANGE MATRICES'!BT$4)) ->  | BU12: =('BIOMASS YIELD'!#REF!+('BIOMASS YIELD'!#REF!*'CHANGE MATRICES'!BU$4)) ->  | BV12: =('BIOMASS YIELD'!#REF!+('BIOMASS YIELD'!#REF!*'CHANGE MATRICES'!BV$4)) ->  | BW12: =('BIOMASS YIELD'!#REF!+('BIOMASS YIELD'!#REF!*'CHANGE MATRICES'!BW$4)) ->  | BX12: =('BIOMASS YIELD'!#REF!+('BIOMASS YIELD'!#REF!*'CHANGE MATRICES'!BX$4)) ->  | BY12: =('BIOMASS YIELD'!#REF!+('BIOMASS YIELD'!#REF!*'CHANGE MATRICES'!BY$4)) ->  | BZ12: =('BIOMASS YIELD'!#REF!+('BIOMASS YIELD'!#REF!*'CHANGE MATRICES'!BZ$4)) ->  | CA12: =('BIOMASS YIELD'!#REF!+('BIOMASS YIELD'!#REF!*'CHANGE MATRICES'!CA$4)) ->  | CB12: =('BIOMASS YIELD'!#REF!+('BIOMASS YIELD'!#REF!*'CHANGE MATRICES'!CB$4)) ->  | CC12: =('BIOMASS YIELD'!#REF!+('BIOMASS YIELD'!#REF!*'CHANGE MATRICES'!CC$4)) ->  | CD12: =('BIOMASS YIELD'!#REF!+('BIOMASS YIELD'!#REF!*'CHANGE MATRICES'!CD$4)) ->  | CE12: =('BIOMASS YIELD'!#REF!+('BIOMASS YIELD'!#REF!*'CHANGE MATRICES'!CE$4)) ->  | CF12: =('BIOMASS YIELD'!#REF!+('BIOMASS YIELD'!#REF!*'CHANGE MATRICES'!CF$4)) ->  | CG12: =('BIOMASS YIELD'!#REF!+('BIOMASS YIELD'!#REF!*'CHANGE MATRICES'!CG$4)) ->  | CH12: =('BIOMASS YIELD'!#REF!+('BIOMASS YIELD'!#REF!*'CHANGE MATRICES'!CH$4)) ->  | CI12: =('BIOMASS YIELD'!#REF!+('BIOMASS YIELD'!#REF!*'CHANGE MATRICES'!CI$4)) ->  | CJ12: =('BIOMASS YIELD'!#REF!+('BIOMASS YIELD'!#REF!*'CHANGE MATRICES'!CJ$4)) ->  | CK12: =('BIOMASS YIELD'!#REF!+('BIOMASS YIELD'!#REF!*'CHANGE MATRICES'!CK$4)) ->  | CL12: =('BIOMASS YIELD'!#REF!+('BIOMASS YIELD'!#REF!*'CHANGE MATRICES'!CL$4)) ->  | CM12: =('BIOMASS YIELD'!#REF!+('BIOMASS YIELD'!#REF!*'CHANGE MATRICES'!CM$4)) ->  | CN12: =('BIOMASS YIELD'!#REF!+('BIOMASS YIELD'!#REF!*'CHANGE MATRICES'!CN$4)) ->  | CO12: =('BIOMASS YIELD'!#REF!+('BIOMASS YIELD'!#REF!*'CHANGE MATRICES'!CO$4)) ->  | CP12: =('BIOMASS YIELD'!#REF!+('BIOMASS YIELD'!#REF!*'CHANGE MATRICES'!CP$4)) ->  | CQ12: =('BIOMASS YIELD'!#REF!+('BIOMASS YIELD'!#REF!*'CHANGE MATRICES'!CQ$4)) ->  | CR12: =('BIOMASS YIELD'!#REF!+('BIOMASS YIELD'!#REF!*'CHANGE MATRICES'!CR$4)) ->  | CS12: =('BIOMASS YIELD'!#REF!+('BIOMASS YIELD'!#REF!*'CHANGE MATRICES'!CS$4)) ->  | CT12: =('BIOMASS YIELD'!#REF!+('BIOMASS YIELD'!#REF!*'CHANGE MATRICES'!CT$4)) ->  | CU12: =('BIOMASS YIELD'!#REF!+('BIOMASS YIELD'!#REF!*'CHANGE MATRICES'!CU$4)) ->  | CV12: =('BIOMASS YIELD'!#REF!+('BIOMASS YIELD'!#REF!*'CHANGE MATRICES'!CV$4)) ->  | CW12: =('BIOMASS YIELD'!#REF!+('BIOMASS YIELD'!#REF!*'CHANGE MATRICES'!CW$4)) ->  | CX12: =('BIOMASS YIELD'!#REF!+('BIOMASS YIELD'!#REF!*'CHANGE MATRICES'!CX$4)) ->  | CY12: =('BIOMASS YIELD'!#REF!+('BIOMASS YIELD'!#REF!*'CHANGE MATRICES'!CY$4)) ->  | CZ12: =('BIOMASS YIELD'!#REF!+('BIOMASS YIELD'!#REF!*'CHANGE MATRICES'!CZ$4)) ->  | DA12: =('BIOMASS YIELD'!#REF!+('BIOMASS YIELD'!#REF!*'CHANGE MATRICES'!DA$4)) ->  | DB12: =('BIOMASS YIELD'!#REF!+('BIOMASS YIELD'!#REF!*'CHANGE MATRICES'!DB$4)) ->  | DC12: =('BIOMASS YIELD'!#REF!+('BIOMASS YIELD'!#REF!*'CHANGE MATRICES'!DC$4)) ->  | DD12: =('BIOMASS YIELD'!#REF!+('BIOMASS YIELD'!#REF!*'CHANGE MATRICES'!DD$4)) ->  | DE12: =('BIOMASS YIELD'!#REF!+('BIOMASS YIELD'!#REF!*'CHANGE MATRICES'!DE$4)) ->  | DF12: =('BIOMASS YIELD'!#REF!+('BIOMASS YIELD'!#REF!*'CHANGE MATRICES'!DF$4)) ->  | DG12: =('BIOMASS YIELD'!#REF!+('BIOMASS YIELD'!#REF!*'CHANGE MATRICES'!DG$4)) ->  | DH12: =('BIOMASS YIELD'!#REF!+('BIOMASS YIELD'!#REF!*'CHANGE MATRICES'!DH$4)) ->  | DI12: =('BIOMASS YIELD'!#REF!+('BIOMASS YIELD'!#REF!*'CHANGE MATRICES'!DI$4)) ->  | DJ12: =('BIOMASS YIELD'!#REF!+('BIOMASS YIELD'!#REF!*'CHANGE MATRICES'!DJ$4)) ->  | DK12: =('BIOMASS YIELD'!#REF!+('BIOMASS YIELD'!#REF!*'CHANGE MATRICES'!DK$4)) ->  | DL12: =('BIOMASS YIELD'!#REF!+('BIOMASS YIELD'!#REF!*'CHANGE MATRICES'!DL$4)) ->  | DM12: =('BIOMASS YIELD'!#REF!+('BIOMASS YIELD'!#REF!*'CHANGE MATRICES'!DM$4)) ->  | DN12: =('BIOMASS YIELD'!#REF!+('BIOMASS YIELD'!#REF!*'CHANGE MATRICES'!DN$4)) ->  | DO12: =('BIOMASS YIELD'!#REF!+('BIOMASS YIELD'!#REF!*'CHANGE MATRICES'!DO$4)) ->  | DP12: =('BIOMASS YIELD'!#REF!+('BIOMASS YIELD'!#REF!*'CHANGE MATRICES'!DP$4)) ->  | DQ12: =('BIOMASS YIELD'!#REF!+('BIOMASS YIELD'!#REF!*'CHANGE MATRICES'!DQ$4)) ->  | DS12: 900 | DT12: =AREA!B9 -> 146634.1416 | DU12: =AREA!C9 -> 164615.3673 | DV12: =AREA!D9 -> 200492.427 | DW12: =AREA!E9 -> 159667.1004 | DX12: =AREA!F9 -> 147678.6723 | DY12: =AREA!G9 -> 134871.5361 | DZ12: =AREA!H9 -> 119591.6829 | EA12: =AREA!I9 -> 114800.8443 | EB12: =AREA!J9 -> 117737.3475 | EC12: =AREA!K9 -> 122272.4157 | ED12: =AREA!L9 -> 139495.6383 | EE12: =AREA!M9 -> 114609.0165 | EF12: =AREA!N9 -> 144889.0752 | EG12: =AREA!O9 -> 119130.3249 | EH12: =AREA!P9 -> 101337.2847 | EI12: =AREA!Q9 -> 84388.4487 | EJ12: =AREA!R9 -> 42194.8314 | EK12: =AREA!S9 -> 21801.189 | EL12: =AREA!T9 -> 13085.9745 | EM12: =AREA!U9 -> 11711.2086 | EN12: =AREA!V9 -> 20159.7258
A13: STUMPS (ODT) 3rd | B13: =('BIOMASS YIELD'!#REF!+('BIOMASS YIELD'!#REF!*'CHANGE MATRICES'!B$4)) ->  | C13: =('BIOMASS YIELD'!#REF!+('BIOMASS YIELD'!#REF!*'CHANGE MATRICES'!C$4)) ->  | D13: =('BIOMASS YIELD'!#REF!+('BIOMASS YIELD'!#REF!*'CHANGE MATRICES'!D$4)) ->  | E13: =('BIOMASS YIELD'!#REF!+('BIOMASS YIELD'!#REF!*'CHANGE MATRICES'!E$4)) ->  | F13: =('BIOMASS YIELD'!#REF!+('BIOMASS YIELD'!#REF!*'CHANGE MATRICES'!F$4)) ->  | G13: =('BIOMASS YIELD'!#REF!+('BIOMASS YIELD'!#REF!*'CHANGE MATRICES'!G$4)) ->  | H13: =('BIOMASS YIELD'!#REF!+('BIOMASS YIELD'!#REF!*'CHANGE MATRICES'!H$4)) ->  | I13: =('BIOMASS YIELD'!#REF!+('BIOMASS YIELD'!#REF!*'CHANGE MATRICES'!I$4)) ->  | J13: =('BIOMASS YIELD'!#REF!+('BIOMASS YIELD'!#REF!*'CHANGE MATRICES'!J$4)) ->  | K13: =('BIOMASS YIELD'!#REF!+('BIOMASS YIELD'!#REF!*'CHANGE MATRICES'!K$4)) ->  | L13: =('BIOMASS YIELD'!#REF!+('BIOMASS YIELD'!#REF!*'CHANGE MATRICES'!L$4)) ->  | M13: =('BIOMASS YIELD'!#REF!+('BIOMASS YIELD'!#REF!*'CHANGE MATRICES'!M$4)) ->  | N13: =('BIOMASS YIELD'!#REF!+('BIOMASS YIELD'!#REF!*'CHANGE MATRICES'!N$4)) ->  | O13: =('BIOMASS YIELD'!#REF!+('BIOMASS YIELD'!#REF!*'CHANGE MATRICES'!O$4)) ->  | P13: =('BIOMASS YIELD'!#REF!+('BIOMASS YIELD'!#REF!*'CHANGE MATRICES'!P$4)) ->  | Q13: =('BIOMASS YIELD'!#REF!+('BIOMASS YIELD'!#REF!*'CHANGE MATRICES'!Q$4)) ->  | R13: =('BIOMASS YIELD'!#REF!+('BIOMASS YIELD'!#REF!*'CHANGE MATRICES'!R$4)) ->  | S13: =('BIOMASS YIELD'!#REF!+('BIOMASS YIELD'!#REF!*'CHANGE MATRICES'!S$4)) ->  | T13: =('BIOMASS YIELD'!#REF!+('BIOMASS YIELD'!#REF!*'CHANGE MATRICES'!T$4)) ->  | U13: =('BIOMASS YIELD'!#REF!+('BIOMASS YIELD'!#REF!*'CHANGE MATRICES'!U$4)) ->  | V13: =('BIOMASS YIELD'!#REF!+('BIOMASS YIELD'!#REF!*'CHANGE MATRICES'!V$4)) ->  | W13: =('BIOMASS YIELD'!#REF!+('BIOMASS YIELD'!#REF!*'CHANGE MATRICES'!W$4)) ->  | X13: =('BIOMASS YIELD'!#REF!+('BIOMASS YIELD'!#REF!*'CHANGE MATRICES'!X$4)) ->  | Y13: =('BIOMASS YIELD'!#REF!+('BIOMASS YIELD'!#REF!*'CHANGE MATRICES'!Y$4)) ->  | Z13: =('BIOMASS YIELD'!#REF!+('BIOMASS YIELD'!#REF!*'CHANGE MATRICES'!Z$4)) ->  | AA13: =('BIOMASS YIELD'!#REF!+('BIOMASS YIELD'!#REF!*'CHANGE MATRICES'!AA$4)) ->  | AB13: =('BIOMASS YIELD'!#REF!+('BIOMASS YIELD'!#REF!*'CHANGE MATRICES'!AB$4)) ->  | AC13: =('BIOMASS YIELD'!#REF!+('BIOMASS YIELD'!#REF!*'CHANGE MATRICES'!AC$4)) ->  | AD13: =('BIOMASS YIELD'!#REF!+('BIOMASS YIELD'!#REF!*'CHANGE MATRICES'!AD$4)) ->  | AE13: =('BIOMASS YIELD'!#REF!+('BIOMASS YIELD'!#REF!*'CHANGE MATRICES'!AE$4)) ->  | AF13: =('BIOMASS YIELD'!#REF!+('BIOMASS YIELD'!#REF!*'CHANGE MATRICES'!AF$4)) ->  | AG13: =('BIOMASS YIELD'!#REF!+('BIOMASS YIELD'!#REF!*'CHANGE MATRICES'!AG$4)) ->  | AH13: =('BIOMASS YIELD'!#REF!+('BIOMASS YIELD'!#REF!*'CHANGE MATRICES'!AH$4)) ->  | AI13: =('BIOMASS YIELD'!#REF!+('BIOMASS YIELD'!#REF!*'CHANGE MATRICES'!AI$4)) ->  | AJ13: =('BIOMASS YIELD'!#REF!+('BIOMASS YIELD'!#REF!*'CHANGE MATRICES'!AJ$4)) ->  | AK13: =('BIOMASS YIELD'!#REF!+('BIOMASS YIELD'!#REF!*'CHANGE MATRICES'!AK$4)) ->  | AL13: =('BIOMASS YIELD'!#REF!+('BIOMASS YIELD'!#REF!*'CHANGE MATRICES'!AL$4)) ->  | AM13: =('BIOMASS YIELD'!#REF!+('BIOMASS YIELD'!#REF!*'CHANGE MATRICES'!AM$4)) ->  | AN13: =('BIOMASS YIELD'!#REF!+('BIOMASS YIELD'!#REF!*'CHANGE MATRICES'!AN$4)) ->  | AO13: =('BIOMASS YIELD'!#REF!+('BIOMASS YIELD'!#REF!*'CHANGE MATRICES'!AO$4)) ->  | AP13: =('BIOMASS YIELD'!#REF!+('BIOMASS YIELD'!#REF!*'CHANGE MATRICES'!AP$4)) ->  | AQ13: =('BIOMASS YIELD'!#REF!+('BIOMASS YIELD'!#REF!*'CHANGE MATRICES'!AQ$4)) ->  | AR13: =('BIOMASS YIELD'!#REF!+('BIOMASS YIELD'!#REF!*'CHANGE MATRICES'!AR$4)) ->  | AS13: =('BIOMASS YIELD'!#REF!+('BIOMASS YIELD'!#REF!*'CHANGE MATRICES'!AS$4)) ->  | AT13: =('BIOMASS YIELD'!#REF!+('BIOMASS YIELD'!#REF!*'CHANGE MATRICES'!AT$4)) ->  | AU13: =('BIOMASS YIELD'!#REF!+('BIOMASS YIELD'!#REF!*'CHANGE MATRICES'!AU$4)) ->  | AV13: =('BIOMASS YIELD'!#REF!+('BIOMASS YIELD'!#REF!*'CHANGE MATRICES'!AV$4)) ->  | AW13: =('BIOMASS YIELD'!#REF!+('BIOMASS YIELD'!#REF!*'CHANGE MATRICES'!AW$4)) ->  | AX13: =('BIOMASS YIELD'!#REF!+('BIOMASS YIELD'!#REF!*'CHANGE MATRICES'!AX$4)) ->  | AY13: =('BIOMASS YIELD'!#REF!+('BIOMASS YIELD'!#REF!*'CHANGE MATRICES'!AY$4)) ->  | AZ13: =('BIOMASS YIELD'!#REF!+('BIOMASS YIELD'!#REF!*'CHANGE MATRICES'!AZ$4)) ->  | BA13: =('BIOMASS YIELD'!#REF!+('BIOMASS YIELD'!#REF!*'CHANGE MATRICES'!BA$4)) ->  | BB13: =('BIOMASS YIELD'!#REF!+('BIOMASS YIELD'!#REF!*'CHANGE MATRICES'!BB$4)) ->  | BC13: =('BIOMASS YIELD'!#REF!+('BIOMASS YIELD'!#REF!*'CHANGE MATRICES'!BC$4)) ->  | BD13: =('BIOMASS YIELD'!#REF!+('BIOMASS YIELD'!#REF!*'CHANGE MATRICES'!BD$4)) ->  | BE13: =('BIOMASS YIELD'!#REF!+('BIOMASS YIELD'!#REF!*'CHANGE MATRICES'!BE$4)) ->  | BF13: =('BIOMASS YIELD'!#REF!+('BIOMASS YIELD'!#REF!*'CHANGE MATRICES'!BF$4)) ->  | BG13: =('BIOMASS YIELD'!#REF!+('BIOMASS YIELD'!#REF!*'CHANGE MATRICES'!BG$4)) ->  | BH13: =('BIOMASS YIELD'!#REF!+('BIOMASS YIELD'!#REF!*'CHANGE MATRICES'!BH$4)) ->  | BI13: =('BIOMASS YIELD'!#REF!+('BIOMASS YIELD'!#REF!*'CHANGE MATRICES'!BI$4)) ->  | BJ13: =('BIOMASS YIELD'!#REF!+('BIOMASS YIELD'!#REF!*'CHANGE MATRICES'!BJ$4)) ->  | BK13: =('BIOMASS YIELD'!#REF!+('BIOMASS YIELD'!#REF!*'CHANGE MATRICES'!BK$4)) ->  | BL13: =('BIOMASS YIELD'!#REF!+('BIOMASS YIELD'!#REF!*'CHANGE MATRICES'!BL$4)) ->  | BM13: =('BIOMASS YIELD'!#REF!+('BIOMASS YIELD'!#REF!*'CHANGE MATRICES'!BM$4)) ->  | BN13: =('BIOMASS YIELD'!#REF!+('BIOMASS YIELD'!#REF!*'CHANGE MATRICES'!BN$4)) ->  | BO13: =('BIOMASS YIELD'!#REF!+('BIOMASS YIELD'!#REF!*'CHANGE MATRICES'!BO$4)) ->  | BP13: =('BIOMASS YIELD'!#REF!+('BIOMASS YIELD'!#REF!*'CHANGE MATRICES'!BP$4)) ->  | BQ13: =('BIOMASS YIELD'!#REF!+('BIOMASS YIELD'!#REF!*'CHANGE MATRICES'!BQ$4)) ->  | BR13: =('BIOMASS YIELD'!#REF!+('BIOMASS YIELD'!#REF!*'CHANGE MATRICES'!BR$4)) ->  | BS13: =('BIOMASS YIELD'!#REF!+('BIOMASS YIELD'!#REF!*'CHANGE MATRICES'!BS$4)) ->  | BT13: =('BIOMASS YIELD'!#REF!+('BIOMASS YIELD'!#REF!*'CHANGE MATRICES'!BT$4)) ->  | BU13: =('BIOMASS YIELD'!#REF!+('BIOMASS YIELD'!#REF!*'CHANGE MATRICES'!BU$4)) ->  | BV13: =('BIOMASS YIELD'!#REF!+('BIOMASS YIELD'!#REF!*'CHANGE MATRICES'!BV$4)) ->  | BW13: =('BIOMASS YIELD'!#REF!+('BIOMASS YIELD'!#REF!*'CHANGE MATRICES'!BW$4)) ->  | BX13: =('BIOMASS YIELD'!#REF!+('BIOMASS YIELD'!#REF!*'CHANGE MATRICES'!BX$4)) ->  | BY13: =('BIOMASS YIELD'!#REF!+('BIOMASS YIELD'!#REF!*'CHANGE MATRICES'!BY$4)) ->  | BZ13: =('BIOMASS YIELD'!#REF!+('BIOMASS YIELD'!#REF!*'CHANGE MATRICES'!BZ$4)) ->  | CA13: =('BIOMASS YIELD'!#REF!+('BIOMASS YIELD'!#REF!*'CHANGE MATRICES'!CA$4)) ->  | CB13: =('BIOMASS YIELD'!#REF!+('BIOMASS YIELD'!#REF!*'CHANGE MATRICES'!CB$4)) ->  | CC13: =('BIOMASS YIELD'!#REF!+('BIOMASS YIELD'!#REF!*'CHANGE MATRICES'!CC$4)) ->  | CD13: =('BIOMASS YIELD'!#REF!+('BIOMASS YIELD'!#REF!*'CHANGE MATRICES'!CD$4)) ->  | CE13: =('BIOMASS YIELD'!#REF!+('BIOMASS YIELD'!#REF!*'CHANGE MATRICES'!CE$4)) ->  | CF13: =('BIOMASS YIELD'!#REF!+('BIOMASS YIELD'!#REF!*'CHANGE MATRICES'!CF$4)) ->  | CG13: =('BIOMASS YIELD'!#REF!+('BIOMASS YIELD'!#REF!*'CHANGE MATRICES'!CG$4)) ->  | CH13: =('BIOMASS YIELD'!#REF!+('BIOMASS YIELD'!#REF!*'CHANGE MATRICES'!CH$4)) ->  | CI13: =('BIOMASS YIELD'!#REF!+('BIOMASS YIELD'!#REF!*'CHANGE MATRICES'!CI$4)) ->  | CJ13: =('BIOMASS YIELD'!#REF!+('BIOMASS YIELD'!#REF!*'CHANGE MATRICES'!CJ$4)) ->  | CK13: =('BIOMASS YIELD'!#REF!+('BIOMASS YIELD'!#REF!*'CHANGE MATRICES'!CK$4)) ->  | CL13: =('BIOMASS YIELD'!#REF!+('BIOMASS YIELD'!#REF!*'CHANGE MATRICES'!CL$4)) ->  | CM13: =('BIOMASS YIELD'!#REF!+('BIOMASS YIELD'!#REF!*'CHANGE MATRICES'!CM$4)) ->  | CN13: =('BIOMASS YIELD'!#REF!+('BIOMASS YIELD'!#REF!*'CHANGE MATRICES'!CN$4)) ->  | CO13: =('BIOMASS YIELD'!#REF!+('BIOMASS YIELD'!#REF!*'CHANGE MATRICES'!CO$4)) ->  | CP13: =('BIOMASS YIELD'!#REF!+('BIOMASS YIELD'!#REF!*'CHANGE MATRICES'!CP$4)) ->  | CQ13: =('BIOMASS YIELD'!#REF!+('BIOMASS YIELD'!#REF!*'CHANGE MATRICES'!CQ$4)) ->  | CR13: =('BIOMASS YIELD'!#REF!+('BIOMASS YIELD'!#REF!*'CHANGE MATRICES'!CR$4)) ->  | CS13: =('BIOMASS YIELD'!#REF!+('BIOMASS YIELD'!#REF!*'CHANGE MATRICES'!CS$4)) ->  | CT13: =('BIOMASS YIELD'!#REF!+('BIOMASS YIELD'!#REF!*'CHANGE MATRICES'!CT$4)) ->  | CU13: =('BIOMASS YIELD'!#REF!+('BIOMASS YIELD'!#REF!*'CHANGE MATRICES'!CU$4)) ->  | CV13: =('BIOMASS YIELD'!#REF!+('BIOMASS YIELD'!#REF!*'CHANGE MATRICES'!CV$4)) ->  | CW13: =('BIOMASS YIELD'!#REF!+('BIOMASS YIELD'!#REF!*'CHANGE MATRICES'!CW$4)) ->  | CX13: =('BIOMASS YIELD'!#REF!+('BIOMASS YIELD'!#REF!*'CHANGE MATRICES'!CX$4)) ->  | CY13: =('BIOMASS YIELD'!#REF!+('BIOMASS YIELD'!#REF!*'CHANGE MATRICES'!CY$4)) ->  | CZ13: =('BIOMASS YIELD'!#REF!+('BIOMASS YIELD'!#REF!*'CHANGE MATRICES'!CZ$4)) ->  | DA13: =('BIOMASS YIELD'!#REF!+('BIOMASS YIELD'!#REF!*'CHANGE MATRICES'!DA$4)) ->  | DB13: =('BIOMASS YIELD'!#REF!+('BIOMASS YIELD'!#REF!*'CHANGE MATRICES'!DB$4)) ->  | DC13: =('BIOMASS YIELD'!#REF!+('BIOMASS YIELD'!#REF!*'CHANGE MATRICES'!DC$4)) ->  | DD13: =('BIOMASS YIELD'!#REF!+('BIOMASS YIELD'!#REF!*'CHANGE MATRICES'!DD$4)) ->  | DE13: =('BIOMASS YIELD'!#REF!+('BIOMASS YIELD'!#REF!*'CHANGE MATRICES'!DE$4)) ->  | DF13: =('BIOMASS YIELD'!#REF!+('BIOMASS YIELD'!#REF!*'CHANGE MATRICES'!DF$4)) ->  | DG13: =('BIOMASS YIELD'!#REF!+('BIOMASS YIELD'!#REF!*'CHANGE MATRICES'!DG$4)) ->  | DH13: =('BIOMASS YIELD'!#REF!+('BIOMASS YIELD'!#REF!*'CHANGE MATRICES'!DH$4)) ->  | DI13: =('BIOMASS YIELD'!#REF!+('BIOMASS YIELD'!#REF!*'CHANGE MATRICES'!DI$4)) ->  | DJ13: =('BIOMASS YIELD'!#REF!+('BIOMASS YIELD'!#REF!*'CHANGE MATRICES'!DJ$4)) ->  | DK13: =('BIOMASS YIELD'!#REF!+('BIOMASS YIELD'!#REF!*'CHANGE MATRICES'!DK$4)) ->  | DL13: =('BIOMASS YIELD'!#REF!+('BIOMASS YIELD'!#REF!*'CHANGE MATRICES'!DL$4)) ->  | DM13: =('BIOMASS YIELD'!#REF!+('BIOMASS YIELD'!#REF!*'CHANGE MATRICES'!DM$4)) ->  | DN13: =('BIOMASS YIELD'!#REF!+('BIOMASS YIELD'!#REF!*'CHANGE MATRICES'!DN$4)) ->  | DO13: =('BIOMASS YIELD'!#REF!+('BIOMASS YIELD'!#REF!*'CHANGE MATRICES'!DO$4)) ->  | DP13: =('BIOMASS YIELD'!#REF!+('BIOMASS YIELD'!#REF!*'CHANGE MATRICES'!DP$4)) ->  | DQ13: =('BIOMASS YIELD'!#REF!+('BIOMASS YIELD'!#REF!*'CHANGE MATRICES'!DQ$4)) ->  | DS13: 801 | DT13: =AREA!#REF! ->  | DU13: =AREA!#REF! ->  | DV13: =AREA!#REF! ->  | DW13: =AREA!#REF! ->  | DX13: =AREA!#REF! ->  | DY13: =AREA!#REF! ->  | DZ13: =AREA!#REF! ->  | EA13: =AREA!#REF! ->  | EB13: =AREA!#REF! ->  | EC13: =AREA!#REF! ->  | ED13: =AREA!#REF! ->  | EE13: =AREA!#REF! ->  | EF13: =AREA!#REF! ->  | EG13: =AREA!#REF! ->  | EH13: =AREA!#REF! ->  | EI13: =AREA!#REF! ->  | EJ13: =AREA!#REF! ->  | EK13: =AREA!#REF! ->  | EL13: =AREA!#REF! ->  | EM13: =AREA!#REF! ->  | EN13: =AREA!#REF! -> 
